{"text_format":"1","workbook":"xlsx","n_sheets":41,"sheets":["Exhibit A","Insp Rpt","P2","P3","P4","P5","P6","P7","P8","P9","P10","P11","P12","P13","P14","P15","P16","P17","P18","P19","P20","P21","P22","P23","P24","P25","P26","P27","P28","P29","P30","P31","P32","P33","P34","P35","P36","P37","P38","P39","P40"],"not_rendered":{"charts":0,"images":1,"macros":1,"external_links":0,"defined_names":42,"comments":1,"pivot_tables":0},"unopened":[],"bounds":{"document_bytes":16777216,"sheet_cells":100000,"rows_first":2000,"rows_last":500,"rows_between":2000,"halvings":0,"cell_chars":16384,"cell_head_chars":4096},"cells_cut":0,"cells_raw":0,"read":"whole","date_system":"1900"}

{"sheet":"Exhibit A","index":0,"n_rows":59,"n_cols":9,"rows_kept":59,"cut":false,"hidden":false,"merged":[[1,1,1,9],[2,1,2,9],[3,1,3,9],[9,7,9,8],[7,7,7,8],[53,2,53,8],[6,3,6,4],[7,3,7,4],[8,3,8,4],[57,2,57,3]]}
[]
[null,"MHC Bllight Elimination Program"]
[null,"FIELD COMPLIANCE SITE VISIT REPORT"]
[null,"Exhibit A"]
[]
[]
[null,null,"BEP Program No."]
[null,null,"Grantee:",null,null,null,"Contractor:  "]
[null,null,"Blight Partner:"]
[null,null,null,null,null,null,null,"Date of Completion"]
[null,null,"Property ID","Parcel Number","Abbreviated Legal Description","Property Address","End Use","Pre-Demo Insp","Post-Demo Insp"]
[{"$f":"IF(C12=\"\",\"\",1)","v":""},null,null,null,null,null,null,{"$f":"IF('Insp Rpt'!Y102=\"\",\"\",'Insp Rpt'!Y102)","v":""},{"$f":"IF('Insp Rpt'!Y142=\"\",\"\",'Insp Rpt'!Y142)","v":""}]
[{"$f":"IF(C13=\"\",\"\",1)","v":""},null,null,null,null,null,null,{"$f":"IF('P2'!X48=\"\",\"\",'P2'!X48)","v":""},{"$f":"IF('P2'!X88=\"\",\"\",'P2'!X88)","v":""}]
["",null,null,null,null,null,null,{"$f":"IF('P3'!X48=\"\",\"\",'P3'!X48)","v":""},{"$f":"IF('P3'!$X$88=\"\",\"\",'P3'!$X$88)","v":""}]
["",null,null,null,null,null,null,{"$f":"IF('P4'!$X$48=\"\",\"\",'P4'!$X$48)","v":""},{"$f":"IF('P4'!$X$88=\"\",\"\",'P4'!$X$88)","v":""}]
["",null,null,null,null,null,null,{"$f":"IF('P5'!$X$48=\"\",\"\",'P5'!$X$48)","v":""},{"$f":"IF('P5'!$X$88=\"\",\"\",'P5'!$X$88)","v":""}]
["",null,null,null,null,null,null,{"$f":"IF('P6'!$X$48=\"\",\"\",'P6'!$X$48)","v":""},{"$f":"IF('P6'!$X$88=\"\",\"\",'P6'!$X$88)","v":""}]
["",null,null,null,null,null,null,{"$f":"IF('P7'!$X$48=\"\",\"\",'P7'!$X$48)","v":""},{"$f":"IF('P7'!$X$88=\"\",\"\",'P7'!$X$88)","v":""}]
["",null,null,null,null,null,null,{"$f":"IF('P8'!$X$48=\"\",\"\",'P8'!$X$48)","v":""},{"$f":"IF('P8'!$X$88=\"\",\"\",'P8'!$X$88)","v":""}]
["",null,null,null,null,null,null,{"$f":"IF('P9'!$X$48=\"\",\"\",'P9'!$X$48)","v":""},{"$f":"IF('P9'!$X$88=\"\",\"\",'P9'!$X$88)","v":""}]
["",null,null,null,null,null,null,{"$f":"IF('P10'!$X$48=\"\",\"\",'P10'!$X$48)","v":""},{"$f":"IF('P10'!$X$88=\"\",\"\",'P10'!$X$88)","v":""}]
["",null,null,null,null,null,null,{"$f":"IF('P11'!$X$48=\"\",\"\",'P11'!$X$48)","v":""},{"$f":"IF('P11'!$X$88=\"\",\"\",'P11'!$X$88)","v":""}]
["",null,null,null,null,null,null,{"$f":"IF('P12'!$X$48=\"\",\"\",'P12'!$X$48)","v":""},{"$f":"IF('P12'!$X$88=\"\",\"\",'P12'!$X$88)","v":""}]
["",null,null,null,null,null,null,{"$f":"IF('P13'!$X$48=\"\",\"\",'P13'!$X$48)","v":""},{"$f":"IF('P13'!$X$88=\"\",\"\",'P13'!$X$88)","v":""}]
["",null,null,null,null,null,null,{"$f":"IF('P14'!$X$48=\"\",\"\",'P14'!$X$48)","v":""},{"$f":"IF('P14'!$X$88=\"\",\"\",'P14'!$X$88)","v":""}]
["",null,null,null,null,null,null,{"$f":"IF('P15'!$X$48=\"\",\"\",'P15'!$X$48)","v":""},{"$f":"IF('P15'!$X$88=\"\",\"\",'P15'!$X$88)","v":""}]
["",null,null,null,null,null,null,{"$f":"IF('P16'!$X$48=\"\",\"\",'P16'!$X$48)","v":""},{"$f":"IF('P16'!$X$88=\"\",\"\",'P16'!$X$88)","v":""}]
["",null,null,null,null,null,null,{"$f":"IF('P17'!$X$48=\"\",\"\",'P17'!$X$48)","v":""},{"$f":"IF('P17'!$X$88=\"\",\"\",'P17'!$X$88)","v":""}]
["",null,null,null,null,null,null,{"$f":"IF('P18'!$X$48=\"\",\"\",'P18'!$X$48)","v":""},{"$f":"IF('P18'!$X$88=\"\",\"\",'P18'!$X$88)","v":""}]
["",null,null,null,null,null,null,{"$f":"IF('P19'!$X$48=\"\",\"\",'P19'!$X$48)","v":""},{"$f":"IF('P19'!$X$88=\"\",\"\",'P19'!$X$88)","v":""}]
["",null,null,null,null,null,null,{"$f":"IF('P20'!$X$48=\"\",\"\",'P20'!$X$48)","v":""},{"$f":"IF('P20'!$X$88=\"\",\"\",'P20'!$X$88)","v":""}]
["",null,null,null,null,null,null,{"$f":"IF('P21'!$X$48=\"\",\"\",'P21'!$X$48)","v":""},{"$f":"IF('P21'!$X$88=\"\",\"\",'P21'!$X$88)","v":""}]
["",null,null,null,null,null,null,{"$f":"IF('P22'!$X$48=\"\",\"\",'P22'!$X$48)","v":""},{"$f":"IF('P22'!$X$88=\"\",\"\",'P22'!$X$88)","v":""}]
["",null,null,null,null,null,null,{"$f":"IF('P23'!$X$48=\"\",\"\",'P23'!$X$48)","v":""},{"$f":"IF('P23'!$X$88=\"\",\"\",'P23'!$X$88)","v":""}]
["",null,null,null,null,null,null,{"$f":"IF('P24'!$X$48=\"\",\"\",'P24'!$X$48)","v":""},{"$f":"IF('P24'!$X$88=\"\",\"\",'P24'!$X$88)","v":""}]
["",null,null,null,null,null,null,{"$f":"IF('P25'!$X$48=\"\",\"\",'P25'!$X$48)","v":""},{"$f":"IF('P25'!$X$88=\"\",\"\",'P25'!$X$88)","v":""}]
["",null,null,null,null,null,null,{"$f":"IF('P26'!$X$48=\"\",\"\",'P26'!$X$48)","v":""},{"$f":"IF('P26'!$X$88=\"\",\"\",'P26'!$X$88)","v":""}]
["",null,null,null,null,null,null,{"$f":"IF('P27'!$X$48=\"\",\"\",'P27'!$X$48)","v":""},{"$f":"IF('P27'!$X$88=\"\",\"\",'P27'!$X$88)","v":""}]
["",null,null,null,null,null,null,{"$f":"IF('P28'!$X$48=\"\",\"\",'P28'!$X$48)","v":""},{"$f":"IF('P28'!$X$88=\"\",\"\",'P28'!$X$88)","v":""}]
["",null,null,null,null,null,null,{"$f":"IF('P29'!$X$48=\"\",\"\",'P29'!$X$48)","v":""},{"$f":"IF('P29'!$X$88=\"\",\"\",'P29'!$X$88)","v":""}]
["",null,null,null,null,null,null,{"$f":"IF('P30'!$X$48=\"\",\"\",'P30'!$X$48)","v":""},{"$f":"IF('P30'!$X$88=\"\",\"\",'P30'!$X$88)","v":""}]
["",null,null,null,null,null,null,{"$f":"IF('P31'!$X$48=\"\",\"\",'P31'!$X$48)","v":""},{"$f":"IF('P31'!$X$88=\"\",\"\",'P31'!$X$88)","v":""}]
["",null,null,null,null,null,null,{"$f":"IF('P32'!$X$48=\"\",\"\",'P32'!$X$48)","v":""},{"$f":"IF('P32'!$X$88=\"\",\"\",'P32'!$X$88)","v":""}]
["",null,null,null,null,null,null,{"$f":"IF('P33'!$X$48=\"\",\"\",'P33'!$X$48)","v":""},{"$f":"IF('P33'!$X$88=\"\",\"\",'P33'!$X$88)","v":""}]
["",null,null,null,null,null,null,{"$f":"IF('P34'!$X$48=\"\",\"\",'P34'!$X$48)","v":""},{"$f":"IF('P34'!$X$88=\"\",\"\",'P34'!$X$88)","v":""}]
["",null,null,null,null,null,null,{"$f":"IF('P35'!$X$48=\"\",\"\",'P35'!$X$48)","v":""},{"$f":"IF('P35'!$X$88=\"\",\"\",'P35'!$X$88)","v":""}]
["",null,null,null,null,null,null,{"$f":"IF('P36'!$X$48=\"\",\"\",'P36'!$X$48)","v":""},{"$f":"IF('P36'!$X$88=\"\",\"\",'P36'!$X$88)","v":""}]
["",null,null,null,null,null,null,{"$f":"IF('P37'!$X$48=\"\",\"\",'P37'!$X$48)","v":""},{"$f":"IF('P37'!$X$88=\"\",\"\",'P37'!$X$88)","v":""}]
["",null,null,null,null,null,null,{"$f":"IF('P38'!$X$48=\"\",\"\",'P38'!$X$48)","v":""},{"$f":"IF('P38'!$X$88=\"\",\"\",'P38'!$X$88)","v":""}]
["",null,null,null,null,null,null,{"$f":"IF('P39'!$X$48=\"\",\"\",'P39'!$X$48)","v":""},{"$f":"IF('P39'!$X$88=\"\",\"\",'P39'!$X$88)","v":""}]
["",null,null,null,null,null,null,{"$f":"IF('P40'!$X$48=\"\",\"\",'P40'!$X$48)","v":""},{"$f":"IF('P40'!$X$88=\"\",\"\",'P40'!$X$88)","v":""}]
[{"$f":"COUNT(A12:A51)","v":0}]
[null,null,"CERTIFICATION"]
[null,null,"I certify that I have carefully inspected the above listed properties on the dates listed above.  I have no personal interest, present or prospective, in the property, Grantee, Blight Partner, Demolition Contractor, or proceeds of the disbursements from the Grantee's BEP funds.  To the best of my knowledge I have reported all noncompliance, work requiring correction, and unacceptable work to MHC."]
[]
[null,null,{"$f":"VLOOKUP('Insp Rpt'!Y17,'Insp Rpt'!BA16:BH20,8)","v":0}]
[]
[null,null,null,null,"Site Visit Conducted By:",null,"Date:"]
[null,null,"Authorized Signature"]

{"sheet":"Insp Rpt","index":1,"n_rows":142,"n_cols":60,"rows_kept":142,"cut":false,"hidden":false,"merged":[[11,26,11,35],[12,26,12,31],[11,8,11,17],[17,8,17,17],[22,24,22,35],[22,8,22,17],[12,8,12,17],[13,8,13,17],[14,8,14,17],[15,8,15,17],[16,8,16,17],[18,8,18,17],[19,8,19,17],[20,8,20,17],[21,8,21,17],[16,34,16,36],[16,24,16,30],[17,24,17,35],[18,24,18,35],[19,24,19,35],[20,24,20,35],[21,24,21,35],[89,34,89,35],[86,31,86,32],[87,31,87,32],[88,31,88,32],[125,10,125,35],[91,3,91,35],[92,3,93,35],[141,7,141,19],[101,7,101,19],[133,34,133,35],[133,31,133,32],[118,34,118,35],[118,31,118,32],[117,31,117,32],[116,31,116,32],[129,31,129,32],[129,34,129,35],[108,10,108,19],[122,10,122,35],[123,10,123,35],[124,10,124,35],[121,3,121,35],[101,24,101,31],[106,32,106,35],[76,3,76,35],[75,3,75,35],[82,3,82,35],[90,3,90,35],[114,3,114,35],[81,10,81,35],[85,29,85,35],[84,34,84,35],[45,3,45,35],[46,3,46,35],[65,3,65,35],[69,8,69,35],[70,11,70,35],[72,3,72,35],[74,3,74,35],[57,32,57,35],[89,31,89,32],[67,34,67,35],[68,34,68,35],[67,31,67,32],[68,31,68,32],[83,34,83,35],[83,31,83,32],[77,10,77,35],[78,3,78,9],[138,3,138,35],[141,24,141,31],[131,4,131,34],[133,18,133,25],[128,3,128,35],[132,18,132,25],[111,3,111,35],[104,33,104,35],[78,10,78,35],[79,10,79,35],[80,10,80,35],[120,3,120,35],[94,3,94,35],[95,3,95,35],[115,31,115,32],[115,34,115,35],[116,34,116,35],[117,34,117,35],[126,10,126,35],[84,31,84,32],[86,34,86,35],[87,34,87,35],[88,34,88,35],[29,3,29,35],[30,25,30,35],[27,9,27,26],[25,3,25,35],[36,26,36,35],[37,3,37,35],[39,3,39,35],[41,10,41,35],[38,3,38,35],[98,3,98,35],[2,23,6,36],[26,29,26,35],[9,32,9,35],[62,3,62,35],[73,3,73,35],[26,9,26,16],[31,21,31,35],[32,20,32,35],[33,3,33,35],[66,29,66,35],[55,33,55,35],[26,24,26,26],[47,3,47,35],[48,3,48,35],[49,3,49,35],[51,3,51,35],[52,3,52,35],[34,3,34,35],[35,3,35,35],[42,3,42,35],[43,3,43,35],[44,3,44,35],[28,8,28,35]]}
[]
[]
[null,null,null,null,null,"MISSISSIPPI HOME CORPORATION",null,null,null,null,null,null,null,null,null,null,null,null,null,null,null,null,null,"FIELD COMPLIANCE SITE VISIT REPORT"]
[null,null,null,null,null,"HHF Blight Elimination Program"]
[]
[]
[]
[]
[]
[null,null,null,"General Information",null,null,null,null,null,null,null,null,null,null,null,null,null,null,null,null,null,null,null,null,null,null,null,"Program No.:",null,null,null,null,{"$f":"'Exhibit A'!D7","v":0}]
[null,null,null,"PARTICIPANTS",null,null,null,null,null,null,null,null,null,null,null,null,null,null,null,"PROPERTY"]
[null,null,null,"Grantee Name:",null,null,null,null,{"$f":"'Exhibit A'!D8","v":0},null,null,null,null,null,null,null,null,null,null,"Location of Properties:",null,null,null,null,null,null,"See Attached Exhibit A"]
[null,null,null,"Address:",null,null,null,null,null,null,null,null,null,null,null,null,null,null,null,"Number of Parcels:",null,null,null,null,null,null,{"$f":"IF('Exhibit A'!A52=\"\",\"\",'Exhibit A'!A52)","v":0}]
[null,null,null,"City, State, Zip"]
[null,null,null,"Contact Person:"]
[null,null,null,"Contact Phone:",null,null,null,null,null,null,null,null,null,null,null,null,null,null,null,"FIELD COMPLIANCE SERVICES CONTRACTOR",null,null,null,null,null,null,null,null,null,null,null,null,null,null,null,null,null,null,null,null,null,null,null,null,null,null,null,null,null,null,null,null,1]
[null,null,null,"Contact Email:",null,null,null,null,null,null,null,null,null,null,null,null,null,null,null,"Entity Name:",null,null,null,null,1,null,null,null,null,null,null,null,null,null,null,null,null,null,null,null,null,null,null,null,null,null,null,null,null,null,null,null,2,"NEMPDD     Cust ID # BEP-R1","P.O. Box 600","Booneville, MS 38829","Darlene Grimes",6624163665,"dgrimes@nempdd.com","NORTHEAST MISSISSIPPI PLANNING AND DEVELOPMENT DISTRICT"]
[null,null,null,"Blight Partner:",null,null,null,null,{"$f":"'Exhibit A'!D9","v":0},null,null,null,null,null,null,null,null,null,null,"Address:",null,null,null,null,{"$f":"VLOOKUP(Y17,BA16:BC20,3)","v":0},null,null,null,null,null,null,null,null,null,null,null,null,null,null,null,null,null,null,null,null,null,null,null,null,null,null,null,3,"NCPDD     Cust ID # BEP-R2","28 Industrial Park Boulevard","Winona, MS 38967","Stephen Russell",6017162822,"srussell@ncpdd.org","NORTH CENTRAL PLANNING AND DEVELOPMENT DISTRICT"]
[null,null,null,"Address:",null,null,null,null,null,null,null,null,null,null,null,null,null,null,null,"City, State, Zip",null,null,null,null,{"$f":"VLOOKUP(Y17,BA15:BD20,4)","v":0},null,null,null,null,null,null,null,null,null,null,null,null,null,null,null,null,null,null,null,null,null,null,null,null,null,null,null,4,"CONSOLDIATE RESOURCES  Cust ID # BEP-R3","P.O. Box 23521","Jackson, MS 39225","Frank Reed",6019068090,"f_reed47@yahoo.com","CONSOLIDATED RESOURCES, LLC"]
[null,null,null,"City, State, Zip",null,null,null,null,null,null,null,null,null,null,null,null,null,null,null,"Contact Person:",null,null,null,null,{"$f":"VLOOKUP(Y17,BA16:BE20,5)","v":0},null,null,null,null,null,null,null,null,null,null,null,null,null,null,null,null,null,null,null,null,null,null,null,null,null,null,null,5,"THE JONES GROUP     Cust ID # BEP-R4","407 Briarwood Dr #208","Jackson, MS 39206","Gennie Jones",6018428500,"gjones@jonesgroupms.com","THE JONES GROUP"]
[null,null,null,"Contact Person:",null,null,null,null,null,null,null,null,null,null,null,null,null,null,null,"Contact Phone:",null,null,null,null,{"$f":"VLOOKUP(Y17,BA16:BF21,6)","v":0}]
[null,null,null,"Contact Phone:",null,null,null,null,null,null,null,null,null,null,null,null,null,null,null,"Contact Email:",null,null,null,null,{"$f":"VLOOKUP(Y17,BA16:BG20,7)","v":0}]
[null,null,null,"Contact Email:",null,null,null,null,null,null,null,null,null,null,null,null,null,null,null,"Date Assigned:"]
[]
[null,null,null,"PART I:   Project Management Assessment"]
[null,null,null,"Prior to conducting a site visit, the Field Compliance Services Contractor must schedule a meeting with the Grantee and its Blight Partner(s).  The meeting should take place at the location where the record keeping will be maintained."]
[null,null,null,"Date of Meeting:",null,null,null,null,null,null,null,null,null,null,null,null,null,null,null,"Time of Meeting:"]
[null,null,null,"Location of Meeting:"]
[null,null,null,"List all Attendees:"]
[]
[null,null,null,"Name of person assigned as the point of contact for the Field Compliance Contractor:"]
[null,null,null,"Name of person that will be responsible for the record-keeping of BEP:"]
[null,null,null,"Describe the management operation process for maintaining files:"]
[]
[]
[]
[null,null,null,"List any questions the Grantee/Blight Partner has about the Blight Elimination Program:"]
[]
[]
[]
[null,null,null,"Describe any obstacles that the Grantee/Blight Partner foresee that may cause delays in moving forward with the"]
[null,null,null,"demolition of properties:"]
[]
[]
[]
[]
[null,null,null,"Provide an assessment of the Grantee/Blight Partner's ability to manage the operations of the BEP (include details of staff's capacity, organization skills, record-keeping process, etc.):"]
[]
[]
[]
[null,null,null,"Provide any suggestions/recommendations you may have for MHC in monitoring this Grantee/Blight Partner's process:"]
[]
[]
[]
[null,null,null,null,null,null,null,null,null,null,null,null,null,null,null,null,null,null,null,null,null,null,null,null,null,null,null,null,null,null,null,null,null,null,null,"Field Compliance Site Visit Report"]
[null,null,null,null,null,null,null,null,null,null,null,null,null,null,null,null,null,null,null,null,null,null,null,null,null,null,null,null,null,{"$f":"IF(AG10=\"\",\"\",\"Program No.:\")","v":"Program No.:"},null,null,null,{"$f":"IF(AG10=\"\",\"\",AG10)","v":0}]
[]
[null,null,null,"PART II:   Initial Site Visit (Pre-Demolition)",null,null,null,null,null,null,null,null,null,null,null,null,null,null,null,null,null,null,null,null,null,null,null,null,"Project No.:",null,null,null,{"$f":"'Exhibit A'!C12","v":0}]
[null,null,null,"Property Address:",null,null,null,null,null,null,{"$f":"'Exhibit A'!F12","v":0}]
[null,null,null,"Parcel No.:",null,null,null,null,null,null,{"$f":"'Exhibit A'!D12","v":0}]
[null,null,null,"Expected End Use:",null,null,null,null,null,null,{"$f":"IF('Exhibit A'!G12=\"\",\"\",'Exhibit A'!G12)","v":""}]
[]
[null,null,null,"The following section must be completed for each assigned property listed in Exhibit A (attached hereto) PRIOR TO DEMOLITION.  All sections must be completed in its entirety.  Contractors will be required to provide as much details as possible to support their assessment.  Upon completion of each site visit, a copy of this form and photos of the property must be submitted to MHC."]
[]
[]
[null,null,null,"SITE INFORMATION"]
[null,null,null,"Number of structures on site:"]
[null,null,null,"Is the site located in the BEP Target Area?",null,null,null,null,null,null,null,null,null,null,null,null,null,null,null,null,null,null,null,null,null,null,null,null,null,null,null,"Yes",null,null,"No"]
[null,null,null,"Does there appear to be anything of value or salvageable material on the site?",null,null,null,null,null,null,null,null,null,null,null,null,null,null,null,null,null,null,null,null,null,null,null,null,null,null,null,"Yes",null,null,"No"]
[null,null,null,"     If yes, describe:"]
[null,null,null,"     Will it be sold or donated?"]
[null,null,null,"Describe any other structures on the site (shed, workshop, fence, etc):"]
[]
[null,null,null,"Describe the suitability of the site entry points for access to and from the site for demolition equipment:  (Please make note of any obstructions or observable liabilities.)"]
[]
[null,null,null,"SITE CONDITIONS"]
[null,null,null,"(Describe the condition of the following:)"]
[null,null,null,"Driveways/Parking Area:"]
[null,null,null,"Curbing:"]
[null,null,null,"Sidewalks:"]
[null,null,null,"Landscaping:"]
[null,null,null,"Fencing/Walls:"]
[null,null,null,"PROPERTY INFORMATION"]
[null,null,null,"Is the property address clearly identified on the building/main entrance?",null,null,null,null,null,null,null,null,null,null,null,null,null,null,null,null,null,null,null,null,null,null,null,null,null,null,null,"Yes",null,null,"No"]
[null,null,null,"Is the structure to be demolished a Single-Family (1-4 units) Residential Structure?",null,null,null,null,null,null,null,null,null,null,null,null,null,null,null,null,null,null,null,null,null,null,null,null,null,null,null,"Yes",null,null,"No"]
[null,null,null,"What is the approximate square footage of the the residential structure?"]
[null,null,null,"Is the structure vacant/abandoned?",null,null,null,null,null,null,null,null,null,null,null,null,null,null,null,null,null,null,null,null,null,null,null,null,null,null,null,"Yes",null,null,"No"]
[null,null,null,"Does the property have severe structural damage (roof, exterior walls, foundation)?",null,null,null,null,null,null,null,null,null,null,null,null,null,null,null,null,null,null,null,null,null,null,null,null,null,null,null,"Yes",null,null,"No"]
[null,null,null,"Has all services (power, water, gas, etc) been disconnected?",null,null,null,null,null,null,null,null,null,null,null,null,null,null,null,null,null,null,null,null,null,null,null,null,null,null,null,"Yes",null,null,"No"]
[null,null,null,"Does the property qualify as a blight structure?",null,null,null,null,null,null,null,null,null,null,null,null,null,null,null,null,null,null,null,null,null,null,null,null,null,null,null,"Yes",null,null,"No"]
[null,null,null,"NEIGHBORHOOD ASSESSMENT"]
[null,null,null,"(Describe the neighborhood conditions:)"]
[]
[]
[null,null,null,"ADDITIONAL INFORMATION"]
[]
[]
[null,null,null,"Certification"]
[null,null,null,"I certify that I have carefully inspected this property on this date.  I have no personal interest, present or prospective, in the property, Grantee, Blight Partner, Demolition Contractor, or proceeds of the disbursements from the Grantee's BEP funds.  To the best of my knowledge I have reported all noncompliance, work requiring correction, and unacceptable work to MHC."]
[]
[]
[null,null,null,"Prepared By:",null,null,null,null,null,null,null,null,null,null,null,null,null,null,null,null,null,null,"Date:"]
[]
[null,null,null,null,null,null,null,null,null,null,null,null,null,null,null,null,null,null,null,null,null,null,null,null,null,null,null,null,null,null,null,null,null,null,null,"Field Compliance Site Visit Report"]
[null,null,null,null,null,null,null,null,null,null,null,null,null,null,null,null,null,null,null,null,null,null,null,null,null,null,null,null,null,{"$f":"IF(AG10=\"\",\"\",\"Program No.:\")","v":"Program No.:"},null,null,null,{"$f":"IF(AG10=\"\",\"\",AG10)","v":0}]
[]
[null,null,null,"PART III:  Follow-up Site Visit (Post-Demolition)",null,null,null,null,null,null,null,null,null,null,null,null,null,null,null,null,null,null,null,null,null,null,null,null,"Project No.:",null,null,null,{"$f":"'Exhibit A'!C12","v":0}]
[null,null,null,"Property Address:",null,null,null,null,null,null,{"$f":"'Exhibit A'!F12","v":0}]
[null,null,null,"Parcel No.:",null,null,null,null,null,null,{"$f":"'Exhibit A'!D12","v":0}]
[null,null,null,"Expected End Use:",null,null,null,null,null,null,{"$f":"'Exhibit A'!G12","v":0}]
[]
[null,null,null,"The following section must be completed for each assigned property listed in Exhibit A (attached hereto) AFTER DEMOLITION is complete.  All sections must be completed in its entirety.  Contractors will be required to provide as much details as possible to support their assessment.  Upon completion of each site visit, a copy of this form and photos of the property must be submitted to MHC."]
[]
[]
[null,null,null,"SITE INFORMATION"]
[null,null,null,"All portions of the structure, including the foundation, has been removed?",null,null,null,null,null,null,null,null,null,null,null,null,null,null,null,null,null,null,null,null,null,null,null,null,null,null,null,"Yes",null,null,"No"]
[null,null,null,"All debris has been removed from the property and taken to a landfill?",null,null,null,null,null,null,null,null,null,null,null,null,null,null,null,null,null,null,null,null,null,null,null,null,null,null,null,"Yes",null,null,"No"]
[null,null,null,"The lot is properly filled, compacted, graded and seeded?",null,null,null,null,null,null,null,null,null,null,null,null,null,null,null,null,null,null,null,null,null,null,null,null,null,null,null,"Yes",null,null,"No"]
[null,null,null,"Septic tank (if applicable) has been pumped and filled or removed?",null,null,null,null,null,null,null,null,null,null,null,null,null,null,null,null,null,null,null,null,null,null,null,null,null,null,null,"Yes",null,null,"No"]
[]
[null,null,null,"SITE CONDITIONS"]
[null,null,null,"(Describe the condition of the following:)"]
[null,null,null,"Driveways/Parking Area:"]
[null,null,null,"Curbing:"]
[null,null,null,"Sidewalks:"]
[null,null,null,"Landscaping:"]
[null,null,null,"Fencing/Walls:"]
[]
[null,null,null,"CORRECTIVE ACTIONS"]
[null,null,null,"Are there any corrective actions that need to be taken?",null,null,null,null,null,null,null,null,null,null,null,null,null,null,null,null,null,null,null,null,null,null,null,null,null,null,null,"Yes",null,null,"No"]
[null,null,null,"    If yes, describe:"]
[]
[]
[null,null,null,"Reinspection Needed?",null,null,null,null,null,null,null,null,null,null,null,null,null,null,null,null,null,null,null,null,null,null,null,null,null,null,null,"Yes",null,null,"No"]
[]
[]
[]
[null,null,null,"Certification"]
[null,null,null,"I certify that I have carefully inspected this property on this date.  I have no personal interest, present or prospective, in the property, Grantee, Blight Partner, Demolition Contractor, or proceeds of the disbursements from the Grantee's BEP funds.  To the best of my knowledge I have reported all noncompliance, work requiring correction, and unacceptable work to MHC."]
[]
[]
[null,null,null,"Prepared By:",null,null,null,null,null,null,null,null,null,null,null,null,null,null,null,null,null,null,"Date:"]

{"sheet":"P2","index":2,"n_rows":88,"n_cols":35,"rows_kept":88,"cut":false,"hidden":true,"merged":[[32,30,32,31],[33,30,33,31],[34,30,34,31],[21,2,21,34],[22,2,22,34],[23,9,23,34],[24,2,24,8],[24,9,24,34],[33,33,33,34],[29,30,29,31],[30,30,30,31],[34,33,34,34],[62,30,62,31],[18,2,18,34],[1,32,1,34],[5,9,5,17],[13,30,13,31],[14,30,14,31],[13,33,13,34],[14,33,14,34],[8,2,8,34],[11,2,11,34],[12,28,12,34],[15,7,15,34],[16,10,16,34],[3,31,3,34],[19,2,19,34],[20,2,20,34],[63,33,63,34],[47,6,47,18],[66,2,66,34],[61,30,61,31],[25,9,25,34],[32,33,32,34],[26,9,26,34],[27,9,27,34],[28,2,28,34],[30,33,30,34],[29,33,29,34],[31,28,31,34],[35,33,35,34],[36,2,36,34],[35,30,35,31],[47,23,47,30],[37,2,37,34],[38,2,39,34],[40,2,40,34],[41,2,41,34],[44,2,44,34],[87,6,87,18],[74,2,74,34],[77,3,77,33],[78,17,78,24],[79,17,79,24],[87,23,87,30],[75,33,75,34],[79,33,79,34],[75,30,75,31],[79,30,79,31],[50,32,50,34],[57,2,57,34],[60,2,60,34],[52,31,52,34],[84,2,84,34],[72,9,72,34],[68,9,68,34],[69,9,69,34],[70,9,70,34],[64,33,64,34],[71,9,71,34],[67,2,67,34],[63,30,63,31],[64,30,64,31],[61,33,61,34],[62,33,62,34]]}
[null,null,null,null,null,null,null,null,null,null,null,null,null,null,null,null,null,null,null,null,null,null,null,null,null,null,null,null,null,null,null,null,null,null,"Field Compliance Site Visit Report"]
[null,null,null,null,null,null,null,null,null,null,null,null,null,null,null,null,null,null,null,null,null,null,null,null,null,null,null,null,{"$f":"IF('Insp Rpt'!AG10=\"\",\"\",\"Program No.:\")","v":"Program No.:"},null,null,null,{"$f":"IF('Insp Rpt'!$AG$10=\"\",\"\",'Insp Rpt'!$AG$10)","v":0}]
[]
[null,null,"PART II:   Initial Site Visit (Pre-Demolition)",null,null,null,null,null,null,null,null,null,null,null,null,null,null,null,null,null,null,null,null,null,null,null,null,"Project No.:",null,null,null,{"$f":"'Exhibit A'!C13","v":0}]
[null,null,"Property Address:",null,null,null,null,null,null,{"$f":"'Exhibit A'!F13","v":0}]
[null,null,"Parcel No.:",null,null,null,null,null,null,{"$f":"'Exhibit A'!D13","v":0}]
[null,null,"Expected End Use:",null,null,null,null,null,null,{"$f":"'Exhibit A'!G13","v":0}]
[]
[null,null,"The following section must be completed for each assigned property listed in Exhibit A (attached hereto) PRIOR TO DEMOLITION.  All sections must be completed in its entirety.  Contractors will be required to provide as much details as possible to support their assessment.  Upon completion of each site visit, a copy of this form and photos of the property must be submitted to MHC."]
[]
[]
[null,null,"SITE INFORMATION"]
[null,null,"Number of structures on site:"]
[null,null,"Is the site located in the BEP Target Area?",null,null,null,null,null,null,null,null,null,null,null,null,null,null,null,null,null,null,null,null,null,null,null,null,null,null,null,"Yes",null,null,"No"]
[null,null,"Does there appear to be anything of value or salvageable material on the site?",null,null,null,null,null,null,null,null,null,null,null,null,null,null,null,null,null,null,null,null,null,null,null,null,null,null,null,"Yes",null,null,"No"]
[null,null,"     If yes, describe:"]
[null,null,"     Will it be sold or donated?"]
[null,null,"Describe any other structures on the site (shed, workshop, fence, etc):"]
[]
[null,null,"Describe the suitability of the site entry points for access to and from the site for demolition equipment:  (Please make note of any obstructions or observable liabilities.)"]
[]
[null,null,"SITE CONDITIONS"]
[null,null,"(Describe the condition of the following:)"]
[null,null,"Driveways/Parking Area:"]
[null,null,"Curbing:"]
[null,null,"Sidewalks:"]
[null,null,"Landscaping:"]
[null,null,"Fencing/Walls:"]
[null,null,"PROPERTY INFORMATION"]
[null,null,"Is the property address clearly identified on the building/main entrance?",null,null,null,null,null,null,null,null,null,null,null,null,null,null,null,null,null,null,null,null,null,null,null,null,null,null,null,"Yes",null,null,"No"]
[null,null,"Is the structure to be demolished a Single-Family (1-4 units) Residential Structure?",null,null,null,null,null,null,null,null,null,null,null,null,null,null,null,null,null,null,null,null,null,null,null,null,null,null,null,"Yes",null,null,"No"]
[null,null,"What is the approximate square footage of the the residential structure?"]
[null,null,"Is the structure vacant/abandoned?",null,null,null,null,null,null,null,null,null,null,null,null,null,null,null,null,null,null,null,null,null,null,null,null,null,null,null,"Yes",null,null,"No"]
[null,null,"Does the property have severe structural damage (roof, exterior walls, foundation)?",null,null,null,null,null,null,null,null,null,null,null,null,null,null,null,null,null,null,null,null,null,null,null,null,null,null,null,"Yes",null,null,"No"]
[null,null,"Has all services (power, water, gas, etc) been disconnected?",null,null,null,null,null,null,null,null,null,null,null,null,null,null,null,null,null,null,null,null,null,null,null,null,null,null,null,"Yes",null,null,"No"]
[null,null,"Does the property qualify as a blight structure?",null,null,null,null,null,null,null,null,null,null,null,null,null,null,null,null,null,null,null,null,null,null,null,null,null,null,null,"Yes",null,null,"No"]
[null,null,"NEIGHBORHOOD ASSESSMENT"]
[null,null,"(Describe the neighborhood conditions:)"]
[]
[]
[null,null,"ADDITIONAL INFORMATION"]
[]
[]
[null,null,"Certification"]
[null,null,"I certify that I have carefully inspected this property on this date.  I have no personal interest, present or prospective, in the property, Grantee, Blight Partner, Demolition Contractor, or proceeds of the disbursements from the Grantee's BEP funds.  To the best of my knowledge I have reported all noncompliance, work requiring correction, and unacceptable work to MHC."]
[]
[]
[null,null,"Prepared By:",null,null,null,null,null,null,null,null,null,null,null,null,null,null,null,null,null,null,"Date:"]
[]
[null,null,null,null,null,null,null,null,null,null,null,null,null,null,null,null,null,null,null,null,null,null,null,null,null,null,null,null,null,null,null,null,null,null,"Field Compliance Site Visit Report"]
[null,null,null,null,null,null,null,null,null,null,null,null,null,null,null,null,null,null,null,null,null,null,null,null,null,null,null,null,{"$f":"IF('Insp Rpt'!$AG$10=\"\",\"\",\"Program No.:\")","v":"Program No.:"},null,null,null,{"$f":"IF('Insp Rpt'!$AG$10=\"\",\"\",'Insp Rpt'!$AG$10)","v":0}]
[]
[null,null,"PART III:  Follow-up Site Visit (Post-Demolition)",null,null,null,null,null,null,null,null,null,null,null,null,null,null,null,null,null,null,null,null,null,null,null,null,"Project No.:",null,null,null,{"$f":"'Exhibit A'!C13","v":0}]
[null,null,"Property Address:",null,null,null,null,null,null,{"$f":"J5","v":0}]
[null,null,"Parcel No.:",null,null,null,null,null,null,{"$f":"J6","v":0}]
[null,null,"Expected End Use:",null,null,null,null,null,null,{"$f":"J7","v":0}]
[]
[null,null,"The following section must be completed for each assigned property listed in Exhibit A (attached hereto) AFTER DEMOLITION is complete.  All sections must be completed in its entirety.  Contractors will be required to provide as much details as possible to support their assessment.  Upon completion of each site visit, a copy of this form and photos of the property must be submitted to MHC."]
[]
[]
[null,null,"SITE INFORMATION"]
[null,null,"All portions of the structure, including the foundation, has been removed?",null,null,null,null,null,null,null,null,null,null,null,null,null,null,null,null,null,null,null,null,null,null,null,null,null,null,null,"Yes",null,null,"No"]
[null,null,"All debris has been removed from the property and taken to a landfill?",null,null,null,null,null,null,null,null,null,null,null,null,null,null,null,null,null,null,null,null,null,null,null,null,null,null,null,"Yes",null,null,"No"]
[null,null,"The lot is properly filled, compacted, graded and seeded?",null,null,null,null,null,null,null,null,null,null,null,null,null,null,null,null,null,null,null,null,null,null,null,null,null,null,null,"Yes",null,null,"No"]
[null,null,"Septic tank (if applicable) has been pumped and filled or removed?",null,null,null,null,null,null,null,null,null,null,null,null,null,null,null,null,null,null,null,null,null,null,null,null,null,null,null,"Yes",null,null,"No"]
[]
[null,null,"SITE CONDITIONS"]
[null,null,"(Describe the condition of the following:)"]
[null,null,"Driveways/Parking Area:"]
[null,null,"Curbing:"]
[null,null,"Sidewalks:"]
[null,null,"Landscaping:"]
[null,null,"Fencing/Walls:"]
[]
[null,null,"CORRECTIVE ACTIONS"]
[null,null,"Are there any corrective actions that need to be taken?",null,null,null,null,null,null,null,null,null,null,null,null,null,null,null,null,null,null,null,null,null,null,null,null,null,null,null,"Yes",null,null,"No"]
[null,null,"    If yes, describe:"]
[]
[]
[null,null,"Reinspection Needed?",null,null,null,null,null,null,null,null,null,null,null,null,null,null,null,null,null,null,null,null,null,null,null,null,null,null,null,"Yes",null,null,"No"]
[]
[]
[]
[null,null,"Certification"]
[null,null,"I certify that I have carefully inspected this property on this date.  I have no personal interest, present or prospective, in the property, Grantee, Blight Partner, Demolition Contractor, or proceeds of the disbursements from the Grantee's BEP funds.  To the best of my knowledge I have reported all noncompliance, work requiring correction, and unacceptable work to MHC."]
[]
[]
[null,null,"Prepared By:",null,null,null,null,null,null,null,null,null,null,null,null,null,null,null,null,null,null,"Date:"]

{"sheet":"P3","index":3,"n_rows":88,"n_cols":35,"rows_kept":88,"cut":false,"hidden":true,"merged":[[57,2,57,34],[60,2,60,34],[3,31,3,34],[52,31,52,34],[40,2,40,34],[38,2,39,34],[32,30,32,31],[33,30,33,31],[34,30,34,31],[22,2,22,34],[15,7,15,34],[16,10,16,34],[18,2,18,34],[19,2,19,34],[20,2,20,34],[21,2,21,34],[35,33,35,34],[35,30,35,31],[44,2,44,34],[47,23,47,30],[50,32,50,34],[1,32,1,34],[5,9,5,17],[8,2,8,34],[11,2,11,34],[12,28,12,34],[14,30,14,31],[13,33,13,34],[14,33,14,34],[23,9,23,34],[24,2,24,8],[24,9,24,34],[13,30,13,31],[25,9,25,34],[26,9,26,34],[71,9,71,34],[72,9,72,34],[79,17,79,24],[27,9,27,34],[28,2,28,34],[31,28,31,34],[36,2,36,34],[37,2,37,34],[29,30,29,31],[30,30,30,31],[29,33,29,34],[30,33,30,34],[47,6,47,18],[32,33,32,34],[33,33,33,34],[34,33,34,34],[84,2,84,34],[87,23,87,30],[74,2,74,34],[77,3,77,33],[78,17,78,24],[75,30,75,31],[75,33,75,34],[79,33,79,34],[79,30,79,31],[87,6,87,18],[68,9,68,34],[69,9,69,34],[70,9,70,34],[41,2,41,34],[66,2,66,34],[67,2,67,34],[61,30,61,31],[62,30,62,31],[63,33,63,34],[64,30,64,31],[61,33,61,34],[62,33,62,34],[64,33,64,34],[63,30,63,31]]}
[null,null,null,null,null,null,null,null,null,null,null,null,null,null,null,null,null,null,null,null,null,null,null,null,null,null,null,null,null,null,null,null,null,null,"Field Compliance Site Visit Report"]
[null,null,null,null,null,null,null,null,null,null,null,null,null,null,null,null,null,null,null,null,null,null,null,null,null,null,null,null,{"$f":"IF('Insp Rpt'!AG10=\"\",\"\",\"Program No.:\")","v":"Program No.:"},null,null,null,{"$f":"IF('Insp Rpt'!$AG$10=\"\",\"\",'Insp Rpt'!$AG$10)","v":0}]
[]
[null,null,"PART II:   Initial Site Visit (Pre-Demolition)",null,null,null,null,null,null,null,null,null,null,null,null,null,null,null,null,null,null,null,null,null,null,null,null,"Project No.:",null,null,null,{"$f":"'Exhibit A'!C14","v":0}]
[null,null,"Property Address:",null,null,null,null,null,null,{"$f":"'Exhibit A'!F14","v":0}]
[null,null,"Parcel No.:",null,null,null,null,null,null,{"$f":"'Exhibit A'!D14","v":0}]
[null,null,"Expected End Use:",null,null,null,null,null,null,{"$f":"'Exhibit A'!G14","v":0}]
[]
[null,null,"The following section must be completed for each assigned property listed in Exhibit A (attached hereto) PRIOR TO DEMOLITION.  All sections must be completed in its entirety.  Contractors will be required to provide as much details as possible to support their assessment.  Upon completion of each site visit, a copy of this form and photos of the property must be submitted to MHC."]
[]
[]
[null,null,"SITE INFORMATION"]
[null,null,"Number of structures on site:"]
[null,null,"Is the site located in the BEP Target Area?",null,null,null,null,null,null,null,null,null,null,null,null,null,null,null,null,null,null,null,null,null,null,null,null,null,null,null,"Yes",null,null,"No"]
[null,null,"Does there appear to be anything of value or salvageable material on the site?",null,null,null,null,null,null,null,null,null,null,null,null,null,null,null,null,null,null,null,null,null,null,null,null,null,null,null,"Yes",null,null,"No"]
[null,null,"     If yes, describe:"]
[null,null,"     Will it be sold or donated?"]
[null,null,"Describe any other structures on the site (shed, workshop, fence, etc):"]
[]
[null,null,"Describe the suitability of the site entry points for access to and from the site for demolition equipment:  (Please make note of any obstructions or observable liabilities.)"]
[]
[null,null,"SITE CONDITIONS"]
[null,null,"(Describe the condition of the following:)"]
[null,null,"Driveways/Parking Area:"]
[null,null,"Curbing:"]
[null,null,"Sidewalks:"]
[null,null,"Landscaping:"]
[null,null,"Fencing/Walls:"]
[null,null,"PROPERTY INFORMATION"]
[null,null,"Is the property address clearly identified on the building/main entrance?",null,null,null,null,null,null,null,null,null,null,null,null,null,null,null,null,null,null,null,null,null,null,null,null,null,null,null,"Yes",null,null,"No"]
[null,null,"Is the structure to be demolished a Single-Family (1-4 units) Residential Structure?",null,null,null,null,null,null,null,null,null,null,null,null,null,null,null,null,null,null,null,null,null,null,null,null,null,null,null,"Yes",null,null,"No"]
[null,null,"What is the approximate square footage of the the residential structure?"]
[null,null,"Is the structure vacant/abandoned?",null,null,null,null,null,null,null,null,null,null,null,null,null,null,null,null,null,null,null,null,null,null,null,null,null,null,null,"Yes",null,null,"No"]
[null,null,"Does the property have severe structural damage (roof, exterior walls, foundation)?",null,null,null,null,null,null,null,null,null,null,null,null,null,null,null,null,null,null,null,null,null,null,null,null,null,null,null,"Yes",null,null,"No"]
[null,null,"Has all services (power, water, gas, etc) been disconnected?",null,null,null,null,null,null,null,null,null,null,null,null,null,null,null,null,null,null,null,null,null,null,null,null,null,null,null,"Yes",null,null,"No"]
[null,null,"Does the property qualify as a blight structure?",null,null,null,null,null,null,null,null,null,null,null,null,null,null,null,null,null,null,null,null,null,null,null,null,null,null,null,"Yes",null,null,"No"]
[null,null,"NEIGHBORHOOD ASSESSMENT"]
[null,null,"(Describe the neighborhood conditions:)"]
[]
[]
[null,null,"ADDITIONAL INFORMATION"]
[]
[]
[null,null,"Certification"]
[null,null,"I certify that I have carefully inspected this property on this date.  I have no personal interest, present or prospective, in the property, Grantee, Blight Partner, Demolition Contractor, or proceeds of the disbursements from the Grantee's BEP funds.  To the best of my knowledge I have reported all noncompliance, work requiring correction, and unacceptable work to MHC."]
[]
[]
[null,null,"Prepared By:",null,null,null,null,null,null,null,null,null,null,null,null,null,null,null,null,null,null,"Date:"]
[]
[null,null,null,null,null,null,null,null,null,null,null,null,null,null,null,null,null,null,null,null,null,null,null,null,null,null,null,null,null,null,null,null,null,null,"Field Compliance Site Visit Report"]
[null,null,null,null,null,null,null,null,null,null,null,null,null,null,null,null,null,null,null,null,null,null,null,null,null,null,null,null,{"$f":"IF('Insp Rpt'!$AG$10=\"\",\"\",\"Program No.:\")","v":"Program No.:"},null,null,null,{"$f":"IF('Insp Rpt'!$AG$10=\"\",\"\",'Insp Rpt'!$AG$10)","v":0}]
[]
[null,null,"PART III:  Follow-up Site Visit (Post-Demolition)",null,null,null,null,null,null,null,null,null,null,null,null,null,null,null,null,null,null,null,null,null,null,null,null,"Project No.:",null,null,null,{"$f":"'Exhibit A'!C14","v":0}]
[null,null,"Property Address:",null,null,null,null,null,null,{"$f":"J5","v":0}]
[null,null,"Parcel No.:",null,null,null,null,null,null,{"$f":"J6","v":0}]
[null,null,"Expected End Use:",null,null,null,null,null,null,{"$f":"J7","v":0}]
[]
[null,null,"The following section must be completed for each assigned property listed in Exhibit A (attached hereto) AFTER DEMOLITION is complete.  All sections must be completed in its entirety.  Contractors will be required to provide as much details as possible to support their assessment.  Upon completion of each site visit, a copy of this form and photos of the property must be submitted to MHC."]
[]
[]
[null,null,"SITE INFORMATION"]
[null,null,"All portions of the structure, including the foundation, has been removed?",null,null,null,null,null,null,null,null,null,null,null,null,null,null,null,null,null,null,null,null,null,null,null,null,null,null,null,"Yes",null,null,"No"]
[null,null,"All debris has been removed from the property and taken to a landfill?",null,null,null,null,null,null,null,null,null,null,null,null,null,null,null,null,null,null,null,null,null,null,null,null,null,null,null,"Yes",null,null,"No"]
[null,null,"The lot is properly filled, compacted, graded and seeded?",null,null,null,null,null,null,null,null,null,null,null,null,null,null,null,null,null,null,null,null,null,null,null,null,null,null,null,"Yes",null,null,"No"]
[null,null,"Septic tank (if applicable) has been pumped and filled or removed?",null,null,null,null,null,null,null,null,null,null,null,null,null,null,null,null,null,null,null,null,null,null,null,null,null,null,null,"Yes",null,null,"No"]
[]
[null,null,"SITE CONDITIONS"]
[null,null,"(Describe the condition of the following:)"]
[null,null,"Driveways/Parking Area:"]
[null,null,"Curbing:"]
[null,null,"Sidewalks:"]
[null,null,"Landscaping:"]
[null,null,"Fencing/Walls:"]
[]
[null,null,"CORRECTIVE ACTIONS"]
[null,null,"Are there any corrective actions that need to be taken?",null,null,null,null,null,null,null,null,null,null,null,null,null,null,null,null,null,null,null,null,null,null,null,null,null,null,null,"Yes",null,null,"No"]
[null,null,"    If yes, describe:"]
[]
[]
[null,null,"Reinspection Needed?",null,null,null,null,null,null,null,null,null,null,null,null,null,null,null,null,null,null,null,null,null,null,null,null,null,null,null,"Yes",null,null,"No"]
[]
[]
[]
[null,null,"Certification"]
[null,null,"I certify that I have carefully inspected this property on this date.  I have no personal interest, present or prospective, in the property, Grantee, Blight Partner, Demolition Contractor, or proceeds of the disbursements from the Grantee's BEP funds.  To the best of my knowledge I have reported all noncompliance, work requiring correction, and unacceptable work to MHC."]
[]
[]
[null,null,"Prepared By:",null,null,null,null,null,null,null,null,null,null,null,null,null,null,null,null,null,null,"Date:"]

{"sheet":"P4","index":4,"n_rows":88,"n_cols":35,"rows_kept":88,"cut":false,"hidden":true,"merged":[[29,33,29,34],[29,30,29,31],[30,33,30,34],[32,33,32,34],[33,33,33,34],[22,2,22,34],[15,7,15,34],[16,10,16,34],[18,2,18,34],[19,2,19,34],[20,2,20,34],[21,2,21,34],[1,32,1,34],[5,9,5,17],[8,2,8,34],[11,2,11,34],[12,28,12,34],[3,31,3,34],[13,30,13,31],[14,30,14,31],[13,33,13,34],[14,33,14,34],[40,2,40,34],[23,9,23,34],[24,2,24,8],[24,9,24,34],[25,9,25,34],[26,9,26,34],[27,9,27,34],[28,2,28,34],[31,28,31,34],[36,2,36,34],[37,2,37,34],[38,2,39,34],[30,30,30,31],[32,30,32,31],[33,30,33,31],[60,2,60,34],[66,2,66,34],[57,2,57,34],[41,2,41,34],[44,2,44,34],[47,23,47,30],[50,32,50,34],[47,6,47,18],[34,30,34,31],[35,30,35,31],[34,33,34,34],[35,33,35,34],[67,2,67,34],[61,30,61,31],[62,30,62,31],[63,30,63,31],[64,30,64,31],[61,33,61,34],[62,33,62,34],[63,33,63,34],[64,33,64,34],[79,17,79,24],[84,2,84,34],[87,23,87,30],[74,2,74,34],[77,3,77,33],[78,17,78,24],[75,33,75,34],[75,30,75,31],[79,33,79,34],[79,30,79,31],[87,6,87,18],[68,9,68,34],[69,9,69,34],[70,9,70,34],[71,9,71,34],[72,9,72,34]]}
[null,null,null,null,null,null,null,null,null,null,null,null,null,null,null,null,null,null,null,null,null,null,null,null,null,null,null,null,null,null,null,null,null,null,"Field Compliance Site Visit Report"]
[null,null,null,null,null,null,null,null,null,null,null,null,null,null,null,null,null,null,null,null,null,null,null,null,null,null,null,null,{"$f":"IF('Insp Rpt'!AG10=\"\",\"\",\"Program No.:\")","v":"Program No.:"},null,null,null,{"$f":"IF('Insp Rpt'!$AG$10=\"\",\"\",'Insp Rpt'!$AG$10)","v":0}]
[]
[null,null,"PART II:   Initial Site Visit (Pre-Demolition)",null,null,null,null,null,null,null,null,null,null,null,null,null,null,null,null,null,null,null,null,null,null,null,null,"Project No.:",null,null,null,{"$f":"'Exhibit A'!C15","v":0}]
[null,null,"Property Address:",null,null,null,null,null,null,{"$f":"'Exhibit A'!F15","v":0}]
[null,null,"Parcel No.:",null,null,null,null,null,null,{"$f":"'Exhibit A'!D15","v":0}]
[null,null,"Expected End Use:",null,null,null,null,null,null,{"$f":"'Exhibit A'!G15","v":0}]
[]
[null,null,"The following section must be completed for each assigned property listed in Exhibit A (attached hereto) PRIOR TO DEMOLITION.  All sections must be completed in its entirety.  Contractors will be required to provide as much details as possible to support their assessment.  Upon completion of each site visit, a copy of this form and photos of the property must be submitted to MHC."]
[]
[]
[null,null,"SITE INFORMATION"]
[null,null,"Number of structures on site:"]
[null,null,"Is the site located in the BEP Target Area?",null,null,null,null,null,null,null,null,null,null,null,null,null,null,null,null,null,null,null,null,null,null,null,null,null,null,null,"Yes",null,null,"No"]
[null,null,"Does there appear to be anything of value or salvageable material on the site?",null,null,null,null,null,null,null,null,null,null,null,null,null,null,null,null,null,null,null,null,null,null,null,null,null,null,null,"Yes",null,null,"No"]
[null,null,"     If yes, describe:"]
[null,null,"     Will it be sold or donated?"]
[null,null,"Describe any other structures on the site (shed, workshop, fence, etc):"]
[]
[null,null,"Describe the suitability of the site entry points for access to and from the site for demolition equipment:  (Please make note of any obstructions or observable liabilities.)"]
[]
[null,null,"SITE CONDITIONS"]
[null,null,"(Describe the condition of the following:)"]
[null,null,"Driveways/Parking Area:"]
[null,null,"Curbing:"]
[null,null,"Sidewalks:"]
[null,null,"Landscaping:"]
[null,null,"Fencing/Walls:"]
[null,null,"PROPERTY INFORMATION"]
[null,null,"Is the property address clearly identified on the building/main entrance?",null,null,null,null,null,null,null,null,null,null,null,null,null,null,null,null,null,null,null,null,null,null,null,null,null,null,null,"Yes",null,null,"No"]
[null,null,"Is the structure to be demolished a Single-Family (1-4 units) Residential Structure?",null,null,null,null,null,null,null,null,null,null,null,null,null,null,null,null,null,null,null,null,null,null,null,null,null,null,null,"Yes",null,null,"No"]
[null,null,"What is the approximate square footage of the the residential structure?"]
[null,null,"Is the structure vacant/abandoned?",null,null,null,null,null,null,null,null,null,null,null,null,null,null,null,null,null,null,null,null,null,null,null,null,null,null,null,"Yes",null,null,"No"]
[null,null,"Does the property have severe structural damage (roof, exterior walls, foundation)?",null,null,null,null,null,null,null,null,null,null,null,null,null,null,null,null,null,null,null,null,null,null,null,null,null,null,null,"Yes",null,null,"No"]
[null,null,"Has all services (power, water, gas, etc) been disconnected?",null,null,null,null,null,null,null,null,null,null,null,null,null,null,null,null,null,null,null,null,null,null,null,null,null,null,null,"Yes",null,null,"No"]
[null,null,"Does the property qualify as a blight structure?",null,null,null,null,null,null,null,null,null,null,null,null,null,null,null,null,null,null,null,null,null,null,null,null,null,null,null,"Yes",null,null,"No"]
[null,null,"NEIGHBORHOOD ASSESSMENT"]
[null,null,"(Describe the neighborhood conditions:)"]
[]
[]
[null,null,"ADDITIONAL INFORMATION"]
[]
[]
[null,null,"Certification"]
[null,null,"I certify that I have carefully inspected this property on this date.  I have no personal interest, present or prospective, in the property, Grantee, Blight Partner, Demolition Contractor, or proceeds of the disbursements from the Grantee's BEP funds.  To the best of my knowledge I have reported all noncompliance, work requiring correction, and unacceptable work to MHC."]
[]
[]
[null,null,"Prepared By:",null,null,null,null,null,null,null,null,null,null,null,null,null,null,null,null,null,null,"Date:"]
[]
[null,null,null,null,null,null,null,null,null,null,null,null,null,null,null,null,null,null,null,null,null,null,null,null,null,null,null,null,null,null,null,null,null,null,"Field Compliance Site Visit Report"]
[null,null,null,null,null,null,null,null,null,null,null,null,null,null,null,null,null,null,null,null,null,null,null,null,null,null,null,null,{"$f":"IF('Insp Rpt'!$AG$10=\"\",\"\",\"Program No.:\")","v":"Program No.:"},null,null,null,{"$f":"IF('Insp Rpt'!$AG$10=\"\",\"\",'Insp Rpt'!$AG$10)","v":0}]
[]
[null,null,"PART III:  Follow-up Site Visit (Post-Demolition)",null,null,null,null,null,null,null,null,null,null,null,null,null,null,null,null,null,null,null,null,null,null,null,null,"Project No.:",null,null,null,{"$f":"'Exhibit A'!C15","v":0}]
[null,null,"Property Address:",null,null,null,null,null,null,{"$f":"J5","v":0}]
[null,null,"Parcel No.:",null,null,null,null,null,null,{"$f":"J6","v":0}]
[null,null,"Expected End Use:",null,null,null,null,null,null,{"$f":"J7","v":0}]
[]
[null,null,"The following section must be completed for each assigned property listed in Exhibit A (attached hereto) AFTER DEMOLITION is complete.  All sections must be completed in its entirety.  Contractors will be required to provide as much details as possible to support their assessment.  Upon completion of each site visit, a copy of this form and photos of the property must be submitted to MHC."]
[]
[]
[null,null,"SITE INFORMATION"]
[null,null,"All portions of the structure, including the foundation, has been removed?",null,null,null,null,null,null,null,null,null,null,null,null,null,null,null,null,null,null,null,null,null,null,null,null,null,null,null,"Yes",null,null,"No"]
[null,null,"All debris has been removed from the property and taken to a landfill?",null,null,null,null,null,null,null,null,null,null,null,null,null,null,null,null,null,null,null,null,null,null,null,null,null,null,null,"Yes",null,null,"No"]
[null,null,"The lot is properly filled, compacted, graded and seeded?",null,null,null,null,null,null,null,null,null,null,null,null,null,null,null,null,null,null,null,null,null,null,null,null,null,null,null,"Yes",null,null,"No"]
[null,null,"Septic tank (if applicable) has been pumped and filled or removed?",null,null,null,null,null,null,null,null,null,null,null,null,null,null,null,null,null,null,null,null,null,null,null,null,null,null,null,"Yes",null,null,"No"]
[]
[null,null,"SITE CONDITIONS"]
[null,null,"(Describe the condition of the following:)"]
[null,null,"Driveways/Parking Area:"]
[null,null,"Curbing:"]
[null,null,"Sidewalks:"]
[null,null,"Landscaping:"]
[null,null,"Fencing/Walls:"]
[]
[null,null,"CORRECTIVE ACTIONS"]
[null,null,"Are there any corrective actions that need to be taken?",null,null,null,null,null,null,null,null,null,null,null,null,null,null,null,null,null,null,null,null,null,null,null,null,null,null,null,"Yes",null,null,"No"]
[null,null,"    If yes, describe:"]
[]
[]
[null,null,"Reinspection Needed?",null,null,null,null,null,null,null,null,null,null,null,null,null,null,null,null,null,null,null,null,null,null,null,null,null,null,null,"Yes",null,null,"No"]
[]
[]
[]
[null,null,"Certification"]
[null,null,"I certify that I have carefully inspected this property on this date.  I have no personal interest, present or prospective, in the property, Grantee, Blight Partner, Demolition Contractor, or proceeds of the disbursements from the Grantee's BEP funds.  To the best of my knowledge I have reported all noncompliance, work requiring correction, and unacceptable work to MHC."]
[]
[]
[null,null,"Prepared By:",null,null,null,null,null,null,null,null,null,null,null,null,null,null,null,null,null,null,"Date:"]

{"sheet":"P5","index":5,"n_rows":88,"n_cols":35,"rows_kept":88,"cut":false,"hidden":true,"merged":[[33,30,33,31],[34,30,34,31],[35,30,35,31],[22,2,22,34],[15,7,15,34],[16,10,16,34],[18,2,18,34],[19,2,19,34],[20,2,20,34],[21,2,21,34],[1,32,1,34],[5,9,5,17],[8,2,8,34],[11,2,11,34],[12,28,12,34],[3,31,3,34],[13,30,13,31],[14,30,14,31],[13,33,13,34],[14,33,14,34],[40,2,40,34],[23,9,23,34],[24,2,24,8],[24,9,24,34],[25,9,25,34],[26,9,26,34],[27,9,27,34],[28,2,28,34],[31,28,31,34],[36,2,36,34],[37,2,37,34],[38,2,39,34],[29,33,29,34],[30,33,30,34],[29,30,29,31],[30,30,30,31],[57,2,57,34],[41,2,41,34],[44,2,44,34],[47,23,47,30],[50,32,50,34],[47,6,47,18],[52,31,52,34],[32,33,32,34],[33,33,33,34],[34,33,34,34],[35,33,35,34],[32,30,32,31],[60,2,60,34],[66,2,66,34],[67,2,67,34],[61,33,61,34],[62,33,62,34],[63,33,63,34],[64,33,64,34],[61,30,61,31],[62,30,62,31],[63,30,63,31],[64,30,64,31],[79,17,79,24],[84,2,84,34],[87,23,87,30],[74,2,74,34],[77,3,77,33],[78,17,78,24],[75,33,75,34],[75,30,75,31],[79,33,79,34],[79,30,79,31],[87,6,87,18],[68,9,68,34],[69,9,69,34],[70,9,70,34],[71,9,71,34],[72,9,72,34]]}
[null,null,null,null,null,null,null,null,null,null,null,null,null,null,null,null,null,null,null,null,null,null,null,null,null,null,null,null,null,null,null,null,null,null,"Field Compliance Site Visit Report"]
[null,null,null,null,null,null,null,null,null,null,null,null,null,null,null,null,null,null,null,null,null,null,null,null,null,null,null,null,{"$f":"IF('Insp Rpt'!AG10=\"\",\"\",\"Program No.:\")","v":"Program No.:"},null,null,null,{"$f":"IF('Insp Rpt'!$AG$10=\"\",\"\",'Insp Rpt'!$AG$10)","v":0}]
[]
[null,null,"PART II:   Initial Site Visit (Pre-Demolition)",null,null,null,null,null,null,null,null,null,null,null,null,null,null,null,null,null,null,null,null,null,null,null,null,"Project No.:",null,null,null,{"$f":"'Exhibit A'!C16","v":0}]
[null,null,"Property Address:",null,null,null,null,null,null,{"$f":"'Exhibit A'!F16","v":0}]
[null,null,"Parcel No.:",null,null,null,null,null,null,{"$f":"'Exhibit A'!D16","v":0}]
[null,null,"Expected End Use:",null,null,null,null,null,null,{"$f":"'Exhibit A'!G16","v":0}]
[]
[null,null,"The following section must be completed for each assigned property listed in Exhibit A (attached hereto) PRIOR TO DEMOLITION.  All sections must be completed in its entirety.  Contractors will be required to provide as much details as possible to support their assessment.  Upon completion of each site visit, a copy of this form and photos of the property must be submitted to MHC."]
[]
[]
[null,null,"SITE INFORMATION"]
[null,null,"Number of structures on site:"]
[null,null,"Is the site located in the BEP Target Area?",null,null,null,null,null,null,null,null,null,null,null,null,null,null,null,null,null,null,null,null,null,null,null,null,null,null,null,"Yes",null,null,"No"]
[null,null,"Does there appear to be anything of value or salvageable material on the site?",null,null,null,null,null,null,null,null,null,null,null,null,null,null,null,null,null,null,null,null,null,null,null,null,null,null,null,"Yes",null,null,"No"]
[null,null,"     If yes, describe:"]
[null,null,"     Will it be sold or donated?"]
[null,null,"Describe any other structures on the site (shed, workshop, fence, etc):"]
[]
[null,null,"Describe the suitability of the site entry points for access to and from the site for demolition equipment:  (Please make note of any obstructions or observable liabilities.)"]
[]
[null,null,"SITE CONDITIONS"]
[null,null,"(Describe the condition of the following:)"]
[null,null,"Driveways/Parking Area:"]
[null,null,"Curbing:"]
[null,null,"Sidewalks:"]
[null,null,"Landscaping:"]
[null,null,"Fencing/Walls:"]
[null,null,"PROPERTY INFORMATION"]
[null,null,"Is the property address clearly identified on the building/main entrance?",null,null,null,null,null,null,null,null,null,null,null,null,null,null,null,null,null,null,null,null,null,null,null,null,null,null,null,"Yes",null,null,"No"]
[null,null,"Is the structure to be demolished a Single-Family (1-4 units) Residential Structure?",null,null,null,null,null,null,null,null,null,null,null,null,null,null,null,null,null,null,null,null,null,null,null,null,null,null,null,"Yes",null,null,"No"]
[null,null,"What is the approximate square footage of the the residential structure?"]
[null,null,"Is the structure vacant/abandoned?",null,null,null,null,null,null,null,null,null,null,null,null,null,null,null,null,null,null,null,null,null,null,null,null,null,null,null,"Yes",null,null,"No"]
[null,null,"Does the property have severe structural damage (roof, exterior walls, foundation)?",null,null,null,null,null,null,null,null,null,null,null,null,null,null,null,null,null,null,null,null,null,null,null,null,null,null,null,"Yes",null,null,"No"]
[null,null,"Has all services (power, water, gas, etc) been disconnected?",null,null,null,null,null,null,null,null,null,null,null,null,null,null,null,null,null,null,null,null,null,null,null,null,null,null,null,"Yes",null,null,"No"]
[null,null,"Does the property qualify as a blight structure?",null,null,null,null,null,null,null,null,null,null,null,null,null,null,null,null,null,null,null,null,null,null,null,null,null,null,null,"Yes",null,null,"No"]
[null,null,"NEIGHBORHOOD ASSESSMENT"]
[null,null,"(Describe the neighborhood conditions:)"]
[]
[]
[null,null,"ADDITIONAL INFORMATION"]
[]
[]
[null,null,"Certification"]
[null,null,"I certify that I have carefully inspected this property on this date.  I have no personal interest, present or prospective, in the property, Grantee, Blight Partner, Demolition Contractor, or proceeds of the disbursements from the Grantee's BEP funds.  To the best of my knowledge I have reported all noncompliance, work requiring correction, and unacceptable work to MHC."]
[]
[]
[null,null,"Prepared By:",null,null,null,null,null,null,null,null,null,null,null,null,null,null,null,null,null,null,"Date:"]
[]
[null,null,null,null,null,null,null,null,null,null,null,null,null,null,null,null,null,null,null,null,null,null,null,null,null,null,null,null,null,null,null,null,null,null,"Field Compliance Site Visit Report"]
[null,null,null,null,null,null,null,null,null,null,null,null,null,null,null,null,null,null,null,null,null,null,null,null,null,null,null,null,{"$f":"IF('Insp Rpt'!$AG$10=\"\",\"\",\"Program No.:\")","v":"Program No.:"},null,null,null,{"$f":"IF('Insp Rpt'!$AG$10=\"\",\"\",'Insp Rpt'!$AG$10)","v":0}]
[]
[null,null,"PART III:  Follow-up Site Visit (Post-Demolition)",null,null,null,null,null,null,null,null,null,null,null,null,null,null,null,null,null,null,null,null,null,null,null,null,"Project No.:",null,null,null,{"$f":"'Exhibit A'!C16","v":0}]
[null,null,"Property Address:",null,null,null,null,null,null,{"$f":"J5","v":0}]
[null,null,"Parcel No.:",null,null,null,null,null,null,{"$f":"J6","v":0}]
[null,null,"Expected End Use:",null,null,null,null,null,null,{"$f":"J7","v":0}]
[]
[null,null,"The following section must be completed for each assigned property listed in Exhibit A (attached hereto) AFTER DEMOLITION is complete.  All sections must be completed in its entirety.  Contractors will be required to provide as much details as possible to support their assessment.  Upon completion of each site visit, a copy of this form and photos of the property must be submitted to MHC."]
[]
[]
[null,null,"SITE INFORMATION"]
[null,null,"All portions of the structure, including the foundation, has been removed?",null,null,null,null,null,null,null,null,null,null,null,null,null,null,null,null,null,null,null,null,null,null,null,null,null,null,null,"Yes",null,null,"No"]
[null,null,"All debris has been removed from the property and taken to a landfill?",null,null,null,null,null,null,null,null,null,null,null,null,null,null,null,null,null,null,null,null,null,null,null,null,null,null,null,"Yes",null,null,"No"]
[null,null,"The lot is properly filled, compacted, graded and seeded?",null,null,null,null,null,null,null,null,null,null,null,null,null,null,null,null,null,null,null,null,null,null,null,null,null,null,null,"Yes",null,null,"No"]
[null,null,"Septic tank (if applicable) has been pumped and filled or removed?",null,null,null,null,null,null,null,null,null,null,null,null,null,null,null,null,null,null,null,null,null,null,null,null,null,null,null,"Yes",null,null,"No"]
[]
[null,null,"SITE CONDITIONS"]
[null,null,"(Describe the condition of the following:)"]
[null,null,"Driveways/Parking Area:"]
[null,null,"Curbing:"]
[null,null,"Sidewalks:"]
[null,null,"Landscaping:"]
[null,null,"Fencing/Walls:"]
[]
[null,null,"CORRECTIVE ACTIONS"]
[null,null,"Are there any corrective actions that need to be taken?",null,null,null,null,null,null,null,null,null,null,null,null,null,null,null,null,null,null,null,null,null,null,null,null,null,null,null,"Yes",null,null,"No"]
[null,null,"    If yes, describe:"]
[]
[]
[null,null,"Reinspection Needed?",null,null,null,null,null,null,null,null,null,null,null,null,null,null,null,null,null,null,null,null,null,null,null,null,null,null,null,"Yes",null,null,"No"]
[]
[]
[]
[null,null,"Certification"]
[null,null,"I certify that I have carefully inspected this property on this date.  I have no personal interest, present or prospective, in the property, Grantee, Blight Partner, Demolition Contractor, or proceeds of the disbursements from the Grantee's BEP funds.  To the best of my knowledge I have reported all noncompliance, work requiring correction, and unacceptable work to MHC."]
[]
[]
[null,null,"Prepared By:",null,null,null,null,null,null,null,null,null,null,null,null,null,null,null,null,null,null,"Date:"]

{"sheet":"P6","index":6,"n_rows":88,"n_cols":35,"rows_kept":88,"cut":false,"hidden":true,"merged":[[52,31,52,34],[3,31,3,34],[34,30,34,31],[35,30,35,31],[29,33,29,34],[30,33,30,34],[32,33,32,34],[33,33,33,34],[34,33,34,34],[35,33,35,34],[22,2,22,34],[15,7,15,34],[16,10,16,34],[18,2,18,34],[19,2,19,34],[20,2,20,34],[1,32,1,34],[5,9,5,17],[8,2,8,34],[11,2,11,34],[12,28,12,34],[21,2,21,34],[13,30,13,31],[14,30,14,31],[13,33,13,34],[14,33,14,34],[40,2,40,34],[23,9,23,34],[24,2,24,8],[24,9,24,34],[25,9,25,34],[26,9,26,34],[27,9,27,34],[28,2,28,34],[31,28,31,34],[36,2,36,34],[37,2,37,34],[38,2,39,34],[29,30,29,31],[30,30,30,31],[32,30,32,31],[33,30,33,31],[57,2,57,34],[60,2,60,34],[66,2,66,34],[67,2,67,34],[61,30,61,31],[62,30,62,31],[63,30,63,31],[64,30,64,31],[61,33,61,34],[62,33,62,34],[63,33,63,34],[64,33,64,34],[41,2,41,34],[44,2,44,34],[47,23,47,30],[50,32,50,34],[47,6,47,18],[79,17,79,24],[84,2,84,34],[87,23,87,30],[74,2,74,34],[77,3,77,33],[78,17,78,24],[75,30,75,31],[75,33,75,34],[79,30,79,31],[79,33,79,34],[87,6,87,18],[68,9,68,34],[69,9,69,34],[70,9,70,34],[71,9,71,34],[72,9,72,34]]}
[null,null,null,null,null,null,null,null,null,null,null,null,null,null,null,null,null,null,null,null,null,null,null,null,null,null,null,null,null,null,null,null,null,null,"Field Compliance Site Visit Report"]
[null,null,null,null,null,null,null,null,null,null,null,null,null,null,null,null,null,null,null,null,null,null,null,null,null,null,null,null,{"$f":"IF('Insp Rpt'!AG10=\"\",\"\",\"Program No.:\")","v":"Program No.:"},null,null,null,{"$f":"IF('Insp Rpt'!$AG$10=\"\",\"\",'Insp Rpt'!$AG$10)","v":0}]
[]
[null,null,"PART II:   Initial Site Visit (Pre-Demolition)",null,null,null,null,null,null,null,null,null,null,null,null,null,null,null,null,null,null,null,null,null,null,null,null,"Project No.:",null,null,null,{"$f":"'Exhibit A'!C17","v":0}]
[null,null,"Property Address:",null,null,null,null,null,null,{"$f":"'Exhibit A'!F17","v":0}]
[null,null,"Parcel No.:",null,null,null,null,null,null,{"$f":"'Exhibit A'!D17","v":0}]
[null,null,"Expected End Use:",null,null,null,null,null,null,{"$f":"'Exhibit A'!G17","v":0}]
[]
[null,null,"The following section must be completed for each assigned property listed in Exhibit A (attached hereto) PRIOR TO DEMOLITION.  All sections must be completed in its entirety.  Contractors will be required to provide as much details as possible to support their assessment.  Upon completion of each site visit, a copy of this form and photos of the property must be submitted to MHC."]
[]
[]
[null,null,"SITE INFORMATION"]
[null,null,"Number of structures on site:"]
[null,null,"Is the site located in the BEP Target Area?",null,null,null,null,null,null,null,null,null,null,null,null,null,null,null,null,null,null,null,null,null,null,null,null,null,null,null,"Yes",null,null,"No"]
[null,null,"Does there appear to be anything of value or salvageable material on the site?",null,null,null,null,null,null,null,null,null,null,null,null,null,null,null,null,null,null,null,null,null,null,null,null,null,null,null,"Yes",null,null,"No"]
[null,null,"     If yes, describe:"]
[null,null,"     Will it be sold or donated?"]
[null,null,"Describe any other structures on the site (shed, workshop, fence, etc):"]
[]
[null,null,"Describe the suitability of the site entry points for access to and from the site for demolition equipment:  (Please make note of any obstructions or observable liabilities.)"]
[]
[null,null,"SITE CONDITIONS"]
[null,null,"(Describe the condition of the following:)"]
[null,null,"Driveways/Parking Area:"]
[null,null,"Curbing:"]
[null,null,"Sidewalks:"]
[null,null,"Landscaping:"]
[null,null,"Fencing/Walls:"]
[null,null,"PROPERTY INFORMATION"]
[null,null,"Is the property address clearly identified on the building/main entrance?",null,null,null,null,null,null,null,null,null,null,null,null,null,null,null,null,null,null,null,null,null,null,null,null,null,null,null,"Yes",null,null,"No"]
[null,null,"Is the structure to be demolished a Single-Family (1-4 units) Residential Structure?",null,null,null,null,null,null,null,null,null,null,null,null,null,null,null,null,null,null,null,null,null,null,null,null,null,null,null,"Yes",null,null,"No"]
[null,null,"What is the approximate square footage of the the residential structure?"]
[null,null,"Is the structure vacant/abandoned?",null,null,null,null,null,null,null,null,null,null,null,null,null,null,null,null,null,null,null,null,null,null,null,null,null,null,null,"Yes",null,null,"No"]
[null,null,"Does the property have severe structural damage (roof, exterior walls, foundation)?",null,null,null,null,null,null,null,null,null,null,null,null,null,null,null,null,null,null,null,null,null,null,null,null,null,null,null,"Yes",null,null,"No"]
[null,null,"Has all services (power, water, gas, etc) been disconnected?",null,null,null,null,null,null,null,null,null,null,null,null,null,null,null,null,null,null,null,null,null,null,null,null,null,null,null,"Yes",null,null,"No"]
[null,null,"Does the property qualify as a blight structure?",null,null,null,null,null,null,null,null,null,null,null,null,null,null,null,null,null,null,null,null,null,null,null,null,null,null,null,"Yes",null,null,"No"]
[null,null,"NEIGHBORHOOD ASSESSMENT"]
[null,null,"(Describe the neighborhood conditions:)"]
[]
[]
[null,null,"ADDITIONAL INFORMATION"]
[]
[]
[null,null,"Certification"]
[null,null,"I certify that I have carefully inspected this property on this date.  I have no personal interest, present or prospective, in the property, Grantee, Blight Partner, Demolition Contractor, or proceeds of the disbursements from the Grantee's BEP funds.  To the best of my knowledge I have reported all noncompliance, work requiring correction, and unacceptable work to MHC."]
[]
[]
[null,null,"Prepared By:",null,null,null,null,null,null,null,null,null,null,null,null,null,null,null,null,null,null,"Date:"]
[]
[null,null,null,null,null,null,null,null,null,null,null,null,null,null,null,null,null,null,null,null,null,null,null,null,null,null,null,null,null,null,null,null,null,null,"Field Compliance Site Visit Report"]
[null,null,null,null,null,null,null,null,null,null,null,null,null,null,null,null,null,null,null,null,null,null,null,null,null,null,null,null,{"$f":"IF('Insp Rpt'!$AG$10=\"\",\"\",\"Program No.:\")","v":"Program No.:"},null,null,null,{"$f":"IF('Insp Rpt'!$AG$10=\"\",\"\",'Insp Rpt'!$AG$10)","v":0}]
[]
[null,null,"PART III:  Follow-up Site Visit (Post-Demolition)",null,null,null,null,null,null,null,null,null,null,null,null,null,null,null,null,null,null,null,null,null,null,null,null,"Project No.:",null,null,null,{"$f":"'Exhibit A'!C17","v":0}]
[null,null,"Property Address:",null,null,null,null,null,null,{"$f":"J5","v":0}]
[null,null,"Parcel No.:",null,null,null,null,null,null,{"$f":"J6","v":0}]
[null,null,"Expected End Use:",null,null,null,null,null,null,{"$f":"J7","v":0}]
[]
[null,null,"The following section must be completed for each assigned property listed in Exhibit A (attached hereto) AFTER DEMOLITION is complete.  All sections must be completed in its entirety.  Contractors will be required to provide as much details as possible to support their assessment.  Upon completion of each site visit, a copy of this form and photos of the property must be submitted to MHC."]
[]
[]
[null,null,"SITE INFORMATION"]
[null,null,"All portions of the structure, including the foundation, has been removed?",null,null,null,null,null,null,null,null,null,null,null,null,null,null,null,null,null,null,null,null,null,null,null,null,null,null,null,"Yes",null,null,"No"]
[null,null,"All debris has been removed from the property and taken to a landfill?",null,null,null,null,null,null,null,null,null,null,null,null,null,null,null,null,null,null,null,null,null,null,null,null,null,null,null,"Yes",null,null,"No"]
[null,null,"The lot is properly filled, compacted, graded and seeded?",null,null,null,null,null,null,null,null,null,null,null,null,null,null,null,null,null,null,null,null,null,null,null,null,null,null,null,"Yes",null,null,"No"]
[null,null,"Septic tank (if applicable) has been pumped and filled or removed?",null,null,null,null,null,null,null,null,null,null,null,null,null,null,null,null,null,null,null,null,null,null,null,null,null,null,null,"Yes",null,null,"No"]
[]
[null,null,"SITE CONDITIONS"]
[null,null,"(Describe the condition of the following:)"]
[null,null,"Driveways/Parking Area:"]
[null,null,"Curbing:"]
[null,null,"Sidewalks:"]
[null,null,"Landscaping:"]
[null,null,"Fencing/Walls:"]
[]
[null,null,"CORRECTIVE ACTIONS"]
[null,null,"Are there any corrective actions that need to be taken?",null,null,null,null,null,null,null,null,null,null,null,null,null,null,null,null,null,null,null,null,null,null,null,null,null,null,null,"Yes",null,null,"No"]
[null,null,"    If yes, describe:"]
[]
[]
[null,null,"Reinspection Needed?",null,null,null,null,null,null,null,null,null,null,null,null,null,null,null,null,null,null,null,null,null,null,null,null,null,null,null,"Yes",null,null,"No"]
[]
[]
[]
[null,null,"Certification"]
[null,null,"I certify that I have carefully inspected this property on this date.  I have no personal interest, present or prospective, in the property, Grantee, Blight Partner, Demolition Contractor, or proceeds of the disbursements from the Grantee's BEP funds.  To the best of my knowledge I have reported all noncompliance, work requiring correction, and unacceptable work to MHC."]
[]
[]
[null,null,"Prepared By:",null,null,null,null,null,null,null,null,null,null,null,null,null,null,null,null,null,null,"Date:"]

{"sheet":"P7","index":7,"n_rows":88,"n_cols":35,"rows_kept":88,"cut":false,"hidden":true,"merged":[[69,9,69,34],[35,30,35,31],[61,33,61,34],[61,30,61,31],[62,33,62,34],[62,30,62,31],[40,2,40,34],[38,2,39,34],[47,6,47,18],[52,31,52,34],[1,32,1,34],[5,9,5,17],[8,2,8,34],[11,2,11,34],[12,28,12,34],[3,31,3,34],[13,30,13,31],[13,33,13,34],[14,33,14,34],[14,30,14,31],[23,9,23,34],[22,2,22,34],[15,7,15,34],[16,10,16,34],[18,2,18,34],[19,2,19,34],[20,2,20,34],[21,2,21,34],[24,2,24,8],[24,9,24,34],[25,9,25,34],[26,9,26,34],[27,9,27,34],[28,2,28,34],[31,28,31,34],[36,2,36,34],[37,2,37,34],[29,33,29,34],[29,30,29,31],[30,33,30,34],[30,30,30,31],[32,33,32,34],[32,30,32,31],[33,33,33,34],[33,30,33,31],[34,33,34,34],[34,30,34,31],[35,33,35,34],[70,9,70,34],[71,9,71,34],[72,9,72,34],[41,2,41,34],[44,2,44,34],[47,23,47,30],[50,32,50,34],[57,2,57,34],[60,2,60,34],[66,2,66,34],[67,2,67,34],[63,33,63,34],[63,30,63,31],[64,30,64,31],[64,33,64,34],[68,9,68,34],[79,17,79,24],[84,2,84,34],[87,23,87,30],[74,2,74,34],[77,3,77,33],[78,17,78,24],[75,30,75,31],[75,33,75,34],[79,33,79,34],[79,30,79,31],[87,6,87,18]]}
[null,null,null,null,null,null,null,null,null,null,null,null,null,null,null,null,null,null,null,null,null,null,null,null,null,null,null,null,null,null,null,null,null,null,"Field Compliance Site Visit Report"]
[null,null,null,null,null,null,null,null,null,null,null,null,null,null,null,null,null,null,null,null,null,null,null,null,null,null,null,null,{"$f":"IF('Insp Rpt'!AG10=\"\",\"\",\"Program No.:\")","v":"Program No.:"},null,null,null,{"$f":"IF('Insp Rpt'!$AG$10=\"\",\"\",'Insp Rpt'!$AG$10)","v":0}]
[]
[null,null,"PART II:   Initial Site Visit (Pre-Demolition)",null,null,null,null,null,null,null,null,null,null,null,null,null,null,null,null,null,null,null,null,null,null,null,null,"Project No.:",null,null,null,{"$f":"'Exhibit A'!C18","v":0}]
[null,null,"Property Address:",null,null,null,null,null,null,{"$f":"'Exhibit A'!F18","v":0}]
[null,null,"Parcel No.:",null,null,null,null,null,null,{"$f":"'Exhibit A'!D18","v":0}]
[null,null,"Expected End Use:",null,null,null,null,null,null,{"$f":"'Exhibit A'!G18","v":0}]
[]
[null,null,"The following section must be completed for each assigned property listed in Exhibit A (attached hereto) PRIOR TO DEMOLITION.  All sections must be completed in its entirety.  Contractors will be required to provide as much details as possible to support their assessment.  Upon completion of each site visit, a copy of this form and photos of the property must be submitted to MHC."]
[]
[]
[null,null,"SITE INFORMATION"]
[null,null,"Number of structures on site:"]
[null,null,"Is the site located in the BEP Target Area?",null,null,null,null,null,null,null,null,null,null,null,null,null,null,null,null,null,null,null,null,null,null,null,null,null,null,null,"Yes",null,null,"No"]
[null,null,"Does there appear to be anything of value or salvageable material on the site?",null,null,null,null,null,null,null,null,null,null,null,null,null,null,null,null,null,null,null,null,null,null,null,null,null,null,null,"Yes",null,null,"No"]
[null,null,"     If yes, describe:"]
[null,null,"     Will it be sold or donated?"]
[null,null,"Describe any other structures on the site (shed, workshop, fence, etc):"]
[]
[null,null,"Describe the suitability of the site entry points for access to and from the site for demolition equipment:  (Please make note of any obstructions or observable liabilities.)"]
[]
[null,null,"SITE CONDITIONS"]
[null,null,"(Describe the condition of the following:)"]
[null,null,"Driveways/Parking Area:"]
[null,null,"Curbing:"]
[null,null,"Sidewalks:"]
[null,null,"Landscaping:"]
[null,null,"Fencing/Walls:"]
[null,null,"PROPERTY INFORMATION"]
[null,null,"Is the property address clearly identified on the building/main entrance?",null,null,null,null,null,null,null,null,null,null,null,null,null,null,null,null,null,null,null,null,null,null,null,null,null,null,null,"Yes",null,null,"No"]
[null,null,"Is the structure to be demolished a Single-Family (1-4 units) Residential Structure?",null,null,null,null,null,null,null,null,null,null,null,null,null,null,null,null,null,null,null,null,null,null,null,null,null,null,null,"Yes",null,null,"No"]
[null,null,"What is the approximate square footage of the the residential structure?"]
[null,null,"Is the structure vacant/abandoned?",null,null,null,null,null,null,null,null,null,null,null,null,null,null,null,null,null,null,null,null,null,null,null,null,null,null,null,"Yes",null,null,"No"]
[null,null,"Does the property have severe structural damage (roof, exterior walls, foundation)?",null,null,null,null,null,null,null,null,null,null,null,null,null,null,null,null,null,null,null,null,null,null,null,null,null,null,null,"Yes",null,null,"No"]
[null,null,"Has all services (power, water, gas, etc) been disconnected?",null,null,null,null,null,null,null,null,null,null,null,null,null,null,null,null,null,null,null,null,null,null,null,null,null,null,null,"Yes",null,null,"No"]
[null,null,"Does the property qualify as a blight structure?",null,null,null,null,null,null,null,null,null,null,null,null,null,null,null,null,null,null,null,null,null,null,null,null,null,null,null,"Yes",null,null,"No"]
[null,null,"NEIGHBORHOOD ASSESSMENT"]
[null,null,"(Describe the neighborhood conditions:)"]
[]
[]
[null,null,"ADDITIONAL INFORMATION"]
[]
[]
[null,null,"Certification"]
[null,null,"I certify that I have carefully inspected this property on this date.  I have no personal interest, present or prospective, in the property, Grantee, Blight Partner, Demolition Contractor, or proceeds of the disbursements from the Grantee's BEP funds.  To the best of my knowledge I have reported all noncompliance, work requiring correction, and unacceptable work to MHC."]
[]
[]
[null,null,"Prepared By:",null,null,null,null,null,null,null,null,null,null,null,null,null,null,null,null,null,null,"Date:"]
[]
[null,null,null,null,null,null,null,null,null,null,null,null,null,null,null,null,null,null,null,null,null,null,null,null,null,null,null,null,null,null,null,null,null,null,"Field Compliance Site Visit Report"]
[null,null,null,null,null,null,null,null,null,null,null,null,null,null,null,null,null,null,null,null,null,null,null,null,null,null,null,null,{"$f":"IF('Insp Rpt'!$AG$10=\"\",\"\",\"Program No.:\")","v":"Program No.:"},null,null,null,{"$f":"IF('Insp Rpt'!$AG$10=\"\",\"\",'Insp Rpt'!$AG$10)","v":0}]
[]
[null,null,"PART III:  Follow-up Site Visit (Post-Demolition)",null,null,null,null,null,null,null,null,null,null,null,null,null,null,null,null,null,null,null,null,null,null,null,null,"Project No.:",null,null,null,{"$f":"'Exhibit A'!C18","v":0}]
[null,null,"Property Address:",null,null,null,null,null,null,{"$f":"J5","v":0}]
[null,null,"Parcel No.:",null,null,null,null,null,null,{"$f":"J6","v":0}]
[null,null,"Expected End Use:",null,null,null,null,null,null,{"$f":"J7","v":0}]
[]
[null,null,"The following section must be completed for each assigned property listed in Exhibit A (attached hereto) AFTER DEMOLITION is complete.  All sections must be completed in its entirety.  Contractors will be required to provide as much details as possible to support their assessment.  Upon completion of each site visit, a copy of this form and photos of the property must be submitted to MHC."]
[]
[]
[null,null,"SITE INFORMATION"]
[null,null,"All portions of the structure, including the foundation, has been removed?",null,null,null,null,null,null,null,null,null,null,null,null,null,null,null,null,null,null,null,null,null,null,null,null,null,null,null,"Yes",null,null,"No"]
[null,null,"All debris has been removed from the property and taken to a landfill?",null,null,null,null,null,null,null,null,null,null,null,null,null,null,null,null,null,null,null,null,null,null,null,null,null,null,null,"Yes",null,null,"No"]
[null,null,"The lot is properly filled, compacted, graded and seeded?",null,null,null,null,null,null,null,null,null,null,null,null,null,null,null,null,null,null,null,null,null,null,null,null,null,null,null,"Yes",null,null,"No"]
[null,null,"Septic tank (if applicable) has been pumped and filled or removed?",null,null,null,null,null,null,null,null,null,null,null,null,null,null,null,null,null,null,null,null,null,null,null,null,null,null,null,"Yes",null,null,"No"]
[]
[null,null,"SITE CONDITIONS"]
[null,null,"(Describe the condition of the following:)"]
[null,null,"Driveways/Parking Area:"]
[null,null,"Curbing:"]
[null,null,"Sidewalks:"]
[null,null,"Landscaping:"]
[null,null,"Fencing/Walls:"]
[]
[null,null,"CORRECTIVE ACTIONS"]
[null,null,"Are there any corrective actions that need to be taken?",null,null,null,null,null,null,null,null,null,null,null,null,null,null,null,null,null,null,null,null,null,null,null,null,null,null,null,"Yes",null,null,"No"]
[null,null,"    If yes, describe:"]
[]
[]
[null,null,"Reinspection Needed?",null,null,null,null,null,null,null,null,null,null,null,null,null,null,null,null,null,null,null,null,null,null,null,null,null,null,null,"Yes",null,null,"No"]
[]
[]
[]
[null,null,"Certification"]
[null,null,"I certify that I have carefully inspected this property on this date.  I have no personal interest, present or prospective, in the property, Grantee, Blight Partner, Demolition Contractor, or proceeds of the disbursements from the Grantee's BEP funds.  To the best of my knowledge I have reported all noncompliance, work requiring correction, and unacceptable work to MHC."]
[]
[]
[null,null,"Prepared By:",null,null,null,null,null,null,null,null,null,null,null,null,null,null,null,null,null,null,"Date:"]

{"sheet":"P8","index":8,"n_rows":88,"n_cols":35,"rows_kept":88,"cut":false,"hidden":true,"merged":[[52,31,52,34],[3,31,3,34],[22,2,22,34],[1,32,1,34],[5,9,5,17],[8,2,8,34],[11,2,11,34],[12,28,12,34],[15,7,15,34],[16,10,16,34],[18,2,18,34],[19,2,19,34],[20,2,20,34],[21,2,21,34],[13,30,13,31],[13,33,13,34],[14,33,14,34],[14,30,14,31],[40,2,40,34],[23,9,23,34],[24,2,24,8],[24,9,24,34],[25,9,25,34],[26,9,26,34],[27,9,27,34],[28,2,28,34],[31,28,31,34],[36,2,36,34],[37,2,37,34],[38,2,39,34],[29,33,29,34],[30,33,30,34],[29,30,29,31],[30,30,30,31],[57,2,57,34],[60,2,60,34],[66,2,66,34],[41,2,41,34],[44,2,44,34],[47,23,47,30],[50,32,50,34],[47,6,47,18],[32,33,32,34],[33,33,33,34],[34,33,34,34],[35,33,35,34],[32,30,32,31],[33,30,33,31],[79,17,79,24],[84,2,84,34],[87,23,87,30],[74,2,74,34],[77,3,77,33],[78,17,78,24],[75,33,75,34],[75,30,75,31],[79,33,79,34],[79,30,79,31],[87,6,87,18],[71,9,71,34],[72,9,72,34],[34,30,34,31],[35,30,35,31],[68,9,68,34],[69,9,69,34],[70,9,70,34],[67,2,67,34],[61,33,61,34],[62,33,62,34],[63,33,63,34],[64,33,64,34],[61,30,61,31],[62,30,62,31],[63,30,63,31],[64,30,64,31]]}
[null,null,null,null,null,null,null,null,null,null,null,null,null,null,null,null,null,null,null,null,null,null,null,null,null,null,null,null,null,null,null,null,null,null,"Field Compliance Site Visit Report"]
[null,null,null,null,null,null,null,null,null,null,null,null,null,null,null,null,null,null,null,null,null,null,null,null,null,null,null,null,{"$f":"IF('Insp Rpt'!AG10=\"\",\"\",\"Program No.:\")","v":"Program No.:"},null,null,null,{"$f":"IF('Insp Rpt'!$AG$10=\"\",\"\",'Insp Rpt'!$AG$10)","v":0}]
[]
[null,null,"PART II:   Initial Site Visit (Pre-Demolition)",null,null,null,null,null,null,null,null,null,null,null,null,null,null,null,null,null,null,null,null,null,null,null,null,"Project No.:",null,null,null,{"$f":"'Exhibit A'!C19","v":0}]
[null,null,"Property Address:",null,null,null,null,null,null,{"$f":"'Exhibit A'!F19","v":0}]
[null,null,"Parcel No.:",null,null,null,null,null,null,{"$f":"'Exhibit A'!D19","v":0}]
[null,null,"Expected End Use:",null,null,null,null,null,null,{"$f":"'Exhibit A'!G19","v":0}]
[]
[null,null,"The following section must be completed for each assigned property listed in Exhibit A (attached hereto) PRIOR TO DEMOLITION.  All sections must be completed in its entirety.  Contractors will be required to provide as much details as possible to support their assessment.  Upon completion of each site visit, a copy of this form and photos of the property must be submitted to MHC."]
[]
[]
[null,null,"SITE INFORMATION"]
[null,null,"Number of structures on site:"]
[null,null,"Is the site located in the BEP Target Area?",null,null,null,null,null,null,null,null,null,null,null,null,null,null,null,null,null,null,null,null,null,null,null,null,null,null,null,"Yes",null,null,"No"]
[null,null,"Does there appear to be anything of value or salvageable material on the site?",null,null,null,null,null,null,null,null,null,null,null,null,null,null,null,null,null,null,null,null,null,null,null,null,null,null,null,"Yes",null,null,"No"]
[null,null,"     If yes, describe:"]
[null,null,"     Will it be sold or donated?"]
[null,null,"Describe any other structures on the site (shed, workshop, fence, etc):"]
[]
[null,null,"Describe the suitability of the site entry points for access to and from the site for demolition equipment:  (Please make note of any obstructions or observable liabilities.)"]
[]
[null,null,"SITE CONDITIONS"]
[null,null,"(Describe the condition of the following:)"]
[null,null,"Driveways/Parking Area:"]
[null,null,"Curbing:"]
[null,null,"Sidewalks:"]
[null,null,"Landscaping:"]
[null,null,"Fencing/Walls:"]
[null,null,"PROPERTY INFORMATION"]
[null,null,"Is the property address clearly identified on the building/main entrance?",null,null,null,null,null,null,null,null,null,null,null,null,null,null,null,null,null,null,null,null,null,null,null,null,null,null,null,"Yes",null,null,"No"]
[null,null,"Is the structure to be demolished a Single-Family (1-4 units) Residential Structure?",null,null,null,null,null,null,null,null,null,null,null,null,null,null,null,null,null,null,null,null,null,null,null,null,null,null,null,"Yes",null,null,"No"]
[null,null,"What is the approximate square footage of the the residential structure?"]
[null,null,"Is the structure vacant/abandoned?",null,null,null,null,null,null,null,null,null,null,null,null,null,null,null,null,null,null,null,null,null,null,null,null,null,null,null,"Yes",null,null,"No"]
[null,null,"Does the property have severe structural damage (roof, exterior walls, foundation)?",null,null,null,null,null,null,null,null,null,null,null,null,null,null,null,null,null,null,null,null,null,null,null,null,null,null,null,"Yes",null,null,"No"]
[null,null,"Has all services (power, water, gas, etc) been disconnected?",null,null,null,null,null,null,null,null,null,null,null,null,null,null,null,null,null,null,null,null,null,null,null,null,null,null,null,"Yes",null,null,"No"]
[null,null,"Does the property qualify as a blight structure?",null,null,null,null,null,null,null,null,null,null,null,null,null,null,null,null,null,null,null,null,null,null,null,null,null,null,null,"Yes",null,null,"No"]
[null,null,"NEIGHBORHOOD ASSESSMENT"]
[null,null,"(Describe the neighborhood conditions:)"]
[]
[]
[null,null,"ADDITIONAL INFORMATION"]
[]
[]
[null,null,"Certification"]
[null,null,"I certify that I have carefully inspected this property on this date.  I have no personal interest, present or prospective, in the property, Grantee, Blight Partner, Demolition Contractor, or proceeds of the disbursements from the Grantee's BEP funds.  To the best of my knowledge I have reported all noncompliance, work requiring correction, and unacceptable work to MHC."]
[]
[]
[null,null,"Prepared By:",null,null,null,null,null,null,null,null,null,null,null,null,null,null,null,null,null,null,"Date:"]
[]
[null,null,null,null,null,null,null,null,null,null,null,null,null,null,null,null,null,null,null,null,null,null,null,null,null,null,null,null,null,null,null,null,null,null,"Field Compliance Site Visit Report"]
[null,null,null,null,null,null,null,null,null,null,null,null,null,null,null,null,null,null,null,null,null,null,null,null,null,null,null,null,{"$f":"IF('Insp Rpt'!$AG$10=\"\",\"\",\"Program No.:\")","v":"Program No.:"},null,null,null,{"$f":"IF('Insp Rpt'!$AG$10=\"\",\"\",'Insp Rpt'!$AG$10)","v":0}]
[]
[null,null,"PART III:  Follow-up Site Visit (Post-Demolition)",null,null,null,null,null,null,null,null,null,null,null,null,null,null,null,null,null,null,null,null,null,null,null,null,"Project No.:",null,null,null,{"$f":"'Exhibit A'!C19","v":0}]
[null,null,"Property Address:",null,null,null,null,null,null,{"$f":"J5","v":0}]
[null,null,"Parcel No.:",null,null,null,null,null,null,{"$f":"J6","v":0}]
[null,null,"Expected End Use:",null,null,null,null,null,null,{"$f":"J7","v":0}]
[]
[null,null,"The following section must be completed for each assigned property listed in Exhibit A (attached hereto) AFTER DEMOLITION is complete.  All sections must be completed in its entirety.  Contractors will be required to provide as much details as possible to support their assessment.  Upon completion of each site visit, a copy of this form and photos of the property must be submitted to MHC."]
[]
[]
[null,null,"SITE INFORMATION"]
[null,null,"All portions of the structure, including the foundation, has been removed?",null,null,null,null,null,null,null,null,null,null,null,null,null,null,null,null,null,null,null,null,null,null,null,null,null,null,null,"Yes",null,null,"No"]
[null,null,"All debris has been removed from the property and taken to a landfill?",null,null,null,null,null,null,null,null,null,null,null,null,null,null,null,null,null,null,null,null,null,null,null,null,null,null,null,"Yes",null,null,"No"]
[null,null,"The lot is properly filled, compacted, graded and seeded?",null,null,null,null,null,null,null,null,null,null,null,null,null,null,null,null,null,null,null,null,null,null,null,null,null,null,null,"Yes",null,null,"No"]
[null,null,"Septic tank (if applicable) has been pumped and filled or removed?",null,null,null,null,null,null,null,null,null,null,null,null,null,null,null,null,null,null,null,null,null,null,null,null,null,null,null,"Yes",null,null,"No"]
[]
[null,null,"SITE CONDITIONS"]
[null,null,"(Describe the condition of the following:)"]
[null,null,"Driveways/Parking Area:"]
[null,null,"Curbing:"]
[null,null,"Sidewalks:"]
[null,null,"Landscaping:"]
[null,null,"Fencing/Walls:"]
[]
[null,null,"CORRECTIVE ACTIONS"]
[null,null,"Are there any corrective actions that need to be taken?",null,null,null,null,null,null,null,null,null,null,null,null,null,null,null,null,null,null,null,null,null,null,null,null,null,null,null,"Yes",null,null,"No"]
[null,null,"    If yes, describe:"]
[]
[]
[null,null,"Reinspection Needed?",null,null,null,null,null,null,null,null,null,null,null,null,null,null,null,null,null,null,null,null,null,null,null,null,null,null,null,"Yes",null,null,"No"]
[]
[]
[]
[null,null,"Certification"]
[null,null,"I certify that I have carefully inspected this property on this date.  I have no personal interest, present or prospective, in the property, Grantee, Blight Partner, Demolition Contractor, or proceeds of the disbursements from the Grantee's BEP funds.  To the best of my knowledge I have reported all noncompliance, work requiring correction, and unacceptable work to MHC."]
[]
[]
[null,null,"Prepared By:",null,null,null,null,null,null,null,null,null,null,null,null,null,null,null,null,null,null,"Date:"]

{"sheet":"P9","index":9,"n_rows":88,"n_cols":35,"rows_kept":88,"cut":false,"hidden":true,"merged":[[52,31,52,34],[3,31,3,34],[22,2,22,34],[1,32,1,34],[5,9,5,17],[8,2,8,34],[11,2,11,34],[12,28,12,34],[15,7,15,34],[16,10,16,34],[18,2,18,34],[19,2,19,34],[20,2,20,34],[21,2,21,34],[13,33,13,34],[14,33,14,34],[13,30,13,31],[14,30,14,31],[40,2,40,34],[23,9,23,34],[24,2,24,8],[24,9,24,34],[25,9,25,34],[26,9,26,34],[27,9,27,34],[28,2,28,34],[31,28,31,34],[36,2,36,34],[37,2,37,34],[38,2,39,34],[29,33,29,34],[30,33,30,34],[29,30,29,31],[30,30,30,31],[57,2,57,34],[60,2,60,34],[66,2,66,34],[41,2,41,34],[44,2,44,34],[47,23,47,30],[50,32,50,34],[47,6,47,18],[32,30,32,31],[33,30,33,31],[34,30,34,31],[35,30,35,31],[32,33,32,34],[33,33,33,34],[79,17,79,24],[84,2,84,34],[87,23,87,30],[74,2,74,34],[77,3,77,33],[78,17,78,24],[75,30,75,31],[75,33,75,34],[79,33,79,34],[79,30,79,31],[87,6,87,18],[71,9,71,34],[72,9,72,34],[34,33,34,34],[35,33,35,34],[68,9,68,34],[69,9,69,34],[70,9,70,34],[67,2,67,34],[61,33,61,34],[62,33,62,34],[63,33,63,34],[64,33,64,34],[61,30,61,31],[62,30,62,31],[63,30,63,31],[64,30,64,31]]}
[null,null,null,null,null,null,null,null,null,null,null,null,null,null,null,null,null,null,null,null,null,null,null,null,null,null,null,null,null,null,null,null,null,null,"Field Compliance Site Visit Report"]
[null,null,null,null,null,null,null,null,null,null,null,null,null,null,null,null,null,null,null,null,null,null,null,null,null,null,null,null,{"$f":"IF('Insp Rpt'!AG10=\"\",\"\",\"Program No.:\")","v":"Program No.:"},null,null,null,{"$f":"IF('Insp Rpt'!$AG$10=\"\",\"\",'Insp Rpt'!$AG$10)","v":0}]
[]
[null,null,"PART II:   Initial Site Visit (Pre-Demolition)",null,null,null,null,null,null,null,null,null,null,null,null,null,null,null,null,null,null,null,null,null,null,null,null,"Project No.:",null,null,null,{"$f":"'Exhibit A'!C20","v":0}]
[null,null,"Property Address:",null,null,null,null,null,null,{"$f":"'Exhibit A'!F20","v":0}]
[null,null,"Parcel No.:",null,null,null,null,null,null,{"$f":"'Exhibit A'!D20","v":0}]
[null,null,"Expected End Use:",null,null,null,null,null,null,{"$f":"'Exhibit A'!G20","v":0}]
[]
[null,null,"The following section must be completed for each assigned property listed in Exhibit A (attached hereto) PRIOR TO DEMOLITION.  All sections must be completed in its entirety.  Contractors will be required to provide as much details as possible to support their assessment.  Upon completion of each site visit, a copy of this form and photos of the property must be submitted to MHC."]
[]
[]
[null,null,"SITE INFORMATION"]
[null,null,"Number of structures on site:"]
[null,null,"Is the site located in the BEP Target Area?",null,null,null,null,null,null,null,null,null,null,null,null,null,null,null,null,null,null,null,null,null,null,null,null,null,null,null,"Yes",null,null,"No"]
[null,null,"Does there appear to be anything of value or salvageable material on the site?",null,null,null,null,null,null,null,null,null,null,null,null,null,null,null,null,null,null,null,null,null,null,null,null,null,null,null,"Yes",null,null,"No"]
[null,null,"     If yes, describe:"]
[null,null,"     Will it be sold or donated?"]
[null,null,"Describe any other structures on the site (shed, workshop, fence, etc):"]
[]
[null,null,"Describe the suitability of the site entry points for access to and from the site for demolition equipment:  (Please make note of any obstructions or observable liabilities.)"]
[]
[null,null,"SITE CONDITIONS"]
[null,null,"(Describe the condition of the following:)"]
[null,null,"Driveways/Parking Area:"]
[null,null,"Curbing:"]
[null,null,"Sidewalks:"]
[null,null,"Landscaping:"]
[null,null,"Fencing/Walls:"]
[null,null,"PROPERTY INFORMATION"]
[null,null,"Is the property address clearly identified on the building/main entrance?",null,null,null,null,null,null,null,null,null,null,null,null,null,null,null,null,null,null,null,null,null,null,null,null,null,null,null,"Yes",null,null,"No"]
[null,null,"Is the structure to be demolished a Single-Family (1-4 units) Residential Structure?",null,null,null,null,null,null,null,null,null,null,null,null,null,null,null,null,null,null,null,null,null,null,null,null,null,null,null,"Yes",null,null,"No"]
[null,null,"What is the approximate square footage of the the residential structure?"]
[null,null,"Is the structure vacant/abandoned?",null,null,null,null,null,null,null,null,null,null,null,null,null,null,null,null,null,null,null,null,null,null,null,null,null,null,null,"Yes",null,null,"No"]
[null,null,"Does the property have severe structural damage (roof, exterior walls, foundation)?",null,null,null,null,null,null,null,null,null,null,null,null,null,null,null,null,null,null,null,null,null,null,null,null,null,null,null,"Yes",null,null,"No"]
[null,null,"Has all services (power, water, gas, etc) been disconnected?",null,null,null,null,null,null,null,null,null,null,null,null,null,null,null,null,null,null,null,null,null,null,null,null,null,null,null,"Yes",null,null,"No"]
[null,null,"Does the property qualify as a blight structure?",null,null,null,null,null,null,null,null,null,null,null,null,null,null,null,null,null,null,null,null,null,null,null,null,null,null,null,"Yes",null,null,"No"]
[null,null,"NEIGHBORHOOD ASSESSMENT"]
[null,null,"(Describe the neighborhood conditions:)"]
[]
[]
[null,null,"ADDITIONAL INFORMATION"]
[]
[]
[null,null,"Certification"]
[null,null,"I certify that I have carefully inspected this property on this date.  I have no personal interest, present or prospective, in the property, Grantee, Blight Partner, Demolition Contractor, or proceeds of the disbursements from the Grantee's BEP funds.  To the best of my knowledge I have reported all noncompliance, work requiring correction, and unacceptable work to MHC."]
[]
[]
[null,null,"Prepared By:",null,null,null,null,null,null,null,null,null,null,null,null,null,null,null,null,null,null,"Date:"]
[]
[null,null,null,null,null,null,null,null,null,null,null,null,null,null,null,null,null,null,null,null,null,null,null,null,null,null,null,null,null,null,null,null,null,null,"Field Compliance Site Visit Report"]
[null,null,null,null,null,null,null,null,null,null,null,null,null,null,null,null,null,null,null,null,null,null,null,null,null,null,null,null,{"$f":"IF('Insp Rpt'!$AG$10=\"\",\"\",\"Program No.:\")","v":"Program No.:"},null,null,null,{"$f":"IF('Insp Rpt'!$AG$10=\"\",\"\",'Insp Rpt'!$AG$10)","v":0}]
[]
[null,null,"PART III:  Follow-up Site Visit (Post-Demolition)",null,null,null,null,null,null,null,null,null,null,null,null,null,null,null,null,null,null,null,null,null,null,null,null,"Project No.:",null,null,null,{"$f":"'Exhibit A'!C20","v":0}]
[null,null,"Property Address:",null,null,null,null,null,null,{"$f":"J5","v":0}]
[null,null,"Parcel No.:",null,null,null,null,null,null,{"$f":"J6","v":0}]
[null,null,"Expected End Use:",null,null,null,null,null,null,{"$f":"J7","v":0}]
[]
[null,null,"The following section must be completed for each assigned property listed in Exhibit A (attached hereto) AFTER DEMOLITION is complete.  All sections must be completed in its entirety.  Contractors will be required to provide as much details as possible to support their assessment.  Upon completion of each site visit, a copy of this form and photos of the property must be submitted to MHC."]
[]
[]
[null,null,"SITE INFORMATION"]
[null,null,"All portions of the structure, including the foundation, has been removed?",null,null,null,null,null,null,null,null,null,null,null,null,null,null,null,null,null,null,null,null,null,null,null,null,null,null,null,"Yes",null,null,"No"]
[null,null,"All debris has been removed from the property and taken to a landfill?",null,null,null,null,null,null,null,null,null,null,null,null,null,null,null,null,null,null,null,null,null,null,null,null,null,null,null,"Yes",null,null,"No"]
[null,null,"The lot is properly filled, compacted, graded and seeded?",null,null,null,null,null,null,null,null,null,null,null,null,null,null,null,null,null,null,null,null,null,null,null,null,null,null,null,"Yes",null,null,"No"]
[null,null,"Septic tank (if applicable) has been pumped and filled or removed?",null,null,null,null,null,null,null,null,null,null,null,null,null,null,null,null,null,null,null,null,null,null,null,null,null,null,null,"Yes",null,null,"No"]
[]
[null,null,"SITE CONDITIONS"]
[null,null,"(Describe the condition of the following:)"]
[null,null,"Driveways/Parking Area:"]
[null,null,"Curbing:"]
[null,null,"Sidewalks:"]
[null,null,"Landscaping:"]
[null,null,"Fencing/Walls:"]
[]
[null,null,"CORRECTIVE ACTIONS"]
[null,null,"Are there any corrective actions that need to be taken?",null,null,null,null,null,null,null,null,null,null,null,null,null,null,null,null,null,null,null,null,null,null,null,null,null,null,null,"Yes",null,null,"No"]
[null,null,"    If yes, describe:"]
[]
[]
[null,null,"Reinspection Needed?",null,null,null,null,null,null,null,null,null,null,null,null,null,null,null,null,null,null,null,null,null,null,null,null,null,null,null,"Yes",null,null,"No"]
[]
[]
[]
[null,null,"Certification"]
[null,null,"I certify that I have carefully inspected this property on this date.  I have no personal interest, present or prospective, in the property, Grantee, Blight Partner, Demolition Contractor, or proceeds of the disbursements from the Grantee's BEP funds.  To the best of my knowledge I have reported all noncompliance, work requiring correction, and unacceptable work to MHC."]
[]
[]
[null,null,"Prepared By:",null,null,null,null,null,null,null,null,null,null,null,null,null,null,null,null,null,null,"Date:"]

{"sheet":"P10","index":10,"n_rows":88,"n_cols":35,"rows_kept":88,"cut":false,"hidden":true,"merged":[[52,31,52,34],[3,31,3,34],[22,2,22,34],[1,32,1,34],[5,9,5,17],[8,2,8,34],[11,2,11,34],[12,28,12,34],[15,7,15,34],[16,10,16,34],[18,2,18,34],[19,2,19,34],[20,2,20,34],[21,2,21,34],[13,30,13,31],[14,30,14,31],[13,33,13,34],[14,33,14,34],[40,2,40,34],[23,9,23,34],[24,2,24,8],[24,9,24,34],[25,9,25,34],[26,9,26,34],[27,9,27,34],[28,2,28,34],[31,28,31,34],[36,2,36,34],[37,2,37,34],[38,2,39,34],[29,33,29,34],[30,33,30,34],[29,30,29,31],[30,30,30,31],[57,2,57,34],[60,2,60,34],[66,2,66,34],[41,2,41,34],[44,2,44,34],[47,23,47,30],[50,32,50,34],[47,6,47,18],[32,33,32,34],[33,33,33,34],[34,33,34,34],[35,33,35,34],[32,30,32,31],[33,30,33,31],[79,17,79,24],[84,2,84,34],[87,23,87,30],[74,2,74,34],[77,3,77,33],[78,17,78,24],[75,30,75,31],[75,33,75,34],[79,33,79,34],[79,30,79,31],[87,6,87,18],[71,9,71,34],[72,9,72,34],[34,30,34,31],[35,30,35,31],[68,9,68,34],[69,9,69,34],[70,9,70,34],[67,2,67,34],[61,33,61,34],[62,33,62,34],[63,33,63,34],[64,33,64,34],[61,30,61,31],[62,30,62,31],[63,30,63,31],[64,30,64,31]]}
[null,null,null,null,null,null,null,null,null,null,null,null,null,null,null,null,null,null,null,null,null,null,null,null,null,null,null,null,null,null,null,null,null,null,"Field Compliance Site Visit Report"]
[null,null,null,null,null,null,null,null,null,null,null,null,null,null,null,null,null,null,null,null,null,null,null,null,null,null,null,null,{"$f":"IF('Insp Rpt'!AG10=\"\",\"\",\"Program No.:\")","v":"Program No.:"},null,null,null,{"$f":"IF('Insp Rpt'!$AG$10=\"\",\"\",'Insp Rpt'!$AG$10)","v":0}]
[]
[null,null,"PART II:   Initial Site Visit (Pre-Demolition)",null,null,null,null,null,null,null,null,null,null,null,null,null,null,null,null,null,null,null,null,null,null,null,null,"Project No.:",null,null,null,{"$f":"'Exhibit A'!C21","v":0}]
[null,null,"Property Address:",null,null,null,null,null,null,{"$f":"'Exhibit A'!F21","v":0}]
[null,null,"Parcel No.:",null,null,null,null,null,null,{"$f":"'Exhibit A'!D21","v":0}]
[null,null,"Expected End Use:",null,null,null,null,null,null,{"$f":"'Exhibit A'!G21","v":0}]
[]
[null,null,"The following section must be completed for each assigned property listed in Exhibit A (attached hereto) PRIOR TO DEMOLITION.  All sections must be completed in its entirety.  Contractors will be required to provide as much details as possible to support their assessment.  Upon completion of each site visit, a copy of this form and photos of the property must be submitted to MHC."]
[]
[]
[null,null,"SITE INFORMATION"]
[null,null,"Number of structures on site:"]
[null,null,"Is the site located in the BEP Target Area?",null,null,null,null,null,null,null,null,null,null,null,null,null,null,null,null,null,null,null,null,null,null,null,null,null,null,null,"Yes",null,null,"No"]
[null,null,"Does there appear to be anything of value or salvageable material on the site?",null,null,null,null,null,null,null,null,null,null,null,null,null,null,null,null,null,null,null,null,null,null,null,null,null,null,null,"Yes",null,null,"No"]
[null,null,"     If yes, describe:"]
[null,null,"     Will it be sold or donated?"]
[null,null,"Describe any other structures on the site (shed, workshop, fence, etc):"]
[]
[null,null,"Describe the suitability of the site entry points for access to and from the site for demolition equipment:  (Please make note of any obstructions or observable liabilities.)"]
[]
[null,null,"SITE CONDITIONS"]
[null,null,"(Describe the condition of the following:)"]
[null,null,"Driveways/Parking Area:"]
[null,null,"Curbing:"]
[null,null,"Sidewalks:"]
[null,null,"Landscaping:"]
[null,null,"Fencing/Walls:"]
[null,null,"PROPERTY INFORMATION"]
[null,null,"Is the property address clearly identified on the building/main entrance?",null,null,null,null,null,null,null,null,null,null,null,null,null,null,null,null,null,null,null,null,null,null,null,null,null,null,null,"Yes",null,null,"No"]
[null,null,"Is the structure to be demolished a Single-Family (1-4 units) Residential Structure?",null,null,null,null,null,null,null,null,null,null,null,null,null,null,null,null,null,null,null,null,null,null,null,null,null,null,null,"Yes",null,null,"No"]
[null,null,"What is the approximate square footage of the the residential structure?"]
[null,null,"Is the structure vacant/abandoned?",null,null,null,null,null,null,null,null,null,null,null,null,null,null,null,null,null,null,null,null,null,null,null,null,null,null,null,"Yes",null,null,"No"]
[null,null,"Does the property have severe structural damage (roof, exterior walls, foundation)?",null,null,null,null,null,null,null,null,null,null,null,null,null,null,null,null,null,null,null,null,null,null,null,null,null,null,null,"Yes",null,null,"No"]
[null,null,"Has all services (power, water, gas, etc) been disconnected?",null,null,null,null,null,null,null,null,null,null,null,null,null,null,null,null,null,null,null,null,null,null,null,null,null,null,null,"Yes",null,null,"No"]
[null,null,"Does the property qualify as a blight structure?",null,null,null,null,null,null,null,null,null,null,null,null,null,null,null,null,null,null,null,null,null,null,null,null,null,null,null,"Yes",null,null,"No"]
[null,null,"NEIGHBORHOOD ASSESSMENT"]
[null,null,"(Describe the neighborhood conditions:)"]
[]
[]
[null,null,"ADDITIONAL INFORMATION"]
[]
[]
[null,null,"Certification"]
[null,null,"I certify that I have carefully inspected this property on this date.  I have no personal interest, present or prospective, in the property, Grantee, Blight Partner, Demolition Contractor, or proceeds of the disbursements from the Grantee's BEP funds.  To the best of my knowledge I have reported all noncompliance, work requiring correction, and unacceptable work to MHC."]
[]
[]
[null,null,"Prepared By:",null,null,null,null,null,null,null,null,null,null,null,null,null,null,null,null,null,null,"Date:"]
[]
[null,null,null,null,null,null,null,null,null,null,null,null,null,null,null,null,null,null,null,null,null,null,null,null,null,null,null,null,null,null,null,null,null,null,"Field Compliance Site Visit Report"]
[null,null,null,null,null,null,null,null,null,null,null,null,null,null,null,null,null,null,null,null,null,null,null,null,null,null,null,null,{"$f":"IF('Insp Rpt'!$AG$10=\"\",\"\",\"Program No.:\")","v":"Program No.:"},null,null,null,{"$f":"IF('Insp Rpt'!$AG$10=\"\",\"\",'Insp Rpt'!$AG$10)","v":0}]
[]
[null,null,"PART III:  Follow-up Site Visit (Post-Demolition)",null,null,null,null,null,null,null,null,null,null,null,null,null,null,null,null,null,null,null,null,null,null,null,null,"Project No.:",null,null,null,{"$f":"'Exhibit A'!C21","v":0}]
[null,null,"Property Address:",null,null,null,null,null,null,{"$f":"J5","v":0}]
[null,null,"Parcel No.:",null,null,null,null,null,null,{"$f":"J6","v":0}]
[null,null,"Expected End Use:",null,null,null,null,null,null,{"$f":"J7","v":0}]
[]
[null,null,"The following section must be completed for each assigned property listed in Exhibit A (attached hereto) AFTER DEMOLITION is complete.  All sections must be completed in its entirety.  Contractors will be required to provide as much details as possible to support their assessment.  Upon completion of each site visit, a copy of this form and photos of the property must be submitted to MHC."]
[]
[]
[null,null,"SITE INFORMATION"]
[null,null,"All portions of the structure, including the foundation, has been removed?",null,null,null,null,null,null,null,null,null,null,null,null,null,null,null,null,null,null,null,null,null,null,null,null,null,null,null,"Yes",null,null,"No"]
[null,null,"All debris has been removed from the property and taken to a landfill?",null,null,null,null,null,null,null,null,null,null,null,null,null,null,null,null,null,null,null,null,null,null,null,null,null,null,null,"Yes",null,null,"No"]
[null,null,"The lot is properly filled, compacted, graded and seeded?",null,null,null,null,null,null,null,null,null,null,null,null,null,null,null,null,null,null,null,null,null,null,null,null,null,null,null,"Yes",null,null,"No"]
[null,null,"Septic tank (if applicable) has been pumped and filled or removed?",null,null,null,null,null,null,null,null,null,null,null,null,null,null,null,null,null,null,null,null,null,null,null,null,null,null,null,"Yes",null,null,"No"]
[]
[null,null,"SITE CONDITIONS"]
[null,null,"(Describe the condition of the following:)"]
[null,null,"Driveways/Parking Area:"]
[null,null,"Curbing:"]
[null,null,"Sidewalks:"]
[null,null,"Landscaping:"]
[null,null,"Fencing/Walls:"]
[]
[null,null,"CORRECTIVE ACTIONS"]
[null,null,"Are there any corrective actions that need to be taken?",null,null,null,null,null,null,null,null,null,null,null,null,null,null,null,null,null,null,null,null,null,null,null,null,null,null,null,"Yes",null,null,"No"]
[null,null,"    If yes, describe:"]
[]
[]
[null,null,"Reinspection Needed?",null,null,null,null,null,null,null,null,null,null,null,null,null,null,null,null,null,null,null,null,null,null,null,null,null,null,null,"Yes",null,null,"No"]
[]
[]
[]
[null,null,"Certification"]
[null,null,"I certify that I have carefully inspected this property on this date.  I have no personal interest, present or prospective, in the property, Grantee, Blight Partner, Demolition Contractor, or proceeds of the disbursements from the Grantee's BEP funds.  To the best of my knowledge I have reported all noncompliance, work requiring correction, and unacceptable work to MHC."]
[]
[]
[null,null,"Prepared By:",null,null,null,null,null,null,null,null,null,null,null,null,null,null,null,null,null,null,"Date:"]

{"sheet":"P11","index":11,"n_rows":88,"n_cols":35,"rows_kept":88,"cut":false,"hidden":true,"merged":[[21,2,21,34],[15,7,15,34],[16,10,16,34],[18,2,18,34],[19,2,19,34],[20,2,20,34],[33,33,33,34],[41,2,41,34],[44,2,44,34],[47,23,47,30],[22,2,22,34],[1,32,1,34],[5,9,5,17],[8,2,8,34],[11,2,11,34],[12,28,12,34],[3,31,3,34],[13,33,13,34],[14,33,14,34],[40,2,40,34],[23,9,23,34],[24,2,24,8],[24,9,24,34],[25,9,25,34],[26,9,26,34],[27,9,27,34],[28,2,28,34],[31,28,31,34],[36,2,36,34],[37,2,37,34],[38,2,39,34],[34,33,34,34],[35,33,35,34],[61,30,61,31],[62,30,62,31],[63,30,63,31],[64,30,64,31],[13,30,13,31],[14,30,14,31],[52,31,52,34],[29,30,29,31],[30,30,30,31],[32,30,32,31],[33,30,33,31],[34,30,34,31],[35,30,35,31],[29,33,29,34],[30,33,30,34],[32,33,32,34],[84,2,84,34],[87,23,87,30],[74,2,74,34],[77,3,77,33],[78,17,78,24],[75,33,75,34],[75,30,75,31],[79,33,79,34],[79,30,79,31],[87,6,87,18],[71,9,71,34],[72,9,72,34],[50,32,50,34],[47,6,47,18],[79,17,79,24],[68,9,68,34],[69,9,69,34],[70,9,70,34],[57,2,57,34],[60,2,60,34],[66,2,66,34],[67,2,67,34],[61,33,61,34],[62,33,62,34],[63,33,63,34],[64,33,64,34]]}
[null,null,null,null,null,null,null,null,null,null,null,null,null,null,null,null,null,null,null,null,null,null,null,null,null,null,null,null,null,null,null,null,null,null,"Field Compliance Site Visit Report"]
[null,null,null,null,null,null,null,null,null,null,null,null,null,null,null,null,null,null,null,null,null,null,null,null,null,null,null,null,{"$f":"IF('Insp Rpt'!AG10=\"\",\"\",\"Program No.:\")","v":"Program No.:"},null,null,null,{"$f":"IF('Insp Rpt'!$AG$10=\"\",\"\",'Insp Rpt'!$AG$10)","v":0}]
[]
[null,null,"PART II:   Initial Site Visit (Pre-Demolition)",null,null,null,null,null,null,null,null,null,null,null,null,null,null,null,null,null,null,null,null,null,null,null,null,"Project No.:",null,null,null,{"$f":"'Exhibit A'!C22","v":0}]
[null,null,"Property Address:",null,null,null,null,null,null,{"$f":"'Exhibit A'!F22","v":0}]
[null,null,"Parcel No.:",null,null,null,null,null,null,{"$f":"'Exhibit A'!D22","v":0}]
[null,null,"Expected End Use:",null,null,null,null,null,null,{"$f":"'Exhibit A'!G22","v":0}]
[]
[null,null,"The following section must be completed for each assigned property listed in Exhibit A (attached hereto) PRIOR TO DEMOLITION.  All sections must be completed in its entirety.  Contractors will be required to provide as much details as possible to support their assessment.  Upon completion of each site visit, a copy of this form and photos of the property must be submitted to MHC."]
[]
[]
[null,null,"SITE INFORMATION"]
[null,null,"Number of structures on site:"]
[null,null,"Is the site located in the BEP Target Area?",null,null,null,null,null,null,null,null,null,null,null,null,null,null,null,null,null,null,null,null,null,null,null,null,null,null,null,"Yes",null,null,"No"]
[null,null,"Does there appear to be anything of value or salvageable material on the site?",null,null,null,null,null,null,null,null,null,null,null,null,null,null,null,null,null,null,null,null,null,null,null,null,null,null,null,"Yes",null,null,"No"]
[null,null,"     If yes, describe:"]
[null,null,"     Will it be sold or donated?"]
[null,null,"Describe any other structures on the site (shed, workshop, fence, etc):"]
[]
[null,null,"Describe the suitability of the site entry points for access to and from the site for demolition equipment:  (Please make note of any obstructions or observable liabilities.)"]
[]
[null,null,"SITE CONDITIONS"]
[null,null,"(Describe the condition of the following:)"]
[null,null,"Driveways/Parking Area:"]
[null,null,"Curbing:"]
[null,null,"Sidewalks:"]
[null,null,"Landscaping:"]
[null,null,"Fencing/Walls:"]
[null,null,"PROPERTY INFORMATION"]
[null,null,"Is the property address clearly identified on the building/main entrance?",null,null,null,null,null,null,null,null,null,null,null,null,null,null,null,null,null,null,null,null,null,null,null,null,null,null,null,"Yes",null,null,"No"]
[null,null,"Is the structure to be demolished a Single-Family (1-4 units) Residential Structure?",null,null,null,null,null,null,null,null,null,null,null,null,null,null,null,null,null,null,null,null,null,null,null,null,null,null,null,"Yes",null,null,"No"]
[null,null,"What is the approximate square footage of the the residential structure?"]
[null,null,"Is the structure vacant/abandoned?",null,null,null,null,null,null,null,null,null,null,null,null,null,null,null,null,null,null,null,null,null,null,null,null,null,null,null,"Yes",null,null,"No"]
[null,null,"Does the property have severe structural damage (roof, exterior walls, foundation)?",null,null,null,null,null,null,null,null,null,null,null,null,null,null,null,null,null,null,null,null,null,null,null,null,null,null,null,"Yes",null,null,"No"]
[null,null,"Has all services (power, water, gas, etc) been disconnected?",null,null,null,null,null,null,null,null,null,null,null,null,null,null,null,null,null,null,null,null,null,null,null,null,null,null,null,"Yes",null,null,"No"]
[null,null,"Does the property qualify as a blight structure?",null,null,null,null,null,null,null,null,null,null,null,null,null,null,null,null,null,null,null,null,null,null,null,null,null,null,null,"Yes",null,null,"No"]
[null,null,"NEIGHBORHOOD ASSESSMENT"]
[null,null,"(Describe the neighborhood conditions:)"]
[]
[]
[null,null,"ADDITIONAL INFORMATION"]
[]
[]
[null,null,"Certification"]
[null,null,"I certify that I have carefully inspected this property on this date.  I have no personal interest, present or prospective, in the property, Grantee, Blight Partner, Demolition Contractor, or proceeds of the disbursements from the Grantee's BEP funds.  To the best of my knowledge I have reported all noncompliance, work requiring correction, and unacceptable work to MHC."]
[]
[]
[null,null,"Prepared By:",null,null,null,null,null,null,null,null,null,null,null,null,null,null,null,null,null,null,"Date:"]
[]
[null,null,null,null,null,null,null,null,null,null,null,null,null,null,null,null,null,null,null,null,null,null,null,null,null,null,null,null,null,null,null,null,null,null,"Field Compliance Site Visit Report"]
[null,null,null,null,null,null,null,null,null,null,null,null,null,null,null,null,null,null,null,null,null,null,null,null,null,null,null,null,{"$f":"IF('Insp Rpt'!$AG$10=\"\",\"\",\"Program No.:\")","v":"Program No.:"},null,null,null,{"$f":"IF('Insp Rpt'!$AG$10=\"\",\"\",'Insp Rpt'!$AG$10)","v":0}]
[]
[null,null,"PART III:  Follow-up Site Visit (Post-Demolition)",null,null,null,null,null,null,null,null,null,null,null,null,null,null,null,null,null,null,null,null,null,null,null,null,"Project No.:",null,null,null,{"$f":"'Exhibit A'!C22","v":0}]
[null,null,"Property Address:",null,null,null,null,null,null,{"$f":"J5","v":0}]
[null,null,"Parcel No.:",null,null,null,null,null,null,{"$f":"J6","v":0}]
[null,null,"Expected End Use:",null,null,null,null,null,null,{"$f":"J7","v":0}]
[]
[null,null,"The following section must be completed for each assigned property listed in Exhibit A (attached hereto) AFTER DEMOLITION is complete.  All sections must be completed in its entirety.  Contractors will be required to provide as much details as possible to support their assessment.  Upon completion of each site visit, a copy of this form and photos of the property must be submitted to MHC."]
[]
[]
[null,null,"SITE INFORMATION"]
[null,null,"All portions of the structure, including the foundation, has been removed?",null,null,null,null,null,null,null,null,null,null,null,null,null,null,null,null,null,null,null,null,null,null,null,null,null,null,null,"Yes",null,null,"No"]
[null,null,"All debris has been removed from the property and taken to a landfill?",null,null,null,null,null,null,null,null,null,null,null,null,null,null,null,null,null,null,null,null,null,null,null,null,null,null,null,"Yes",null,null,"No"]
[null,null,"The lot is properly filled, compacted, graded and seeded?",null,null,null,null,null,null,null,null,null,null,null,null,null,null,null,null,null,null,null,null,null,null,null,null,null,null,null,"Yes",null,null,"No"]
[null,null,"Septic tank (if applicable) has been pumped and filled or removed?",null,null,null,null,null,null,null,null,null,null,null,null,null,null,null,null,null,null,null,null,null,null,null,null,null,null,null,"Yes",null,null,"No"]
[]
[null,null,"SITE CONDITIONS"]
[null,null,"(Describe the condition of the following:)"]
[null,null,"Driveways/Parking Area:"]
[null,null,"Curbing:"]
[null,null,"Sidewalks:"]
[null,null,"Landscaping:"]
[null,null,"Fencing/Walls:"]
[]
[null,null,"CORRECTIVE ACTIONS"]
[null,null,"Are there any corrective actions that need to be taken?",null,null,null,null,null,null,null,null,null,null,null,null,null,null,null,null,null,null,null,null,null,null,null,null,null,null,null,"Yes",null,null,"No"]
[null,null,"    If yes, describe:"]
[]
[]
[null,null,"Reinspection Needed?",null,null,null,null,null,null,null,null,null,null,null,null,null,null,null,null,null,null,null,null,null,null,null,null,null,null,null,"Yes",null,null,"No"]
[]
[]
[]
[null,null,"Certification"]
[null,null,"I certify that I have carefully inspected this property on this date.  I have no personal interest, present or prospective, in the property, Grantee, Blight Partner, Demolition Contractor, or proceeds of the disbursements from the Grantee's BEP funds.  To the best of my knowledge I have reported all noncompliance, work requiring correction, and unacceptable work to MHC."]
[]
[]
[null,null,"Prepared By:",null,null,null,null,null,null,null,null,null,null,null,null,null,null,null,null,null,null,"Date:"]

{"sheet":"P12","index":12,"n_rows":88,"n_cols":35,"rows_kept":88,"cut":false,"hidden":true,"merged":[[3,31,3,34],[52,31,52,34],[22,2,22,34],[1,32,1,34],[5,9,5,17],[8,2,8,34],[11,2,11,34],[12,28,12,34],[15,7,15,34],[16,10,16,34],[18,2,18,34],[19,2,19,34],[20,2,20,34],[21,2,21,34],[13,33,13,34],[14,33,14,34],[13,30,13,31],[14,30,14,31],[40,2,40,34],[23,9,23,34],[24,2,24,8],[24,9,24,34],[25,9,25,34],[26,9,26,34],[27,9,27,34],[28,2,28,34],[31,28,31,34],[36,2,36,34],[37,2,37,34],[38,2,39,34],[29,33,29,34],[30,33,30,34],[29,30,29,31],[30,30,30,31],[57,2,57,34],[60,2,60,34],[66,2,66,34],[41,2,41,34],[44,2,44,34],[47,23,47,30],[50,32,50,34],[47,6,47,18],[32,30,32,31],[33,30,33,31],[34,30,34,31],[35,30,35,31],[32,33,32,34],[33,33,33,34],[79,17,79,24],[84,2,84,34],[87,23,87,30],[74,2,74,34],[77,3,77,33],[78,17,78,24],[75,33,75,34],[75,30,75,31],[79,33,79,34],[79,30,79,31],[87,6,87,18],[71,9,71,34],[72,9,72,34],[34,33,34,34],[35,33,35,34],[68,9,68,34],[69,9,69,34],[70,9,70,34],[67,2,67,34],[61,33,61,34],[62,33,62,34],[63,33,63,34],[64,33,64,34],[61,30,61,31],[62,30,62,31],[63,30,63,31],[64,30,64,31]]}
[null,null,null,null,null,null,null,null,null,null,null,null,null,null,null,null,null,null,null,null,null,null,null,null,null,null,null,null,null,null,null,null,null,null,"Field Compliance Site Visit Report"]
[null,null,null,null,null,null,null,null,null,null,null,null,null,null,null,null,null,null,null,null,null,null,null,null,null,null,null,null,{"$f":"IF('Insp Rpt'!AG10=\"\",\"\",\"Program No.:\")","v":"Program No.:"},null,null,null,{"$f":"IF('Insp Rpt'!$AG$10=\"\",\"\",'Insp Rpt'!$AG$10)","v":0}]
[]
[null,null,"PART II:   Initial Site Visit (Pre-Demolition)",null,null,null,null,null,null,null,null,null,null,null,null,null,null,null,null,null,null,null,null,null,null,null,null,"Project No.:",null,null,null,{"$f":"'Exhibit A'!C23","v":0}]
[null,null,"Property Address:",null,null,null,null,null,null,{"$f":"'Exhibit A'!F23","v":0}]
[null,null,"Parcel No.:",null,null,null,null,null,null,{"$f":"'Exhibit A'!D23","v":0}]
[null,null,"Expected End Use:",null,null,null,null,null,null,{"$f":"'Exhibit A'!G23","v":0}]
[]
[null,null,"The following section must be completed for each assigned property listed in Exhibit A (attached hereto) PRIOR TO DEMOLITION.  All sections must be completed in its entirety.  Contractors will be required to provide as much details as possible to support their assessment.  Upon completion of each site visit, a copy of this form and photos of the property must be submitted to MHC."]
[]
[]
[null,null,"SITE INFORMATION"]
[null,null,"Number of structures on site:"]
[null,null,"Is the site located in the BEP Target Area?",null,null,null,null,null,null,null,null,null,null,null,null,null,null,null,null,null,null,null,null,null,null,null,null,null,null,null,"Yes",null,null,"No"]
[null,null,"Does there appear to be anything of value or salvageable material on the site?",null,null,null,null,null,null,null,null,null,null,null,null,null,null,null,null,null,null,null,null,null,null,null,null,null,null,null,"Yes",null,null,"No"]
[null,null,"     If yes, describe:"]
[null,null,"     Will it be sold or donated?"]
[null,null,"Describe any other structures on the site (shed, workshop, fence, etc):"]
[]
[null,null,"Describe the suitability of the site entry points for access to and from the site for demolition equipment:  (Please make note of any obstructions or observable liabilities.)"]
[]
[null,null,"SITE CONDITIONS"]
[null,null,"(Describe the condition of the following:)"]
[null,null,"Driveways/Parking Area:"]
[null,null,"Curbing:"]
[null,null,"Sidewalks:"]
[null,null,"Landscaping:"]
[null,null,"Fencing/Walls:"]
[null,null,"PROPERTY INFORMATION"]
[null,null,"Is the property address clearly identified on the building/main entrance?",null,null,null,null,null,null,null,null,null,null,null,null,null,null,null,null,null,null,null,null,null,null,null,null,null,null,null,"Yes",null,null,"No"]
[null,null,"Is the structure to be demolished a Single-Family (1-4 units) Residential Structure?",null,null,null,null,null,null,null,null,null,null,null,null,null,null,null,null,null,null,null,null,null,null,null,null,null,null,null,"Yes",null,null,"No"]
[null,null,"What is the approximate square footage of the the residential structure?"]
[null,null,"Is the structure vacant/abandoned?",null,null,null,null,null,null,null,null,null,null,null,null,null,null,null,null,null,null,null,null,null,null,null,null,null,null,null,"Yes",null,null,"No"]
[null,null,"Does the property have severe structural damage (roof, exterior walls, foundation)?",null,null,null,null,null,null,null,null,null,null,null,null,null,null,null,null,null,null,null,null,null,null,null,null,null,null,null,"Yes",null,null,"No"]
[null,null,"Has all services (power, water, gas, etc) been disconnected?",null,null,null,null,null,null,null,null,null,null,null,null,null,null,null,null,null,null,null,null,null,null,null,null,null,null,null,"Yes",null,null,"No"]
[null,null,"Does the property qualify as a blight structure?",null,null,null,null,null,null,null,null,null,null,null,null,null,null,null,null,null,null,null,null,null,null,null,null,null,null,null,"Yes",null,null,"No"]
[null,null,"NEIGHBORHOOD ASSESSMENT"]
[null,null,"(Describe the neighborhood conditions:)"]
[]
[]
[null,null,"ADDITIONAL INFORMATION"]
[]
[]
[null,null,"Certification"]
[null,null,"I certify that I have carefully inspected this property on this date.  I have no personal interest, present or prospective, in the property, Grantee, Blight Partner, Demolition Contractor, or proceeds of the disbursements from the Grantee's BEP funds.  To the best of my knowledge I have reported all noncompliance, work requiring correction, and unacceptable work to MHC."]
[]
[]
[null,null,"Prepared By:",null,null,null,null,null,null,null,null,null,null,null,null,null,null,null,null,null,null,"Date:"]
[]
[null,null,null,null,null,null,null,null,null,null,null,null,null,null,null,null,null,null,null,null,null,null,null,null,null,null,null,null,null,null,null,null,null,null,"Field Compliance Site Visit Report"]
[null,null,null,null,null,null,null,null,null,null,null,null,null,null,null,null,null,null,null,null,null,null,null,null,null,null,null,null,{"$f":"IF('Insp Rpt'!$AG$10=\"\",\"\",\"Program No.:\")","v":"Program No.:"},null,null,null,{"$f":"IF('Insp Rpt'!$AG$10=\"\",\"\",'Insp Rpt'!$AG$10)","v":0}]
[]
[null,null,"PART III:  Follow-up Site Visit (Post-Demolition)",null,null,null,null,null,null,null,null,null,null,null,null,null,null,null,null,null,null,null,null,null,null,null,null,"Project No.:",null,null,null,{"$f":"'Exhibit A'!C23","v":0}]
[null,null,"Property Address:",null,null,null,null,null,null,{"$f":"J5","v":0}]
[null,null,"Parcel No.:",null,null,null,null,null,null,{"$f":"J6","v":0}]
[null,null,"Expected End Use:",null,null,null,null,null,null,{"$f":"J7","v":0}]
[]
[null,null,"The following section must be completed for each assigned property listed in Exhibit A (attached hereto) AFTER DEMOLITION is complete.  All sections must be completed in its entirety.  Contractors will be required to provide as much details as possible to support their assessment.  Upon completion of each site visit, a copy of this form and photos of the property must be submitted to MHC."]
[]
[]
[null,null,"SITE INFORMATION"]
[null,null,"All portions of the structure, including the foundation, has been removed?",null,null,null,null,null,null,null,null,null,null,null,null,null,null,null,null,null,null,null,null,null,null,null,null,null,null,null,"Yes",null,null,"No"]
[null,null,"All debris has been removed from the property and taken to a landfill?",null,null,null,null,null,null,null,null,null,null,null,null,null,null,null,null,null,null,null,null,null,null,null,null,null,null,null,"Yes",null,null,"No"]
[null,null,"The lot is properly filled, compacted, graded and seeded?",null,null,null,null,null,null,null,null,null,null,null,null,null,null,null,null,null,null,null,null,null,null,null,null,null,null,null,"Yes",null,null,"No"]
[null,null,"Septic tank (if applicable) has been pumped and filled or removed?",null,null,null,null,null,null,null,null,null,null,null,null,null,null,null,null,null,null,null,null,null,null,null,null,null,null,null,"Yes",null,null,"No"]
[]
[null,null,"SITE CONDITIONS"]
[null,null,"(Describe the condition of the following:)"]
[null,null,"Driveways/Parking Area:"]
[null,null,"Curbing:"]
[null,null,"Sidewalks:"]
[null,null,"Landscaping:"]
[null,null,"Fencing/Walls:"]
[]
[null,null,"CORRECTIVE ACTIONS"]
[null,null,"Are there any corrective actions that need to be taken?",null,null,null,null,null,null,null,null,null,null,null,null,null,null,null,null,null,null,null,null,null,null,null,null,null,null,null,"Yes",null,null,"No"]
[null,null,"    If yes, describe:"]
[]
[]
[null,null,"Reinspection Needed?",null,null,null,null,null,null,null,null,null,null,null,null,null,null,null,null,null,null,null,null,null,null,null,null,null,null,null,"Yes",null,null,"No"]
[]
[]
[]
[null,null,"Certification"]
[null,null,"I certify that I have carefully inspected this property on this date.  I have no personal interest, present or prospective, in the property, Grantee, Blight Partner, Demolition Contractor, or proceeds of the disbursements from the Grantee's BEP funds.  To the best of my knowledge I have reported all noncompliance, work requiring correction, and unacceptable work to MHC."]
[]
[]
[null,null,"Prepared By:",null,null,null,null,null,null,null,null,null,null,null,null,null,null,null,null,null,null,"Date:"]

{"sheet":"P13","index":13,"n_rows":88,"n_cols":35,"rows_kept":88,"cut":false,"hidden":true,"merged":[[3,31,3,34],[52,31,52,34],[22,2,22,34],[1,32,1,34],[5,9,5,17],[8,2,8,34],[11,2,11,34],[12,28,12,34],[15,7,15,34],[16,10,16,34],[18,2,18,34],[19,2,19,34],[20,2,20,34],[21,2,21,34],[13,33,13,34],[14,33,14,34],[13,30,13,31],[14,30,14,31],[27,9,27,34],[28,2,28,34],[31,28,31,34],[23,9,23,34],[24,2,24,8],[24,9,24,34],[25,9,25,34],[26,9,26,34],[29,33,29,34],[30,33,30,34],[29,30,29,31],[30,30,30,31],[33,33,33,34],[34,33,34,34],[35,33,35,34],[32,30,32,31],[33,30,33,31],[34,30,34,31],[32,33,32,34],[72,9,72,34],[41,2,41,34],[44,2,44,34],[47,23,47,30],[50,32,50,34],[57,2,57,34],[60,2,60,34],[66,2,66,34],[67,2,67,34],[61,33,61,34],[62,33,62,34],[63,33,63,34],[63,30,63,31],[62,30,62,31],[61,30,61,31],[70,9,70,34],[79,17,79,24],[84,2,84,34],[87,23,87,30],[74,2,74,34],[77,3,77,33],[78,17,78,24],[75,33,75,34],[75,30,75,31],[79,30,79,31],[79,33,79,34],[87,6,87,18],[71,9,71,34],[64,33,64,34],[64,30,64,31],[35,30,35,31],[40,2,40,34],[38,2,39,34],[68,9,68,34],[69,9,69,34],[47,6,47,18],[36,2,36,34],[37,2,37,34]]}
[null,null,null,null,null,null,null,null,null,null,null,null,null,null,null,null,null,null,null,null,null,null,null,null,null,null,null,null,null,null,null,null,null,null,"Field Compliance Site Visit Report"]
[null,null,null,null,null,null,null,null,null,null,null,null,null,null,null,null,null,null,null,null,null,null,null,null,null,null,null,null,{"$f":"IF('Insp Rpt'!AG10=\"\",\"\",\"Program No.:\")","v":"Program No.:"},null,null,null,{"$f":"IF('Insp Rpt'!$AG$10=\"\",\"\",'Insp Rpt'!$AG$10)","v":0}]
[]
[null,null,"PART II:   Initial Site Visit (Pre-Demolition)",null,null,null,null,null,null,null,null,null,null,null,null,null,null,null,null,null,null,null,null,null,null,null,null,"Project No.:",null,null,null,{"$f":"'Exhibit A'!C24","v":0}]
[null,null,"Property Address:",null,null,null,null,null,null,{"$f":"'Exhibit A'!F24","v":0}]
[null,null,"Parcel No.:",null,null,null,null,null,null,{"$f":"'Exhibit A'!D24","v":0}]
[null,null,"Expected End Use:",null,null,null,null,null,null,{"$f":"'Exhibit A'!G24","v":0}]
[]
[null,null,"The following section must be completed for each assigned property listed in Exhibit A (attached hereto) PRIOR TO DEMOLITION.  All sections must be completed in its entirety.  Contractors will be required to provide as much details as possible to support their assessment.  Upon completion of each site visit, a copy of this form and photos of the property must be submitted to MHC."]
[]
[]
[null,null,"SITE INFORMATION"]
[null,null,"Number of structures on site:"]
[null,null,"Is the site located in the BEP Target Area?",null,null,null,null,null,null,null,null,null,null,null,null,null,null,null,null,null,null,null,null,null,null,null,null,null,null,null,"Yes",null,null,"No"]
[null,null,"Does there appear to be anything of value or salvageable material on the site?",null,null,null,null,null,null,null,null,null,null,null,null,null,null,null,null,null,null,null,null,null,null,null,null,null,null,null,"Yes",null,null,"No"]
[null,null,"     If yes, describe:"]
[null,null,"     Will it be sold or donated?"]
[null,null,"Describe any other structures on the site (shed, workshop, fence, etc):"]
[]
[null,null,"Describe the suitability of the site entry points for access to and from the site for demolition equipment:  (Please make note of any obstructions or observable liabilities.)"]
[]
[null,null,"SITE CONDITIONS"]
[null,null,"(Describe the condition of the following:)"]
[null,null,"Driveways/Parking Area:"]
[null,null,"Curbing:"]
[null,null,"Sidewalks:"]
[null,null,"Landscaping:"]
[null,null,"Fencing/Walls:"]
[null,null,"PROPERTY INFORMATION"]
[null,null,"Is the property address clearly identified on the building/main entrance?",null,null,null,null,null,null,null,null,null,null,null,null,null,null,null,null,null,null,null,null,null,null,null,null,null,null,null,"Yes",null,null,"No"]
[null,null,"Is the structure to be demolished a Single-Family (1-4 units) Residential Structure?",null,null,null,null,null,null,null,null,null,null,null,null,null,null,null,null,null,null,null,null,null,null,null,null,null,null,null,"Yes",null,null,"No"]
[null,null,"What is the approximate square footage of the the residential structure?"]
[null,null,"Is the structure vacant/abandoned?",null,null,null,null,null,null,null,null,null,null,null,null,null,null,null,null,null,null,null,null,null,null,null,null,null,null,null,"Yes",null,null,"No"]
[null,null,"Does the property have severe structural damage (roof, exterior walls, foundation)?",null,null,null,null,null,null,null,null,null,null,null,null,null,null,null,null,null,null,null,null,null,null,null,null,null,null,null,"Yes",null,null,"No"]
[null,null,"Has all services (power, water, gas, etc) been disconnected?",null,null,null,null,null,null,null,null,null,null,null,null,null,null,null,null,null,null,null,null,null,null,null,null,null,null,null,"Yes",null,null,"No"]
[null,null,"Does the property qualify as a blight structure?",null,null,null,null,null,null,null,null,null,null,null,null,null,null,null,null,null,null,null,null,null,null,null,null,null,null,null,"Yes",null,null,"No"]
[null,null,"NEIGHBORHOOD ASSESSMENT"]
[null,null,"(Describe the neighborhood conditions:)"]
[]
[]
[null,null,"ADDITIONAL INFORMATION"]
[]
[]
[null,null,"Certification"]
[null,null,"I certify that I have carefully inspected this property on this date.  I have no personal interest, present or prospective, in the property, Grantee, Blight Partner, Demolition Contractor, or proceeds of the disbursements from the Grantee's BEP funds.  To the best of my knowledge I have reported all noncompliance, work requiring correction, and unacceptable work to MHC."]
[]
[]
[null,null,"Prepared By:",null,null,null,null,null,null,null,null,null,null,null,null,null,null,null,null,null,null,"Date:"]
[]
[null,null,null,null,null,null,null,null,null,null,null,null,null,null,null,null,null,null,null,null,null,null,null,null,null,null,null,null,null,null,null,null,null,null,"Field Compliance Site Visit Report"]
[null,null,null,null,null,null,null,null,null,null,null,null,null,null,null,null,null,null,null,null,null,null,null,null,null,null,null,null,{"$f":"IF('Insp Rpt'!$AG$10=\"\",\"\",\"Program No.:\")","v":"Program No.:"},null,null,null,{"$f":"IF('Insp Rpt'!$AG$10=\"\",\"\",'Insp Rpt'!$AG$10)","v":0}]
[]
[null,null,"PART III:  Follow-up Site Visit (Post-Demolition)",null,null,null,null,null,null,null,null,null,null,null,null,null,null,null,null,null,null,null,null,null,null,null,null,"Project No.:",null,null,null,{"$f":"'Exhibit A'!C24","v":0}]
[null,null,"Property Address:",null,null,null,null,null,null,{"$f":"J5","v":0}]
[null,null,"Parcel No.:",null,null,null,null,null,null,{"$f":"J6","v":0}]
[null,null,"Expected End Use:",null,null,null,null,null,null,{"$f":"J7","v":0}]
[]
[null,null,"The following section must be completed for each assigned property listed in Exhibit A (attached hereto) AFTER DEMOLITION is complete.  All sections must be completed in its entirety.  Contractors will be required to provide as much details as possible to support their assessment.  Upon completion of each site visit, a copy of this form and photos of the property must be submitted to MHC."]
[]
[]
[null,null,"SITE INFORMATION"]
[null,null,"All portions of the structure, including the foundation, has been removed?",null,null,null,null,null,null,null,null,null,null,null,null,null,null,null,null,null,null,null,null,null,null,null,null,null,null,null,"Yes",null,null,"No"]
[null,null,"All debris has been removed from the property and taken to a landfill?",null,null,null,null,null,null,null,null,null,null,null,null,null,null,null,null,null,null,null,null,null,null,null,null,null,null,null,"Yes",null,null,"No"]
[null,null,"The lot is properly filled, compacted, graded and seeded?",null,null,null,null,null,null,null,null,null,null,null,null,null,null,null,null,null,null,null,null,null,null,null,null,null,null,null,"Yes",null,null,"No"]
[null,null,"Septic tank (if applicable) has been pumped and filled or removed?",null,null,null,null,null,null,null,null,null,null,null,null,null,null,null,null,null,null,null,null,null,null,null,null,null,null,null,"Yes",null,null,"No"]
[]
[null,null,"SITE CONDITIONS"]
[null,null,"(Describe the condition of the following:)"]
[null,null,"Driveways/Parking Area:"]
[null,null,"Curbing:"]
[null,null,"Sidewalks:"]
[null,null,"Landscaping:"]
[null,null,"Fencing/Walls:"]
[]
[null,null,"CORRECTIVE ACTIONS"]
[null,null,"Are there any corrective actions that need to be taken?",null,null,null,null,null,null,null,null,null,null,null,null,null,null,null,null,null,null,null,null,null,null,null,null,null,null,null,"Yes",null,null,"No"]
[null,null,"    If yes, describe:"]
[]
[]
[null,null,"Reinspection Needed?",null,null,null,null,null,null,null,null,null,null,null,null,null,null,null,null,null,null,null,null,null,null,null,null,null,null,null,"Yes",null,null,"No"]
[]
[]
[]
[null,null,"Certification"]
[null,null,"I certify that I have carefully inspected this property on this date.  I have no personal interest, present or prospective, in the property, Grantee, Blight Partner, Demolition Contractor, or proceeds of the disbursements from the Grantee's BEP funds.  To the best of my knowledge I have reported all noncompliance, work requiring correction, and unacceptable work to MHC."]
[]
[]
[null,null,"Prepared By:",null,null,null,null,null,null,null,null,null,null,null,null,null,null,null,null,null,null,"Date:"]

{"sheet":"P14","index":14,"n_rows":88,"n_cols":35,"rows_kept":88,"cut":false,"hidden":true,"merged":[[3,31,3,34],[52,31,52,34],[22,2,22,34],[1,32,1,34],[5,9,5,17],[8,2,8,34],[11,2,11,34],[12,28,12,34],[15,7,15,34],[16,10,16,34],[18,2,18,34],[19,2,19,34],[20,2,20,34],[21,2,21,34],[13,33,13,34],[14,33,14,34],[13,30,13,31],[14,30,14,31],[40,2,40,34],[23,9,23,34],[24,2,24,8],[24,9,24,34],[25,9,25,34],[26,9,26,34],[27,9,27,34],[28,2,28,34],[31,28,31,34],[36,2,36,34],[37,2,37,34],[38,2,39,34],[29,33,29,34],[30,33,30,34],[29,30,29,31],[30,30,30,31],[57,2,57,34],[60,2,60,34],[66,2,66,34],[41,2,41,34],[44,2,44,34],[47,23,47,30],[50,32,50,34],[47,6,47,18],[32,30,32,31],[33,30,33,31],[34,30,34,31],[35,30,35,31],[32,33,32,34],[33,33,33,34],[79,17,79,24],[84,2,84,34],[87,23,87,30],[74,2,74,34],[77,3,77,33],[78,17,78,24],[75,33,75,34],[75,30,75,31],[79,33,79,34],[79,30,79,31],[87,6,87,18],[71,9,71,34],[72,9,72,34],[34,33,34,34],[35,33,35,34],[68,9,68,34],[69,9,69,34],[70,9,70,34],[67,2,67,34],[61,33,61,34],[62,33,62,34],[63,33,63,34],[64,33,64,34],[61,30,61,31],[62,30,62,31],[63,30,63,31],[64,30,64,31]]}
[null,null,null,null,null,null,null,null,null,null,null,null,null,null,null,null,null,null,null,null,null,null,null,null,null,null,null,null,null,null,null,null,null,null,"Field Compliance Site Visit Report"]
[null,null,null,null,null,null,null,null,null,null,null,null,null,null,null,null,null,null,null,null,null,null,null,null,null,null,null,null,{"$f":"IF('Insp Rpt'!AG10=\"\",\"\",\"Program No.:\")","v":"Program No.:"},null,null,null,{"$f":"IF('Insp Rpt'!$AG$10=\"\",\"\",'Insp Rpt'!$AG$10)","v":0}]
[]
[null,null,"PART II:   Initial Site Visit (Pre-Demolition)",null,null,null,null,null,null,null,null,null,null,null,null,null,null,null,null,null,null,null,null,null,null,null,null,"Project No.:",null,null,null,{"$f":"'Exhibit A'!C25","v":0}]
[null,null,"Property Address:",null,null,null,null,null,null,{"$f":"'Exhibit A'!F25","v":0}]
[null,null,"Parcel No.:",null,null,null,null,null,null,{"$f":"'Exhibit A'!D25","v":0}]
[null,null,"Expected End Use:",null,null,null,null,null,null,{"$f":"'Exhibit A'!G25","v":0}]
[]
[null,null,"The following section must be completed for each assigned property listed in Exhibit A (attached hereto) PRIOR TO DEMOLITION.  All sections must be completed in its entirety.  Contractors will be required to provide as much details as possible to support their assessment.  Upon completion of each site visit, a copy of this form and photos of the property must be submitted to MHC."]
[]
[]
[null,null,"SITE INFORMATION"]
[null,null,"Number of structures on site:"]
[null,null,"Is the site located in the BEP Target Area?",null,null,null,null,null,null,null,null,null,null,null,null,null,null,null,null,null,null,null,null,null,null,null,null,null,null,null,"Yes",null,null,"No"]
[null,null,"Does there appear to be anything of value or salvageable material on the site?",null,null,null,null,null,null,null,null,null,null,null,null,null,null,null,null,null,null,null,null,null,null,null,null,null,null,null,"Yes",null,null,"No"]
[null,null,"     If yes, describe:"]
[null,null,"     Will it be sold or donated?"]
[null,null,"Describe any other structures on the site (shed, workshop, fence, etc):"]
[]
[null,null,"Describe the suitability of the site entry points for access to and from the site for demolition equipment:  (Please make note of any obstructions or observable liabilities.)"]
[]
[null,null,"SITE CONDITIONS"]
[null,null,"(Describe the condition of the following:)"]
[null,null,"Driveways/Parking Area:"]
[null,null,"Curbing:"]
[null,null,"Sidewalks:"]
[null,null,"Landscaping:"]
[null,null,"Fencing/Walls:"]
[null,null,"PROPERTY INFORMATION"]
[null,null,"Is the property address clearly identified on the building/main entrance?",null,null,null,null,null,null,null,null,null,null,null,null,null,null,null,null,null,null,null,null,null,null,null,null,null,null,null,"Yes",null,null,"No"]
[null,null,"Is the structure to be demolished a Single-Family (1-4 units) Residential Structure?",null,null,null,null,null,null,null,null,null,null,null,null,null,null,null,null,null,null,null,null,null,null,null,null,null,null,null,"Yes",null,null,"No"]
[null,null,"What is the approximate square footage of the the residential structure?"]
[null,null,"Is the structure vacant/abandoned?",null,null,null,null,null,null,null,null,null,null,null,null,null,null,null,null,null,null,null,null,null,null,null,null,null,null,null,"Yes",null,null,"No"]
[null,null,"Does the property have severe structural damage (roof, exterior walls, foundation)?",null,null,null,null,null,null,null,null,null,null,null,null,null,null,null,null,null,null,null,null,null,null,null,null,null,null,null,"Yes",null,null,"No"]
[null,null,"Has all services (power, water, gas, etc) been disconnected?",null,null,null,null,null,null,null,null,null,null,null,null,null,null,null,null,null,null,null,null,null,null,null,null,null,null,null,"Yes",null,null,"No"]
[null,null,"Does the property qualify as a blight structure?",null,null,null,null,null,null,null,null,null,null,null,null,null,null,null,null,null,null,null,null,null,null,null,null,null,null,null,"Yes",null,null,"No"]
[null,null,"NEIGHBORHOOD ASSESSMENT"]
[null,null,"(Describe the neighborhood conditions:)"]
[]
[]
[null,null,"ADDITIONAL INFORMATION"]
[]
[]
[null,null,"Certification"]
[null,null,"I certify that I have carefully inspected this property on this date.  I have no personal interest, present or prospective, in the property, Grantee, Blight Partner, Demolition Contractor, or proceeds of the disbursements from the Grantee's BEP funds.  To the best of my knowledge I have reported all noncompliance, work requiring correction, and unacceptable work to MHC."]
[]
[]
[null,null,"Prepared By:",null,null,null,null,null,null,null,null,null,null,null,null,null,null,null,null,null,null,"Date:"]
[]
[null,null,null,null,null,null,null,null,null,null,null,null,null,null,null,null,null,null,null,null,null,null,null,null,null,null,null,null,null,null,null,null,null,null,"Field Compliance Site Visit Report"]
[null,null,null,null,null,null,null,null,null,null,null,null,null,null,null,null,null,null,null,null,null,null,null,null,null,null,null,null,{"$f":"IF('Insp Rpt'!$AG$10=\"\",\"\",\"Program No.:\")","v":"Program No.:"},null,null,null,{"$f":"IF('Insp Rpt'!$AG$10=\"\",\"\",'Insp Rpt'!$AG$10)","v":0}]
[]
[null,null,"PART III:  Follow-up Site Visit (Post-Demolition)",null,null,null,null,null,null,null,null,null,null,null,null,null,null,null,null,null,null,null,null,null,null,null,null,"Project No.:",null,null,null,{"$f":"'Exhibit A'!C25","v":0}]
[null,null,"Property Address:",null,null,null,null,null,null,{"$f":"J5","v":0}]
[null,null,"Parcel No.:",null,null,null,null,null,null,{"$f":"J6","v":0}]
[null,null,"Expected End Use:",null,null,null,null,null,null,{"$f":"J7","v":0}]
[]
[null,null,"The following section must be completed for each assigned property listed in Exhibit A (attached hereto) AFTER DEMOLITION is complete.  All sections must be completed in its entirety.  Contractors will be required to provide as much details as possible to support their assessment.  Upon completion of each site visit, a copy of this form and photos of the property must be submitted to MHC."]
[]
[]
[null,null,"SITE INFORMATION"]
[null,null,"All portions of the structure, including the foundation, has been removed?",null,null,null,null,null,null,null,null,null,null,null,null,null,null,null,null,null,null,null,null,null,null,null,null,null,null,null,"Yes",null,null,"No"]
[null,null,"All debris has been removed from the property and taken to a landfill?",null,null,null,null,null,null,null,null,null,null,null,null,null,null,null,null,null,null,null,null,null,null,null,null,null,null,null,"Yes",null,null,"No"]
[null,null,"The lot is properly filled, compacted, graded and seeded?",null,null,null,null,null,null,null,null,null,null,null,null,null,null,null,null,null,null,null,null,null,null,null,null,null,null,null,"Yes",null,null,"No"]
[null,null,"Septic tank (if applicable) has been pumped and filled or removed?",null,null,null,null,null,null,null,null,null,null,null,null,null,null,null,null,null,null,null,null,null,null,null,null,null,null,null,"Yes",null,null,"No"]
[]
[null,null,"SITE CONDITIONS"]
[null,null,"(Describe the condition of the following:)"]
[null,null,"Driveways/Parking Area:"]
[null,null,"Curbing:"]
[null,null,"Sidewalks:"]
[null,null,"Landscaping:"]
[null,null,"Fencing/Walls:"]
[]
[null,null,"CORRECTIVE ACTIONS"]
[null,null,"Are there any corrective actions that need to be taken?",null,null,null,null,null,null,null,null,null,null,null,null,null,null,null,null,null,null,null,null,null,null,null,null,null,null,null,"Yes",null,null,"No"]
[null,null,"    If yes, describe:"]
[]
[]
[null,null,"Reinspection Needed?",null,null,null,null,null,null,null,null,null,null,null,null,null,null,null,null,null,null,null,null,null,null,null,null,null,null,null,"Yes",null,null,"No"]
[]
[]
[]
[null,null,"Certification"]
[null,null,"I certify that I have carefully inspected this property on this date.  I have no personal interest, present or prospective, in the property, Grantee, Blight Partner, Demolition Contractor, or proceeds of the disbursements from the Grantee's BEP funds.  To the best of my knowledge I have reported all noncompliance, work requiring correction, and unacceptable work to MHC."]
[]
[]
[null,null,"Prepared By:",null,null,null,null,null,null,null,null,null,null,null,null,null,null,null,null,null,null,"Date:"]

{"sheet":"P15","index":15,"n_rows":88,"n_cols":35,"rows_kept":88,"cut":false,"hidden":true,"merged":[[3,31,3,34],[52,31,52,34],[22,2,22,34],[1,32,1,34],[5,9,5,17],[8,2,8,34],[11,2,11,34],[12,28,12,34],[15,7,15,34],[16,10,16,34],[18,2,18,34],[19,2,19,34],[20,2,20,34],[21,2,21,34],[13,33,13,34],[14,33,14,34],[13,30,13,31],[14,30,14,31],[40,2,40,34],[23,9,23,34],[24,2,24,8],[24,9,24,34],[25,9,25,34],[26,9,26,34],[27,9,27,34],[28,2,28,34],[31,28,31,34],[36,2,36,34],[37,2,37,34],[38,2,39,34],[29,33,29,34],[30,33,30,34],[32,33,32,34],[33,33,33,34],[57,2,57,34],[60,2,60,34],[66,2,66,34],[41,2,41,34],[44,2,44,34],[47,23,47,30],[50,32,50,34],[47,6,47,18],[34,33,34,34],[35,33,35,34],[35,30,35,31],[67,2,67,34],[61,33,61,34],[62,33,62,34],[63,33,63,34],[64,33,64,34],[61,30,61,31],[62,30,62,31],[63,30,63,31],[64,30,64,31],[79,17,79,24],[84,2,84,34],[87,23,87,30],[74,2,74,34],[77,3,77,33],[78,17,78,24],[75,33,75,34],[75,30,75,31],[79,33,79,34],[79,30,79,31],[87,6,87,18],[29,30,29,31],[30,30,30,31],[32,30,32,31],[33,30,33,31],[34,30,34,31],[68,9,68,34],[69,9,69,34],[70,9,70,34],[71,9,71,34],[72,9,72,34]]}
[null,null,null,null,null,null,null,null,null,null,null,null,null,null,null,null,null,null,null,null,null,null,null,null,null,null,null,null,null,null,null,null,null,null,"Field Compliance Site Visit Report"]
[null,null,null,null,null,null,null,null,null,null,null,null,null,null,null,null,null,null,null,null,null,null,null,null,null,null,null,null,{"$f":"IF('Insp Rpt'!AG10=\"\",\"\",\"Program No.:\")","v":"Program No.:"},null,null,null,{"$f":"IF('Insp Rpt'!$AG$10=\"\",\"\",'Insp Rpt'!$AG$10)","v":0}]
[]
[null,null,"PART II:   Initial Site Visit (Pre-Demolition)",null,null,null,null,null,null,null,null,null,null,null,null,null,null,null,null,null,null,null,null,null,null,null,null,"Project No.:",null,null,null,{"$f":"'Exhibit A'!C26","v":0}]
[null,null,"Property Address:",null,null,null,null,null,null,{"$f":"'Exhibit A'!F26","v":0}]
[null,null,"Parcel No.:",null,null,null,null,null,null,{"$f":"'Exhibit A'!D26","v":0}]
[null,null,"Expected End Use:",null,null,null,null,null,null,{"$f":"'Exhibit A'!G26","v":0}]
[]
[null,null,"The following section must be completed for each assigned property listed in Exhibit A (attached hereto) PRIOR TO DEMOLITION.  All sections must be completed in its entirety.  Contractors will be required to provide as much details as possible to support their assessment.  Upon completion of each site visit, a copy of this form and photos of the property must be submitted to MHC."]
[]
[]
[null,null,"SITE INFORMATION"]
[null,null,"Number of structures on site:"]
[null,null,"Is the site located in the BEP Target Area?",null,null,null,null,null,null,null,null,null,null,null,null,null,null,null,null,null,null,null,null,null,null,null,null,null,null,null,"Yes",null,null,"No"]
[null,null,"Does there appear to be anything of value or salvageable material on the site?",null,null,null,null,null,null,null,null,null,null,null,null,null,null,null,null,null,null,null,null,null,null,null,null,null,null,null,"Yes",null,null,"No"]
[null,null,"     If yes, describe:"]
[null,null,"     Will it be sold or donated?"]
[null,null,"Describe any other structures on the site (shed, workshop, fence, etc):"]
[]
[null,null,"Describe the suitability of the site entry points for access to and from the site for demolition equipment:  (Please make note of any obstructions or observable liabilities.)"]
[]
[null,null,"SITE CONDITIONS"]
[null,null,"(Describe the condition of the following:)"]
[null,null,"Driveways/Parking Area:"]
[null,null,"Curbing:"]
[null,null,"Sidewalks:"]
[null,null,"Landscaping:"]
[null,null,"Fencing/Walls:"]
[null,null,"PROPERTY INFORMATION"]
[null,null,"Is the property address clearly identified on the building/main entrance?",null,null,null,null,null,null,null,null,null,null,null,null,null,null,null,null,null,null,null,null,null,null,null,null,null,null,null,"Yes",null,null,"No"]
[null,null,"Is the structure to be demolished a Single-Family (1-4 units) Residential Structure?",null,null,null,null,null,null,null,null,null,null,null,null,null,null,null,null,null,null,null,null,null,null,null,null,null,null,null,"Yes",null,null,"No"]
[null,null,"What is the approximate square footage of the the residential structure?"]
[null,null,"Is the structure vacant/abandoned?",null,null,null,null,null,null,null,null,null,null,null,null,null,null,null,null,null,null,null,null,null,null,null,null,null,null,null,"Yes",null,null,"No"]
[null,null,"Does the property have severe structural damage (roof, exterior walls, foundation)?",null,null,null,null,null,null,null,null,null,null,null,null,null,null,null,null,null,null,null,null,null,null,null,null,null,null,null,"Yes",null,null,"No"]
[null,null,"Has all services (power, water, gas, etc) been disconnected?",null,null,null,null,null,null,null,null,null,null,null,null,null,null,null,null,null,null,null,null,null,null,null,null,null,null,null,"Yes",null,null,"No"]
[null,null,"Does the property qualify as a blight structure?",null,null,null,null,null,null,null,null,null,null,null,null,null,null,null,null,null,null,null,null,null,null,null,null,null,null,null,"Yes",null,null,"No"]
[null,null,"NEIGHBORHOOD ASSESSMENT"]
[null,null,"(Describe the neighborhood conditions:)"]
[]
[]
[null,null,"ADDITIONAL INFORMATION"]
[]
[]
[null,null,"Certification"]
[null,null,"I certify that I have carefully inspected this property on this date.  I have no personal interest, present or prospective, in the property, Grantee, Blight Partner, Demolition Contractor, or proceeds of the disbursements from the Grantee's BEP funds.  To the best of my knowledge I have reported all noncompliance, work requiring correction, and unacceptable work to MHC."]
[]
[]
[null,null,"Prepared By:",null,null,null,null,null,null,null,null,null,null,null,null,null,null,null,null,null,null,"Date:"]
[]
[null,null,null,null,null,null,null,null,null,null,null,null,null,null,null,null,null,null,null,null,null,null,null,null,null,null,null,null,null,null,null,null,null,null,"Field Compliance Site Visit Report"]
[null,null,null,null,null,null,null,null,null,null,null,null,null,null,null,null,null,null,null,null,null,null,null,null,null,null,null,null,{"$f":"IF('Insp Rpt'!$AG$10=\"\",\"\",\"Program No.:\")","v":"Program No.:"},null,null,null,{"$f":"IF('Insp Rpt'!$AG$10=\"\",\"\",'Insp Rpt'!$AG$10)","v":0}]
[]
[null,null,"PART III:  Follow-up Site Visit (Post-Demolition)",null,null,null,null,null,null,null,null,null,null,null,null,null,null,null,null,null,null,null,null,null,null,null,null,"Project No.:",null,null,null,{"$f":"'Exhibit A'!C26","v":0}]
[null,null,"Property Address:",null,null,null,null,null,null,{"$f":"J5","v":0}]
[null,null,"Parcel No.:",null,null,null,null,null,null,{"$f":"J6","v":0}]
[null,null,"Expected End Use:",null,null,null,null,null,null,{"$f":"J7","v":0}]
[]
[null,null,"The following section must be completed for each assigned property listed in Exhibit A (attached hereto) AFTER DEMOLITION is complete.  All sections must be completed in its entirety.  Contractors will be required to provide as much details as possible to support their assessment.  Upon completion of each site visit, a copy of this form and photos of the property must be submitted to MHC."]
[]
[]
[null,null,"SITE INFORMATION"]
[null,null,"All portions of the structure, including the foundation, has been removed?",null,null,null,null,null,null,null,null,null,null,null,null,null,null,null,null,null,null,null,null,null,null,null,null,null,null,null,"Yes",null,null,"No"]
[null,null,"All debris has been removed from the property and taken to a landfill?",null,null,null,null,null,null,null,null,null,null,null,null,null,null,null,null,null,null,null,null,null,null,null,null,null,null,null,"Yes",null,null,"No"]
[null,null,"The lot is properly filled, compacted, graded and seeded?",null,null,null,null,null,null,null,null,null,null,null,null,null,null,null,null,null,null,null,null,null,null,null,null,null,null,null,"Yes",null,null,"No"]
[null,null,"Septic tank (if applicable) has been pumped and filled or removed?",null,null,null,null,null,null,null,null,null,null,null,null,null,null,null,null,null,null,null,null,null,null,null,null,null,null,null,"Yes",null,null,"No"]
[]
[null,null,"SITE CONDITIONS"]
[null,null,"(Describe the condition of the following:)"]
[null,null,"Driveways/Parking Area:"]
[null,null,"Curbing:"]
[null,null,"Sidewalks:"]
[null,null,"Landscaping:"]
[null,null,"Fencing/Walls:"]
[]
[null,null,"CORRECTIVE ACTIONS"]
[null,null,"Are there any corrective actions that need to be taken?",null,null,null,null,null,null,null,null,null,null,null,null,null,null,null,null,null,null,null,null,null,null,null,null,null,null,null,"Yes",null,null,"No"]
[null,null,"    If yes, describe:"]
[]
[]
[null,null,"Reinspection Needed?",null,null,null,null,null,null,null,null,null,null,null,null,null,null,null,null,null,null,null,null,null,null,null,null,null,null,null,"Yes",null,null,"No"]
[]
[]
[]
[null,null,"Certification"]
[null,null,"I certify that I have carefully inspected this property on this date.  I have no personal interest, present or prospective, in the property, Grantee, Blight Partner, Demolition Contractor, or proceeds of the disbursements from the Grantee's BEP funds.  To the best of my knowledge I have reported all noncompliance, work requiring correction, and unacceptable work to MHC."]
[]
[]
[null,null,"Prepared By:",null,null,null,null,null,null,null,null,null,null,null,null,null,null,null,null,null,null,"Date:"]

{"sheet":"P16","index":16,"n_rows":88,"n_cols":35,"rows_kept":88,"cut":false,"hidden":true,"merged":[[3,31,3,34],[52,31,52,34],[47,6,47,18],[22,2,22,34],[1,32,1,34],[5,9,5,17],[8,2,8,34],[11,2,11,34],[12,28,12,34],[15,7,15,34],[16,10,16,34],[18,2,18,34],[19,2,19,34],[20,2,20,34],[21,2,21,34],[13,33,13,34],[40,2,40,34],[23,9,23,34],[24,2,24,8],[24,9,24,34],[25,9,25,34],[26,9,26,34],[27,9,27,34],[28,2,28,34],[31,28,31,34],[36,2,36,34],[37,2,37,34],[38,2,39,34],[29,33,29,34],[32,30,32,31],[30,30,30,31],[30,33,30,34],[14,33,14,34],[13,30,13,31],[14,30,14,31],[60,2,60,34],[66,2,66,34],[62,30,62,31],[61,30,61,31],[29,30,29,31],[61,33,61,34],[62,33,62,34],[34,33,34,34],[35,33,35,34],[35,30,35,31],[34,30,34,31],[33,30,33,31],[41,2,41,34],[79,17,79,24],[84,2,84,34],[87,23,87,30],[74,2,74,34],[77,3,77,33],[78,17,78,24],[79,33,79,34],[79,30,79,31],[75,33,75,34],[75,30,75,31],[87,6,87,18],[72,9,72,34],[32,33,32,34],[68,9,68,34],[69,9,69,34],[70,9,70,34],[71,9,71,34],[44,2,44,34],[47,23,47,30],[50,32,50,34],[57,2,57,34],[33,33,33,34],[67,2,67,34],[63,33,63,34],[64,33,64,34],[64,30,64,31],[63,30,63,31]]}
[null,null,null,null,null,null,null,null,null,null,null,null,null,null,null,null,null,null,null,null,null,null,null,null,null,null,null,null,null,null,null,null,null,null,"Field Compliance Site Visit Report"]
[null,null,null,null,null,null,null,null,null,null,null,null,null,null,null,null,null,null,null,null,null,null,null,null,null,null,null,null,{"$f":"IF('Insp Rpt'!AG10=\"\",\"\",\"Program No.:\")","v":"Program No.:"},null,null,null,{"$f":"IF('Insp Rpt'!$AG$10=\"\",\"\",'Insp Rpt'!$AG$10)","v":0}]
[]
[null,null,"PART II:   Initial Site Visit (Pre-Demolition)",null,null,null,null,null,null,null,null,null,null,null,null,null,null,null,null,null,null,null,null,null,null,null,null,"Project No.:",null,null,null,{"$f":"'Exhibit A'!C27","v":0}]
[null,null,"Property Address:",null,null,null,null,null,null,{"$f":"'Exhibit A'!F27","v":0}]
[null,null,"Parcel No.:",null,null,null,null,null,null,{"$f":"'Exhibit A'!D27","v":0}]
[null,null,"Expected End Use:",null,null,null,null,null,null,{"$f":"'Exhibit A'!G27","v":0}]
[]
[null,null,"The following section must be completed for each assigned property listed in Exhibit A (attached hereto) PRIOR TO DEMOLITION.  All sections must be completed in its entirety.  Contractors will be required to provide as much details as possible to support their assessment.  Upon completion of each site visit, a copy of this form and photos of the property must be submitted to MHC."]
[]
[]
[null,null,"SITE INFORMATION"]
[null,null,"Number of structures on site:"]
[null,null,"Is the site located in the BEP Target Area?",null,null,null,null,null,null,null,null,null,null,null,null,null,null,null,null,null,null,null,null,null,null,null,null,null,null,null,"Yes",null,null,"No"]
[null,null,"Does there appear to be anything of value or salvageable material on the site?",null,null,null,null,null,null,null,null,null,null,null,null,null,null,null,null,null,null,null,null,null,null,null,null,null,null,null,"Yes",null,null,"No"]
[null,null,"     If yes, describe:"]
[null,null,"     Will it be sold or donated?"]
[null,null,"Describe any other structures on the site (shed, workshop, fence, etc):"]
[]
[null,null,"Describe the suitability of the site entry points for access to and from the site for demolition equipment:  (Please make note of any obstructions or observable liabilities.)"]
[]
[null,null,"SITE CONDITIONS"]
[null,null,"(Describe the condition of the following:)"]
[null,null,"Driveways/Parking Area:"]
[null,null,"Curbing:"]
[null,null,"Sidewalks:"]
[null,null,"Landscaping:"]
[null,null,"Fencing/Walls:"]
[null,null,"PROPERTY INFORMATION"]
[null,null,"Is the property address clearly identified on the building/main entrance?",null,null,null,null,null,null,null,null,null,null,null,null,null,null,null,null,null,null,null,null,null,null,null,null,null,null,null,"Yes",null,null,"No"]
[null,null,"Is the structure to be demolished a Single-Family (1-4 units) Residential Structure?",null,null,null,null,null,null,null,null,null,null,null,null,null,null,null,null,null,null,null,null,null,null,null,null,null,null,null,"Yes",null,null,"No"]
[null,null,"What is the approximate square footage of the the residential structure?"]
[null,null,"Is the structure vacant/abandoned?",null,null,null,null,null,null,null,null,null,null,null,null,null,null,null,null,null,null,null,null,null,null,null,null,null,null,null,"Yes",null,null,"No"]
[null,null,"Does the property have severe structural damage (roof, exterior walls, foundation)?",null,null,null,null,null,null,null,null,null,null,null,null,null,null,null,null,null,null,null,null,null,null,null,null,null,null,null,"Yes",null,null,"No"]
[null,null,"Has all services (power, water, gas, etc) been disconnected?",null,null,null,null,null,null,null,null,null,null,null,null,null,null,null,null,null,null,null,null,null,null,null,null,null,null,null,"Yes",null,null,"No"]
[null,null,"Does the property qualify as a blight structure?",null,null,null,null,null,null,null,null,null,null,null,null,null,null,null,null,null,null,null,null,null,null,null,null,null,null,null,"Yes",null,null,"No"]
[null,null,"NEIGHBORHOOD ASSESSMENT"]
[null,null,"(Describe the neighborhood conditions:)"]
[]
[]
[null,null,"ADDITIONAL INFORMATION"]
[]
[]
[null,null,"Certification"]
[null,null,"I certify that I have carefully inspected this property on this date.  I have no personal interest, present or prospective, in the property, Grantee, Blight Partner, Demolition Contractor, or proceeds of the disbursements from the Grantee's BEP funds.  To the best of my knowledge I have reported all noncompliance, work requiring correction, and unacceptable work to MHC."]
[]
[]
[null,null,"Prepared By:",null,null,null,null,null,null,null,null,null,null,null,null,null,null,null,null,null,null,"Date:"]
[]
[null,null,null,null,null,null,null,null,null,null,null,null,null,null,null,null,null,null,null,null,null,null,null,null,null,null,null,null,null,null,null,null,null,null,"Field Compliance Site Visit Report"]
[null,null,null,null,null,null,null,null,null,null,null,null,null,null,null,null,null,null,null,null,null,null,null,null,null,null,null,null,{"$f":"IF('Insp Rpt'!$AG$10=\"\",\"\",\"Program No.:\")","v":"Program No.:"},null,null,null,{"$f":"IF('Insp Rpt'!$AG$10=\"\",\"\",'Insp Rpt'!$AG$10)","v":0}]
[]
[null,null,"PART III:  Follow-up Site Visit (Post-Demolition)",null,null,null,null,null,null,null,null,null,null,null,null,null,null,null,null,null,null,null,null,null,null,null,null,"Project No.:",null,null,null,{"$f":"'Exhibit A'!C27","v":0}]
[null,null,"Property Address:",null,null,null,null,null,null,{"$f":"J5","v":0}]
[null,null,"Parcel No.:",null,null,null,null,null,null,{"$f":"J6","v":0}]
[null,null,"Expected End Use:",null,null,null,null,null,null,{"$f":"J7","v":0}]
[]
[null,null,"The following section must be completed for each assigned property listed in Exhibit A (attached hereto) AFTER DEMOLITION is complete.  All sections must be completed in its entirety.  Contractors will be required to provide as much details as possible to support their assessment.  Upon completion of each site visit, a copy of this form and photos of the property must be submitted to MHC."]
[]
[]
[null,null,"SITE INFORMATION"]
[null,null,"All portions of the structure, including the foundation, has been removed?",null,null,null,null,null,null,null,null,null,null,null,null,null,null,null,null,null,null,null,null,null,null,null,null,null,null,null,"Yes",null,null,"No"]
[null,null,"All debris has been removed from the property and taken to a landfill?",null,null,null,null,null,null,null,null,null,null,null,null,null,null,null,null,null,null,null,null,null,null,null,null,null,null,null,"Yes",null,null,"No"]
[null,null,"The lot is properly filled, compacted, graded and seeded?",null,null,null,null,null,null,null,null,null,null,null,null,null,null,null,null,null,null,null,null,null,null,null,null,null,null,null,"Yes",null,null,"No"]
[null,null,"Septic tank (if applicable) has been pumped and filled or removed?",null,null,null,null,null,null,null,null,null,null,null,null,null,null,null,null,null,null,null,null,null,null,null,null,null,null,null,"Yes",null,null,"No"]
[]
[null,null,"SITE CONDITIONS"]
[null,null,"(Describe the condition of the following:)"]
[null,null,"Driveways/Parking Area:"]
[null,null,"Curbing:"]
[null,null,"Sidewalks:"]
[null,null,"Landscaping:"]
[null,null,"Fencing/Walls:"]
[]
[null,null,"CORRECTIVE ACTIONS"]
[null,null,"Are there any corrective actions that need to be taken?",null,null,null,null,null,null,null,null,null,null,null,null,null,null,null,null,null,null,null,null,null,null,null,null,null,null,null,"Yes",null,null,"No"]
[null,null,"    If yes, describe:"]
[]
[]
[null,null,"Reinspection Needed?",null,null,null,null,null,null,null,null,null,null,null,null,null,null,null,null,null,null,null,null,null,null,null,null,null,null,null,"Yes",null,null,"No"]
[]
[]
[]
[null,null,"Certification"]
[null,null,"I certify that I have carefully inspected this property on this date.  I have no personal interest, present or prospective, in the property, Grantee, Blight Partner, Demolition Contractor, or proceeds of the disbursements from the Grantee's BEP funds.  To the best of my knowledge I have reported all noncompliance, work requiring correction, and unacceptable work to MHC."]
[]
[]
[null,null,"Prepared By:",null,null,null,null,null,null,null,null,null,null,null,null,null,null,null,null,null,null,"Date:"]

{"sheet":"P17","index":17,"n_rows":88,"n_cols":35,"rows_kept":88,"cut":false,"hidden":true,"merged":[[3,31,3,34],[52,31,52,34],[22,2,22,34],[1,32,1,34],[5,9,5,17],[8,2,8,34],[11,2,11,34],[12,28,12,34],[15,7,15,34],[16,10,16,34],[18,2,18,34],[19,2,19,34],[20,2,20,34],[21,2,21,34],[13,33,13,34],[14,33,14,34],[13,30,13,31],[14,30,14,31],[40,2,40,34],[23,9,23,34],[24,2,24,8],[24,9,24,34],[25,9,25,34],[26,9,26,34],[27,9,27,34],[28,2,28,34],[31,28,31,34],[36,2,36,34],[37,2,37,34],[38,2,39,34],[29,33,29,34],[30,33,30,34],[29,30,29,31],[30,30,30,31],[57,2,57,34],[60,2,60,34],[66,2,66,34],[41,2,41,34],[44,2,44,34],[47,23,47,30],[50,32,50,34],[47,6,47,18],[32,30,32,31],[33,30,33,31],[34,30,34,31],[35,30,35,31],[32,33,32,34],[33,33,33,34],[79,17,79,24],[84,2,84,34],[87,23,87,30],[74,2,74,34],[77,3,77,33],[78,17,78,24],[75,33,75,34],[75,30,75,31],[79,33,79,34],[79,30,79,31],[87,6,87,18],[71,9,71,34],[72,9,72,34],[34,33,34,34],[35,33,35,34],[68,9,68,34],[69,9,69,34],[70,9,70,34],[67,2,67,34],[61,33,61,34],[62,33,62,34],[63,33,63,34],[64,33,64,34],[61,30,61,31],[62,30,62,31],[63,30,63,31],[64,30,64,31]]}
[null,null,null,null,null,null,null,null,null,null,null,null,null,null,null,null,null,null,null,null,null,null,null,null,null,null,null,null,null,null,null,null,null,null,"Field Compliance Site Visit Report"]
[null,null,null,null,null,null,null,null,null,null,null,null,null,null,null,null,null,null,null,null,null,null,null,null,null,null,null,null,{"$f":"IF('Insp Rpt'!AG10=\"\",\"\",\"Program No.:\")","v":"Program No.:"},null,null,null,{"$f":"IF('Insp Rpt'!$AG$10=\"\",\"\",'Insp Rpt'!$AG$10)","v":0}]
[]
[null,null,"PART II:   Initial Site Visit (Pre-Demolition)",null,null,null,null,null,null,null,null,null,null,null,null,null,null,null,null,null,null,null,null,null,null,null,null,"Project No.:",null,null,null,{"$f":"'Exhibit A'!C28","v":0}]
[null,null,"Property Address:",null,null,null,null,null,null,{"$f":"'Exhibit A'!F28","v":0}]
[null,null,"Parcel No.:",null,null,null,null,null,null,{"$f":"'Exhibit A'!D28","v":0}]
[null,null,"Expected End Use:",null,null,null,null,null,null,{"$f":"'Exhibit A'!G28","v":0}]
[]
[null,null,"The following section must be completed for each assigned property listed in Exhibit A (attached hereto) PRIOR TO DEMOLITION.  All sections must be completed in its entirety.  Contractors will be required to provide as much details as possible to support their assessment.  Upon completion of each site visit, a copy of this form and photos of the property must be submitted to MHC."]
[]
[]
[null,null,"SITE INFORMATION"]
[null,null,"Number of structures on site:"]
[null,null,"Is the site located in the BEP Target Area?",null,null,null,null,null,null,null,null,null,null,null,null,null,null,null,null,null,null,null,null,null,null,null,null,null,null,null,"Yes",null,null,"No"]
[null,null,"Does there appear to be anything of value or salvageable material on the site?",null,null,null,null,null,null,null,null,null,null,null,null,null,null,null,null,null,null,null,null,null,null,null,null,null,null,null,"Yes",null,null,"No"]
[null,null,"     If yes, describe:"]
[null,null,"     Will it be sold or donated?"]
[null,null,"Describe any other structures on the site (shed, workshop, fence, etc):"]
[]
[null,null,"Describe the suitability of the site entry points for access to and from the site for demolition equipment:  (Please make note of any obstructions or observable liabilities.)"]
[]
[null,null,"SITE CONDITIONS"]
[null,null,"(Describe the condition of the following:)"]
[null,null,"Driveways/Parking Area:"]
[null,null,"Curbing:"]
[null,null,"Sidewalks:"]
[null,null,"Landscaping:"]
[null,null,"Fencing/Walls:"]
[null,null,"PROPERTY INFORMATION"]
[null,null,"Is the property address clearly identified on the building/main entrance?",null,null,null,null,null,null,null,null,null,null,null,null,null,null,null,null,null,null,null,null,null,null,null,null,null,null,null,"Yes",null,null,"No"]
[null,null,"Is the structure to be demolished a Single-Family (1-4 units) Residential Structure?",null,null,null,null,null,null,null,null,null,null,null,null,null,null,null,null,null,null,null,null,null,null,null,null,null,null,null,"Yes",null,null,"No"]
[null,null,"What is the approximate square footage of the the residential structure?"]
[null,null,"Is the structure vacant/abandoned?",null,null,null,null,null,null,null,null,null,null,null,null,null,null,null,null,null,null,null,null,null,null,null,null,null,null,null,"Yes",null,null,"No"]
[null,null,"Does the property have severe structural damage (roof, exterior walls, foundation)?",null,null,null,null,null,null,null,null,null,null,null,null,null,null,null,null,null,null,null,null,null,null,null,null,null,null,null,"Yes",null,null,"No"]
[null,null,"Has all services (power, water, gas, etc) been disconnected?",null,null,null,null,null,null,null,null,null,null,null,null,null,null,null,null,null,null,null,null,null,null,null,null,null,null,null,"Yes",null,null,"No"]
[null,null,"Does the property qualify as a blight structure?",null,null,null,null,null,null,null,null,null,null,null,null,null,null,null,null,null,null,null,null,null,null,null,null,null,null,null,"Yes",null,null,"No"]
[null,null,"NEIGHBORHOOD ASSESSMENT"]
[null,null,"(Describe the neighborhood conditions:)"]
[]
[]
[null,null,"ADDITIONAL INFORMATION"]
[]
[]
[null,null,"Certification"]
[null,null,"I certify that I have carefully inspected this property on this date.  I have no personal interest, present or prospective, in the property, Grantee, Blight Partner, Demolition Contractor, or proceeds of the disbursements from the Grantee's BEP funds.  To the best of my knowledge I have reported all noncompliance, work requiring correction, and unacceptable work to MHC."]
[]
[]
[null,null,"Prepared By:",null,null,null,null,null,null,null,null,null,null,null,null,null,null,null,null,null,null,"Date:"]
[]
[null,null,null,null,null,null,null,null,null,null,null,null,null,null,null,null,null,null,null,null,null,null,null,null,null,null,null,null,null,null,null,null,null,null,"Field Compliance Site Visit Report"]
[null,null,null,null,null,null,null,null,null,null,null,null,null,null,null,null,null,null,null,null,null,null,null,null,null,null,null,null,{"$f":"IF('Insp Rpt'!$AG$10=\"\",\"\",\"Program No.:\")","v":"Program No.:"},null,null,null,{"$f":"IF('Insp Rpt'!$AG$10=\"\",\"\",'Insp Rpt'!$AG$10)","v":0}]
[]
[null,null,"PART III:  Follow-up Site Visit (Post-Demolition)",null,null,null,null,null,null,null,null,null,null,null,null,null,null,null,null,null,null,null,null,null,null,null,null,"Project No.:",null,null,null,{"$f":"'Exhibit A'!C28","v":0}]
[null,null,"Property Address:",null,null,null,null,null,null,{"$f":"J5","v":0}]
[null,null,"Parcel No.:",null,null,null,null,null,null,{"$f":"J6","v":0}]
[null,null,"Expected End Use:",null,null,null,null,null,null,{"$f":"J7","v":0}]
[]
[null,null,"The following section must be completed for each assigned property listed in Exhibit A (attached hereto) AFTER DEMOLITION is complete.  All sections must be completed in its entirety.  Contractors will be required to provide as much details as possible to support their assessment.  Upon completion of each site visit, a copy of this form and photos of the property must be submitted to MHC."]
[]
[]
[null,null,"SITE INFORMATION"]
[null,null,"All portions of the structure, including the foundation, has been removed?",null,null,null,null,null,null,null,null,null,null,null,null,null,null,null,null,null,null,null,null,null,null,null,null,null,null,null,"Yes",null,null,"No"]
[null,null,"All debris has been removed from the property and taken to a landfill?",null,null,null,null,null,null,null,null,null,null,null,null,null,null,null,null,null,null,null,null,null,null,null,null,null,null,null,"Yes",null,null,"No"]
[null,null,"The lot is properly filled, compacted, graded and seeded?",null,null,null,null,null,null,null,null,null,null,null,null,null,null,null,null,null,null,null,null,null,null,null,null,null,null,null,"Yes",null,null,"No"]
[null,null,"Septic tank (if applicable) has been pumped and filled or removed?",null,null,null,null,null,null,null,null,null,null,null,null,null,null,null,null,null,null,null,null,null,null,null,null,null,null,null,"Yes",null,null,"No"]
[]
[null,null,"SITE CONDITIONS"]
[null,null,"(Describe the condition of the following:)"]
[null,null,"Driveways/Parking Area:"]
[null,null,"Curbing:"]
[null,null,"Sidewalks:"]
[null,null,"Landscaping:"]
[null,null,"Fencing/Walls:"]
[]
[null,null,"CORRECTIVE ACTIONS"]
[null,null,"Are there any corrective actions that need to be taken?",null,null,null,null,null,null,null,null,null,null,null,null,null,null,null,null,null,null,null,null,null,null,null,null,null,null,null,"Yes",null,null,"No"]
[null,null,"    If yes, describe:"]
[]
[]
[null,null,"Reinspection Needed?",null,null,null,null,null,null,null,null,null,null,null,null,null,null,null,null,null,null,null,null,null,null,null,null,null,null,null,"Yes",null,null,"No"]
[]
[]
[]
[null,null,"Certification"]
[null,null,"I certify that I have carefully inspected this property on this date.  I have no personal interest, present or prospective, in the property, Grantee, Blight Partner, Demolition Contractor, or proceeds of the disbursements from the Grantee's BEP funds.  To the best of my knowledge I have reported all noncompliance, work requiring correction, and unacceptable work to MHC."]
[]
[]
[null,null,"Prepared By:",null,null,null,null,null,null,null,null,null,null,null,null,null,null,null,null,null,null,"Date:"]

{"sheet":"P18","index":18,"n_rows":88,"n_cols":35,"rows_kept":88,"cut":false,"hidden":true,"merged":[[3,31,3,34],[52,31,52,34],[22,2,22,34],[1,32,1,34],[5,9,5,17],[8,2,8,34],[11,2,11,34],[12,28,12,34],[15,7,15,34],[16,10,16,34],[18,2,18,34],[19,2,19,34],[20,2,20,34],[21,2,21,34],[13,33,13,34],[14,33,14,34],[13,30,13,31],[14,30,14,31],[40,2,40,34],[23,9,23,34],[24,2,24,8],[24,9,24,34],[25,9,25,34],[26,9,26,34],[27,9,27,34],[28,2,28,34],[31,28,31,34],[36,2,36,34],[37,2,37,34],[38,2,39,34],[29,33,29,34],[30,33,30,34],[29,30,29,31],[30,30,30,31],[57,2,57,34],[60,2,60,34],[66,2,66,34],[41,2,41,34],[44,2,44,34],[47,23,47,30],[50,32,50,34],[47,6,47,18],[32,33,32,34],[33,33,33,34],[34,33,34,34],[35,33,35,34],[32,30,32,31],[33,30,33,31],[79,17,79,24],[84,2,84,34],[87,23,87,30],[74,2,74,34],[77,3,77,33],[78,17,78,24],[75,33,75,34],[75,30,75,31],[79,33,79,34],[79,30,79,31],[87,6,87,18],[71,9,71,34],[72,9,72,34],[34,30,34,31],[35,30,35,31],[68,9,68,34],[69,9,69,34],[70,9,70,34],[67,2,67,34],[61,33,61,34],[62,33,62,34],[63,33,63,34],[64,33,64,34],[61,30,61,31],[62,30,62,31],[63,30,63,31],[64,30,64,31]]}
[null,null,null,null,null,null,null,null,null,null,null,null,null,null,null,null,null,null,null,null,null,null,null,null,null,null,null,null,null,null,null,null,null,null,"Field Compliance Site Visit Report"]
[null,null,null,null,null,null,null,null,null,null,null,null,null,null,null,null,null,null,null,null,null,null,null,null,null,null,null,null,{"$f":"IF('Insp Rpt'!AG10=\"\",\"\",\"Program No.:\")","v":"Program No.:"},null,null,null,{"$f":"IF('Insp Rpt'!$AG$10=\"\",\"\",'Insp Rpt'!$AG$10)","v":0}]
[]
[null,null,"PART II:   Initial Site Visit (Pre-Demolition)",null,null,null,null,null,null,null,null,null,null,null,null,null,null,null,null,null,null,null,null,null,null,null,null,"Project No.:",null,null,null,{"$f":"'Exhibit A'!C29","v":0}]
[null,null,"Property Address:",null,null,null,null,null,null,{"$f":"'Exhibit A'!F29","v":0}]
[null,null,"Parcel No.:",null,null,null,null,null,null,{"$f":"'Exhibit A'!D29","v":0}]
[null,null,"Expected End Use:",null,null,null,null,null,null,{"$f":"'Exhibit A'!G29","v":0}]
[]
[null,null,"The following section must be completed for each assigned property listed in Exhibit A (attached hereto) PRIOR TO DEMOLITION.  All sections must be completed in its entirety.  Contractors will be required to provide as much details as possible to support their assessment.  Upon completion of each site visit, a copy of this form and photos of the property must be submitted to MHC."]
[]
[]
[null,null,"SITE INFORMATION"]
[null,null,"Number of structures on site:"]
[null,null,"Is the site located in the BEP Target Area?",null,null,null,null,null,null,null,null,null,null,null,null,null,null,null,null,null,null,null,null,null,null,null,null,null,null,null,"Yes",null,null,"No"]
[null,null,"Does there appear to be anything of value or salvageable material on the site?",null,null,null,null,null,null,null,null,null,null,null,null,null,null,null,null,null,null,null,null,null,null,null,null,null,null,null,"Yes",null,null,"No"]
[null,null,"     If yes, describe:"]
[null,null,"     Will it be sold or donated?"]
[null,null,"Describe any other structures on the site (shed, workshop, fence, etc):"]
[]
[null,null,"Describe the suitability of the site entry points for access to and from the site for demolition equipment:  (Please make note of any obstructions or observable liabilities.)"]
[]
[null,null,"SITE CONDITIONS"]
[null,null,"(Describe the condition of the following:)"]
[null,null,"Driveways/Parking Area:"]
[null,null,"Curbing:"]
[null,null,"Sidewalks:"]
[null,null,"Landscaping:"]
[null,null,"Fencing/Walls:"]
[null,null,"PROPERTY INFORMATION"]
[null,null,"Is the property address clearly identified on the building/main entrance?",null,null,null,null,null,null,null,null,null,null,null,null,null,null,null,null,null,null,null,null,null,null,null,null,null,null,null,"Yes",null,null,"No"]
[null,null,"Is the structure to be demolished a Single-Family (1-4 units) Residential Structure?",null,null,null,null,null,null,null,null,null,null,null,null,null,null,null,null,null,null,null,null,null,null,null,null,null,null,null,"Yes",null,null,"No"]
[null,null,"What is the approximate square footage of the the residential structure?"]
[null,null,"Is the structure vacant/abandoned?",null,null,null,null,null,null,null,null,null,null,null,null,null,null,null,null,null,null,null,null,null,null,null,null,null,null,null,"Yes",null,null,"No"]
[null,null,"Does the property have severe structural damage (roof, exterior walls, foundation)?",null,null,null,null,null,null,null,null,null,null,null,null,null,null,null,null,null,null,null,null,null,null,null,null,null,null,null,"Yes",null,null,"No"]
[null,null,"Has all services (power, water, gas, etc) been disconnected?",null,null,null,null,null,null,null,null,null,null,null,null,null,null,null,null,null,null,null,null,null,null,null,null,null,null,null,"Yes",null,null,"No"]
[null,null,"Does the property qualify as a blight structure?",null,null,null,null,null,null,null,null,null,null,null,null,null,null,null,null,null,null,null,null,null,null,null,null,null,null,null,"Yes",null,null,"No"]
[null,null,"NEIGHBORHOOD ASSESSMENT"]
[null,null,"(Describe the neighborhood conditions:)"]
[]
[]
[null,null,"ADDITIONAL INFORMATION"]
[]
[]
[null,null,"Certification"]
[null,null,"I certify that I have carefully inspected this property on this date.  I have no personal interest, present or prospective, in the property, Grantee, Blight Partner, Demolition Contractor, or proceeds of the disbursements from the Grantee's BEP funds.  To the best of my knowledge I have reported all noncompliance, work requiring correction, and unacceptable work to MHC."]
[]
[]
[null,null,"Prepared By:",null,null,null,null,null,null,null,null,null,null,null,null,null,null,null,null,null,null,"Date:"]
[]
[null,null,null,null,null,null,null,null,null,null,null,null,null,null,null,null,null,null,null,null,null,null,null,null,null,null,null,null,null,null,null,null,null,null,"Field Compliance Site Visit Report"]
[null,null,null,null,null,null,null,null,null,null,null,null,null,null,null,null,null,null,null,null,null,null,null,null,null,null,null,null,{"$f":"IF('Insp Rpt'!$AG$10=\"\",\"\",\"Program No.:\")","v":"Program No.:"},null,null,null,{"$f":"IF('Insp Rpt'!$AG$10=\"\",\"\",'Insp Rpt'!$AG$10)","v":0}]
[]
[null,null,"PART III:  Follow-up Site Visit (Post-Demolition)",null,null,null,null,null,null,null,null,null,null,null,null,null,null,null,null,null,null,null,null,null,null,null,null,"Project No.:",null,null,null,{"$f":"'Exhibit A'!C29","v":0}]
[null,null,"Property Address:",null,null,null,null,null,null,{"$f":"J5","v":0}]
[null,null,"Parcel No.:",null,null,null,null,null,null,{"$f":"J6","v":0}]
[null,null,"Expected End Use:",null,null,null,null,null,null,{"$f":"J7","v":0}]
[]
[null,null,"The following section must be completed for each assigned property listed in Exhibit A (attached hereto) AFTER DEMOLITION is complete.  All sections must be completed in its entirety.  Contractors will be required to provide as much details as possible to support their assessment.  Upon completion of each site visit, a copy of this form and photos of the property must be submitted to MHC."]
[]
[]
[null,null,"SITE INFORMATION"]
[null,null,"All portions of the structure, including the foundation, has been removed?",null,null,null,null,null,null,null,null,null,null,null,null,null,null,null,null,null,null,null,null,null,null,null,null,null,null,null,"Yes",null,null,"No"]
[null,null,"All debris has been removed from the property and taken to a landfill?",null,null,null,null,null,null,null,null,null,null,null,null,null,null,null,null,null,null,null,null,null,null,null,null,null,null,null,"Yes",null,null,"No"]
[null,null,"The lot is properly filled, compacted, graded and seeded?",null,null,null,null,null,null,null,null,null,null,null,null,null,null,null,null,null,null,null,null,null,null,null,null,null,null,null,"Yes",null,null,"No"]
[null,null,"Septic tank (if applicable) has been pumped and filled or removed?",null,null,null,null,null,null,null,null,null,null,null,null,null,null,null,null,null,null,null,null,null,null,null,null,null,null,null,"Yes",null,null,"No"]
[]
[null,null,"SITE CONDITIONS"]
[null,null,"(Describe the condition of the following:)"]
[null,null,"Driveways/Parking Area:"]
[null,null,"Curbing:"]
[null,null,"Sidewalks:"]
[null,null,"Landscaping:"]
[null,null,"Fencing/Walls:"]
[]
[null,null,"CORRECTIVE ACTIONS"]
[null,null,"Are there any corrective actions that need to be taken?",null,null,null,null,null,null,null,null,null,null,null,null,null,null,null,null,null,null,null,null,null,null,null,null,null,null,null,"Yes",null,null,"No"]
[null,null,"    If yes, describe:"]
[]
[]
[null,null,"Reinspection Needed?",null,null,null,null,null,null,null,null,null,null,null,null,null,null,null,null,null,null,null,null,null,null,null,null,null,null,null,"Yes",null,null,"No"]
[]
[]
[]
[null,null,"Certification"]
[null,null,"I certify that I have carefully inspected this property on this date.  I have no personal interest, present or prospective, in the property, Grantee, Blight Partner, Demolition Contractor, or proceeds of the disbursements from the Grantee's BEP funds.  To the best of my knowledge I have reported all noncompliance, work requiring correction, and unacceptable work to MHC."]
[]
[]
[null,null,"Prepared By:",null,null,null,null,null,null,null,null,null,null,null,null,null,null,null,null,null,null,"Date:"]

{"sheet":"P19","index":19,"n_rows":88,"n_cols":35,"rows_kept":88,"cut":false,"hidden":true,"merged":[[3,31,3,34],[52,31,52,34],[22,2,22,34],[1,32,1,34],[5,9,5,17],[8,2,8,34],[11,2,11,34],[12,28,12,34],[15,7,15,34],[16,10,16,34],[18,2,18,34],[19,2,19,34],[20,2,20,34],[21,2,21,34],[13,33,13,34],[14,33,14,34],[13,30,13,31],[14,30,14,31],[40,2,40,34],[23,9,23,34],[24,2,24,8],[24,9,24,34],[25,9,25,34],[26,9,26,34],[27,9,27,34],[28,2,28,34],[31,28,31,34],[36,2,36,34],[37,2,37,34],[38,2,39,34],[29,33,29,34],[29,30,29,31],[30,30,30,31],[30,33,30,34],[57,2,57,34],[60,2,60,34],[66,2,66,34],[41,2,41,34],[44,2,44,34],[47,23,47,30],[50,32,50,34],[47,6,47,18],[32,33,32,34],[33,33,33,34],[34,33,34,34],[35,33,35,34],[32,30,32,31],[33,30,33,31],[79,17,79,24],[84,2,84,34],[87,23,87,30],[74,2,74,34],[77,3,77,33],[78,17,78,24],[75,30,75,31],[75,33,75,34],[79,33,79,34],[79,30,79,31],[87,6,87,18],[71,9,71,34],[72,9,72,34],[34,30,34,31],[35,30,35,31],[68,9,68,34],[69,9,69,34],[70,9,70,34],[67,2,67,34],[61,33,61,34],[62,33,62,34],[63,33,63,34],[64,33,64,34],[64,30,64,31],[63,30,63,31],[62,30,62,31],[61,30,61,31]]}
[null,null,null,null,null,null,null,null,null,null,null,null,null,null,null,null,null,null,null,null,null,null,null,null,null,null,null,null,null,null,null,null,null,null,"Field Compliance Site Visit Report"]
[null,null,null,null,null,null,null,null,null,null,null,null,null,null,null,null,null,null,null,null,null,null,null,null,null,null,null,null,{"$f":"IF('Insp Rpt'!AG10=\"\",\"\",\"Program No.:\")","v":"Program No.:"},null,null,null,{"$f":"IF('Insp Rpt'!$AG$10=\"\",\"\",'Insp Rpt'!$AG$10)","v":0}]
[]
[null,null,"PART II:   Initial Site Visit (Pre-Demolition)",null,null,null,null,null,null,null,null,null,null,null,null,null,null,null,null,null,null,null,null,null,null,null,null,"Project No.:",null,null,null,{"$f":"'Exhibit A'!C30","v":0}]
[null,null,"Property Address:",null,null,null,null,null,null,{"$f":"'Exhibit A'!F30","v":0}]
[null,null,"Parcel No.:",null,null,null,null,null,null,{"$f":"'Exhibit A'!D30","v":0}]
[null,null,"Expected End Use:",null,null,null,null,null,null,{"$f":"'Exhibit A'!G30","v":0}]
[]
[null,null,"The following section must be completed for each assigned property listed in Exhibit A (attached hereto) PRIOR TO DEMOLITION.  All sections must be completed in its entirety.  Contractors will be required to provide as much details as possible to support their assessment.  Upon completion of each site visit, a copy of this form and photos of the property must be submitted to MHC."]
[]
[]
[null,null,"SITE INFORMATION"]
[null,null,"Number of structures on site:"]
[null,null,"Is the site located in the BEP Target Area?",null,null,null,null,null,null,null,null,null,null,null,null,null,null,null,null,null,null,null,null,null,null,null,null,null,null,null,"Yes",null,null,"No"]
[null,null,"Does there appear to be anything of value or salvageable material on the site?",null,null,null,null,null,null,null,null,null,null,null,null,null,null,null,null,null,null,null,null,null,null,null,null,null,null,null,"Yes",null,null,"No"]
[null,null,"     If yes, describe:"]
[null,null,"     Will it be sold or donated?"]
[null,null,"Describe any other structures on the site (shed, workshop, fence, etc):"]
[]
[null,null,"Describe the suitability of the site entry points for access to and from the site for demolition equipment:  (Please make note of any obstructions or observable liabilities.)"]
[]
[null,null,"SITE CONDITIONS"]
[null,null,"(Describe the condition of the following:)"]
[null,null,"Driveways/Parking Area:"]
[null,null,"Curbing:"]
[null,null,"Sidewalks:"]
[null,null,"Landscaping:"]
[null,null,"Fencing/Walls:"]
[null,null,"PROPERTY INFORMATION"]
[null,null,"Is the property address clearly identified on the building/main entrance?",null,null,null,null,null,null,null,null,null,null,null,null,null,null,null,null,null,null,null,null,null,null,null,null,null,null,null,"Yes",null,null,"No"]
[null,null,"Is the structure to be demolished a Single-Family (1-4 units) Residential Structure?",null,null,null,null,null,null,null,null,null,null,null,null,null,null,null,null,null,null,null,null,null,null,null,null,null,null,null,"Yes",null,null,"No"]
[null,null,"What is the approximate square footage of the the residential structure?"]
[null,null,"Is the structure vacant/abandoned?",null,null,null,null,null,null,null,null,null,null,null,null,null,null,null,null,null,null,null,null,null,null,null,null,null,null,null,"Yes",null,null,"No"]
[null,null,"Does the property have severe structural damage (roof, exterior walls, foundation)?",null,null,null,null,null,null,null,null,null,null,null,null,null,null,null,null,null,null,null,null,null,null,null,null,null,null,null,"Yes",null,null,"No"]
[null,null,"Has all services (power, water, gas, etc) been disconnected?",null,null,null,null,null,null,null,null,null,null,null,null,null,null,null,null,null,null,null,null,null,null,null,null,null,null,null,"Yes",null,null,"No"]
[null,null,"Does the property qualify as a blight structure?",null,null,null,null,null,null,null,null,null,null,null,null,null,null,null,null,null,null,null,null,null,null,null,null,null,null,null,"Yes",null,null,"No"]
[null,null,"NEIGHBORHOOD ASSESSMENT"]
[null,null,"(Describe the neighborhood conditions:)"]
[]
[]
[null,null,"ADDITIONAL INFORMATION"]
[]
[]
[null,null,"Certification"]
[null,null,"I certify that I have carefully inspected this property on this date.  I have no personal interest, present or prospective, in the property, Grantee, Blight Partner, Demolition Contractor, or proceeds of the disbursements from the Grantee's BEP funds.  To the best of my knowledge I have reported all noncompliance, work requiring correction, and unacceptable work to MHC."]
[]
[]
[null,null,"Prepared By:",null,null,null,null,null,null,null,null,null,null,null,null,null,null,null,null,null,null,"Date:"]
[]
[null,null,null,null,null,null,null,null,null,null,null,null,null,null,null,null,null,null,null,null,null,null,null,null,null,null,null,null,null,null,null,null,null,null,"Field Compliance Site Visit Report"]
[null,null,null,null,null,null,null,null,null,null,null,null,null,null,null,null,null,null,null,null,null,null,null,null,null,null,null,null,{"$f":"IF('Insp Rpt'!$AG$10=\"\",\"\",\"Program No.:\")","v":"Program No.:"},null,null,null,{"$f":"IF('Insp Rpt'!$AG$10=\"\",\"\",'Insp Rpt'!$AG$10)","v":0}]
[]
[null,null,"PART III:  Follow-up Site Visit (Post-Demolition)",null,null,null,null,null,null,null,null,null,null,null,null,null,null,null,null,null,null,null,null,null,null,null,null,"Project No.:",null,null,null,{"$f":"'Exhibit A'!C30","v":0}]
[null,null,"Property Address:",null,null,null,null,null,null,{"$f":"J5","v":0}]
[null,null,"Parcel No.:",null,null,null,null,null,null,{"$f":"J6","v":0}]
[null,null,"Expected End Use:",null,null,null,null,null,null,{"$f":"J7","v":0}]
[]
[null,null,"The following section must be completed for each assigned property listed in Exhibit A (attached hereto) AFTER DEMOLITION is complete.  All sections must be completed in its entirety.  Contractors will be required to provide as much details as possible to support their assessment.  Upon completion of each site visit, a copy of this form and photos of the property must be submitted to MHC."]
[]
[]
[null,null,"SITE INFORMATION"]
[null,null,"All portions of the structure, including the foundation, has been removed?",null,null,null,null,null,null,null,null,null,null,null,null,null,null,null,null,null,null,null,null,null,null,null,null,null,null,null,"Yes",null,null,"No"]
[null,null,"All debris has been removed from the property and taken to a landfill?",null,null,null,null,null,null,null,null,null,null,null,null,null,null,null,null,null,null,null,null,null,null,null,null,null,null,null,"Yes",null,null,"No"]
[null,null,"The lot is properly filled, compacted, graded and seeded?",null,null,null,null,null,null,null,null,null,null,null,null,null,null,null,null,null,null,null,null,null,null,null,null,null,null,null,"Yes",null,null,"No"]
[null,null,"Septic tank (if applicable) has been pumped and filled or removed?",null,null,null,null,null,null,null,null,null,null,null,null,null,null,null,null,null,null,null,null,null,null,null,null,null,null,null,"Yes",null,null,"No"]
[]
[null,null,"SITE CONDITIONS"]
[null,null,"(Describe the condition of the following:)"]
[null,null,"Driveways/Parking Area:"]
[null,null,"Curbing:"]
[null,null,"Sidewalks:"]
[null,null,"Landscaping:"]
[null,null,"Fencing/Walls:"]
[]
[null,null,"CORRECTIVE ACTIONS"]
[null,null,"Are there any corrective actions that need to be taken?",null,null,null,null,null,null,null,null,null,null,null,null,null,null,null,null,null,null,null,null,null,null,null,null,null,null,null,"Yes",null,null,"No"]
[null,null,"    If yes, describe:"]
[]
[]
[null,null,"Reinspection Needed?",null,null,null,null,null,null,null,null,null,null,null,null,null,null,null,null,null,null,null,null,null,null,null,null,null,null,null,"Yes",null,null,"No"]
[]
[]
[]
[null,null,"Certification"]
[null,null,"I certify that I have carefully inspected this property on this date.  I have no personal interest, present or prospective, in the property, Grantee, Blight Partner, Demolition Contractor, or proceeds of the disbursements from the Grantee's BEP funds.  To the best of my knowledge I have reported all noncompliance, work requiring correction, and unacceptable work to MHC."]
[]
[]
[null,null,"Prepared By:",null,null,null,null,null,null,null,null,null,null,null,null,null,null,null,null,null,null,"Date:"]

{"sheet":"P20","index":20,"n_rows":88,"n_cols":35,"rows_kept":88,"cut":false,"hidden":true,"merged":[[3,31,3,34],[52,31,52,34],[22,2,22,34],[1,32,1,34],[5,9,5,17],[8,2,8,34],[11,2,11,34],[12,28,12,34],[15,7,15,34],[16,10,16,34],[18,2,18,34],[19,2,19,34],[20,2,20,34],[21,2,21,34],[13,33,13,34],[14,33,14,34],[13,30,13,31],[14,30,14,31],[40,2,40,34],[23,9,23,34],[24,2,24,8],[24,9,24,34],[25,9,25,34],[26,9,26,34],[27,9,27,34],[28,2,28,34],[31,28,31,34],[36,2,36,34],[37,2,37,34],[38,2,39,34],[29,33,29,34],[30,33,30,34],[29,30,29,31],[30,30,30,31],[57,2,57,34],[60,2,60,34],[66,2,66,34],[41,2,41,34],[44,2,44,34],[47,23,47,30],[50,32,50,34],[47,6,47,18],[32,30,32,31],[33,30,33,31],[34,30,34,31],[35,30,35,31],[32,33,32,34],[33,33,33,34],[79,17,79,24],[84,2,84,34],[87,23,87,30],[74,2,74,34],[77,3,77,33],[78,17,78,24],[75,33,75,34],[75,30,75,31],[79,30,79,31],[79,33,79,34],[87,6,87,18],[71,9,71,34],[72,9,72,34],[34,33,34,34],[35,33,35,34],[68,9,68,34],[69,9,69,34],[70,9,70,34],[67,2,67,34],[61,33,61,34],[62,33,62,34],[63,33,63,34],[64,33,64,34],[61,30,61,31],[62,30,62,31],[63,30,63,31],[64,30,64,31]]}
[null,null,null,null,null,null,null,null,null,null,null,null,null,null,null,null,null,null,null,null,null,null,null,null,null,null,null,null,null,null,null,null,null,null,"Field Compliance Site Visit Report"]
[null,null,null,null,null,null,null,null,null,null,null,null,null,null,null,null,null,null,null,null,null,null,null,null,null,null,null,null,{"$f":"IF('Insp Rpt'!AG10=\"\",\"\",\"Program No.:\")","v":"Program No.:"},null,null,null,{"$f":"IF('Insp Rpt'!$AG$10=\"\",\"\",'Insp Rpt'!$AG$10)","v":0}]
[]
[null,null,"PART II:   Initial Site Visit (Pre-Demolition)",null,null,null,null,null,null,null,null,null,null,null,null,null,null,null,null,null,null,null,null,null,null,null,null,"Project No.:",null,null,null,{"$f":"'Exhibit A'!C31","v":0}]
[null,null,"Property Address:",null,null,null,null,null,null,{"$f":"'Exhibit A'!F31","v":0}]
[null,null,"Parcel No.:",null,null,null,null,null,null,{"$f":"'Exhibit A'!D31","v":0}]
[null,null,"Expected End Use:",null,null,null,null,null,null,{"$f":"'Exhibit A'!G31","v":0}]
[]
[null,null,"The following section must be completed for each assigned property listed in Exhibit A (attached hereto) PRIOR TO DEMOLITION.  All sections must be completed in its entirety.  Contractors will be required to provide as much details as possible to support their assessment.  Upon completion of each site visit, a copy of this form and photos of the property must be submitted to MHC."]
[]
[]
[null,null,"SITE INFORMATION"]
[null,null,"Number of structures on site:"]
[null,null,"Is the site located in the BEP Target Area?",null,null,null,null,null,null,null,null,null,null,null,null,null,null,null,null,null,null,null,null,null,null,null,null,null,null,null,"Yes",null,null,"No"]
[null,null,"Does there appear to be anything of value or salvageable material on the site?",null,null,null,null,null,null,null,null,null,null,null,null,null,null,null,null,null,null,null,null,null,null,null,null,null,null,null,"Yes",null,null,"No"]
[null,null,"     If yes, describe:"]
[null,null,"     Will it be sold or donated?"]
[null,null,"Describe any other structures on the site (shed, workshop, fence, etc):"]
[]
[null,null,"Describe the suitability of the site entry points for access to and from the site for demolition equipment:  (Please make note of any obstructions or observable liabilities.)"]
[]
[null,null,"SITE CONDITIONS"]
[null,null,"(Describe the condition of the following:)"]
[null,null,"Driveways/Parking Area:"]
[null,null,"Curbing:"]
[null,null,"Sidewalks:"]
[null,null,"Landscaping:"]
[null,null,"Fencing/Walls:"]
[null,null,"PROPERTY INFORMATION"]
[null,null,"Is the property address clearly identified on the building/main entrance?",null,null,null,null,null,null,null,null,null,null,null,null,null,null,null,null,null,null,null,null,null,null,null,null,null,null,null,"Yes",null,null,"No"]
[null,null,"Is the structure to be demolished a Single-Family (1-4 units) Residential Structure?",null,null,null,null,null,null,null,null,null,null,null,null,null,null,null,null,null,null,null,null,null,null,null,null,null,null,null,"Yes",null,null,"No"]
[null,null,"What is the approximate square footage of the the residential structure?"]
[null,null,"Is the structure vacant/abandoned?",null,null,null,null,null,null,null,null,null,null,null,null,null,null,null,null,null,null,null,null,null,null,null,null,null,null,null,"Yes",null,null,"No"]
[null,null,"Does the property have severe structural damage (roof, exterior walls, foundation)?",null,null,null,null,null,null,null,null,null,null,null,null,null,null,null,null,null,null,null,null,null,null,null,null,null,null,null,"Yes",null,null,"No"]
[null,null,"Has all services (power, water, gas, etc) been disconnected?",null,null,null,null,null,null,null,null,null,null,null,null,null,null,null,null,null,null,null,null,null,null,null,null,null,null,null,"Yes",null,null,"No"]
[null,null,"Does the property qualify as a blight structure?",null,null,null,null,null,null,null,null,null,null,null,null,null,null,null,null,null,null,null,null,null,null,null,null,null,null,null,"Yes",null,null,"No"]
[null,null,"NEIGHBORHOOD ASSESSMENT"]
[null,null,"(Describe the neighborhood conditions:)"]
[]
[]
[null,null,"ADDITIONAL INFORMATION"]
[]
[]
[null,null,"Certification"]
[null,null,"I certify that I have carefully inspected this property on this date.  I have no personal interest, present or prospective, in the property, Grantee, Blight Partner, Demolition Contractor, or proceeds of the disbursements from the Grantee's BEP funds.  To the best of my knowledge I have reported all noncompliance, work requiring correction, and unacceptable work to MHC."]
[]
[]
[null,null,"Prepared By:",null,null,null,null,null,null,null,null,null,null,null,null,null,null,null,null,null,null,"Date:"]
[]
[null,null,null,null,null,null,null,null,null,null,null,null,null,null,null,null,null,null,null,null,null,null,null,null,null,null,null,null,null,null,null,null,null,null,"Field Compliance Site Visit Report"]
[null,null,null,null,null,null,null,null,null,null,null,null,null,null,null,null,null,null,null,null,null,null,null,null,null,null,null,null,{"$f":"IF('Insp Rpt'!$AG$10=\"\",\"\",\"Program No.:\")","v":"Program No.:"},null,null,null,{"$f":"IF('Insp Rpt'!$AG$10=\"\",\"\",'Insp Rpt'!$AG$10)","v":0}]
[]
[null,null,"PART III:  Follow-up Site Visit (Post-Demolition)",null,null,null,null,null,null,null,null,null,null,null,null,null,null,null,null,null,null,null,null,null,null,null,null,"Project No.:",null,null,null,{"$f":"'Exhibit A'!C31","v":0}]
[null,null,"Property Address:",null,null,null,null,null,null,{"$f":"J5","v":0}]
[null,null,"Parcel No.:",null,null,null,null,null,null,{"$f":"J6","v":0}]
[null,null,"Expected End Use:",null,null,null,null,null,null,{"$f":"J7","v":0}]
[]
[null,null,"The following section must be completed for each assigned property listed in Exhibit A (attached hereto) AFTER DEMOLITION is complete.  All sections must be completed in its entirety.  Contractors will be required to provide as much details as possible to support their assessment.  Upon completion of each site visit, a copy of this form and photos of the property must be submitted to MHC."]
[]
[]
[null,null,"SITE INFORMATION"]
[null,null,"All portions of the structure, including the foundation, has been removed?",null,null,null,null,null,null,null,null,null,null,null,null,null,null,null,null,null,null,null,null,null,null,null,null,null,null,null,"Yes",null,null,"No"]
[null,null,"All debris has been removed from the property and taken to a landfill?",null,null,null,null,null,null,null,null,null,null,null,null,null,null,null,null,null,null,null,null,null,null,null,null,null,null,null,"Yes",null,null,"No"]
[null,null,"The lot is properly filled, compacted, graded and seeded?",null,null,null,null,null,null,null,null,null,null,null,null,null,null,null,null,null,null,null,null,null,null,null,null,null,null,null,"Yes",null,null,"No"]
[null,null,"Septic tank (if applicable) has been pumped and filled or removed?",null,null,null,null,null,null,null,null,null,null,null,null,null,null,null,null,null,null,null,null,null,null,null,null,null,null,null,"Yes",null,null,"No"]
[]
[null,null,"SITE CONDITIONS"]
[null,null,"(Describe the condition of the following:)"]
[null,null,"Driveways/Parking Area:"]
[null,null,"Curbing:"]
[null,null,"Sidewalks:"]
[null,null,"Landscaping:"]
[null,null,"Fencing/Walls:"]
[]
[null,null,"CORRECTIVE ACTIONS"]
[null,null,"Are there any corrective actions that need to be taken?",null,null,null,null,null,null,null,null,null,null,null,null,null,null,null,null,null,null,null,null,null,null,null,null,null,null,null,"Yes",null,null,"No"]
[null,null,"    If yes, describe:"]
[]
[]
[null,null,"Reinspection Needed?",null,null,null,null,null,null,null,null,null,null,null,null,null,null,null,null,null,null,null,null,null,null,null,null,null,null,null,"Yes",null,null,"No"]
[]
[]
[]
[null,null,"Certification"]
[null,null,"I certify that I have carefully inspected this property on this date.  I have no personal interest, present or prospective, in the property, Grantee, Blight Partner, Demolition Contractor, or proceeds of the disbursements from the Grantee's BEP funds.  To the best of my knowledge I have reported all noncompliance, work requiring correction, and unacceptable work to MHC."]
[]
[]
[null,null,"Prepared By:",null,null,null,null,null,null,null,null,null,null,null,null,null,null,null,null,null,null,"Date:"]

{"sheet":"P21","index":21,"n_rows":88,"n_cols":35,"rows_kept":88,"cut":false,"hidden":true,"merged":[[3,31,3,34],[52,31,52,34],[79,17,79,24],[84,2,84,34],[87,23,87,30],[74,2,74,34],[77,3,77,33],[78,17,78,24],[75,33,75,34],[75,30,75,31],[79,33,79,34],[79,30,79,31],[87,6,87,18],[57,2,57,34],[60,2,60,34],[66,2,66,34],[67,2,67,34],[61,33,61,34],[62,33,62,34],[63,33,63,34],[64,33,64,34],[61,30,61,31],[62,30,62,31],[63,30,63,31],[64,30,64,31],[41,2,41,34],[44,2,44,34],[47,23,47,30],[50,32,50,34],[47,6,47,18],[40,2,40,34],[23,9,23,34],[24,2,24,8],[24,9,24,34],[25,9,25,34],[26,9,26,34],[27,9,27,34],[28,2,28,34],[31,28,31,34],[36,2,36,34],[37,2,37,34],[38,2,39,34],[29,33,29,34],[30,33,30,34],[29,30,29,31],[30,30,30,31],[22,2,22,34],[1,32,1,34],[5,9,5,17],[8,2,8,34],[11,2,11,34],[12,28,12,34],[15,7,15,34],[16,10,16,34],[18,2,18,34],[19,2,19,34],[20,2,20,34],[21,2,21,34],[13,30,13,31],[14,30,14,31],[13,33,13,34],[14,33,14,34],[32,30,32,31],[33,30,33,31],[34,30,34,31],[35,30,35,31],[32,33,32,34],[33,33,33,34],[34,33,34,34],[35,33,35,34],[68,9,68,34],[69,9,69,34],[70,9,70,34],[71,9,71,34],[72,9,72,34]]}
[null,null,null,null,null,null,null,null,null,null,null,null,null,null,null,null,null,null,null,null,null,null,null,null,null,null,null,null,null,null,null,null,null,null,"Field Compliance Site Visit Report"]
[null,null,null,null,null,null,null,null,null,null,null,null,null,null,null,null,null,null,null,null,null,null,null,null,null,null,null,null,{"$f":"IF('Insp Rpt'!AG10=\"\",\"\",\"Program No.:\")","v":"Program No.:"},null,null,null,{"$f":"IF('Insp Rpt'!$AG$10=\"\",\"\",'Insp Rpt'!$AG$10)","v":0}]
[]
[null,null,"PART II:   Initial Site Visit (Pre-Demolition)",null,null,null,null,null,null,null,null,null,null,null,null,null,null,null,null,null,null,null,null,null,null,null,null,"Project No.:",null,null,null,{"$f":"'Exhibit A'!C32","v":0}]
[null,null,"Property Address:",null,null,null,null,null,null,{"$f":"'Exhibit A'!F32","v":0}]
[null,null,"Parcel No.:",null,null,null,null,null,null,{"$f":"'Exhibit A'!D32","v":0}]
[null,null,"Expected End Use:",null,null,null,null,null,null,{"$f":"'Exhibit A'!G32","v":0}]
[]
[null,null,"The following section must be completed for each assigned property listed in Exhibit A (attached hereto) PRIOR TO DEMOLITION.  All sections must be completed in its entirety.  Contractors will be required to provide as much details as possible to support their assessment.  Upon completion of each site visit, a copy of this form and photos of the property must be submitted to MHC."]
[]
[]
[null,null,"SITE INFORMATION"]
[null,null,"Number of structures on site:"]
[null,null,"Is the site located in the BEP Target Area?",null,null,null,null,null,null,null,null,null,null,null,null,null,null,null,null,null,null,null,null,null,null,null,null,null,null,null,"Yes",null,null,"No"]
[null,null,"Does there appear to be anything of value or salvageable material on the site?",null,null,null,null,null,null,null,null,null,null,null,null,null,null,null,null,null,null,null,null,null,null,null,null,null,null,null,"Yes",null,null,"No"]
[null,null,"     If yes, describe:"]
[null,null,"     Will it be sold or donated?"]
[null,null,"Describe any other structures on the site (shed, workshop, fence, etc):"]
[]
[null,null,"Describe the suitability of the site entry points for access to and from the site for demolition equipment:  (Please make note of any obstructions or observable liabilities.)"]
[]
[null,null,"SITE CONDITIONS"]
[null,null,"(Describe the condition of the following:)"]
[null,null,"Driveways/Parking Area:"]
[null,null,"Curbing:"]
[null,null,"Sidewalks:"]
[null,null,"Landscaping:"]
[null,null,"Fencing/Walls:"]
[null,null,"PROPERTY INFORMATION"]
[null,null,"Is the property address clearly identified on the building/main entrance?",null,null,null,null,null,null,null,null,null,null,null,null,null,null,null,null,null,null,null,null,null,null,null,null,null,null,null,"Yes",null,null,"No"]
[null,null,"Is the structure to be demolished a Single-Family (1-4 units) Residential Structure?",null,null,null,null,null,null,null,null,null,null,null,null,null,null,null,null,null,null,null,null,null,null,null,null,null,null,null,"Yes",null,null,"No"]
[null,null,"What is the approximate square footage of the the residential structure?"]
[null,null,"Is the structure vacant/abandoned?",null,null,null,null,null,null,null,null,null,null,null,null,null,null,null,null,null,null,null,null,null,null,null,null,null,null,null,"Yes",null,null,"No"]
[null,null,"Does the property have severe structural damage (roof, exterior walls, foundation)?",null,null,null,null,null,null,null,null,null,null,null,null,null,null,null,null,null,null,null,null,null,null,null,null,null,null,null,"Yes",null,null,"No"]
[null,null,"Has all services (power, water, gas, etc) been disconnected?",null,null,null,null,null,null,null,null,null,null,null,null,null,null,null,null,null,null,null,null,null,null,null,null,null,null,null,"Yes",null,null,"No"]
[null,null,"Does the property qualify as a blight structure?",null,null,null,null,null,null,null,null,null,null,null,null,null,null,null,null,null,null,null,null,null,null,null,null,null,null,null,"Yes",null,null,"No"]
[null,null,"NEIGHBORHOOD ASSESSMENT"]
[null,null,"(Describe the neighborhood conditions:)"]
[]
[]
[null,null,"ADDITIONAL INFORMATION"]
[]
[]
[null,null,"Certification"]
[null,null,"I certify that I have carefully inspected this property on this date.  I have no personal interest, present or prospective, in the property, Grantee, Blight Partner, Demolition Contractor, or proceeds of the disbursements from the Grantee's BEP funds.  To the best of my knowledge I have reported all noncompliance, work requiring correction, and unacceptable work to MHC."]
[]
[]
[null,null,"Prepared By:",null,null,null,null,null,null,null,null,null,null,null,null,null,null,null,null,null,null,"Date:"]
[]
[null,null,null,null,null,null,null,null,null,null,null,null,null,null,null,null,null,null,null,null,null,null,null,null,null,null,null,null,null,null,null,null,null,null,"Field Compliance Site Visit Report"]
[null,null,null,null,null,null,null,null,null,null,null,null,null,null,null,null,null,null,null,null,null,null,null,null,null,null,null,null,{"$f":"IF('Insp Rpt'!$AG$10=\"\",\"\",\"Program No.:\")","v":"Program No.:"},null,null,null,{"$f":"IF('Insp Rpt'!$AG$10=\"\",\"\",'Insp Rpt'!$AG$10)","v":0}]
[]
[null,null,"PART III:  Follow-up Site Visit (Post-Demolition)",null,null,null,null,null,null,null,null,null,null,null,null,null,null,null,null,null,null,null,null,null,null,null,null,"Project No.:",null,null,null,{"$f":"'Exhibit A'!C32","v":0}]
[null,null,"Property Address:",null,null,null,null,null,null,{"$f":"J5","v":0}]
[null,null,"Parcel No.:",null,null,null,null,null,null,{"$f":"J6","v":0}]
[null,null,"Expected End Use:",null,null,null,null,null,null,{"$f":"J7","v":0}]
[]
[null,null,"The following section must be completed for each assigned property listed in Exhibit A (attached hereto) AFTER DEMOLITION is complete.  All sections must be completed in its entirety.  Contractors will be required to provide as much details as possible to support their assessment.  Upon completion of each site visit, a copy of this form and photos of the property must be submitted to MHC."]
[]
[]
[null,null,"SITE INFORMATION"]
[null,null,"All portions of the structure, including the foundation, has been removed?",null,null,null,null,null,null,null,null,null,null,null,null,null,null,null,null,null,null,null,null,null,null,null,null,null,null,null,"Yes",null,null,"No"]
[null,null,"All debris has been removed from the property and taken to a landfill?",null,null,null,null,null,null,null,null,null,null,null,null,null,null,null,null,null,null,null,null,null,null,null,null,null,null,null,"Yes",null,null,"No"]
[null,null,"The lot is properly filled, compacted, graded and seeded?",null,null,null,null,null,null,null,null,null,null,null,null,null,null,null,null,null,null,null,null,null,null,null,null,null,null,null,"Yes",null,null,"No"]
[null,null,"Septic tank (if applicable) has been pumped and filled or removed?",null,null,null,null,null,null,null,null,null,null,null,null,null,null,null,null,null,null,null,null,null,null,null,null,null,null,null,"Yes",null,null,"No"]
[]
[null,null,"SITE CONDITIONS"]
[null,null,"(Describe the condition of the following:)"]
[null,null,"Driveways/Parking Area:"]
[null,null,"Curbing:"]
[null,null,"Sidewalks:"]
[null,null,"Landscaping:"]
[null,null,"Fencing/Walls:"]
[]
[null,null,"CORRECTIVE ACTIONS"]
[null,null,"Are there any corrective actions that need to be taken?",null,null,null,null,null,null,null,null,null,null,null,null,null,null,null,null,null,null,null,null,null,null,null,null,null,null,null,"Yes",null,null,"No"]
[null,null,"    If yes, describe:"]
[]
[]
[null,null,"Reinspection Needed?",null,null,null,null,null,null,null,null,null,null,null,null,null,null,null,null,null,null,null,null,null,null,null,null,null,null,null,"Yes",null,null,"No"]
[]
[]
[]
[null,null,"Certification"]
[null,null,"I certify that I have carefully inspected this property on this date.  I have no personal interest, present or prospective, in the property, Grantee, Blight Partner, Demolition Contractor, or proceeds of the disbursements from the Grantee's BEP funds.  To the best of my knowledge I have reported all noncompliance, work requiring correction, and unacceptable work to MHC."]
[]
[]
[null,null,"Prepared By:",null,null,null,null,null,null,null,null,null,null,null,null,null,null,null,null,null,null,"Date:"]

{"sheet":"P22","index":22,"n_rows":88,"n_cols":35,"rows_kept":88,"cut":false,"hidden":true,"merged":[[52,31,52,34],[3,31,3,34],[84,2,84,34],[87,23,87,30],[74,2,74,34],[77,3,77,33],[78,17,78,24],[75,33,75,34],[75,30,75,31],[79,33,79,34],[79,30,79,31],[87,6,87,18],[57,2,57,34],[60,2,60,34],[66,2,66,34],[67,2,67,34],[68,9,68,34],[61,30,61,31],[62,30,62,31],[63,30,63,31],[64,30,64,31],[61,33,61,34],[62,33,62,34],[63,33,63,34],[64,33,64,34],[41,2,41,34],[44,2,44,34],[47,23,47,30],[50,32,50,34],[47,6,47,18],[40,2,40,34],[23,9,23,34],[24,2,24,8],[24,9,24,34],[25,9,25,34],[26,9,26,34],[27,9,27,34],[28,2,28,34],[31,28,31,34],[36,2,36,34],[37,2,37,34],[38,2,39,34],[29,33,29,34],[30,33,30,34],[32,33,32,34],[33,33,33,34],[22,2,22,34],[1,32,1,34],[5,9,5,17],[8,2,8,34],[11,2,11,34],[12,28,12,34],[15,7,15,34],[16,10,16,34],[18,2,18,34],[19,2,19,34],[20,2,20,34],[21,2,21,34],[13,30,13,31],[14,30,14,31],[13,33,13,34],[14,33,14,34],[34,33,34,34],[35,33,35,34],[29,30,29,31],[30,30,30,31],[32,30,32,31],[33,30,33,31],[34,30,34,31],[35,30,35,31],[69,9,69,34],[79,17,79,24],[70,9,70,34],[71,9,71,34],[72,9,72,34]]}
[null,null,null,null,null,null,null,null,null,null,null,null,null,null,null,null,null,null,null,null,null,null,null,null,null,null,null,null,null,null,null,null,null,null,"Field Compliance Site Visit Report"]
[null,null,null,null,null,null,null,null,null,null,null,null,null,null,null,null,null,null,null,null,null,null,null,null,null,null,null,null,{"$f":"IF('Insp Rpt'!AG10=\"\",\"\",\"Program No.:\")","v":"Program No.:"},null,null,null,{"$f":"IF('Insp Rpt'!$AG$10=\"\",\"\",'Insp Rpt'!$AG$10)","v":0}]
[]
[null,null,"PART II:   Initial Site Visit (Pre-Demolition)",null,null,null,null,null,null,null,null,null,null,null,null,null,null,null,null,null,null,null,null,null,null,null,null,"Project No.:",null,null,null,{"$f":"'Exhibit A'!C33","v":0}]
[null,null,"Property Address:",null,null,null,null,null,null,{"$f":"'Exhibit A'!F33","v":0}]
[null,null,"Parcel No.:",null,null,null,null,null,null,{"$f":"'Exhibit A'!D33","v":0}]
[null,null,"Expected End Use:",null,null,null,null,null,null,{"$f":"'Exhibit A'!G33","v":0}]
[]
[null,null,"The following section must be completed for each assigned property listed in Exhibit A (attached hereto) PRIOR TO DEMOLITION.  All sections must be completed in its entirety.  Contractors will be required to provide as much details as possible to support their assessment.  Upon completion of each site visit, a copy of this form and photos of the property must be submitted to MHC."]
[]
[]
[null,null,"SITE INFORMATION"]
[null,null,"Number of structures on site:"]
[null,null,"Is the site located in the BEP Target Area?",null,null,null,null,null,null,null,null,null,null,null,null,null,null,null,null,null,null,null,null,null,null,null,null,null,null,null,"Yes",null,null,"No"]
[null,null,"Does there appear to be anything of value or salvageable material on the site?",null,null,null,null,null,null,null,null,null,null,null,null,null,null,null,null,null,null,null,null,null,null,null,null,null,null,null,"Yes",null,null,"No"]
[null,null,"     If yes, describe:"]
[null,null,"     Will it be sold or donated?"]
[null,null,"Describe any other structures on the site (shed, workshop, fence, etc):"]
[]
[null,null,"Describe the suitability of the site entry points for access to and from the site for demolition equipment:  (Please make note of any obstructions or observable liabilities.)"]
[]
[null,null,"SITE CONDITIONS"]
[null,null,"(Describe the condition of the following:)"]
[null,null,"Driveways/Parking Area:"]
[null,null,"Curbing:"]
[null,null,"Sidewalks:"]
[null,null,"Landscaping:"]
[null,null,"Fencing/Walls:"]
[null,null,"PROPERTY INFORMATION"]
[null,null,"Is the property address clearly identified on the building/main entrance?",null,null,null,null,null,null,null,null,null,null,null,null,null,null,null,null,null,null,null,null,null,null,null,null,null,null,null,"Yes",null,null,"No"]
[null,null,"Is the structure to be demolished a Single-Family (1-4 units) Residential Structure?",null,null,null,null,null,null,null,null,null,null,null,null,null,null,null,null,null,null,null,null,null,null,null,null,null,null,null,"Yes",null,null,"No"]
[null,null,"What is the approximate square footage of the the residential structure?"]
[null,null,"Is the structure vacant/abandoned?",null,null,null,null,null,null,null,null,null,null,null,null,null,null,null,null,null,null,null,null,null,null,null,null,null,null,null,"Yes",null,null,"No"]
[null,null,"Does the property have severe structural damage (roof, exterior walls, foundation)?",null,null,null,null,null,null,null,null,null,null,null,null,null,null,null,null,null,null,null,null,null,null,null,null,null,null,null,"Yes",null,null,"No"]
[null,null,"Has all services (power, water, gas, etc) been disconnected?",null,null,null,null,null,null,null,null,null,null,null,null,null,null,null,null,null,null,null,null,null,null,null,null,null,null,null,"Yes",null,null,"No"]
[null,null,"Does the property qualify as a blight structure?",null,null,null,null,null,null,null,null,null,null,null,null,null,null,null,null,null,null,null,null,null,null,null,null,null,null,null,"Yes",null,null,"No"]
[null,null,"NEIGHBORHOOD ASSESSMENT"]
[null,null,"(Describe the neighborhood conditions:)"]
[]
[]
[null,null,"ADDITIONAL INFORMATION"]
[]
[]
[null,null,"Certification"]
[null,null,"I certify that I have carefully inspected this property on this date.  I have no personal interest, present or prospective, in the property, Grantee, Blight Partner, Demolition Contractor, or proceeds of the disbursements from the Grantee's BEP funds.  To the best of my knowledge I have reported all noncompliance, work requiring correction, and unacceptable work to MHC."]
[]
[]
[null,null,"Prepared By:",null,null,null,null,null,null,null,null,null,null,null,null,null,null,null,null,null,null,"Date:"]
[]
[null,null,null,null,null,null,null,null,null,null,null,null,null,null,null,null,null,null,null,null,null,null,null,null,null,null,null,null,null,null,null,null,null,null,"Field Compliance Site Visit Report"]
[null,null,null,null,null,null,null,null,null,null,null,null,null,null,null,null,null,null,null,null,null,null,null,null,null,null,null,null,{"$f":"IF('Insp Rpt'!$AG$10=\"\",\"\",\"Program No.:\")","v":"Program No.:"},null,null,null,{"$f":"IF('Insp Rpt'!$AG$10=\"\",\"\",'Insp Rpt'!$AG$10)","v":0}]
[]
[null,null,"PART III:  Follow-up Site Visit (Post-Demolition)",null,null,null,null,null,null,null,null,null,null,null,null,null,null,null,null,null,null,null,null,null,null,null,null,"Project No.:",null,null,null,{"$f":"'Exhibit A'!C33","v":0}]
[null,null,"Property Address:",null,null,null,null,null,null,{"$f":"J5","v":0}]
[null,null,"Parcel No.:",null,null,null,null,null,null,{"$f":"J6","v":0}]
[null,null,"Expected End Use:",null,null,null,null,null,null,{"$f":"J7","v":0}]
[]
[null,null,"The following section must be completed for each assigned property listed in Exhibit A (attached hereto) AFTER DEMOLITION is complete.  All sections must be completed in its entirety.  Contractors will be required to provide as much details as possible to support their assessment.  Upon completion of each site visit, a copy of this form and photos of the property must be submitted to MHC."]
[]
[]
[null,null,"SITE INFORMATION"]
[null,null,"All portions of the structure, including the foundation, has been removed?",null,null,null,null,null,null,null,null,null,null,null,null,null,null,null,null,null,null,null,null,null,null,null,null,null,null,null,"Yes",null,null,"No"]
[null,null,"All debris has been removed from the property and taken to a landfill?",null,null,null,null,null,null,null,null,null,null,null,null,null,null,null,null,null,null,null,null,null,null,null,null,null,null,null,"Yes",null,null,"No"]
[null,null,"The lot is properly filled, compacted, graded and seeded?",null,null,null,null,null,null,null,null,null,null,null,null,null,null,null,null,null,null,null,null,null,null,null,null,null,null,null,"Yes",null,null,"No"]
[null,null,"Septic tank (if applicable) has been pumped and filled or removed?",null,null,null,null,null,null,null,null,null,null,null,null,null,null,null,null,null,null,null,null,null,null,null,null,null,null,null,"Yes",null,null,"No"]
[]
[null,null,"SITE CONDITIONS"]
[null,null,"(Describe the condition of the following:)"]
[null,null,"Driveways/Parking Area:"]
[null,null,"Curbing:"]
[null,null,"Sidewalks:"]
[null,null,"Landscaping:"]
[null,null,"Fencing/Walls:"]
[]
[null,null,"CORRECTIVE ACTIONS"]
[null,null,"Are there any corrective actions that need to be taken?",null,null,null,null,null,null,null,null,null,null,null,null,null,null,null,null,null,null,null,null,null,null,null,null,null,null,null,"Yes",null,null,"No"]
[null,null,"    If yes, describe:"]
[]
[]
[null,null,"Reinspection Needed?",null,null,null,null,null,null,null,null,null,null,null,null,null,null,null,null,null,null,null,null,null,null,null,null,null,null,null,"Yes",null,null,"No"]
[]
[]
[]
[null,null,"Certification"]
[null,null,"I certify that I have carefully inspected this property on this date.  I have no personal interest, present or prospective, in the property, Grantee, Blight Partner, Demolition Contractor, or proceeds of the disbursements from the Grantee's BEP funds.  To the best of my knowledge I have reported all noncompliance, work requiring correction, and unacceptable work to MHC."]
[]
[]
[null,null,"Prepared By:",null,null,null,null,null,null,null,null,null,null,null,null,null,null,null,null,null,null,"Date:"]

{"sheet":"P23","index":23,"n_rows":88,"n_cols":35,"rows_kept":88,"cut":false,"hidden":true,"merged":[[52,31,52,34],[3,31,3,34],[79,17,79,24],[84,2,84,34],[87,23,87,30],[74,2,74,34],[77,3,77,33],[78,17,78,24],[75,33,75,34],[75,30,75,31],[79,33,79,34],[79,30,79,31],[87,6,87,18],[57,2,57,34],[60,2,60,34],[66,2,66,34],[67,2,67,34],[61,30,61,31],[62,30,62,31],[63,30,63,31],[64,30,64,31],[61,33,61,34],[62,33,62,34],[63,33,63,34],[64,33,64,34],[41,2,41,34],[44,2,44,34],[47,23,47,30],[50,32,50,34],[47,6,47,18],[40,2,40,34],[23,9,23,34],[24,2,24,8],[24,9,24,34],[25,9,25,34],[26,9,26,34],[27,9,27,34],[28,2,28,34],[31,28,31,34],[36,2,36,34],[37,2,37,34],[38,2,39,34],[29,30,29,31],[30,30,30,31],[32,30,32,31],[33,30,33,31],[22,2,22,34],[1,32,1,34],[5,9,5,17],[8,2,8,34],[11,2,11,34],[12,28,12,34],[15,7,15,34],[16,10,16,34],[18,2,18,34],[19,2,19,34],[20,2,20,34],[21,2,21,34],[13,30,13,31],[13,33,13,34],[14,33,14,34],[14,30,14,31],[34,30,34,31],[35,30,35,31],[29,33,29,34],[30,33,30,34],[32,33,32,34],[33,33,33,34],[34,33,34,34],[35,33,35,34],[68,9,68,34],[69,9,69,34],[70,9,70,34],[71,9,71,34],[72,9,72,34]]}
[null,null,null,null,null,null,null,null,null,null,null,null,null,null,null,null,null,null,null,null,null,null,null,null,null,null,null,null,null,null,null,null,null,null,"Field Compliance Site Visit Report"]
[null,null,null,null,null,null,null,null,null,null,null,null,null,null,null,null,null,null,null,null,null,null,null,null,null,null,null,null,{"$f":"IF('Insp Rpt'!AG10=\"\",\"\",\"Program No.:\")","v":"Program No.:"},null,null,null,{"$f":"IF('Insp Rpt'!$AG$10=\"\",\"\",'Insp Rpt'!$AG$10)","v":0}]
[]
[null,null,"PART II:   Initial Site Visit (Pre-Demolition)",null,null,null,null,null,null,null,null,null,null,null,null,null,null,null,null,null,null,null,null,null,null,null,null,"Project No.:",null,null,null,{"$f":"'Exhibit A'!C34","v":0}]
[null,null,"Property Address:",null,null,null,null,null,null,{"$f":"'Exhibit A'!F34","v":0}]
[null,null,"Parcel No.:",null,null,null,null,null,null,{"$f":"'Exhibit A'!D34","v":0}]
[null,null,"Expected End Use:",null,null,null,null,null,null,{"$f":"'Exhibit A'!G34","v":0}]
[]
[null,null,"The following section must be completed for each assigned property listed in Exhibit A (attached hereto) PRIOR TO DEMOLITION.  All sections must be completed in its entirety.  Contractors will be required to provide as much details as possible to support their assessment.  Upon completion of each site visit, a copy of this form and photos of the property must be submitted to MHC."]
[]
[]
[null,null,"SITE INFORMATION"]
[null,null,"Number of structures on site:"]
[null,null,"Is the site located in the BEP Target Area?",null,null,null,null,null,null,null,null,null,null,null,null,null,null,null,null,null,null,null,null,null,null,null,null,null,null,null,"Yes",null,null,"No"]
[null,null,"Does there appear to be anything of value or salvageable material on the site?",null,null,null,null,null,null,null,null,null,null,null,null,null,null,null,null,null,null,null,null,null,null,null,null,null,null,null,"Yes",null,null,"No"]
[null,null,"     If yes, describe:"]
[null,null,"     Will it be sold or donated?"]
[null,null,"Describe any other structures on the site (shed, workshop, fence, etc):"]
[]
[null,null,"Describe the suitability of the site entry points for access to and from the site for demolition equipment:  (Please make note of any obstructions or observable liabilities.)"]
[]
[null,null,"SITE CONDITIONS"]
[null,null,"(Describe the condition of the following:)"]
[null,null,"Driveways/Parking Area:"]
[null,null,"Curbing:"]
[null,null,"Sidewalks:"]
[null,null,"Landscaping:"]
[null,null,"Fencing/Walls:"]
[null,null,"PROPERTY INFORMATION"]
[null,null,"Is the property address clearly identified on the building/main entrance?",null,null,null,null,null,null,null,null,null,null,null,null,null,null,null,null,null,null,null,null,null,null,null,null,null,null,null,"Yes",null,null,"No"]
[null,null,"Is the structure to be demolished a Single-Family (1-4 units) Residential Structure?",null,null,null,null,null,null,null,null,null,null,null,null,null,null,null,null,null,null,null,null,null,null,null,null,null,null,null,"Yes",null,null,"No"]
[null,null,"What is the approximate square footage of the the residential structure?"]
[null,null,"Is the structure vacant/abandoned?",null,null,null,null,null,null,null,null,null,null,null,null,null,null,null,null,null,null,null,null,null,null,null,null,null,null,null,"Yes",null,null,"No"]
[null,null,"Does the property have severe structural damage (roof, exterior walls, foundation)?",null,null,null,null,null,null,null,null,null,null,null,null,null,null,null,null,null,null,null,null,null,null,null,null,null,null,null,"Yes",null,null,"No"]
[null,null,"Has all services (power, water, gas, etc) been disconnected?",null,null,null,null,null,null,null,null,null,null,null,null,null,null,null,null,null,null,null,null,null,null,null,null,null,null,null,"Yes",null,null,"No"]
[null,null,"Does the property qualify as a blight structure?",null,null,null,null,null,null,null,null,null,null,null,null,null,null,null,null,null,null,null,null,null,null,null,null,null,null,null,"Yes",null,null,"No"]
[null,null,"NEIGHBORHOOD ASSESSMENT"]
[null,null,"(Describe the neighborhood conditions:)"]
[]
[]
[null,null,"ADDITIONAL INFORMATION"]
[]
[]
[null,null,"Certification"]
[null,null,"I certify that I have carefully inspected this property on this date.  I have no personal interest, present or prospective, in the property, Grantee, Blight Partner, Demolition Contractor, or proceeds of the disbursements from the Grantee's BEP funds.  To the best of my knowledge I have reported all noncompliance, work requiring correction, and unacceptable work to MHC."]
[]
[]
[null,null,"Prepared By:",null,null,null,null,null,null,null,null,null,null,null,null,null,null,null,null,null,null,"Date:"]
[]
[null,null,null,null,null,null,null,null,null,null,null,null,null,null,null,null,null,null,null,null,null,null,null,null,null,null,null,null,null,null,null,null,null,null,"Field Compliance Site Visit Report"]
[null,null,null,null,null,null,null,null,null,null,null,null,null,null,null,null,null,null,null,null,null,null,null,null,null,null,null,null,{"$f":"IF('Insp Rpt'!$AG$10=\"\",\"\",\"Program No.:\")","v":"Program No.:"},null,null,null,{"$f":"IF('Insp Rpt'!$AG$10=\"\",\"\",'Insp Rpt'!$AG$10)","v":0}]
[]
[null,null,"PART III:  Follow-up Site Visit (Post-Demolition)",null,null,null,null,null,null,null,null,null,null,null,null,null,null,null,null,null,null,null,null,null,null,null,null,"Project No.:",null,null,null,{"$f":"'Exhibit A'!C34","v":0}]
[null,null,"Property Address:",null,null,null,null,null,null,{"$f":"J5","v":0}]
[null,null,"Parcel No.:",null,null,null,null,null,null,{"$f":"J6","v":0}]
[null,null,"Expected End Use:",null,null,null,null,null,null,{"$f":"J7","v":0}]
[]
[null,null,"The following section must be completed for each assigned property listed in Exhibit A (attached hereto) AFTER DEMOLITION is complete.  All sections must be completed in its entirety.  Contractors will be required to provide as much details as possible to support their assessment.  Upon completion of each site visit, a copy of this form and photos of the property must be submitted to MHC."]
[]
[]
[null,null,"SITE INFORMATION"]
[null,null,"All portions of the structure, including the foundation, has been removed?",null,null,null,null,null,null,null,null,null,null,null,null,null,null,null,null,null,null,null,null,null,null,null,null,null,null,null,"Yes",null,null,"No"]
[null,null,"All debris has been removed from the property and taken to a landfill?",null,null,null,null,null,null,null,null,null,null,null,null,null,null,null,null,null,null,null,null,null,null,null,null,null,null,null,"Yes",null,null,"No"]
[null,null,"The lot is properly filled, compacted, graded and seeded?",null,null,null,null,null,null,null,null,null,null,null,null,null,null,null,null,null,null,null,null,null,null,null,null,null,null,null,"Yes",null,null,"No"]
[null,null,"Septic tank (if applicable) has been pumped and filled or removed?",null,null,null,null,null,null,null,null,null,null,null,null,null,null,null,null,null,null,null,null,null,null,null,null,null,null,null,"Yes",null,null,"No"]
[]
[null,null,"SITE CONDITIONS"]
[null,null,"(Describe the condition of the following:)"]
[null,null,"Driveways/Parking Area:"]
[null,null,"Curbing:"]
[null,null,"Sidewalks:"]
[null,null,"Landscaping:"]
[null,null,"Fencing/Walls:"]
[]
[null,null,"CORRECTIVE ACTIONS"]
[null,null,"Are there any corrective actions that need to be taken?",null,null,null,null,null,null,null,null,null,null,null,null,null,null,null,null,null,null,null,null,null,null,null,null,null,null,null,"Yes",null,null,"No"]
[null,null,"    If yes, describe:"]
[]
[]
[null,null,"Reinspection Needed?",null,null,null,null,null,null,null,null,null,null,null,null,null,null,null,null,null,null,null,null,null,null,null,null,null,null,null,"Yes",null,null,"No"]
[]
[]
[]
[null,null,"Certification"]
[null,null,"I certify that I have carefully inspected this property on this date.  I have no personal interest, present or prospective, in the property, Grantee, Blight Partner, Demolition Contractor, or proceeds of the disbursements from the Grantee's BEP funds.  To the best of my knowledge I have reported all noncompliance, work requiring correction, and unacceptable work to MHC."]
[]
[]
[null,null,"Prepared By:",null,null,null,null,null,null,null,null,null,null,null,null,null,null,null,null,null,null,"Date:"]

{"sheet":"P24","index":24,"n_rows":88,"n_cols":35,"rows_kept":88,"cut":false,"hidden":true,"merged":[[52,31,52,34],[3,31,3,34],[79,17,79,24],[84,2,84,34],[87,23,87,30],[74,2,74,34],[77,3,77,33],[78,17,78,24],[75,33,75,34],[75,30,75,31],[79,30,79,31],[79,33,79,34],[87,6,87,18],[57,2,57,34],[60,2,60,34],[66,2,66,34],[67,2,67,34],[61,30,61,31],[62,30,62,31],[63,30,63,31],[64,30,64,31],[61,33,61,34],[62,33,62,34],[63,33,63,34],[64,33,64,34],[41,2,41,34],[44,2,44,34],[47,23,47,30],[50,32,50,34],[47,6,47,18],[40,2,40,34],[23,9,23,34],[24,2,24,8],[24,9,24,34],[25,9,25,34],[26,9,26,34],[27,9,27,34],[28,2,28,34],[31,28,31,34],[36,2,36,34],[37,2,37,34],[38,2,39,34],[29,33,29,34],[29,30,29,31],[30,33,30,34],[30,30,30,31],[22,2,22,34],[1,32,1,34],[5,9,5,17],[8,2,8,34],[11,2,11,34],[12,28,12,34],[15,7,15,34],[16,10,16,34],[18,2,18,34],[19,2,19,34],[20,2,20,34],[21,2,21,34],[13,30,13,31],[14,30,14,31],[13,33,13,34],[14,33,14,34],[32,33,32,34],[33,33,33,34],[35,33,35,34],[34,33,34,34],[32,30,32,31],[33,30,33,31],[34,30,34,31],[35,30,35,31],[68,9,68,34],[69,9,69,34],[70,9,70,34],[71,9,71,34],[72,9,72,34]]}
[null,null,null,null,null,null,null,null,null,null,null,null,null,null,null,null,null,null,null,null,null,null,null,null,null,null,null,null,null,null,null,null,null,null,"Field Compliance Site Visit Report"]
[null,null,null,null,null,null,null,null,null,null,null,null,null,null,null,null,null,null,null,null,null,null,null,null,null,null,null,null,{"$f":"IF('Insp Rpt'!AG10=\"\",\"\",\"Program No.:\")","v":"Program No.:"},null,null,null,{"$f":"IF('Insp Rpt'!$AG$10=\"\",\"\",'Insp Rpt'!$AG$10)","v":0}]
[]
[null,null,"PART II:   Initial Site Visit (Pre-Demolition)",null,null,null,null,null,null,null,null,null,null,null,null,null,null,null,null,null,null,null,null,null,null,null,null,"Project No.:",null,null,null,{"$f":"'Exhibit A'!C35","v":0}]
[null,null,"Property Address:",null,null,null,null,null,null,{"$f":"'Exhibit A'!F35","v":0}]
[null,null,"Parcel No.:",null,null,null,null,null,null,{"$f":"'Exhibit A'!D35","v":0}]
[null,null,"Expected End Use:",null,null,null,null,null,null,{"$f":"'Exhibit A'!G35","v":0}]
[]
[null,null,"The following section must be completed for each assigned property listed in Exhibit A (attached hereto) PRIOR TO DEMOLITION.  All sections must be completed in its entirety.  Contractors will be required to provide as much details as possible to support their assessment.  Upon completion of each site visit, a copy of this form and photos of the property must be submitted to MHC."]
[]
[]
[null,null,"SITE INFORMATION"]
[null,null,"Number of structures on site:"]
[null,null,"Is the site located in the BEP Target Area?",null,null,null,null,null,null,null,null,null,null,null,null,null,null,null,null,null,null,null,null,null,null,null,null,null,null,null,"Yes",null,null,"No"]
[null,null,"Does there appear to be anything of value or salvageable material on the site?",null,null,null,null,null,null,null,null,null,null,null,null,null,null,null,null,null,null,null,null,null,null,null,null,null,null,null,"Yes",null,null,"No"]
[null,null,"     If yes, describe:"]
[null,null,"     Will it be sold or donated?"]
[null,null,"Describe any other structures on the site (shed, workshop, fence, etc):"]
[]
[null,null,"Describe the suitability of the site entry points for access to and from the site for demolition equipment:  (Please make note of any obstructions or observable liabilities.)"]
[]
[null,null,"SITE CONDITIONS"]
[null,null,"(Describe the condition of the following:)"]
[null,null,"Driveways/Parking Area:"]
[null,null,"Curbing:"]
[null,null,"Sidewalks:"]
[null,null,"Landscaping:"]
[null,null,"Fencing/Walls:"]
[null,null,"PROPERTY INFORMATION"]
[null,null,"Is the property address clearly identified on the building/main entrance?",null,null,null,null,null,null,null,null,null,null,null,null,null,null,null,null,null,null,null,null,null,null,null,null,null,null,null,"Yes",null,null,"No"]
[null,null,"Is the structure to be demolished a Single-Family (1-4 units) Residential Structure?",null,null,null,null,null,null,null,null,null,null,null,null,null,null,null,null,null,null,null,null,null,null,null,null,null,null,null,"Yes",null,null,"No"]
[null,null,"What is the approximate square footage of the the residential structure?"]
[null,null,"Is the structure vacant/abandoned?",null,null,null,null,null,null,null,null,null,null,null,null,null,null,null,null,null,null,null,null,null,null,null,null,null,null,null,"Yes",null,null,"No"]
[null,null,"Does the property have severe structural damage (roof, exterior walls, foundation)?",null,null,null,null,null,null,null,null,null,null,null,null,null,null,null,null,null,null,null,null,null,null,null,null,null,null,null,"Yes",null,null,"No"]
[null,null,"Has all services (power, water, gas, etc) been disconnected?",null,null,null,null,null,null,null,null,null,null,null,null,null,null,null,null,null,null,null,null,null,null,null,null,null,null,null,"Yes",null,null,"No"]
[null,null,"Does the property qualify as a blight structure?",null,null,null,null,null,null,null,null,null,null,null,null,null,null,null,null,null,null,null,null,null,null,null,null,null,null,null,"Yes",null,null,"No"]
[null,null,"NEIGHBORHOOD ASSESSMENT"]
[null,null,"(Describe the neighborhood conditions:)"]
[]
[]
[null,null,"ADDITIONAL INFORMATION"]
[]
[]
[null,null,"Certification"]
[null,null,"I certify that I have carefully inspected this property on this date.  I have no personal interest, present or prospective, in the property, Grantee, Blight Partner, Demolition Contractor, or proceeds of the disbursements from the Grantee's BEP funds.  To the best of my knowledge I have reported all noncompliance, work requiring correction, and unacceptable work to MHC."]
[]
[]
[null,null,"Prepared By:",null,null,null,null,null,null,null,null,null,null,null,null,null,null,null,null,null,null,"Date:"]
[]
[null,null,null,null,null,null,null,null,null,null,null,null,null,null,null,null,null,null,null,null,null,null,null,null,null,null,null,null,null,null,null,null,null,null,"Field Compliance Site Visit Report"]
[null,null,null,null,null,null,null,null,null,null,null,null,null,null,null,null,null,null,null,null,null,null,null,null,null,null,null,null,{"$f":"IF('Insp Rpt'!$AG$10=\"\",\"\",\"Program No.:\")","v":"Program No.:"},null,null,null,{"$f":"IF('Insp Rpt'!$AG$10=\"\",\"\",'Insp Rpt'!$AG$10)","v":0}]
[]
[null,null,"PART III:  Follow-up Site Visit (Post-Demolition)",null,null,null,null,null,null,null,null,null,null,null,null,null,null,null,null,null,null,null,null,null,null,null,null,"Project No.:",null,null,null,{"$f":"'Exhibit A'!C35","v":0}]
[null,null,"Property Address:",null,null,null,null,null,null,{"$f":"J5","v":0}]
[null,null,"Parcel No.:",null,null,null,null,null,null,{"$f":"J6","v":0}]
[null,null,"Expected End Use:",null,null,null,null,null,null,{"$f":"J7","v":0}]
[]
[null,null,"The following section must be completed for each assigned property listed in Exhibit A (attached hereto) AFTER DEMOLITION is complete.  All sections must be completed in its entirety.  Contractors will be required to provide as much details as possible to support their assessment.  Upon completion of each site visit, a copy of this form and photos of the property must be submitted to MHC."]
[]
[]
[null,null,"SITE INFORMATION"]
[null,null,"All portions of the structure, including the foundation, has been removed?",null,null,null,null,null,null,null,null,null,null,null,null,null,null,null,null,null,null,null,null,null,null,null,null,null,null,null,"Yes",null,null,"No"]
[null,null,"All debris has been removed from the property and taken to a landfill?",null,null,null,null,null,null,null,null,null,null,null,null,null,null,null,null,null,null,null,null,null,null,null,null,null,null,null,"Yes",null,null,"No"]
[null,null,"The lot is properly filled, compacted, graded and seeded?",null,null,null,null,null,null,null,null,null,null,null,null,null,null,null,null,null,null,null,null,null,null,null,null,null,null,null,"Yes",null,null,"No"]
[null,null,"Septic tank (if applicable) has been pumped and filled or removed?",null,null,null,null,null,null,null,null,null,null,null,null,null,null,null,null,null,null,null,null,null,null,null,null,null,null,null,"Yes",null,null,"No"]
[]
[null,null,"SITE CONDITIONS"]
[null,null,"(Describe the condition of the following:)"]
[null,null,"Driveways/Parking Area:"]
[null,null,"Curbing:"]
[null,null,"Sidewalks:"]
[null,null,"Landscaping:"]
[null,null,"Fencing/Walls:"]
[]
[null,null,"CORRECTIVE ACTIONS"]
[null,null,"Are there any corrective actions that need to be taken?",null,null,null,null,null,null,null,null,null,null,null,null,null,null,null,null,null,null,null,null,null,null,null,null,null,null,null,"Yes",null,null,"No"]
[null,null,"    If yes, describe:"]
[]
[]
[null,null,"Reinspection Needed?",null,null,null,null,null,null,null,null,null,null,null,null,null,null,null,null,null,null,null,null,null,null,null,null,null,null,null,"Yes",null,null,"No"]
[]
[]
[]
[null,null,"Certification"]
[null,null,"I certify that I have carefully inspected this property on this date.  I have no personal interest, present or prospective, in the property, Grantee, Blight Partner, Demolition Contractor, or proceeds of the disbursements from the Grantee's BEP funds.  To the best of my knowledge I have reported all noncompliance, work requiring correction, and unacceptable work to MHC."]
[]
[]
[null,null,"Prepared By:",null,null,null,null,null,null,null,null,null,null,null,null,null,null,null,null,null,null,"Date:"]

{"sheet":"P25","index":25,"n_rows":88,"n_cols":35,"rows_kept":88,"cut":false,"hidden":true,"merged":[[52,31,52,34],[3,31,3,34],[79,17,79,24],[84,2,84,34],[87,23,87,30],[74,2,74,34],[77,3,77,33],[78,17,78,24],[75,33,75,34],[75,30,75,31],[79,33,79,34],[79,30,79,31],[87,6,87,18],[57,2,57,34],[60,2,60,34],[66,2,66,34],[67,2,67,34],[61,33,61,34],[62,33,62,34],[63,33,63,34],[64,33,64,34],[61,30,61,31],[62,30,62,31],[63,30,63,31],[64,30,64,31],[41,2,41,34],[44,2,44,34],[47,23,47,30],[50,32,50,34],[47,6,47,18],[40,2,40,34],[23,9,23,34],[24,2,24,8],[24,9,24,34],[25,9,25,34],[26,9,26,34],[27,9,27,34],[28,2,28,34],[31,28,31,34],[36,2,36,34],[37,2,37,34],[38,2,39,34],[29,30,29,31],[30,30,30,31],[32,30,32,31],[33,30,33,31],[22,2,22,34],[1,32,1,34],[5,9,5,17],[8,2,8,34],[11,2,11,34],[12,28,12,34],[15,7,15,34],[16,10,16,34],[18,2,18,34],[19,2,19,34],[20,2,20,34],[21,2,21,34],[13,33,13,34],[14,33,14,34],[13,30,13,31],[14,30,14,31],[34,30,34,31],[35,30,35,31],[29,33,29,34],[30,33,30,34],[32,33,32,34],[33,33,33,34],[34,33,34,34],[35,33,35,34],[68,9,68,34],[69,9,69,34],[70,9,70,34],[71,9,71,34],[72,9,72,34]]}
[null,null,null,null,null,null,null,null,null,null,null,null,null,null,null,null,null,null,null,null,null,null,null,null,null,null,null,null,null,null,null,null,null,null,"Field Compliance Site Visit Report"]
[null,null,null,null,null,null,null,null,null,null,null,null,null,null,null,null,null,null,null,null,null,null,null,null,null,null,null,null,{"$f":"IF('Insp Rpt'!AG10=\"\",\"\",\"Program No.:\")","v":"Program No.:"},null,null,null,{"$f":"IF('Insp Rpt'!$AG$10=\"\",\"\",'Insp Rpt'!$AG$10)","v":0}]
[]
[null,null,"PART II:   Initial Site Visit (Pre-Demolition)",null,null,null,null,null,null,null,null,null,null,null,null,null,null,null,null,null,null,null,null,null,null,null,null,"Project No.:",null,null,null,{"$f":"'Exhibit A'!C36","v":0}]
[null,null,"Property Address:",null,null,null,null,null,null,{"$f":"'Exhibit A'!F36","v":0}]
[null,null,"Parcel No.:",null,null,null,null,null,null,{"$f":"'Exhibit A'!D36","v":0}]
[null,null,"Expected End Use:",null,null,null,null,null,null,{"$f":"'Exhibit A'!G36","v":0}]
[]
[null,null,"The following section must be completed for each assigned property listed in Exhibit A (attached hereto) PRIOR TO DEMOLITION.  All sections must be completed in its entirety.  Contractors will be required to provide as much details as possible to support their assessment.  Upon completion of each site visit, a copy of this form and photos of the property must be submitted to MHC."]
[]
[]
[null,null,"SITE INFORMATION"]
[null,null,"Number of structures on site:"]
[null,null,"Is the site located in the BEP Target Area?",null,null,null,null,null,null,null,null,null,null,null,null,null,null,null,null,null,null,null,null,null,null,null,null,null,null,null,"Yes",null,null,"No"]
[null,null,"Does there appear to be anything of value or salvageable material on the site?",null,null,null,null,null,null,null,null,null,null,null,null,null,null,null,null,null,null,null,null,null,null,null,null,null,null,null,"Yes",null,null,"No"]
[null,null,"     If yes, describe:"]
[null,null,"     Will it be sold or donated?"]
[null,null,"Describe any other structures on the site (shed, workshop, fence, etc):"]
[]
[null,null,"Describe the suitability of the site entry points for access to and from the site for demolition equipment:  (Please make note of any obstructions or observable liabilities.)"]
[]
[null,null,"SITE CONDITIONS"]
[null,null,"(Describe the condition of the following:)"]
[null,null,"Driveways/Parking Area:"]
[null,null,"Curbing:"]
[null,null,"Sidewalks:"]
[null,null,"Landscaping:"]
[null,null,"Fencing/Walls:"]
[null,null,"PROPERTY INFORMATION"]
[null,null,"Is the property address clearly identified on the building/main entrance?",null,null,null,null,null,null,null,null,null,null,null,null,null,null,null,null,null,null,null,null,null,null,null,null,null,null,null,"Yes",null,null,"No"]
[null,null,"Is the structure to be demolished a Single-Family (1-4 units) Residential Structure?",null,null,null,null,null,null,null,null,null,null,null,null,null,null,null,null,null,null,null,null,null,null,null,null,null,null,null,"Yes",null,null,"No"]
[null,null,"What is the approximate square footage of the the residential structure?"]
[null,null,"Is the structure vacant/abandoned?",null,null,null,null,null,null,null,null,null,null,null,null,null,null,null,null,null,null,null,null,null,null,null,null,null,null,null,"Yes",null,null,"No"]
[null,null,"Does the property have severe structural damage (roof, exterior walls, foundation)?",null,null,null,null,null,null,null,null,null,null,null,null,null,null,null,null,null,null,null,null,null,null,null,null,null,null,null,"Yes",null,null,"No"]
[null,null,"Has all services (power, water, gas, etc) been disconnected?",null,null,null,null,null,null,null,null,null,null,null,null,null,null,null,null,null,null,null,null,null,null,null,null,null,null,null,"Yes",null,null,"No"]
[null,null,"Does the property qualify as a blight structure?",null,null,null,null,null,null,null,null,null,null,null,null,null,null,null,null,null,null,null,null,null,null,null,null,null,null,null,"Yes",null,null,"No"]
[null,null,"NEIGHBORHOOD ASSESSMENT"]
[null,null,"(Describe the neighborhood conditions:)"]
[]
[]
[null,null,"ADDITIONAL INFORMATION"]
[]
[]
[null,null,"Certification"]
[null,null,"I certify that I have carefully inspected this property on this date.  I have no personal interest, present or prospective, in the property, Grantee, Blight Partner, Demolition Contractor, or proceeds of the disbursements from the Grantee's BEP funds.  To the best of my knowledge I have reported all noncompliance, work requiring correction, and unacceptable work to MHC."]
[]
[]
[null,null,"Prepared By:",null,null,null,null,null,null,null,null,null,null,null,null,null,null,null,null,null,null,"Date:"]
[]
[null,null,null,null,null,null,null,null,null,null,null,null,null,null,null,null,null,null,null,null,null,null,null,null,null,null,null,null,null,null,null,null,null,null,"Field Compliance Site Visit Report"]
[null,null,null,null,null,null,null,null,null,null,null,null,null,null,null,null,null,null,null,null,null,null,null,null,null,null,null,null,{"$f":"IF('Insp Rpt'!$AG$10=\"\",\"\",\"Program No.:\")","v":"Program No.:"},null,null,null,{"$f":"IF('Insp Rpt'!$AG$10=\"\",\"\",'Insp Rpt'!$AG$10)","v":0}]
[]
[null,null,"PART III:  Follow-up Site Visit (Post-Demolition)",null,null,null,null,null,null,null,null,null,null,null,null,null,null,null,null,null,null,null,null,null,null,null,null,"Project No.:",null,null,null,{"$f":"'Exhibit A'!C36","v":0}]
[null,null,"Property Address:",null,null,null,null,null,null,{"$f":"J5","v":0}]
[null,null,"Parcel No.:",null,null,null,null,null,null,{"$f":"J6","v":0}]
[null,null,"Expected End Use:",null,null,null,null,null,null,{"$f":"J7","v":0}]
[]
[null,null,"The following section must be completed for each assigned property listed in Exhibit A (attached hereto) AFTER DEMOLITION is complete.  All sections must be completed in its entirety.  Contractors will be required to provide as much details as possible to support their assessment.  Upon completion of each site visit, a copy of this form and photos of the property must be submitted to MHC."]
[]
[]
[null,null,"SITE INFORMATION"]
[null,null,"All portions of the structure, including the foundation, has been removed?",null,null,null,null,null,null,null,null,null,null,null,null,null,null,null,null,null,null,null,null,null,null,null,null,null,null,null,"Yes",null,null,"No"]
[null,null,"All debris has been removed from the property and taken to a landfill?",null,null,null,null,null,null,null,null,null,null,null,null,null,null,null,null,null,null,null,null,null,null,null,null,null,null,null,"Yes",null,null,"No"]
[null,null,"The lot is properly filled, compacted, graded and seeded?",null,null,null,null,null,null,null,null,null,null,null,null,null,null,null,null,null,null,null,null,null,null,null,null,null,null,null,"Yes",null,null,"No"]
[null,null,"Septic tank (if applicable) has been pumped and filled or removed?",null,null,null,null,null,null,null,null,null,null,null,null,null,null,null,null,null,null,null,null,null,null,null,null,null,null,null,"Yes",null,null,"No"]
[]
[null,null,"SITE CONDITIONS"]
[null,null,"(Describe the condition of the following:)"]
[null,null,"Driveways/Parking Area:"]
[null,null,"Curbing:"]
[null,null,"Sidewalks:"]
[null,null,"Landscaping:"]
[null,null,"Fencing/Walls:"]
[]
[null,null,"CORRECTIVE ACTIONS"]
[null,null,"Are there any corrective actions that need to be taken?",null,null,null,null,null,null,null,null,null,null,null,null,null,null,null,null,null,null,null,null,null,null,null,null,null,null,null,"Yes",null,null,"No"]
[null,null,"    If yes, describe:"]
[]
[]
[null,null,"Reinspection Needed?",null,null,null,null,null,null,null,null,null,null,null,null,null,null,null,null,null,null,null,null,null,null,null,null,null,null,null,"Yes",null,null,"No"]
[]
[]
[]
[null,null,"Certification"]
[null,null,"I certify that I have carefully inspected this property on this date.  I have no personal interest, present or prospective, in the property, Grantee, Blight Partner, Demolition Contractor, or proceeds of the disbursements from the Grantee's BEP funds.  To the best of my knowledge I have reported all noncompliance, work requiring correction, and unacceptable work to MHC."]
[]
[]
[null,null,"Prepared By:",null,null,null,null,null,null,null,null,null,null,null,null,null,null,null,null,null,null,"Date:"]

{"sheet":"P26","index":26,"n_rows":88,"n_cols":35,"rows_kept":88,"cut":false,"hidden":true,"merged":[[66,2,66,34],[67,2,67,34],[79,17,79,24],[84,2,84,34],[87,23,87,30],[74,2,74,34],[77,3,77,33],[78,17,78,24],[79,33,79,34],[79,30,79,31],[75,33,75,34],[75,30,75,31],[87,6,87,18],[44,2,44,34],[47,23,47,30],[50,32,50,34],[47,6,47,18],[64,33,64,34],[64,30,64,31],[63,30,63,31],[62,30,62,31],[61,30,61,31],[61,33,61,34],[62,33,62,34],[63,33,63,34],[57,2,57,34],[60,2,60,34],[38,2,39,34],[35,33,35,34],[34,33,34,34],[33,33,33,34],[41,2,41,34],[21,2,21,34],[13,33,13,34],[14,33,14,34],[13,30,13,31],[52,31,52,34],[40,2,40,34],[23,9,23,34],[24,2,24,8],[24,9,24,34],[25,9,25,34],[26,9,26,34],[27,9,27,34],[28,2,28,34],[31,28,31,34],[36,2,36,34],[37,2,37,34],[1,32,1,34],[5,9,5,17],[8,2,8,34],[11,2,11,34],[12,28,12,34],[3,31,3,34],[14,30,14,31],[30,33,30,34],[29,33,29,34],[35,30,35,31],[34,30,34,31],[33,30,33,31],[32,30,32,31],[30,30,30,31],[29,30,29,31],[32,33,32,34],[22,2,22,34],[15,7,15,34],[16,10,16,34],[18,2,18,34],[19,2,19,34],[20,2,20,34],[68,9,68,34],[69,9,69,34],[70,9,70,34],[71,9,71,34],[72,9,72,34]]}
[null,null,null,null,null,null,null,null,null,null,null,null,null,null,null,null,null,null,null,null,null,null,null,null,null,null,null,null,null,null,null,null,null,null,"Field Compliance Site Visit Report"]
[null,null,null,null,null,null,null,null,null,null,null,null,null,null,null,null,null,null,null,null,null,null,null,null,null,null,null,null,{"$f":"IF('Insp Rpt'!AG10=\"\",\"\",\"Program No.:\")","v":"Program No.:"},null,null,null,{"$f":"IF('Insp Rpt'!$AG$10=\"\",\"\",'Insp Rpt'!$AG$10)","v":0}]
[]
[null,null,"PART II:   Initial Site Visit (Pre-Demolition)",null,null,null,null,null,null,null,null,null,null,null,null,null,null,null,null,null,null,null,null,null,null,null,null,"Project No.:",null,null,null,{"$f":"'Exhibit A'!C37","v":0}]
[null,null,"Property Address:",null,null,null,null,null,null,{"$f":"'Exhibit A'!F37","v":0}]
[null,null,"Parcel No.:",null,null,null,null,null,null,{"$f":"'Exhibit A'!D37","v":0}]
[null,null,"Expected End Use:",null,null,null,null,null,null,{"$f":"'Exhibit A'!G37","v":0}]
[]
[null,null,"The following section must be completed for each assigned property listed in Exhibit A (attached hereto) PRIOR TO DEMOLITION.  All sections must be completed in its entirety.  Contractors will be required to provide as much details as possible to support their assessment.  Upon completion of each site visit, a copy of this form and photos of the property must be submitted to MHC."]
[]
[]
[null,null,"SITE INFORMATION"]
[null,null,"Number of structures on site:"]
[null,null,"Is the site located in the BEP Target Area?",null,null,null,null,null,null,null,null,null,null,null,null,null,null,null,null,null,null,null,null,null,null,null,null,null,null,null,"Yes",null,null,"No"]
[null,null,"Does there appear to be anything of value or salvageable material on the site?",null,null,null,null,null,null,null,null,null,null,null,null,null,null,null,null,null,null,null,null,null,null,null,null,null,null,null,"Yes",null,null,"No"]
[null,null,"     If yes, describe:"]
[null,null,"     Will it be sold or donated?"]
[null,null,"Describe any other structures on the site (shed, workshop, fence, etc):"]
[]
[null,null,"Describe the suitability of the site entry points for access to and from the site for demolition equipment:  (Please make note of any obstructions or observable liabilities.)"]
[]
[null,null,"SITE CONDITIONS"]
[null,null,"(Describe the condition of the following:)"]
[null,null,"Driveways/Parking Area:"]
[null,null,"Curbing:"]
[null,null,"Sidewalks:"]
[null,null,"Landscaping:"]
[null,null,"Fencing/Walls:"]
[null,null,"PROPERTY INFORMATION"]
[null,null,"Is the property address clearly identified on the building/main entrance?",null,null,null,null,null,null,null,null,null,null,null,null,null,null,null,null,null,null,null,null,null,null,null,null,null,null,null,"Yes",null,null,"No"]
[null,null,"Is the structure to be demolished a Single-Family (1-4 units) Residential Structure?",null,null,null,null,null,null,null,null,null,null,null,null,null,null,null,null,null,null,null,null,null,null,null,null,null,null,null,"Yes",null,null,"No"]
[null,null,"What is the approximate square footage of the the residential structure?"]
[null,null,"Is the structure vacant/abandoned?",null,null,null,null,null,null,null,null,null,null,null,null,null,null,null,null,null,null,null,null,null,null,null,null,null,null,null,"Yes",null,null,"No"]
[null,null,"Does the property have severe structural damage (roof, exterior walls, foundation)?",null,null,null,null,null,null,null,null,null,null,null,null,null,null,null,null,null,null,null,null,null,null,null,null,null,null,null,"Yes",null,null,"No"]
[null,null,"Has all services (power, water, gas, etc) been disconnected?",null,null,null,null,null,null,null,null,null,null,null,null,null,null,null,null,null,null,null,null,null,null,null,null,null,null,null,"Yes",null,null,"No"]
[null,null,"Does the property qualify as a blight structure?",null,null,null,null,null,null,null,null,null,null,null,null,null,null,null,null,null,null,null,null,null,null,null,null,null,null,null,"Yes",null,null,"No"]
[null,null,"NEIGHBORHOOD ASSESSMENT"]
[null,null,"(Describe the neighborhood conditions:)"]
[]
[]
[null,null,"ADDITIONAL INFORMATION"]
[]
[]
[null,null,"Certification"]
[null,null,"I certify that I have carefully inspected this property on this date.  I have no personal interest, present or prospective, in the property, Grantee, Blight Partner, Demolition Contractor, or proceeds of the disbursements from the Grantee's BEP funds.  To the best of my knowledge I have reported all noncompliance, work requiring correction, and unacceptable work to MHC."]
[]
[]
[null,null,"Prepared By:",null,null,null,null,null,null,null,null,null,null,null,null,null,null,null,null,null,null,"Date:"]
[]
[null,null,null,null,null,null,null,null,null,null,null,null,null,null,null,null,null,null,null,null,null,null,null,null,null,null,null,null,null,null,null,null,null,null,"Field Compliance Site Visit Report"]
[null,null,null,null,null,null,null,null,null,null,null,null,null,null,null,null,null,null,null,null,null,null,null,null,null,null,null,null,{"$f":"IF('Insp Rpt'!$AG$10=\"\",\"\",\"Program No.:\")","v":"Program No.:"},null,null,null,{"$f":"IF('Insp Rpt'!$AG$10=\"\",\"\",'Insp Rpt'!$AG$10)","v":0}]
[]
[null,null,"PART III:  Follow-up Site Visit (Post-Demolition)",null,null,null,null,null,null,null,null,null,null,null,null,null,null,null,null,null,null,null,null,null,null,null,null,"Project No.:",null,null,null,{"$f":"'Exhibit A'!C37","v":0}]
[null,null,"Property Address:",null,null,null,null,null,null,{"$f":"J5","v":0}]
[null,null,"Parcel No.:",null,null,null,null,null,null,{"$f":"J6","v":0}]
[null,null,"Expected End Use:",null,null,null,null,null,null,{"$f":"J7","v":0}]
[]
[null,null,"The following section must be completed for each assigned property listed in Exhibit A (attached hereto) AFTER DEMOLITION is complete.  All sections must be completed in its entirety.  Contractors will be required to provide as much details as possible to support their assessment.  Upon completion of each site visit, a copy of this form and photos of the property must be submitted to MHC."]
[]
[]
[null,null,"SITE INFORMATION"]
[null,null,"All portions of the structure, including the foundation, has been removed?",null,null,null,null,null,null,null,null,null,null,null,null,null,null,null,null,null,null,null,null,null,null,null,null,null,null,null,"Yes",null,null,"No"]
[null,null,"All debris has been removed from the property and taken to a landfill?",null,null,null,null,null,null,null,null,null,null,null,null,null,null,null,null,null,null,null,null,null,null,null,null,null,null,null,"Yes",null,null,"No"]
[null,null,"The lot is properly filled, compacted, graded and seeded?",null,null,null,null,null,null,null,null,null,null,null,null,null,null,null,null,null,null,null,null,null,null,null,null,null,null,null,"Yes",null,null,"No"]
[null,null,"Septic tank (if applicable) has been pumped and filled or removed?",null,null,null,null,null,null,null,null,null,null,null,null,null,null,null,null,null,null,null,null,null,null,null,null,null,null,null,"Yes",null,null,"No"]
[]
[null,null,"SITE CONDITIONS"]
[null,null,"(Describe the condition of the following:)"]
[null,null,"Driveways/Parking Area:"]
[null,null,"Curbing:"]
[null,null,"Sidewalks:"]
[null,null,"Landscaping:"]
[null,null,"Fencing/Walls:"]
[]
[null,null,"CORRECTIVE ACTIONS"]
[null,null,"Are there any corrective actions that need to be taken?",null,null,null,null,null,null,null,null,null,null,null,null,null,null,null,null,null,null,null,null,null,null,null,null,null,null,null,"Yes",null,null,"No"]
[null,null,"    If yes, describe:"]
[]
[]
[null,null,"Reinspection Needed?",null,null,null,null,null,null,null,null,null,null,null,null,null,null,null,null,null,null,null,null,null,null,null,null,null,null,null,"Yes",null,null,"No"]
[]
[]
[]
[null,null,"Certification"]
[null,null,"I certify that I have carefully inspected this property on this date.  I have no personal interest, present or prospective, in the property, Grantee, Blight Partner, Demolition Contractor, or proceeds of the disbursements from the Grantee's BEP funds.  To the best of my knowledge I have reported all noncompliance, work requiring correction, and unacceptable work to MHC."]
[]
[]
[null,null,"Prepared By:",null,null,null,null,null,null,null,null,null,null,null,null,null,null,null,null,null,null,"Date:"]

{"sheet":"P27","index":27,"n_rows":88,"n_cols":35,"rows_kept":88,"cut":false,"hidden":true,"merged":[[52,31,52,34],[3,31,3,34],[79,17,79,24],[84,2,84,34],[87,23,87,30],[74,2,74,34],[77,3,77,33],[78,17,78,24],[75,33,75,34],[75,30,75,31],[79,33,79,34],[79,30,79,31],[87,6,87,18],[57,2,57,34],[60,2,60,34],[66,2,66,34],[67,2,67,34],[61,33,61,34],[62,33,62,34],[63,33,63,34],[64,33,64,34],[61,30,61,31],[62,30,62,31],[63,30,63,31],[64,30,64,31],[41,2,41,34],[44,2,44,34],[47,23,47,30],[50,32,50,34],[47,6,47,18],[40,2,40,34],[23,9,23,34],[24,2,24,8],[24,9,24,34],[25,9,25,34],[26,9,26,34],[27,9,27,34],[28,2,28,34],[31,28,31,34],[36,2,36,34],[37,2,37,34],[38,2,39,34],[29,33,29,34],[29,30,29,31],[30,30,30,31],[30,33,30,34],[22,2,22,34],[1,32,1,34],[5,9,5,17],[8,2,8,34],[11,2,11,34],[12,28,12,34],[15,7,15,34],[16,10,16,34],[18,2,18,34],[19,2,19,34],[20,2,20,34],[21,2,21,34],[13,33,13,34],[14,33,14,34],[13,30,13,31],[14,30,14,31],[32,33,32,34],[33,33,33,34],[34,33,34,34],[35,33,35,34],[35,30,35,31],[34,30,34,31],[33,30,33,31],[32,30,32,31],[68,9,68,34],[69,9,69,34],[70,9,70,34],[71,9,71,34],[72,9,72,34]]}
[null,null,null,null,null,null,null,null,null,null,null,null,null,null,null,null,null,null,null,null,null,null,null,null,null,null,null,null,null,null,null,null,null,null,"Field Compliance Site Visit Report"]
[null,null,null,null,null,null,null,null,null,null,null,null,null,null,null,null,null,null,null,null,null,null,null,null,null,null,null,null,{"$f":"IF('Insp Rpt'!AG10=\"\",\"\",\"Program No.:\")","v":"Program No.:"},null,null,null,{"$f":"IF('Insp Rpt'!$AG$10=\"\",\"\",'Insp Rpt'!$AG$10)","v":0}]
[]
[null,null,"PART II:   Initial Site Visit (Pre-Demolition)",null,null,null,null,null,null,null,null,null,null,null,null,null,null,null,null,null,null,null,null,null,null,null,null,"Project No.:",null,null,null,{"$f":"'Exhibit A'!C38","v":0}]
[null,null,"Property Address:",null,null,null,null,null,null,{"$f":"'Exhibit A'!F38","v":0}]
[null,null,"Parcel No.:",null,null,null,null,null,null,{"$f":"'Exhibit A'!D38","v":0}]
[null,null,"Expected End Use:",null,null,null,null,null,null,{"$f":"'Exhibit A'!G38","v":0}]
[]
[null,null,"The following section must be completed for each assigned property listed in Exhibit A (attached hereto) PRIOR TO DEMOLITION.  All sections must be completed in its entirety.  Contractors will be required to provide as much details as possible to support their assessment.  Upon completion of each site visit, a copy of this form and photos of the property must be submitted to MHC."]
[]
[]
[null,null,"SITE INFORMATION"]
[null,null,"Number of structures on site:"]
[null,null,"Is the site located in the BEP Target Area?",null,null,null,null,null,null,null,null,null,null,null,null,null,null,null,null,null,null,null,null,null,null,null,null,null,null,null,"Yes",null,null,"No"]
[null,null,"Does there appear to be anything of value or salvageable material on the site?",null,null,null,null,null,null,null,null,null,null,null,null,null,null,null,null,null,null,null,null,null,null,null,null,null,null,null,"Yes",null,null,"No"]
[null,null,"     If yes, describe:"]
[null,null,"     Will it be sold or donated?"]
[null,null,"Describe any other structures on the site (shed, workshop, fence, etc):"]
[]
[null,null,"Describe the suitability of the site entry points for access to and from the site for demolition equipment:  (Please make note of any obstructions or observable liabilities.)"]
[]
[null,null,"SITE CONDITIONS"]
[null,null,"(Describe the condition of the following:)"]
[null,null,"Driveways/Parking Area:"]
[null,null,"Curbing:"]
[null,null,"Sidewalks:"]
[null,null,"Landscaping:"]
[null,null,"Fencing/Walls:"]
[null,null,"PROPERTY INFORMATION"]
[null,null,"Is the property address clearly identified on the building/main entrance?",null,null,null,null,null,null,null,null,null,null,null,null,null,null,null,null,null,null,null,null,null,null,null,null,null,null,null,"Yes",null,null,"No"]
[null,null,"Is the structure to be demolished a Single-Family (1-4 units) Residential Structure?",null,null,null,null,null,null,null,null,null,null,null,null,null,null,null,null,null,null,null,null,null,null,null,null,null,null,null,"Yes",null,null,"No"]
[null,null,"What is the approximate square footage of the the residential structure?"]
[null,null,"Is the structure vacant/abandoned?",null,null,null,null,null,null,null,null,null,null,null,null,null,null,null,null,null,null,null,null,null,null,null,null,null,null,null,"Yes",null,null,"No"]
[null,null,"Does the property have severe structural damage (roof, exterior walls, foundation)?",null,null,null,null,null,null,null,null,null,null,null,null,null,null,null,null,null,null,null,null,null,null,null,null,null,null,null,"Yes",null,null,"No"]
[null,null,"Has all services (power, water, gas, etc) been disconnected?",null,null,null,null,null,null,null,null,null,null,null,null,null,null,null,null,null,null,null,null,null,null,null,null,null,null,null,"Yes",null,null,"No"]
[null,null,"Does the property qualify as a blight structure?",null,null,null,null,null,null,null,null,null,null,null,null,null,null,null,null,null,null,null,null,null,null,null,null,null,null,null,"Yes",null,null,"No"]
[null,null,"NEIGHBORHOOD ASSESSMENT"]
[null,null,"(Describe the neighborhood conditions:)"]
[]
[]
[null,null,"ADDITIONAL INFORMATION"]
[]
[]
[null,null,"Certification"]
[null,null,"I certify that I have carefully inspected this property on this date.  I have no personal interest, present or prospective, in the property, Grantee, Blight Partner, Demolition Contractor, or proceeds of the disbursements from the Grantee's BEP funds.  To the best of my knowledge I have reported all noncompliance, work requiring correction, and unacceptable work to MHC."]
[]
[]
[null,null,"Prepared By:",null,null,null,null,null,null,null,null,null,null,null,null,null,null,null,null,null,null,"Date:"]
[]
[null,null,null,null,null,null,null,null,null,null,null,null,null,null,null,null,null,null,null,null,null,null,null,null,null,null,null,null,null,null,null,null,null,null,"Field Compliance Site Visit Report"]
[null,null,null,null,null,null,null,null,null,null,null,null,null,null,null,null,null,null,null,null,null,null,null,null,null,null,null,null,{"$f":"IF('Insp Rpt'!$AG$10=\"\",\"\",\"Program No.:\")","v":"Program No.:"},null,null,null,{"$f":"IF('Insp Rpt'!$AG$10=\"\",\"\",'Insp Rpt'!$AG$10)","v":0}]
[]
[null,null,"PART III:  Follow-up Site Visit (Post-Demolition)",null,null,null,null,null,null,null,null,null,null,null,null,null,null,null,null,null,null,null,null,null,null,null,null,"Project No.:",null,null,null,{"$f":"'Exhibit A'!C38","v":0}]
[null,null,"Property Address:",null,null,null,null,null,null,{"$f":"J5","v":0}]
[null,null,"Parcel No.:",null,null,null,null,null,null,{"$f":"J6","v":0}]
[null,null,"Expected End Use:",null,null,null,null,null,null,{"$f":"J7","v":0}]
[]
[null,null,"The following section must be completed for each assigned property listed in Exhibit A (attached hereto) AFTER DEMOLITION is complete.  All sections must be completed in its entirety.  Contractors will be required to provide as much details as possible to support their assessment.  Upon completion of each site visit, a copy of this form and photos of the property must be submitted to MHC."]
[]
[]
[null,null,"SITE INFORMATION"]
[null,null,"All portions of the structure, including the foundation, has been removed?",null,null,null,null,null,null,null,null,null,null,null,null,null,null,null,null,null,null,null,null,null,null,null,null,null,null,null,"Yes",null,null,"No"]
[null,null,"All debris has been removed from the property and taken to a landfill?",null,null,null,null,null,null,null,null,null,null,null,null,null,null,null,null,null,null,null,null,null,null,null,null,null,null,null,"Yes",null,null,"No"]
[null,null,"The lot is properly filled, compacted, graded and seeded?",null,null,null,null,null,null,null,null,null,null,null,null,null,null,null,null,null,null,null,null,null,null,null,null,null,null,null,"Yes",null,null,"No"]
[null,null,"Septic tank (if applicable) has been pumped and filled or removed?",null,null,null,null,null,null,null,null,null,null,null,null,null,null,null,null,null,null,null,null,null,null,null,null,null,null,null,"Yes",null,null,"No"]
[]
[null,null,"SITE CONDITIONS"]
[null,null,"(Describe the condition of the following:)"]
[null,null,"Driveways/Parking Area:"]
[null,null,"Curbing:"]
[null,null,"Sidewalks:"]
[null,null,"Landscaping:"]
[null,null,"Fencing/Walls:"]
[]
[null,null,"CORRECTIVE ACTIONS"]
[null,null,"Are there any corrective actions that need to be taken?",null,null,null,null,null,null,null,null,null,null,null,null,null,null,null,null,null,null,null,null,null,null,null,null,null,null,null,"Yes",null,null,"No"]
[null,null,"    If yes, describe:"]
[]
[]
[null,null,"Reinspection Needed?",null,null,null,null,null,null,null,null,null,null,null,null,null,null,null,null,null,null,null,null,null,null,null,null,null,null,null,"Yes",null,null,"No"]
[]
[]
[]
[null,null,"Certification"]
[null,null,"I certify that I have carefully inspected this property on this date.  I have no personal interest, present or prospective, in the property, Grantee, Blight Partner, Demolition Contractor, or proceeds of the disbursements from the Grantee's BEP funds.  To the best of my knowledge I have reported all noncompliance, work requiring correction, and unacceptable work to MHC."]
[]
[]
[null,null,"Prepared By:",null,null,null,null,null,null,null,null,null,null,null,null,null,null,null,null,null,null,"Date:"]

{"sheet":"P28","index":28,"n_rows":88,"n_cols":35,"rows_kept":88,"cut":false,"hidden":true,"merged":[[79,17,79,24],[84,2,84,34],[87,23,87,30],[74,2,74,34],[77,3,77,33],[78,17,78,24],[75,33,75,34],[79,33,79,34],[79,30,79,31],[75,30,75,31],[87,6,87,18],[67,2,67,34],[64,33,64,34],[64,30,64,31],[63,33,63,34],[63,30,63,31],[66,2,66,34],[62,33,62,34],[61,33,61,34],[61,30,61,31],[62,30,62,31],[41,2,41,34],[44,2,44,34],[47,23,47,30],[50,32,50,34],[47,6,47,18],[52,31,52,34],[57,2,57,34],[60,2,60,34],[40,2,40,34],[23,9,23,34],[24,2,24,8],[24,9,24,34],[25,9,25,34],[26,9,26,34],[27,9,27,34],[28,2,28,34],[31,28,31,34],[36,2,36,34],[37,2,37,34],[38,2,39,34],[29,33,29,34],[30,33,30,34],[32,33,32,34],[33,33,33,34],[1,32,1,34],[5,9,5,17],[8,2,8,34],[11,2,11,34],[12,28,12,34],[3,31,3,34],[34,33,34,34],[35,33,35,34],[35,30,35,31],[34,30,34,31],[33,30,33,31],[32,30,32,31],[29,30,29,31],[30,30,30,31],[14,33,14,34],[13,33,13,34],[13,30,13,31],[14,30,14,31],[22,2,22,34],[15,7,15,34],[16,10,16,34],[18,2,18,34],[19,2,19,34],[20,2,20,34],[21,2,21,34],[68,9,68,34],[69,9,69,34],[70,9,70,34],[71,9,71,34],[72,9,72,34]]}
[null,null,null,null,null,null,null,null,null,null,null,null,null,null,null,null,null,null,null,null,null,null,null,null,null,null,null,null,null,null,null,null,null,null,"Field Compliance Site Visit Report"]
[null,null,null,null,null,null,null,null,null,null,null,null,null,null,null,null,null,null,null,null,null,null,null,null,null,null,null,null,{"$f":"IF('Insp Rpt'!AG10=\"\",\"\",\"Program No.:\")","v":"Program No.:"},null,null,null,{"$f":"IF('Insp Rpt'!$AG$10=\"\",\"\",'Insp Rpt'!$AG$10)","v":0}]
[]
[null,null,"PART II:   Initial Site Visit (Pre-Demolition)",null,null,null,null,null,null,null,null,null,null,null,null,null,null,null,null,null,null,null,null,null,null,null,null,"Project No.:",null,null,null,{"$f":"'Exhibit A'!C39","v":0}]
[null,null,"Property Address:",null,null,null,null,null,null,{"$f":"'Exhibit A'!F39","v":0}]
[null,null,"Parcel No.:",null,null,null,null,null,null,{"$f":"'Exhibit A'!D39","v":0}]
[null,null,"Expected End Use:",null,null,null,null,null,null,{"$f":"'Exhibit A'!G39","v":0}]
[]
[null,null,"The following section must be completed for each assigned property listed in Exhibit A (attached hereto) PRIOR TO DEMOLITION.  All sections must be completed in its entirety.  Contractors will be required to provide as much details as possible to support their assessment.  Upon completion of each site visit, a copy of this form and photos of the property must be submitted to MHC."]
[]
[]
[null,null,"SITE INFORMATION"]
[null,null,"Number of structures on site:"]
[null,null,"Is the site located in the BEP Target Area?",null,null,null,null,null,null,null,null,null,null,null,null,null,null,null,null,null,null,null,null,null,null,null,null,null,null,null,"Yes",null,null,"No"]
[null,null,"Does there appear to be anything of value or salvageable material on the site?",null,null,null,null,null,null,null,null,null,null,null,null,null,null,null,null,null,null,null,null,null,null,null,null,null,null,null,"Yes",null,null,"No"]
[null,null,"     If yes, describe:"]
[null,null,"     Will it be sold or donated?"]
[null,null,"Describe any other structures on the site (shed, workshop, fence, etc):"]
[]
[null,null,"Describe the suitability of the site entry points for access to and from the site for demolition equipment:  (Please make note of any obstructions or observable liabilities.)"]
[]
[null,null,"SITE CONDITIONS"]
[null,null,"(Describe the condition of the following:)"]
[null,null,"Driveways/Parking Area:"]
[null,null,"Curbing:"]
[null,null,"Sidewalks:"]
[null,null,"Landscaping:"]
[null,null,"Fencing/Walls:"]
[null,null,"PROPERTY INFORMATION"]
[null,null,"Is the property address clearly identified on the building/main entrance?",null,null,null,null,null,null,null,null,null,null,null,null,null,null,null,null,null,null,null,null,null,null,null,null,null,null,null,"Yes",null,null,"No"]
[null,null,"Is the structure to be demolished a Single-Family (1-4 units) Residential Structure?",null,null,null,null,null,null,null,null,null,null,null,null,null,null,null,null,null,null,null,null,null,null,null,null,null,null,null,"Yes",null,null,"No"]
[null,null,"What is the approximate square footage of the the residential structure?"]
[null,null,"Is the structure vacant/abandoned?",null,null,null,null,null,null,null,null,null,null,null,null,null,null,null,null,null,null,null,null,null,null,null,null,null,null,null,"Yes",null,null,"No"]
[null,null,"Does the property have severe structural damage (roof, exterior walls, foundation)?",null,null,null,null,null,null,null,null,null,null,null,null,null,null,null,null,null,null,null,null,null,null,null,null,null,null,null,"Yes",null,null,"No"]
[null,null,"Has all services (power, water, gas, etc) been disconnected?",null,null,null,null,null,null,null,null,null,null,null,null,null,null,null,null,null,null,null,null,null,null,null,null,null,null,null,"Yes",null,null,"No"]
[null,null,"Does the property qualify as a blight structure?",null,null,null,null,null,null,null,null,null,null,null,null,null,null,null,null,null,null,null,null,null,null,null,null,null,null,null,"Yes",null,null,"No"]
[null,null,"NEIGHBORHOOD ASSESSMENT"]
[null,null,"(Describe the neighborhood conditions:)"]
[]
[]
[null,null,"ADDITIONAL INFORMATION"]
[]
[]
[null,null,"Certification"]
[null,null,"I certify that I have carefully inspected this property on this date.  I have no personal interest, present or prospective, in the property, Grantee, Blight Partner, Demolition Contractor, or proceeds of the disbursements from the Grantee's BEP funds.  To the best of my knowledge I have reported all noncompliance, work requiring correction, and unacceptable work to MHC."]
[]
[]
[null,null,"Prepared By:",null,null,null,null,null,null,null,null,null,null,null,null,null,null,null,null,null,null,"Date:"]
[]
[null,null,null,null,null,null,null,null,null,null,null,null,null,null,null,null,null,null,null,null,null,null,null,null,null,null,null,null,null,null,null,null,null,null,"Field Compliance Site Visit Report"]
[null,null,null,null,null,null,null,null,null,null,null,null,null,null,null,null,null,null,null,null,null,null,null,null,null,null,null,null,{"$f":"IF('Insp Rpt'!$AG$10=\"\",\"\",\"Program No.:\")","v":"Program No.:"},null,null,null,{"$f":"IF('Insp Rpt'!$AG$10=\"\",\"\",'Insp Rpt'!$AG$10)","v":0}]
[]
[null,null,"PART III:  Follow-up Site Visit (Post-Demolition)",null,null,null,null,null,null,null,null,null,null,null,null,null,null,null,null,null,null,null,null,null,null,null,null,"Project No.:",null,null,null,{"$f":"'Exhibit A'!C39","v":0}]
[null,null,"Property Address:",null,null,null,null,null,null,{"$f":"J5","v":0}]
[null,null,"Parcel No.:",null,null,null,null,null,null,{"$f":"J6","v":0}]
[null,null,"Expected End Use:",null,null,null,null,null,null,{"$f":"J7","v":0}]
[]
[null,null,"The following section must be completed for each assigned property listed in Exhibit A (attached hereto) AFTER DEMOLITION is complete.  All sections must be completed in its entirety.  Contractors will be required to provide as much details as possible to support their assessment.  Upon completion of each site visit, a copy of this form and photos of the property must be submitted to MHC."]
[]
[]
[null,null,"SITE INFORMATION"]
[null,null,"All portions of the structure, including the foundation, has been removed?",null,null,null,null,null,null,null,null,null,null,null,null,null,null,null,null,null,null,null,null,null,null,null,null,null,null,null,"Yes",null,null,"No"]
[null,null,"All debris has been removed from the property and taken to a landfill?",null,null,null,null,null,null,null,null,null,null,null,null,null,null,null,null,null,null,null,null,null,null,null,null,null,null,null,"Yes",null,null,"No"]
[null,null,"The lot is properly filled, compacted, graded and seeded?",null,null,null,null,null,null,null,null,null,null,null,null,null,null,null,null,null,null,null,null,null,null,null,null,null,null,null,"Yes",null,null,"No"]
[null,null,"Septic tank (if applicable) has been pumped and filled or removed?",null,null,null,null,null,null,null,null,null,null,null,null,null,null,null,null,null,null,null,null,null,null,null,null,null,null,null,"Yes",null,null,"No"]
[]
[null,null,"SITE CONDITIONS"]
[null,null,"(Describe the condition of the following:)"]
[null,null,"Driveways/Parking Area:"]
[null,null,"Curbing:"]
[null,null,"Sidewalks:"]
[null,null,"Landscaping:"]
[null,null,"Fencing/Walls:"]
[]
[null,null,"CORRECTIVE ACTIONS"]
[null,null,"Are there any corrective actions that need to be taken?",null,null,null,null,null,null,null,null,null,null,null,null,null,null,null,null,null,null,null,null,null,null,null,null,null,null,null,"Yes",null,null,"No"]
[null,null,"    If yes, describe:"]
[]
[]
[null,null,"Reinspection Needed?",null,null,null,null,null,null,null,null,null,null,null,null,null,null,null,null,null,null,null,null,null,null,null,null,null,null,null,"Yes",null,null,"No"]
[]
[]
[]
[null,null,"Certification"]
[null,null,"I certify that I have carefully inspected this property on this date.  I have no personal interest, present or prospective, in the property, Grantee, Blight Partner, Demolition Contractor, or proceeds of the disbursements from the Grantee's BEP funds.  To the best of my knowledge I have reported all noncompliance, work requiring correction, and unacceptable work to MHC."]
[]
[]
[null,null,"Prepared By:",null,null,null,null,null,null,null,null,null,null,null,null,null,null,null,null,null,null,"Date:"]

{"sheet":"P29","index":29,"n_rows":88,"n_cols":35,"rows_kept":88,"cut":false,"hidden":true,"merged":[[3,31,3,34],[87,23,87,30],[74,2,74,34],[77,3,77,33],[78,17,78,24],[87,6,87,18],[64,33,64,34],[63,30,63,31],[79,17,79,24],[84,2,84,34],[64,30,64,31],[75,30,75,31],[75,33,75,34],[79,33,79,34],[79,30,79,31],[68,9,68,34],[69,9,69,34],[70,9,70,34],[71,9,71,34],[72,9,72,34],[66,2,66,34],[67,2,67,34],[27,9,27,34],[28,2,28,34],[31,28,31,34],[36,2,36,34],[37,2,37,34],[29,33,29,34],[30,33,30,34],[29,30,29,31],[30,30,30,31],[32,33,32,34],[32,30,32,31],[33,33,33,34],[33,30,33,31],[34,30,34,31],[35,30,35,31],[34,33,34,34],[23,9,23,34],[24,2,24,8],[24,9,24,34],[25,9,25,34],[26,9,26,34],[22,2,22,34],[1,32,1,34],[5,9,5,17],[8,2,8,34],[11,2,11,34],[12,28,12,34],[15,7,15,34],[16,10,16,34],[18,2,18,34],[19,2,19,34],[20,2,20,34],[21,2,21,34],[13,33,13,34],[14,33,14,34],[13,30,13,31],[14,30,14,31],[63,33,63,34],[35,33,35,34],[61,33,61,34],[62,33,62,34],[61,30,61,31],[62,30,62,31],[40,2,40,34],[38,2,39,34],[41,2,41,34],[44,2,44,34],[47,23,47,30],[50,32,50,34],[57,2,57,34],[60,2,60,34],[47,6,47,18],[52,31,52,34]]}
[null,null,null,null,null,null,null,null,null,null,null,null,null,null,null,null,null,null,null,null,null,null,null,null,null,null,null,null,null,null,null,null,null,null,"Field Compliance Site Visit Report"]
[null,null,null,null,null,null,null,null,null,null,null,null,null,null,null,null,null,null,null,null,null,null,null,null,null,null,null,null,{"$f":"IF('Insp Rpt'!AG10=\"\",\"\",\"Program No.:\")","v":"Program No.:"},null,null,null,{"$f":"IF('Insp Rpt'!$AG$10=\"\",\"\",'Insp Rpt'!$AG$10)","v":0}]
[]
[null,null,"PART II:   Initial Site Visit (Pre-Demolition)",null,null,null,null,null,null,null,null,null,null,null,null,null,null,null,null,null,null,null,null,null,null,null,null,"Project No.:",null,null,null,{"$f":"'Exhibit A'!C40","v":0}]
[null,null,"Property Address:",null,null,null,null,null,null,{"$f":"'Exhibit A'!F40","v":0}]
[null,null,"Parcel No.:",null,null,null,null,null,null,{"$f":"'Exhibit A'!D40","v":0}]
[null,null,"Expected End Use:",null,null,null,null,null,null,{"$f":"'Exhibit A'!G40","v":0}]
[]
[null,null,"The following section must be completed for each assigned property listed in Exhibit A (attached hereto) PRIOR TO DEMOLITION.  All sections must be completed in its entirety.  Contractors will be required to provide as much details as possible to support their assessment.  Upon completion of each site visit, a copy of this form and photos of the property must be submitted to MHC."]
[]
[]
[null,null,"SITE INFORMATION"]
[null,null,"Number of structures on site:"]
[null,null,"Is the site located in the BEP Target Area?",null,null,null,null,null,null,null,null,null,null,null,null,null,null,null,null,null,null,null,null,null,null,null,null,null,null,null,"Yes",null,null,"No"]
[null,null,"Does there appear to be anything of value or salvageable material on the site?",null,null,null,null,null,null,null,null,null,null,null,null,null,null,null,null,null,null,null,null,null,null,null,null,null,null,null,"Yes",null,null,"No"]
[null,null,"     If yes, describe:"]
[null,null,"     Will it be sold or donated?"]
[null,null,"Describe any other structures on the site (shed, workshop, fence, etc):"]
[]
[null,null,"Describe the suitability of the site entry points for access to and from the site for demolition equipment:  (Please make note of any obstructions or observable liabilities.)"]
[]
[null,null,"SITE CONDITIONS"]
[null,null,"(Describe the condition of the following:)"]
[null,null,"Driveways/Parking Area:"]
[null,null,"Curbing:"]
[null,null,"Sidewalks:"]
[null,null,"Landscaping:"]
[null,null,"Fencing/Walls:"]
[null,null,"PROPERTY INFORMATION"]
[null,null,"Is the property address clearly identified on the building/main entrance?",null,null,null,null,null,null,null,null,null,null,null,null,null,null,null,null,null,null,null,null,null,null,null,null,null,null,null,"Yes",null,null,"No"]
[null,null,"Is the structure to be demolished a Single-Family (1-4 units) Residential Structure?",null,null,null,null,null,null,null,null,null,null,null,null,null,null,null,null,null,null,null,null,null,null,null,null,null,null,null,"Yes",null,null,"No"]
[null,null,"What is the approximate square footage of the the residential structure?"]
[null,null,"Is the structure vacant/abandoned?",null,null,null,null,null,null,null,null,null,null,null,null,null,null,null,null,null,null,null,null,null,null,null,null,null,null,null,"Yes",null,null,"No"]
[null,null,"Does the property have severe structural damage (roof, exterior walls, foundation)?",null,null,null,null,null,null,null,null,null,null,null,null,null,null,null,null,null,null,null,null,null,null,null,null,null,null,null,"Yes",null,null,"No"]
[null,null,"Has all services (power, water, gas, etc) been disconnected?",null,null,null,null,null,null,null,null,null,null,null,null,null,null,null,null,null,null,null,null,null,null,null,null,null,null,null,"Yes",null,null,"No"]
[null,null,"Does the property qualify as a blight structure?",null,null,null,null,null,null,null,null,null,null,null,null,null,null,null,null,null,null,null,null,null,null,null,null,null,null,null,"Yes",null,null,"No"]
[null,null,"NEIGHBORHOOD ASSESSMENT"]
[null,null,"(Describe the neighborhood conditions:)"]
[]
[]
[null,null,"ADDITIONAL INFORMATION"]
[]
[]
[null,null,"Certification"]
[null,null,"I certify that I have carefully inspected this property on this date.  I have no personal interest, present or prospective, in the property, Grantee, Blight Partner, Demolition Contractor, or proceeds of the disbursements from the Grantee's BEP funds.  To the best of my knowledge I have reported all noncompliance, work requiring correction, and unacceptable work to MHC."]
[]
[]
[null,null,"Prepared By:",null,null,null,null,null,null,null,null,null,null,null,null,null,null,null,null,null,null,"Date:"]
[]
[null,null,null,null,null,null,null,null,null,null,null,null,null,null,null,null,null,null,null,null,null,null,null,null,null,null,null,null,null,null,null,null,null,null,"Field Compliance Site Visit Report"]
[null,null,null,null,null,null,null,null,null,null,null,null,null,null,null,null,null,null,null,null,null,null,null,null,null,null,null,null,{"$f":"IF('Insp Rpt'!$AG$10=\"\",\"\",\"Program No.:\")","v":"Program No.:"},null,null,null,{"$f":"IF('Insp Rpt'!$AG$10=\"\",\"\",'Insp Rpt'!$AG$10)","v":0}]
[]
[null,null,"PART III:  Follow-up Site Visit (Post-Demolition)",null,null,null,null,null,null,null,null,null,null,null,null,null,null,null,null,null,null,null,null,null,null,null,null,"Project No.:",null,null,null,{"$f":"'Exhibit A'!C40","v":0}]
[null,null,"Property Address:",null,null,null,null,null,null,{"$f":"J5","v":0}]
[null,null,"Parcel No.:",null,null,null,null,null,null,{"$f":"J6","v":0}]
[null,null,"Expected End Use:",null,null,null,null,null,null,{"$f":"J7","v":0}]
[]
[null,null,"The following section must be completed for each assigned property listed in Exhibit A (attached hereto) AFTER DEMOLITION is complete.  All sections must be completed in its entirety.  Contractors will be required to provide as much details as possible to support their assessment.  Upon completion of each site visit, a copy of this form and photos of the property must be submitted to MHC."]
[]
[]
[null,null,"SITE INFORMATION"]
[null,null,"All portions of the structure, including the foundation, has been removed?",null,null,null,null,null,null,null,null,null,null,null,null,null,null,null,null,null,null,null,null,null,null,null,null,null,null,null,"Yes",null,null,"No"]
[null,null,"All debris has been removed from the property and taken to a landfill?",null,null,null,null,null,null,null,null,null,null,null,null,null,null,null,null,null,null,null,null,null,null,null,null,null,null,null,"Yes",null,null,"No"]
[null,null,"The lot is properly filled, compacted, graded and seeded?",null,null,null,null,null,null,null,null,null,null,null,null,null,null,null,null,null,null,null,null,null,null,null,null,null,null,null,"Yes",null,null,"No"]
[null,null,"Septic tank (if applicable) has been pumped and filled or removed?",null,null,null,null,null,null,null,null,null,null,null,null,null,null,null,null,null,null,null,null,null,null,null,null,null,null,null,"Yes",null,null,"No"]
[]
[null,null,"SITE CONDITIONS"]
[null,null,"(Describe the condition of the following:)"]
[null,null,"Driveways/Parking Area:"]
[null,null,"Curbing:"]
[null,null,"Sidewalks:"]
[null,null,"Landscaping:"]
[null,null,"Fencing/Walls:"]
[]
[null,null,"CORRECTIVE ACTIONS"]
[null,null,"Are there any corrective actions that need to be taken?",null,null,null,null,null,null,null,null,null,null,null,null,null,null,null,null,null,null,null,null,null,null,null,null,null,null,null,"Yes",null,null,"No"]
[null,null,"    If yes, describe:"]
[]
[]
[null,null,"Reinspection Needed?",null,null,null,null,null,null,null,null,null,null,null,null,null,null,null,null,null,null,null,null,null,null,null,null,null,null,null,"Yes",null,null,"No"]
[]
[]
[]
[null,null,"Certification"]
[null,null,"I certify that I have carefully inspected this property on this date.  I have no personal interest, present or prospective, in the property, Grantee, Blight Partner, Demolition Contractor, or proceeds of the disbursements from the Grantee's BEP funds.  To the best of my knowledge I have reported all noncompliance, work requiring correction, and unacceptable work to MHC."]
[]
[]
[null,null,"Prepared By:",null,null,null,null,null,null,null,null,null,null,null,null,null,null,null,null,null,null,"Date:"]

{"sheet":"P30","index":30,"n_rows":88,"n_cols":35,"rows_kept":88,"cut":false,"hidden":true,"merged":[[79,17,79,24],[84,2,84,34],[87,23,87,30],[70,11,70,34],[71,11,71,34],[72,11,72,34],[74,2,74,34],[77,3,77,33],[78,17,78,24],[87,6,87,18],[69,2,69,10],[69,11,69,34],[41,2,41,34],[44,2,44,34],[47,23,47,30],[50,32,50,34],[54,9,54,17],[57,2,57,34],[60,2,60,34],[66,2,66,34],[67,2,67,34],[68,11,68,34],[47,6,47,18],[52,31,52,34],[40,2,40,34],[23,9,23,34],[24,2,24,8],[24,9,24,34],[25,9,25,34],[26,9,26,34],[27,9,27,34],[28,2,28,34],[31,28,31,34],[36,2,36,34],[37,2,37,34],[38,2,39,34],[22,2,22,34],[1,32,1,34],[5,9,5,17],[8,2,8,34],[11,2,11,34],[12,28,12,34],[15,7,15,34],[16,10,16,34],[18,2,18,34],[19,2,19,34],[20,2,20,34],[21,2,21,34],[3,31,3,34]]}
[null,null,null,null,null,null,null,null,null,null,null,null,null,null,null,null,null,null,null,null,null,null,null,null,null,null,null,null,null,null,null,null,null,null,"Field Compliance Site Visit Report"]
[null,null,null,null,null,null,null,null,null,null,null,null,null,null,null,null,null,null,null,null,null,null,null,null,null,null,null,null,{"$f":"IF('Insp Rpt'!AG10=\"\",\"\",\"Program No.:\")","v":"Program No.:"},null,null,null,{"$f":"IF('Insp Rpt'!$AG$10=\"\",\"\",'Insp Rpt'!$AG$10)","v":0}]
[]
[null,null,"PART II:   Initial Site Visit (Pre-Demolition)",null,null,null,null,null,null,null,null,null,null,null,null,null,null,null,null,null,null,null,null,null,null,null,null,"Project No.:",null,null,null,{"$f":"'Exhibit A'!C41","v":0}]
[null,null,"Property Address:",null,null,null,null,null,null,{"$f":"'Exhibit A'!F41","v":0}]
[null,null,"Parcel No.:",null,null,null,null,null,null,{"$f":"'Exhibit A'!D41","v":0}]
[null,null,"Expected End Use:",null,null,null,null,null,null,{"$f":"'Exhibit A'!G41","v":0}]
[]
[null,null,"The following section must be completed for each assigned property listed in Exhibit A (attached hereto) PRIOR TO DEMOLITION.  All sections must be completed in its entirety.  Contractors will be required to provide as much details as possible to support their assessment.  Upon completion of each site visit, a copy of this form and photos of the property must be submitted to MHC."]
[]
[]
[null,null,"SITE INFORMATION"]
[null,null,"Number of structures on site:"]
[null,null,"Is the site located in the BEP Target Area?",null,null,null,null,null,null,null,null,null,null,null,null,null,null,null,null,null,null,null,null,null,null,null,null,null,null,null,"Yes",null,null,"No"]
[null,null,"Does there appear to be anything of value or salvageable material on the site?",null,null,null,null,null,null,null,null,null,null,null,null,null,null,null,null,null,null,null,null,null,null,null,null,null,null,null,"Yes",null,null,"No"]
[null,null,"     If yes, describe:"]
[null,null,"     Will it be sold or donated?"]
[null,null,"Describe any other structures on the site (shed, workshop, fence, etc):"]
[]
[null,null,"Describe the suitability of the site entry points for access to and from the site for demolition equipment:  (Please make note of any obstructions or observable liabilities.)"]
[]
[null,null,"SITE CONDITIONS"]
[null,null,"(Describe the condition of the following:)"]
[null,null,"Driveways/Parking Area:"]
[null,null,"Curbing:"]
[null,null,"Sidewalks:"]
[null,null,"Landscaping:"]
[null,null,"Fencing/Walls:"]
[null,null,"PROPERTY INFORMATION"]
[null,null,"Is the property address clearly identified on the building/main entrance?",null,null,null,null,null,null,null,null,null,null,null,null,null,null,null,null,null,null,null,null,null,null,null,null,null,null,null,"Yes",null,null,"No"]
[null,null,"Is the structure to be demolished a Single-Family (1-4 units) Residential Structure?",null,null,null,null,null,null,null,null,null,null,null,null,null,null,null,null,null,null,null,null,null,null,null,null,null,null,null,"Yes",null,null,"No"]
[null,null,"What is the approximate square footage of the the residential structure?"]
[null,null,"Is the structure vacant/abandoned?",null,null,null,null,null,null,null,null,null,null,null,null,null,null,null,null,null,null,null,null,null,null,null,null,null,null,null,"Yes",null,null,"No"]
[null,null,"Does the property have severe structural damage (roof, exterior walls, foundation)?",null,null,null,null,null,null,null,null,null,null,null,null,null,null,null,null,null,null,null,null,null,null,null,null,null,null,null,"Yes",null,null,"No"]
[null,null,"Has all services (power, water, gas, etc) been disconnected?",null,null,null,null,null,null,null,null,null,null,null,null,null,null,null,null,null,null,null,null,null,null,null,null,null,null,null,"Yes",null,null,"No"]
[null,null,"Does the property qualify as a blight structure?",null,null,null,null,null,null,null,null,null,null,null,null,null,null,null,null,null,null,null,null,null,null,null,null,null,null,null,"Yes",null,null,"No"]
[null,null,"NEIGHBORHOOD ASSESSMENT"]
[null,null,"(Describe the neighborhood conditions:)"]
[]
[]
[null,null,"ADDITIONAL INFORMATION"]
[]
[]
[null,null,"Certification"]
[null,null,"I certify that I have carefully inspected this property on this date.  I have no personal interest, present or prospective, in the property, Grantee, Blight Partner, Demolition Contractor, or proceeds of the disbursements from the Grantee's BEP funds.  To the best of my knowledge I have reported all noncompliance, work requiring correction, and unacceptable work to MHC."]
[]
[]
[null,null,"Prepared By:",null,null,null,null,null,null,null,null,null,null,null,null,null,null,null,null,null,null,"Date:"]
[]
[null,null,null,null,null,null,null,null,null,null,null,null,null,null,null,null,null,null,null,null,null,null,null,null,null,null,null,null,null,null,null,null,null,null,"Field Compliance Site Visit Report"]
[null,null,null,null,null,null,null,null,null,null,null,null,null,null,null,null,null,null,null,null,null,null,null,null,null,null,null,null,{"$f":"IF('Insp Rpt'!$AG$10=\"\",\"\",\"Program No.:\")","v":"Program No.:"},null,null,null,{"$f":"IF('Insp Rpt'!$AG$10=\"\",\"\",'Insp Rpt'!$AG$10)","v":0}]
[]
[null,null,"PART III:  Follow-up Site Visit (Post-Demolition)",null,null,null,null,null,null,null,null,null,null,null,null,null,null,null,null,null,null,null,null,null,null,null,null,"Project No.:",null,null,null,{"$f":"'Exhibit A'!C41","v":0}]
[null,null,"Property Address:",null,null,null,null,null,null,{"$f":"J5","v":0}]
[null,null,"Parcel No.:",null,null,null,null,null,null,{"$f":"J6","v":0}]
[null,null,"Expected End Use:",null,null,null,null,null,null,{"$f":"J7","v":0}]
[]
[null,null,"The following section must be completed for each assigned property listed in Exhibit A (attached hereto) AFTER DEMOLITION is complete.  All sections must be completed in its entirety.  Contractors will be required to provide as much details as possible to support their assessment.  Upon completion of each site visit, a copy of this form and photos of the property must be submitted to MHC."]
[]
[]
[null,null,"SITE INFORMATION"]
[null,null,"All portions of the structure, including the foundation, has been removed?",null,null,null,null,null,null,null,null,null,null,null,null,null,null,null,null,null,null,null,null,null,null,null,null,null,null,null,"Yes",null,null,"No"]
[null,null,"All debris has been removed from the property and taken to a landfill?",null,null,null,null,null,null,null,null,null,null,null,null,null,null,null,null,null,null,null,null,null,null,null,null,null,null,null,"Yes",null,null,"No"]
[null,null,"The lot is properly filled, compacted, graded and seeded?",null,null,null,null,null,null,null,null,null,null,null,null,null,null,null,null,null,null,null,null,null,null,null,null,null,null,null,"Yes",null,null,"No"]
[null,null,"Septic tank (if applicable) has been pumped and filled or removed?",null,null,null,null,null,null,null,null,null,null,null,null,null,null,null,null,null,null,null,null,null,null,null,null,null,null,null,"Yes",null,null,"No"]
[]
[null,null,"SITE CONDITIONS"]
[null,null,"(Describe the condition of the following:)"]
[null,null,"Driveways/Parking Area:"]
[null,null,"Curbing:"]
[null,null,"Sidewalks:"]
[null,null,"Landscaping:"]
[null,null,"Fencing/Walls:"]
[]
[null,null,"CORRECTIVE ACTIONS"]
[null,null,"Are there any corrective actions that need to be taken?",null,null,null,null,null,null,null,null,null,null,null,null,null,null,null,null,null,null,null,null,null,null,null,null,null,null,null,"Yes",null,null,"No"]
[null,null,"    If yes, describe:"]
[]
[]
[null,null,"Reinspection Needed?",null,null,null,null,null,null,null,null,null,null,null,null,null,null,null,null,null,null,null,null,null,null,null,null,null,null,null,"Yes",null,null,"No"]
[]
[]
[]
[null,null,"Certification"]
[null,null,"I certify that I have carefully inspected this property on this date.  I have no personal interest, present or prospective, in the property, Grantee, Blight Partner, Demolition Contractor, or proceeds of the disbursements from the Grantee's BEP funds.  To the best of my knowledge I have reported all noncompliance, work requiring correction, and unacceptable work to MHC."]
[]
[]
[null,null,"Prepared By:",null,null,null,null,null,null,null,null,null,null,null,null,null,null,null,null,null,null,"Date:"]

{"sheet":"P31","index":31,"n_rows":88,"n_cols":35,"rows_kept":88,"cut":false,"hidden":true,"merged":[[79,17,79,24],[84,2,84,34],[87,23,87,30],[70,11,70,34],[71,11,71,34],[72,11,72,34],[74,2,74,34],[77,3,77,33],[78,17,78,24],[87,6,87,18],[69,2,69,10],[69,11,69,34],[41,2,41,34],[44,2,44,34],[47,23,47,30],[50,32,50,34],[54,9,54,17],[57,2,57,34],[60,2,60,34],[66,2,66,34],[67,2,67,34],[68,11,68,34],[47,6,47,18],[52,31,52,34],[40,2,40,34],[23,9,23,34],[24,2,24,8],[24,9,24,34],[25,9,25,34],[26,9,26,34],[27,9,27,34],[28,2,28,34],[31,28,31,34],[36,2,36,34],[37,2,37,34],[38,2,39,34],[22,2,22,34],[1,32,1,34],[5,9,5,17],[8,2,8,34],[11,2,11,34],[12,28,12,34],[15,7,15,34],[16,10,16,34],[18,2,18,34],[19,2,19,34],[20,2,20,34],[21,2,21,34],[3,31,3,34]]}
[null,null,null,null,null,null,null,null,null,null,null,null,null,null,null,null,null,null,null,null,null,null,null,null,null,null,null,null,null,null,null,null,null,null,"Field Compliance Site Visit Report"]
[null,null,null,null,null,null,null,null,null,null,null,null,null,null,null,null,null,null,null,null,null,null,null,null,null,null,null,null,{"$f":"IF('Insp Rpt'!AG10=\"\",\"\",\"Program No.:\")","v":"Program No.:"},null,null,null,{"$f":"IF('Insp Rpt'!$AG$10=\"\",\"\",'Insp Rpt'!$AG$10)","v":0}]
[]
[null,null,"PART II:   Initial Site Visit (Pre-Demolition)",null,null,null,null,null,null,null,null,null,null,null,null,null,null,null,null,null,null,null,null,null,null,null,null,"Project No.:",null,null,null,{"$f":"'Exhibit A'!C42","v":0}]
[null,null,"Property Address:",null,null,null,null,null,null,{"$f":"'Exhibit A'!F42","v":0}]
[null,null,"Parcel No.:",null,null,null,null,null,null,{"$f":"'Exhibit A'!D42","v":0}]
[null,null,"Expected End Use:",null,null,null,null,null,null,{"$f":"'Exhibit A'!G42","v":0}]
[]
[null,null,"The following section must be completed for each assigned property listed in Exhibit A (attached hereto) PRIOR TO DEMOLITION.  All sections must be completed in its entirety.  Contractors will be required to provide as much details as possible to support their assessment.  Upon completion of each site visit, a copy of this form and photos of the property must be submitted to MHC."]
[]
[]
[null,null,"SITE INFORMATION"]
[null,null,"Number of structures on site:"]
[null,null,"Is the site located in the BEP Target Area?",null,null,null,null,null,null,null,null,null,null,null,null,null,null,null,null,null,null,null,null,null,null,null,null,null,null,null,"Yes",null,null,"No"]
[null,null,"Does there appear to be anything of value or salvageable material on the site?",null,null,null,null,null,null,null,null,null,null,null,null,null,null,null,null,null,null,null,null,null,null,null,null,null,null,null,"Yes",null,null,"No"]
[null,null,"     If yes, describe:"]
[null,null,"     Will it be sold or donated?"]
[null,null,"Describe any other structures on the site (shed, workshop, fence, etc):"]
[]
[null,null,"Describe the suitability of the site entry points for access to and from the site for demolition equipment:  (Please make note of any obstructions or observable liabilities.)"]
[]
[null,null,"SITE CONDITIONS"]
[null,null,"(Describe the condition of the following:)"]
[null,null,"Driveways/Parking Area:"]
[null,null,"Curbing:"]
[null,null,"Sidewalks:"]
[null,null,"Landscaping:"]
[null,null,"Fencing/Walls:"]
[null,null,"PROPERTY INFORMATION"]
[null,null,"Is the property address clearly identified on the building/main entrance?",null,null,null,null,null,null,null,null,null,null,null,null,null,null,null,null,null,null,null,null,null,null,null,null,null,null,null,"Yes",null,null,"No"]
[null,null,"Is the structure to be demolished a Single-Family (1-4 units) Residential Structure?",null,null,null,null,null,null,null,null,null,null,null,null,null,null,null,null,null,null,null,null,null,null,null,null,null,null,null,"Yes",null,null,"No"]
[null,null,"What is the approximate square footage of the the residential structure?"]
[null,null,"Is the structure vacant/abandoned?",null,null,null,null,null,null,null,null,null,null,null,null,null,null,null,null,null,null,null,null,null,null,null,null,null,null,null,"Yes",null,null,"No"]
[null,null,"Does the property have severe structural damage (roof, exterior walls, foundation)?",null,null,null,null,null,null,null,null,null,null,null,null,null,null,null,null,null,null,null,null,null,null,null,null,null,null,null,"Yes",null,null,"No"]
[null,null,"Has all services (power, water, gas, etc) been disconnected?",null,null,null,null,null,null,null,null,null,null,null,null,null,null,null,null,null,null,null,null,null,null,null,null,null,null,null,"Yes",null,null,"No"]
[null,null,"Does the property qualify as a blight structure?",null,null,null,null,null,null,null,null,null,null,null,null,null,null,null,null,null,null,null,null,null,null,null,null,null,null,null,"Yes",null,null,"No"]
[null,null,"NEIGHBORHOOD ASSESSMENT"]
[null,null,"(Describe the neighborhood conditions:)"]
[]
[]
[null,null,"ADDITIONAL INFORMATION"]
[]
[]
[null,null,"Certification"]
[null,null,"I certify that I have carefully inspected this property on this date.  I have no personal interest, present or prospective, in the property, Grantee, Blight Partner, Demolition Contractor, or proceeds of the disbursements from the Grantee's BEP funds.  To the best of my knowledge I have reported all noncompliance, work requiring correction, and unacceptable work to MHC."]
[]
[]
[null,null,"Prepared By:",null,null,null,null,null,null,null,null,null,null,null,null,null,null,null,null,null,null,"Date:"]
[]
[null,null,null,null,null,null,null,null,null,null,null,null,null,null,null,null,null,null,null,null,null,null,null,null,null,null,null,null,null,null,null,null,null,null,"Field Compliance Site Visit Report"]
[null,null,null,null,null,null,null,null,null,null,null,null,null,null,null,null,null,null,null,null,null,null,null,null,null,null,null,null,{"$f":"IF('Insp Rpt'!$AG$10=\"\",\"\",\"Program No.:\")","v":"Program No.:"},null,null,null,{"$f":"IF('Insp Rpt'!$AG$10=\"\",\"\",'Insp Rpt'!$AG$10)","v":0}]
[]
[null,null,"PART III:  Follow-up Site Visit (Post-Demolition)",null,null,null,null,null,null,null,null,null,null,null,null,null,null,null,null,null,null,null,null,null,null,null,null,"Project No.:",null,null,null,{"$f":"'Exhibit A'!C42","v":0}]
[null,null,"Property Address:",null,null,null,null,null,null,{"$f":"J5","v":0}]
[null,null,"Parcel No.:",null,null,null,null,null,null,{"$f":"J6","v":0}]
[null,null,"Expected End Use:",null,null,null,null,null,null,{"$f":"J7","v":0}]
[]
[null,null,"The following section must be completed for each assigned property listed in Exhibit A (attached hereto) AFTER DEMOLITION is complete.  All sections must be completed in its entirety.  Contractors will be required to provide as much details as possible to support their assessment.  Upon completion of each site visit, a copy of this form and photos of the property must be submitted to MHC."]
[]
[]
[null,null,"SITE INFORMATION"]
[null,null,"All portions of the structure, including the foundation, has been removed?",null,null,null,null,null,null,null,null,null,null,null,null,null,null,null,null,null,null,null,null,null,null,null,null,null,null,null,"Yes",null,null,"No"]
[null,null,"All debris has been removed from the property and taken to a landfill?",null,null,null,null,null,null,null,null,null,null,null,null,null,null,null,null,null,null,null,null,null,null,null,null,null,null,null,"Yes",null,null,"No"]
[null,null,"The lot is properly filled, compacted, graded and seeded?",null,null,null,null,null,null,null,null,null,null,null,null,null,null,null,null,null,null,null,null,null,null,null,null,null,null,null,"Yes",null,null,"No"]
[null,null,"Septic tank (if applicable) has been pumped and filled or removed?",null,null,null,null,null,null,null,null,null,null,null,null,null,null,null,null,null,null,null,null,null,null,null,null,null,null,null,"Yes",null,null,"No"]
[]
[null,null,"SITE CONDITIONS"]
[null,null,"(Describe the condition of the following:)"]
[null,null,"Driveways/Parking Area:"]
[null,null,"Curbing:"]
[null,null,"Sidewalks:"]
[null,null,"Landscaping:"]
[null,null,"Fencing/Walls:"]
[]
[null,null,"CORRECTIVE ACTIONS"]
[null,null,"Are there any corrective actions that need to be taken?",null,null,null,null,null,null,null,null,null,null,null,null,null,null,null,null,null,null,null,null,null,null,null,null,null,null,null,"Yes",null,null,"No"]
[null,null,"    If yes, describe:"]
[]
[]
[null,null,"Reinspection Needed?",null,null,null,null,null,null,null,null,null,null,null,null,null,null,null,null,null,null,null,null,null,null,null,null,null,null,null,"Yes",null,null,"No"]
[]
[]
[]
[null,null,"Certification"]
[null,null,"I certify that I have carefully inspected this property on this date.  I have no personal interest, present or prospective, in the property, Grantee, Blight Partner, Demolition Contractor, or proceeds of the disbursements from the Grantee's BEP funds.  To the best of my knowledge I have reported all noncompliance, work requiring correction, and unacceptable work to MHC."]
[]
[]
[null,null,"Prepared By:",null,null,null,null,null,null,null,null,null,null,null,null,null,null,null,null,null,null,"Date:"]

{"sheet":"P32","index":32,"n_rows":88,"n_cols":35,"rows_kept":88,"cut":false,"hidden":true,"merged":[[79,17,79,24],[84,2,84,34],[87,23,87,30],[70,11,70,34],[71,11,71,34],[72,11,72,34],[74,2,74,34],[77,3,77,33],[78,17,78,24],[87,6,87,18],[69,2,69,10],[69,11,69,34],[41,2,41,34],[44,2,44,34],[47,23,47,30],[50,32,50,34],[54,9,54,17],[57,2,57,34],[60,2,60,34],[66,2,66,34],[67,2,67,34],[68,11,68,34],[47,6,47,18],[52,31,52,34],[40,2,40,34],[23,9,23,34],[24,2,24,8],[24,9,24,34],[25,9,25,34],[26,9,26,34],[27,9,27,34],[28,2,28,34],[31,28,31,34],[36,2,36,34],[37,2,37,34],[38,2,39,34],[22,2,22,34],[1,32,1,34],[5,9,5,17],[8,2,8,34],[11,2,11,34],[12,28,12,34],[15,7,15,34],[16,10,16,34],[18,2,18,34],[19,2,19,34],[20,2,20,34],[21,2,21,34],[3,31,3,34]]}
[null,null,null,null,null,null,null,null,null,null,null,null,null,null,null,null,null,null,null,null,null,null,null,null,null,null,null,null,null,null,null,null,null,null,"Field Compliance Site Visit Report"]
[null,null,null,null,null,null,null,null,null,null,null,null,null,null,null,null,null,null,null,null,null,null,null,null,null,null,null,null,{"$f":"IF('Insp Rpt'!AG10=\"\",\"\",\"Program No.:\")","v":"Program No.:"},null,null,null,{"$f":"IF('Insp Rpt'!$AG$10=\"\",\"\",'Insp Rpt'!$AG$10)","v":0}]
[]
[null,null,"PART II:   Initial Site Visit (Pre-Demolition)",null,null,null,null,null,null,null,null,null,null,null,null,null,null,null,null,null,null,null,null,null,null,null,null,"Project No.:",null,null,null,{"$f":"'Exhibit A'!C43","v":0}]
[null,null,"Property Address:",null,null,null,null,null,null,{"$f":"'Exhibit A'!F43","v":0}]
[null,null,"Parcel No.:",null,null,null,null,null,null,{"$f":"'Exhibit A'!D43","v":0}]
[null,null,"Expected End Use:",null,null,null,null,null,null,{"$f":"'Exhibit A'!G43","v":0}]
[]
[null,null,"The following section must be completed for each assigned property listed in Exhibit A (attached hereto) PRIOR TO DEMOLITION.  All sections must be completed in its entirety.  Contractors will be required to provide as much details as possible to support their assessment.  Upon completion of each site visit, a copy of this form and photos of the property must be submitted to MHC."]
[]
[]
[null,null,"SITE INFORMATION"]
[null,null,"Number of structures on site:"]
[null,null,"Is the site located in the BEP Target Area?",null,null,null,null,null,null,null,null,null,null,null,null,null,null,null,null,null,null,null,null,null,null,null,null,null,null,null,"Yes",null,null,"No"]
[null,null,"Does there appear to be anything of value or salvageable material on the site?",null,null,null,null,null,null,null,null,null,null,null,null,null,null,null,null,null,null,null,null,null,null,null,null,null,null,null,"Yes",null,null,"No"]
[null,null,"     If yes, describe:"]
[null,null,"     Will it be sold or donated?"]
[null,null,"Describe any other structures on the site (shed, workshop, fence, etc):"]
[]
[null,null,"Describe the suitability of the site entry points for access to and from the site for demolition equipment:  (Please make note of any obstructions or observable liabilities.)"]
[]
[null,null,"SITE CONDITIONS"]
[null,null,"(Describe the condition of the following:)"]
[null,null,"Driveways/Parking Area:"]
[null,null,"Curbing:"]
[null,null,"Sidewalks:"]
[null,null,"Landscaping:"]
[null,null,"Fencing/Walls:"]
[null,null,"PROPERTY INFORMATION"]
[null,null,"Is the property address clearly identified on the building/main entrance?",null,null,null,null,null,null,null,null,null,null,null,null,null,null,null,null,null,null,null,null,null,null,null,null,null,null,null,"Yes",null,null,"No"]
[null,null,"Is the structure to be demolished a Single-Family (1-4 units) Residential Structure?",null,null,null,null,null,null,null,null,null,null,null,null,null,null,null,null,null,null,null,null,null,null,null,null,null,null,null,"Yes",null,null,"No"]
[null,null,"What is the approximate square footage of the the residential structure?"]
[null,null,"Is the structure vacant/abandoned?",null,null,null,null,null,null,null,null,null,null,null,null,null,null,null,null,null,null,null,null,null,null,null,null,null,null,null,"Yes",null,null,"No"]
[null,null,"Does the property have severe structural damage (roof, exterior walls, foundation)?",null,null,null,null,null,null,null,null,null,null,null,null,null,null,null,null,null,null,null,null,null,null,null,null,null,null,null,"Yes",null,null,"No"]
[null,null,"Has all services (power, water, gas, etc) been disconnected?",null,null,null,null,null,null,null,null,null,null,null,null,null,null,null,null,null,null,null,null,null,null,null,null,null,null,null,"Yes",null,null,"No"]
[null,null,"Does the property qualify as a blight structure?",null,null,null,null,null,null,null,null,null,null,null,null,null,null,null,null,null,null,null,null,null,null,null,null,null,null,null,"Yes",null,null,"No"]
[null,null,"NEIGHBORHOOD ASSESSMENT"]
[null,null,"(Describe the neighborhood conditions:)"]
[]
[]
[null,null,"ADDITIONAL INFORMATION"]
[]
[]
[null,null,"Certification"]
[null,null,"I certify that I have carefully inspected this property on this date.  I have no personal interest, present or prospective, in the property, Grantee, Blight Partner, Demolition Contractor, or proceeds of the disbursements from the Grantee's BEP funds.  To the best of my knowledge I have reported all noncompliance, work requiring correction, and unacceptable work to MHC."]
[]
[]
[null,null,"Prepared By:",null,null,null,null,null,null,null,null,null,null,null,null,null,null,null,null,null,null,"Date:"]
[]
[null,null,null,null,null,null,null,null,null,null,null,null,null,null,null,null,null,null,null,null,null,null,null,null,null,null,null,null,null,null,null,null,null,null,"Field Compliance Site Visit Report"]
[null,null,null,null,null,null,null,null,null,null,null,null,null,null,null,null,null,null,null,null,null,null,null,null,null,null,null,null,{"$f":"IF('Insp Rpt'!$AG$10=\"\",\"\",\"Program No.:\")","v":"Program No.:"},null,null,null,{"$f":"IF('Insp Rpt'!$AG$10=\"\",\"\",'Insp Rpt'!$AG$10)","v":0}]
[]
[null,null,"PART III:  Follow-up Site Visit (Post-Demolition)",null,null,null,null,null,null,null,null,null,null,null,null,null,null,null,null,null,null,null,null,null,null,null,null,"Project No.:",null,null,null,{"$f":"'Exhibit A'!C43","v":0}]
[null,null,"Property Address:",null,null,null,null,null,null,{"$f":"J5","v":0}]
[null,null,"Parcel No.:",null,null,null,null,null,null,{"$f":"J6","v":0}]
[null,null,"Expected End Use:",null,null,null,null,null,null,{"$f":"J7","v":0}]
[]
[null,null,"The following section must be completed for each assigned property listed in Exhibit A (attached hereto) AFTER DEMOLITION is complete.  All sections must be completed in its entirety.  Contractors will be required to provide as much details as possible to support their assessment.  Upon completion of each site visit, a copy of this form and photos of the property must be submitted to MHC."]
[]
[]
[null,null,"SITE INFORMATION"]
[null,null,"All portions of the structure, including the foundation, has been removed?",null,null,null,null,null,null,null,null,null,null,null,null,null,null,null,null,null,null,null,null,null,null,null,null,null,null,null,"Yes",null,null,"No"]
[null,null,"All debris has been removed from the property and taken to a landfill?",null,null,null,null,null,null,null,null,null,null,null,null,null,null,null,null,null,null,null,null,null,null,null,null,null,null,null,"Yes",null,null,"No"]
[null,null,"The lot is properly filled, compacted, graded and seeded?",null,null,null,null,null,null,null,null,null,null,null,null,null,null,null,null,null,null,null,null,null,null,null,null,null,null,null,"Yes",null,null,"No"]
[null,null,"Septic tank (if applicable) has been pumped and filled or removed?",null,null,null,null,null,null,null,null,null,null,null,null,null,null,null,null,null,null,null,null,null,null,null,null,null,null,null,"Yes",null,null,"No"]
[]
[null,null,"SITE CONDITIONS"]
[null,null,"(Describe the condition of the following:)"]
[null,null,"Driveways/Parking Area:"]
[null,null,"Curbing:"]
[null,null,"Sidewalks:"]
[null,null,"Landscaping:"]
[null,null,"Fencing/Walls:"]
[]
[null,null,"CORRECTIVE ACTIONS"]
[null,null,"Are there any corrective actions that need to be taken?",null,null,null,null,null,null,null,null,null,null,null,null,null,null,null,null,null,null,null,null,null,null,null,null,null,null,null,"Yes",null,null,"No"]
[null,null,"    If yes, describe:"]
[]
[]
[null,null,"Reinspection Needed?",null,null,null,null,null,null,null,null,null,null,null,null,null,null,null,null,null,null,null,null,null,null,null,null,null,null,null,"Yes",null,null,"No"]
[]
[]
[]
[null,null,"Certification"]
[null,null,"I certify that I have carefully inspected this property on this date.  I have no personal interest, present or prospective, in the property, Grantee, Blight Partner, Demolition Contractor, or proceeds of the disbursements from the Grantee's BEP funds.  To the best of my knowledge I have reported all noncompliance, work requiring correction, and unacceptable work to MHC."]
[]
[]
[null,null,"Prepared By:",null,null,null,null,null,null,null,null,null,null,null,null,null,null,null,null,null,null,"Date:"]

{"sheet":"P33","index":33,"n_rows":88,"n_cols":35,"rows_kept":88,"cut":false,"hidden":true,"merged":[[79,17,79,24],[84,2,84,34],[87,23,87,30],[70,11,70,34],[71,11,71,34],[72,11,72,34],[74,2,74,34],[77,3,77,33],[78,17,78,24],[87,6,87,18],[69,2,69,10],[69,11,69,34],[41,2,41,34],[44,2,44,34],[47,23,47,30],[50,32,50,34],[54,9,54,17],[57,2,57,34],[60,2,60,34],[66,2,66,34],[67,2,67,34],[68,11,68,34],[47,6,47,18],[52,31,52,34],[40,2,40,34],[23,9,23,34],[24,2,24,8],[24,9,24,34],[25,9,25,34],[26,9,26,34],[27,9,27,34],[28,2,28,34],[31,28,31,34],[36,2,36,34],[37,2,37,34],[38,2,39,34],[22,2,22,34],[1,32,1,34],[5,9,5,17],[8,2,8,34],[11,2,11,34],[12,28,12,34],[15,7,15,34],[16,10,16,34],[18,2,18,34],[19,2,19,34],[20,2,20,34],[21,2,21,34],[3,31,3,34]]}
[null,null,null,null,null,null,null,null,null,null,null,null,null,null,null,null,null,null,null,null,null,null,null,null,null,null,null,null,null,null,null,null,null,null,"Field Compliance Site Visit Report"]
[null,null,null,null,null,null,null,null,null,null,null,null,null,null,null,null,null,null,null,null,null,null,null,null,null,null,null,null,{"$f":"IF('Insp Rpt'!AG10=\"\",\"\",\"Program No.:\")","v":"Program No.:"},null,null,null,{"$f":"IF('Insp Rpt'!$AG$10=\"\",\"\",'Insp Rpt'!$AG$10)","v":0}]
[]
[null,null,"PART II:   Initial Site Visit (Pre-Demolition)",null,null,null,null,null,null,null,null,null,null,null,null,null,null,null,null,null,null,null,null,null,null,null,null,"Project No.:",null,null,null,{"$f":"'Exhibit A'!C44","v":0}]
[null,null,"Property Address:",null,null,null,null,null,null,{"$f":"'Exhibit A'!F44","v":0}]
[null,null,"Parcel No.:",null,null,null,null,null,null,{"$f":"'Exhibit A'!D44","v":0}]
[null,null,"Expected End Use:",null,null,null,null,null,null,{"$f":"'Exhibit A'!G44","v":0}]
[]
[null,null,"The following section must be completed for each assigned property listed in Exhibit A (attached hereto) PRIOR TO DEMOLITION.  All sections must be completed in its entirety.  Contractors will be required to provide as much details as possible to support their assessment.  Upon completion of each site visit, a copy of this form and photos of the property must be submitted to MHC."]
[]
[]
[null,null,"SITE INFORMATION"]
[null,null,"Number of structures on site:"]
[null,null,"Is the site located in the BEP Target Area?",null,null,null,null,null,null,null,null,null,null,null,null,null,null,null,null,null,null,null,null,null,null,null,null,null,null,null,"Yes",null,null,"No"]
[null,null,"Does there appear to be anything of value or salvageable material on the site?",null,null,null,null,null,null,null,null,null,null,null,null,null,null,null,null,null,null,null,null,null,null,null,null,null,null,null,"Yes",null,null,"No"]
[null,null,"     If yes, describe:"]
[null,null,"     Will it be sold or donated?"]
[null,null,"Describe any other structures on the site (shed, workshop, fence, etc):"]
[]
[null,null,"Describe the suitability of the site entry points for access to and from the site for demolition equipment:  (Please make note of any obstructions or observable liabilities.)"]
[]
[null,null,"SITE CONDITIONS"]
[null,null,"(Describe the condition of the following:)"]
[null,null,"Driveways/Parking Area:"]
[null,null,"Curbing:"]
[null,null,"Sidewalks:"]
[null,null,"Landscaping:"]
[null,null,"Fencing/Walls:"]
[null,null,"PROPERTY INFORMATION"]
[null,null,"Is the property address clearly identified on the building/main entrance?",null,null,null,null,null,null,null,null,null,null,null,null,null,null,null,null,null,null,null,null,null,null,null,null,null,null,null,"Yes",null,null,"No"]
[null,null,"Is the structure to be demolished a Single-Family (1-4 units) Residential Structure?",null,null,null,null,null,null,null,null,null,null,null,null,null,null,null,null,null,null,null,null,null,null,null,null,null,null,null,"Yes",null,null,"No"]
[null,null,"What is the approximate square footage of the the residential structure?"]
[null,null,"Is the structure vacant/abandoned?",null,null,null,null,null,null,null,null,null,null,null,null,null,null,null,null,null,null,null,null,null,null,null,null,null,null,null,"Yes",null,null,"No"]
[null,null,"Does the property have severe structural damage (roof, exterior walls, foundation)?",null,null,null,null,null,null,null,null,null,null,null,null,null,null,null,null,null,null,null,null,null,null,null,null,null,null,null,"Yes",null,null,"No"]
[null,null,"Has all services (power, water, gas, etc) been disconnected?",null,null,null,null,null,null,null,null,null,null,null,null,null,null,null,null,null,null,null,null,null,null,null,null,null,null,null,"Yes",null,null,"No"]
[null,null,"Does the property qualify as a blight structure?",null,null,null,null,null,null,null,null,null,null,null,null,null,null,null,null,null,null,null,null,null,null,null,null,null,null,null,"Yes",null,null,"No"]
[null,null,"NEIGHBORHOOD ASSESSMENT"]
[null,null,"(Describe the neighborhood conditions:)"]
[]
[]
[null,null,"ADDITIONAL INFORMATION"]
[]
[]
[null,null,"Certification"]
[null,null,"I certify that I have carefully inspected this property on this date.  I have no personal interest, present or prospective, in the property, Grantee, Blight Partner, Demolition Contractor, or proceeds of the disbursements from the Grantee's BEP funds.  To the best of my knowledge I have reported all noncompliance, work requiring correction, and unacceptable work to MHC."]
[]
[]
[null,null,"Prepared By:",null,null,null,null,null,null,null,null,null,null,null,null,null,null,null,null,null,null,"Date:"]
[]
[null,null,null,null,null,null,null,null,null,null,null,null,null,null,null,null,null,null,null,null,null,null,null,null,null,null,null,null,null,null,null,null,null,null,"Field Compliance Site Visit Report"]
[null,null,null,null,null,null,null,null,null,null,null,null,null,null,null,null,null,null,null,null,null,null,null,null,null,null,null,null,{"$f":"IF('Insp Rpt'!$AG$10=\"\",\"\",\"Program No.:\")","v":"Program No.:"},null,null,null,{"$f":"IF('Insp Rpt'!$AG$10=\"\",\"\",'Insp Rpt'!$AG$10)","v":0}]
[]
[null,null,"PART III:  Follow-up Site Visit (Post-Demolition)",null,null,null,null,null,null,null,null,null,null,null,null,null,null,null,null,null,null,null,null,null,null,null,null,"Project No.:",null,null,null,{"$f":"'Exhibit A'!C44","v":0}]
[null,null,"Property Address:",null,null,null,null,null,null,{"$f":"J5","v":0}]
[null,null,"Parcel No.:",null,null,null,null,null,null,{"$f":"J6","v":0}]
[null,null,"Expected End Use:",null,null,null,null,null,null,{"$f":"J7","v":0}]
[]
[null,null,"The following section must be completed for each assigned property listed in Exhibit A (attached hereto) AFTER DEMOLITION is complete.  All sections must be completed in its entirety.  Contractors will be required to provide as much details as possible to support their assessment.  Upon completion of each site visit, a copy of this form and photos of the property must be submitted to MHC."]
[]
[]
[null,null,"SITE INFORMATION"]
[null,null,"All portions of the structure, including the foundation, has been removed?",null,null,null,null,null,null,null,null,null,null,null,null,null,null,null,null,null,null,null,null,null,null,null,null,null,null,null,"Yes",null,null,"No"]
[null,null,"All debris has been removed from the property and taken to a landfill?",null,null,null,null,null,null,null,null,null,null,null,null,null,null,null,null,null,null,null,null,null,null,null,null,null,null,null,"Yes",null,null,"No"]
[null,null,"The lot is properly filled, compacted, graded and seeded?",null,null,null,null,null,null,null,null,null,null,null,null,null,null,null,null,null,null,null,null,null,null,null,null,null,null,null,"Yes",null,null,"No"]
[null,null,"Septic tank (if applicable) has been pumped and filled or removed?",null,null,null,null,null,null,null,null,null,null,null,null,null,null,null,null,null,null,null,null,null,null,null,null,null,null,null,"Yes",null,null,"No"]
[]
[null,null,"SITE CONDITIONS"]
[null,null,"(Describe the condition of the following:)"]
[null,null,"Driveways/Parking Area:"]
[null,null,"Curbing:"]
[null,null,"Sidewalks:"]
[null,null,"Landscaping:"]
[null,null,"Fencing/Walls:"]
[]
[null,null,"CORRECTIVE ACTIONS"]
[null,null,"Are there any corrective actions that need to be taken?",null,null,null,null,null,null,null,null,null,null,null,null,null,null,null,null,null,null,null,null,null,null,null,null,null,null,null,"Yes",null,null,"No"]
[null,null,"    If yes, describe:"]
[]
[]
[null,null,"Reinspection Needed?",null,null,null,null,null,null,null,null,null,null,null,null,null,null,null,null,null,null,null,null,null,null,null,null,null,null,null,"Yes",null,null,"No"]
[]
[]
[]
[null,null,"Certification"]
[null,null,"I certify that I have carefully inspected this property on this date.  I have no personal interest, present or prospective, in the property, Grantee, Blight Partner, Demolition Contractor, or proceeds of the disbursements from the Grantee's BEP funds.  To the best of my knowledge I have reported all noncompliance, work requiring correction, and unacceptable work to MHC."]
[]
[]
[null,null,"Prepared By:",null,null,null,null,null,null,null,null,null,null,null,null,null,null,null,null,null,null,"Date:"]

{"sheet":"P34","index":34,"n_rows":88,"n_cols":35,"rows_kept":88,"cut":false,"hidden":true,"merged":[[79,17,79,24],[84,2,84,34],[87,23,87,30],[70,11,70,34],[71,11,71,34],[72,11,72,34],[74,2,74,34],[77,3,77,33],[78,17,78,24],[87,6,87,18],[69,2,69,10],[69,11,69,34],[41,2,41,34],[44,2,44,34],[47,23,47,30],[50,32,50,34],[54,9,54,17],[57,2,57,34],[60,2,60,34],[66,2,66,34],[67,2,67,34],[68,11,68,34],[47,6,47,18],[52,31,52,34],[40,2,40,34],[23,9,23,34],[24,2,24,8],[24,9,24,34],[25,9,25,34],[26,9,26,34],[27,9,27,34],[28,2,28,34],[31,28,31,34],[36,2,36,34],[37,2,37,34],[38,2,39,34],[22,2,22,34],[1,32,1,34],[5,9,5,17],[8,2,8,34],[11,2,11,34],[12,28,12,34],[15,7,15,34],[16,10,16,34],[18,2,18,34],[19,2,19,34],[20,2,20,34],[21,2,21,34],[3,31,3,34]]}
[null,null,null,null,null,null,null,null,null,null,null,null,null,null,null,null,null,null,null,null,null,null,null,null,null,null,null,null,null,null,null,null,null,null,"Field Compliance Site Visit Report"]
[null,null,null,null,null,null,null,null,null,null,null,null,null,null,null,null,null,null,null,null,null,null,null,null,null,null,null,null,{"$f":"IF('Insp Rpt'!AG10=\"\",\"\",\"Program No.:\")","v":"Program No.:"},null,null,null,{"$f":"IF('Insp Rpt'!$AG$10=\"\",\"\",'Insp Rpt'!$AG$10)","v":0}]
[]
[null,null,"PART II:   Initial Site Visit (Pre-Demolition)",null,null,null,null,null,null,null,null,null,null,null,null,null,null,null,null,null,null,null,null,null,null,null,null,"Project No.:",null,null,null,{"$f":"'Exhibit A'!C45","v":0}]
[null,null,"Property Address:",null,null,null,null,null,null,{"$f":"'Exhibit A'!F45","v":0}]
[null,null,"Parcel No.:",null,null,null,null,null,null,{"$f":"'Exhibit A'!D45","v":0}]
[null,null,"Expected End Use:",null,null,null,null,null,null,{"$f":"'Exhibit A'!G45","v":0}]
[]
[null,null,"The following section must be completed for each assigned property listed in Exhibit A (attached hereto) PRIOR TO DEMOLITION.  All sections must be completed in its entirety.  Contractors will be required to provide as much details as possible to support their assessment.  Upon completion of each site visit, a copy of this form and photos of the property must be submitted to MHC."]
[]
[]
[null,null,"SITE INFORMATION"]
[null,null,"Number of structures on site:"]
[null,null,"Is the site located in the BEP Target Area?",null,null,null,null,null,null,null,null,null,null,null,null,null,null,null,null,null,null,null,null,null,null,null,null,null,null,null,"Yes",null,null,"No"]
[null,null,"Does there appear to be anything of value or salvageable material on the site?",null,null,null,null,null,null,null,null,null,null,null,null,null,null,null,null,null,null,null,null,null,null,null,null,null,null,null,"Yes",null,null,"No"]
[null,null,"     If yes, describe:"]
[null,null,"     Will it be sold or donated?"]
[null,null,"Describe any other structures on the site (shed, workshop, fence, etc):"]
[]
[null,null,"Describe the suitability of the site entry points for access to and from the site for demolition equipment:  (Please make note of any obstructions or observable liabilities.)"]
[]
[null,null,"SITE CONDITIONS"]
[null,null,"(Describe the condition of the following:)"]
[null,null,"Driveways/Parking Area:"]
[null,null,"Curbing:"]
[null,null,"Sidewalks:"]
[null,null,"Landscaping:"]
[null,null,"Fencing/Walls:"]
[null,null,"PROPERTY INFORMATION"]
[null,null,"Is the property address clearly identified on the building/main entrance?",null,null,null,null,null,null,null,null,null,null,null,null,null,null,null,null,null,null,null,null,null,null,null,null,null,null,null,"Yes",null,null,"No"]
[null,null,"Is the structure to be demolished a Single-Family (1-4 units) Residential Structure?",null,null,null,null,null,null,null,null,null,null,null,null,null,null,null,null,null,null,null,null,null,null,null,null,null,null,null,"Yes",null,null,"No"]
[null,null,"What is the approximate square footage of the the residential structure?"]
[null,null,"Is the structure vacant/abandoned?",null,null,null,null,null,null,null,null,null,null,null,null,null,null,null,null,null,null,null,null,null,null,null,null,null,null,null,"Yes",null,null,"No"]
[null,null,"Does the property have severe structural damage (roof, exterior walls, foundation)?",null,null,null,null,null,null,null,null,null,null,null,null,null,null,null,null,null,null,null,null,null,null,null,null,null,null,null,"Yes",null,null,"No"]
[null,null,"Has all services (power, water, gas, etc) been disconnected?",null,null,null,null,null,null,null,null,null,null,null,null,null,null,null,null,null,null,null,null,null,null,null,null,null,null,null,"Yes",null,null,"No"]
[null,null,"Does the property qualify as a blight structure?",null,null,null,null,null,null,null,null,null,null,null,null,null,null,null,null,null,null,null,null,null,null,null,null,null,null,null,"Yes",null,null,"No"]
[null,null,"NEIGHBORHOOD ASSESSMENT"]
[null,null,"(Describe the neighborhood conditions:)"]
[]
[]
[null,null,"ADDITIONAL INFORMATION"]
[]
[]
[null,null,"Certification"]
[null,null,"I certify that I have carefully inspected this property on this date.  I have no personal interest, present or prospective, in the property, Grantee, Blight Partner, Demolition Contractor, or proceeds of the disbursements from the Grantee's BEP funds.  To the best of my knowledge I have reported all noncompliance, work requiring correction, and unacceptable work to MHC."]
[]
[]
[null,null,"Prepared By:",null,null,null,null,null,null,null,null,null,null,null,null,null,null,null,null,null,null,"Date:"]
[]
[null,null,null,null,null,null,null,null,null,null,null,null,null,null,null,null,null,null,null,null,null,null,null,null,null,null,null,null,null,null,null,null,null,null,"Field Compliance Site Visit Report"]
[null,null,null,null,null,null,null,null,null,null,null,null,null,null,null,null,null,null,null,null,null,null,null,null,null,null,null,null,{"$f":"IF('Insp Rpt'!$AG$10=\"\",\"\",\"Program No.:\")","v":"Program No.:"},null,null,null,{"$f":"IF('Insp Rpt'!$AG$10=\"\",\"\",'Insp Rpt'!$AG$10)","v":0}]
[]
[null,null,"PART III:  Follow-up Site Visit (Post-Demolition)",null,null,null,null,null,null,null,null,null,null,null,null,null,null,null,null,null,null,null,null,null,null,null,null,"Project No.:",null,null,null,{"$f":"'Exhibit A'!C45","v":0}]
[null,null,"Property Address:",null,null,null,null,null,null,{"$f":"J5","v":0}]
[null,null,"Parcel No.:",null,null,null,null,null,null,{"$f":"J6","v":0}]
[null,null,"Expected End Use:",null,null,null,null,null,null,{"$f":"J7","v":0}]
[]
[null,null,"The following section must be completed for each assigned property listed in Exhibit A (attached hereto) AFTER DEMOLITION is complete.  All sections must be completed in its entirety.  Contractors will be required to provide as much details as possible to support their assessment.  Upon completion of each site visit, a copy of this form and photos of the property must be submitted to MHC."]
[]
[]
[null,null,"SITE INFORMATION"]
[null,null,"All portions of the structure, including the foundation, has been removed?",null,null,null,null,null,null,null,null,null,null,null,null,null,null,null,null,null,null,null,null,null,null,null,null,null,null,null,"Yes",null,null,"No"]
[null,null,"All debris has been removed from the property and taken to a landfill?",null,null,null,null,null,null,null,null,null,null,null,null,null,null,null,null,null,null,null,null,null,null,null,null,null,null,null,"Yes",null,null,"No"]
[null,null,"The lot is properly filled, compacted, graded and seeded?",null,null,null,null,null,null,null,null,null,null,null,null,null,null,null,null,null,null,null,null,null,null,null,null,null,null,null,"Yes",null,null,"No"]
[null,null,"Septic tank (if applicable) has been pumped and filled or removed?",null,null,null,null,null,null,null,null,null,null,null,null,null,null,null,null,null,null,null,null,null,null,null,null,null,null,null,"Yes",null,null,"No"]
[]
[null,null,"SITE CONDITIONS"]
[null,null,"(Describe the condition of the following:)"]
[null,null,"Driveways/Parking Area:"]
[null,null,"Curbing:"]
[null,null,"Sidewalks:"]
[null,null,"Landscaping:"]
[null,null,"Fencing/Walls:"]
[]
[null,null,"CORRECTIVE ACTIONS"]
[null,null,"Are there any corrective actions that need to be taken?",null,null,null,null,null,null,null,null,null,null,null,null,null,null,null,null,null,null,null,null,null,null,null,null,null,null,null,"Yes",null,null,"No"]
[null,null,"    If yes, describe:"]
[]
[]
[null,null,"Reinspection Needed?",null,null,null,null,null,null,null,null,null,null,null,null,null,null,null,null,null,null,null,null,null,null,null,null,null,null,null,"Yes",null,null,"No"]
[]
[]
[]
[null,null,"Certification"]
[null,null,"I certify that I have carefully inspected this property on this date.  I have no personal interest, present or prospective, in the property, Grantee, Blight Partner, Demolition Contractor, or proceeds of the disbursements from the Grantee's BEP funds.  To the best of my knowledge I have reported all noncompliance, work requiring correction, and unacceptable work to MHC."]
[]
[]
[null,null,"Prepared By:",null,null,null,null,null,null,null,null,null,null,null,null,null,null,null,null,null,null,"Date:"]

{"sheet":"P35","index":35,"n_rows":88,"n_cols":35,"rows_kept":88,"cut":false,"hidden":true,"merged":[[3,31,3,34],[87,6,87,18],[64,33,64,34],[61,30,61,31],[62,30,62,31],[63,30,63,31],[64,30,64,31],[79,17,79,24],[84,2,84,34],[87,23,87,30],[70,11,70,34],[71,11,71,34],[72,11,72,34],[74,2,74,34],[77,3,77,33],[78,17,78,24],[75,30,75,31],[34,33,34,34],[35,33,35,34],[29,30,29,31],[30,30,30,31],[32,30,32,31],[33,30,33,31],[34,30,34,31],[35,30,35,31],[75,33,75,34],[61,33,61,34],[62,33,62,34],[63,33,63,34],[40,2,40,34],[38,2,39,34],[79,33,79,34],[79,30,79,31],[69,2,69,10],[69,11,69,34],[41,2,41,34],[44,2,44,34],[47,23,47,30],[50,32,50,34],[54,9,54,17],[47,6,47,18],[52,31,52,34],[57,2,57,34],[60,2,60,34],[66,2,66,34],[67,2,67,34],[68,11,68,34],[23,9,23,34],[24,2,24,8],[24,9,24,34],[25,9,25,34],[26,9,26,34],[27,9,27,34],[28,2,28,34],[31,28,31,34],[36,2,36,34],[37,2,37,34],[29,33,29,34],[30,33,30,34],[32,33,32,34],[33,33,33,34],[22,2,22,34],[1,32,1,34],[5,9,5,17],[8,2,8,34],[11,2,11,34],[12,28,12,34],[15,7,15,34],[16,10,16,34],[18,2,18,34],[19,2,19,34],[20,2,20,34],[21,2,21,34],[13,30,13,31],[14,30,14,31],[13,33,13,34],[14,33,14,34]]}
[null,null,null,null,null,null,null,null,null,null,null,null,null,null,null,null,null,null,null,null,null,null,null,null,null,null,null,null,null,null,null,null,null,null,"Field Compliance Site Visit Report"]
[null,null,null,null,null,null,null,null,null,null,null,null,null,null,null,null,null,null,null,null,null,null,null,null,null,null,null,null,{"$f":"IF('Insp Rpt'!AG10=\"\",\"\",\"Program No.:\")","v":"Program No.:"},null,null,null,{"$f":"IF('Insp Rpt'!$AG$10=\"\",\"\",'Insp Rpt'!$AG$10)","v":0}]
[]
[null,null,"PART II:   Initial Site Visit (Pre-Demolition)",null,null,null,null,null,null,null,null,null,null,null,null,null,null,null,null,null,null,null,null,null,null,null,null,"Project No.:",null,null,null,{"$f":"'Exhibit A'!C46","v":0}]
[null,null,"Property Address:",null,null,null,null,null,null,{"$f":"'Exhibit A'!F46","v":0}]
[null,null,"Parcel No.:",null,null,null,null,null,null,{"$f":"'Exhibit A'!D46","v":0}]
[null,null,"Expected End Use:",null,null,null,null,null,null,{"$f":"'Exhibit A'!G46","v":0}]
[]
[null,null,"The following section must be completed for each assigned property listed in Exhibit A (attached hereto) PRIOR TO DEMOLITION.  All sections must be completed in its entirety.  Contractors will be required to provide as much details as possible to support their assessment.  Upon completion of each site visit, a copy of this form and photos of the property must be submitted to MHC."]
[]
[]
[null,null,"SITE INFORMATION"]
[null,null,"Number of structures on site:"]
[null,null,"Is the site located in the BEP Target Area?",null,null,null,null,null,null,null,null,null,null,null,null,null,null,null,null,null,null,null,null,null,null,null,null,null,null,null,"Yes",null,null,"No"]
[null,null,"Does there appear to be anything of value or salvageable material on the site?",null,null,null,null,null,null,null,null,null,null,null,null,null,null,null,null,null,null,null,null,null,null,null,null,null,null,null,"Yes",null,null,"No"]
[null,null,"     If yes, describe:"]
[null,null,"     Will it be sold or donated?"]
[null,null,"Describe any other structures on the site (shed, workshop, fence, etc):"]
[]
[null,null,"Describe the suitability of the site entry points for access to and from the site for demolition equipment:  (Please make note of any obstructions or observable liabilities.)"]
[]
[null,null,"SITE CONDITIONS"]
[null,null,"(Describe the condition of the following:)"]
[null,null,"Driveways/Parking Area:"]
[null,null,"Curbing:"]
[null,null,"Sidewalks:"]
[null,null,"Landscaping:"]
[null,null,"Fencing/Walls:"]
[null,null,"PROPERTY INFORMATION"]
[null,null,"Is the property address clearly identified on the building/main entrance?",null,null,null,null,null,null,null,null,null,null,null,null,null,null,null,null,null,null,null,null,null,null,null,null,null,null,null,"Yes",null,null,"No"]
[null,null,"Is the structure to be demolished a Single-Family (1-4 units) Residential Structure?",null,null,null,null,null,null,null,null,null,null,null,null,null,null,null,null,null,null,null,null,null,null,null,null,null,null,null,"Yes",null,null,"No"]
[null,null,"What is the approximate square footage of the the residential structure?"]
[null,null,"Is the structure vacant/abandoned?",null,null,null,null,null,null,null,null,null,null,null,null,null,null,null,null,null,null,null,null,null,null,null,null,null,null,null,"Yes",null,null,"No"]
[null,null,"Does the property have severe structural damage (roof, exterior walls, foundation)?",null,null,null,null,null,null,null,null,null,null,null,null,null,null,null,null,null,null,null,null,null,null,null,null,null,null,null,"Yes",null,null,"No"]
[null,null,"Has all services (power, water, gas, etc) been disconnected?",null,null,null,null,null,null,null,null,null,null,null,null,null,null,null,null,null,null,null,null,null,null,null,null,null,null,null,"Yes",null,null,"No"]
[null,null,"Does the property qualify as a blight structure?",null,null,null,null,null,null,null,null,null,null,null,null,null,null,null,null,null,null,null,null,null,null,null,null,null,null,null,"Yes",null,null,"No"]
[null,null,"NEIGHBORHOOD ASSESSMENT"]
[null,null,"(Describe the neighborhood conditions:)"]
[]
[]
[null,null,"ADDITIONAL INFORMATION"]
[]
[]
[null,null,"Certification"]
[null,null,"I certify that I have carefully inspected this property on this date.  I have no personal interest, present or prospective, in the property, Grantee, Blight Partner, Demolition Contractor, or proceeds of the disbursements from the Grantee's BEP funds.  To the best of my knowledge I have reported all noncompliance, work requiring correction, and unacceptable work to MHC."]
[]
[]
[null,null,"Prepared By:",null,null,null,null,null,null,null,null,null,null,null,null,null,null,null,null,null,null,"Date:"]
[]
[null,null,null,null,null,null,null,null,null,null,null,null,null,null,null,null,null,null,null,null,null,null,null,null,null,null,null,null,null,null,null,null,null,null,"Field Compliance Site Visit Report"]
[null,null,null,null,null,null,null,null,null,null,null,null,null,null,null,null,null,null,null,null,null,null,null,null,null,null,null,null,{"$f":"IF('Insp Rpt'!$AG$10=\"\",\"\",\"Program No.:\")","v":"Program No.:"},null,null,null,{"$f":"IF('Insp Rpt'!$AG$10=\"\",\"\",'Insp Rpt'!$AG$10)","v":0}]
[]
[null,null,"PART III:  Follow-up Site Visit (Post-Demolition)",null,null,null,null,null,null,null,null,null,null,null,null,null,null,null,null,null,null,null,null,null,null,null,null,"Project No.:",null,null,null,{"$f":"'Exhibit A'!C46","v":0}]
[null,null,"Property Address:",null,null,null,null,null,null,{"$f":"J5","v":0}]
[null,null,"Parcel No.:",null,null,null,null,null,null,{"$f":"J6","v":0}]
[null,null,"Expected End Use:",null,null,null,null,null,null,{"$f":"J7","v":0}]
[]
[null,null,"The following section must be completed for each assigned property listed in Exhibit A (attached hereto) AFTER DEMOLITION is complete.  All sections must be completed in its entirety.  Contractors will be required to provide as much details as possible to support their assessment.  Upon completion of each site visit, a copy of this form and photos of the property must be submitted to MHC."]
[]
[]
[null,null,"SITE INFORMATION"]
[null,null,"All portions of the structure, including the foundation, has been removed?",null,null,null,null,null,null,null,null,null,null,null,null,null,null,null,null,null,null,null,null,null,null,null,null,null,null,null,"Yes",null,null,"No"]
[null,null,"All debris has been removed from the property and taken to a landfill?",null,null,null,null,null,null,null,null,null,null,null,null,null,null,null,null,null,null,null,null,null,null,null,null,null,null,null,"Yes",null,null,"No"]
[null,null,"The lot is properly filled, compacted, graded and seeded?",null,null,null,null,null,null,null,null,null,null,null,null,null,null,null,null,null,null,null,null,null,null,null,null,null,null,null,"Yes",null,null,"No"]
[null,null,"Septic tank (if applicable) has been pumped and filled or removed?",null,null,null,null,null,null,null,null,null,null,null,null,null,null,null,null,null,null,null,null,null,null,null,null,null,null,null,"Yes",null,null,"No"]
[]
[null,null,"SITE CONDITIONS"]
[null,null,"(Describe the condition of the following:)"]
[null,null,"Driveways/Parking Area:"]
[null,null,"Curbing:"]
[null,null,"Sidewalks:"]
[null,null,"Landscaping:"]
[null,null,"Fencing/Walls:"]
[]
[null,null,"CORRECTIVE ACTIONS"]
[null,null,"Are there any corrective actions that need to be taken?",null,null,null,null,null,null,null,null,null,null,null,null,null,null,null,null,null,null,null,null,null,null,null,null,null,null,null,"Yes",null,null,"No"]
[null,null,"    If yes, describe:"]
[]
[]
[null,null,"Reinspection Needed?",null,null,null,null,null,null,null,null,null,null,null,null,null,null,null,null,null,null,null,null,null,null,null,null,null,null,null,"Yes",null,null,"No"]
[]
[]
[]
[null,null,"Certification"]
[null,null,"I certify that I have carefully inspected this property on this date.  I have no personal interest, present or prospective, in the property, Grantee, Blight Partner, Demolition Contractor, or proceeds of the disbursements from the Grantee's BEP funds.  To the best of my knowledge I have reported all noncompliance, work requiring correction, and unacceptable work to MHC."]
[]
[]
[null,null,"Prepared By:",null,null,null,null,null,null,null,null,null,null,null,null,null,null,null,null,null,null,"Date:"]

{"sheet":"P36","index":36,"n_rows":88,"n_cols":35,"rows_kept":88,"cut":false,"hidden":true,"merged":[[79,17,79,24],[84,2,84,34],[87,23,87,30],[70,11,70,34],[71,11,71,34],[72,11,72,34],[74,2,74,34],[77,3,77,33],[78,17,78,24],[87,6,87,18],[69,2,69,10],[69,11,69,34],[41,2,41,34],[44,2,44,34],[47,23,47,30],[50,32,50,34],[54,9,54,17],[57,2,57,34],[60,2,60,34],[66,2,66,34],[67,2,67,34],[68,11,68,34],[47,6,47,18],[52,31,52,34],[40,2,40,34],[23,9,23,34],[24,2,24,8],[24,9,24,34],[25,9,25,34],[26,9,26,34],[27,9,27,34],[28,2,28,34],[31,28,31,34],[36,2,36,34],[37,2,37,34],[38,2,39,34],[22,2,22,34],[1,32,1,34],[5,9,5,17],[8,2,8,34],[11,2,11,34],[12,28,12,34],[15,7,15,34],[16,10,16,34],[18,2,18,34],[19,2,19,34],[20,2,20,34],[21,2,21,34],[3,31,3,34]]}
[null,null,null,null,null,null,null,null,null,null,null,null,null,null,null,null,null,null,null,null,null,null,null,null,null,null,null,null,null,null,null,null,null,null,"Field Compliance Site Visit Report"]
[null,null,null,null,null,null,null,null,null,null,null,null,null,null,null,null,null,null,null,null,null,null,null,null,null,null,null,null,{"$f":"IF('Insp Rpt'!AG10=\"\",\"\",\"Program No.:\")","v":"Program No.:"},null,null,null,{"$f":"IF('Insp Rpt'!$AG$10=\"\",\"\",'Insp Rpt'!$AG$10)","v":0}]
[]
[null,null,"PART II:   Initial Site Visit (Pre-Demolition)",null,null,null,null,null,null,null,null,null,null,null,null,null,null,null,null,null,null,null,null,null,null,null,null,"Project No.:",null,null,null,{"$f":"'Exhibit A'!C47","v":0}]
[null,null,"Property Address:",null,null,null,null,null,null,{"$f":"'Exhibit A'!F47","v":0}]
[null,null,"Parcel No.:",null,null,null,null,null,null,{"$f":"'Exhibit A'!D47","v":0}]
[null,null,"Expected End Use:",null,null,null,null,null,null,{"$f":"'Exhibit A'!G47","v":0}]
[]
[null,null,"The following section must be completed for each assigned property listed in Exhibit A (attached hereto) PRIOR TO DEMOLITION.  All sections must be completed in its entirety.  Contractors will be required to provide as much details as possible to support their assessment.  Upon completion of each site visit, a copy of this form and photos of the property must be submitted to MHC."]
[]
[]
[null,null,"SITE INFORMATION"]
[null,null,"Number of structures on site:"]
[null,null,"Is the site located in the BEP Target Area?",null,null,null,null,null,null,null,null,null,null,null,null,null,null,null,null,null,null,null,null,null,null,null,null,null,null,null,"Yes",null,null,"No"]
[null,null,"Does there appear to be anything of value or salvageable material on the site?",null,null,null,null,null,null,null,null,null,null,null,null,null,null,null,null,null,null,null,null,null,null,null,null,null,null,null,"Yes",null,null,"No"]
[null,null,"     If yes, describe:"]
[null,null,"     Will it be sold or donated?"]
[null,null,"Describe any other structures on the site (shed, workshop, fence, etc):"]
[]
[null,null,"Describe the suitability of the site entry points for access to and from the site for demolition equipment:  (Please make note of any obstructions or observable liabilities.)"]
[]
[null,null,"SITE CONDITIONS"]
[null,null,"(Describe the condition of the following:)"]
[null,null,"Driveways/Parking Area:"]
[null,null,"Curbing:"]
[null,null,"Sidewalks:"]
[null,null,"Landscaping:"]
[null,null,"Fencing/Walls:"]
[null,null,"PROPERTY INFORMATION"]
[null,null,"Is the property address clearly identified on the building/main entrance?",null,null,null,null,null,null,null,null,null,null,null,null,null,null,null,null,null,null,null,null,null,null,null,null,null,null,null,"Yes",null,null,"No"]
[null,null,"Is the structure to be demolished a Single-Family (1-4 units) Residential Structure?",null,null,null,null,null,null,null,null,null,null,null,null,null,null,null,null,null,null,null,null,null,null,null,null,null,null,null,"Yes",null,null,"No"]
[null,null,"What is the approximate square footage of the the residential structure?"]
[null,null,"Is the structure vacant/abandoned?",null,null,null,null,null,null,null,null,null,null,null,null,null,null,null,null,null,null,null,null,null,null,null,null,null,null,null,"Yes",null,null,"No"]
[null,null,"Does the property have severe structural damage (roof, exterior walls, foundation)?",null,null,null,null,null,null,null,null,null,null,null,null,null,null,null,null,null,null,null,null,null,null,null,null,null,null,null,"Yes",null,null,"No"]
[null,null,"Has all services (power, water, gas, etc) been disconnected?",null,null,null,null,null,null,null,null,null,null,null,null,null,null,null,null,null,null,null,null,null,null,null,null,null,null,null,"Yes",null,null,"No"]
[null,null,"Does the property qualify as a blight structure?",null,null,null,null,null,null,null,null,null,null,null,null,null,null,null,null,null,null,null,null,null,null,null,null,null,null,null,"Yes",null,null,"No"]
[null,null,"NEIGHBORHOOD ASSESSMENT"]
[null,null,"(Describe the neighborhood conditions:)"]
[]
[]
[null,null,"ADDITIONAL INFORMATION"]
[]
[]
[null,null,"Certification"]
[null,null,"I certify that I have carefully inspected this property on this date.  I have no personal interest, present or prospective, in the property, Grantee, Blight Partner, Demolition Contractor, or proceeds of the disbursements from the Grantee's BEP funds.  To the best of my knowledge I have reported all noncompliance, work requiring correction, and unacceptable work to MHC."]
[]
[]
[null,null,"Prepared By:",null,null,null,null,null,null,null,null,null,null,null,null,null,null,null,null,null,null,"Date:"]
[]
[null,null,null,null,null,null,null,null,null,null,null,null,null,null,null,null,null,null,null,null,null,null,null,null,null,null,null,null,null,null,null,null,null,null,"Field Compliance Site Visit Report"]
[null,null,null,null,null,null,null,null,null,null,null,null,null,null,null,null,null,null,null,null,null,null,null,null,null,null,null,null,{"$f":"IF('Insp Rpt'!$AG$10=\"\",\"\",\"Program No.:\")","v":"Program No.:"},null,null,null,{"$f":"IF('Insp Rpt'!$AG$10=\"\",\"\",'Insp Rpt'!$AG$10)","v":0}]
[]
[null,null,"PART III:  Follow-up Site Visit (Post-Demolition)",null,null,null,null,null,null,null,null,null,null,null,null,null,null,null,null,null,null,null,null,null,null,null,null,"Project No.:",null,null,null,{"$f":"'Exhibit A'!C47","v":0}]
[null,null,"Property Address:",null,null,null,null,null,null,{"$f":"J5","v":0}]
[null,null,"Parcel No.:",null,null,null,null,null,null,{"$f":"J6","v":0}]
[null,null,"Expected End Use:",null,null,null,null,null,null,{"$f":"J7","v":0}]
[]
[null,null,"The following section must be completed for each assigned property listed in Exhibit A (attached hereto) AFTER DEMOLITION is complete.  All sections must be completed in its entirety.  Contractors will be required to provide as much details as possible to support their assessment.  Upon completion of each site visit, a copy of this form and photos of the property must be submitted to MHC."]
[]
[]
[null,null,"SITE INFORMATION"]
[null,null,"All portions of the structure, including the foundation, has been removed?",null,null,null,null,null,null,null,null,null,null,null,null,null,null,null,null,null,null,null,null,null,null,null,null,null,null,null,"Yes",null,null,"No"]
[null,null,"All debris has been removed from the property and taken to a landfill?",null,null,null,null,null,null,null,null,null,null,null,null,null,null,null,null,null,null,null,null,null,null,null,null,null,null,null,"Yes",null,null,"No"]
[null,null,"The lot is properly filled, compacted, graded and seeded?",null,null,null,null,null,null,null,null,null,null,null,null,null,null,null,null,null,null,null,null,null,null,null,null,null,null,null,"Yes",null,null,"No"]
[null,null,"Septic tank (if applicable) has been pumped and filled or removed?",null,null,null,null,null,null,null,null,null,null,null,null,null,null,null,null,null,null,null,null,null,null,null,null,null,null,null,"Yes",null,null,"No"]
[]
[null,null,"SITE CONDITIONS"]
[null,null,"(Describe the condition of the following:)"]
[null,null,"Driveways/Parking Area:"]
[null,null,"Curbing:"]
[null,null,"Sidewalks:"]
[null,null,"Landscaping:"]
[null,null,"Fencing/Walls:"]
[]
[null,null,"CORRECTIVE ACTIONS"]
[null,null,"Are there any corrective actions that need to be taken?",null,null,null,null,null,null,null,null,null,null,null,null,null,null,null,null,null,null,null,null,null,null,null,null,null,null,null,"Yes",null,null,"No"]
[null,null,"    If yes, describe:"]
[]
[]
[null,null,"Reinspection Needed?",null,null,null,null,null,null,null,null,null,null,null,null,null,null,null,null,null,null,null,null,null,null,null,null,null,null,null,"Yes",null,null,"No"]
[]
[]
[]
[null,null,"Certification"]
[null,null,"I certify that I have carefully inspected this property on this date.  I have no personal interest, present or prospective, in the property, Grantee, Blight Partner, Demolition Contractor, or proceeds of the disbursements from the Grantee's BEP funds.  To the best of my knowledge I have reported all noncompliance, work requiring correction, and unacceptable work to MHC."]
[]
[]
[null,null,"Prepared By:",null,null,null,null,null,null,null,null,null,null,null,null,null,null,null,null,null,null,"Date:"]

{"sheet":"P37","index":37,"n_rows":88,"n_cols":35,"rows_kept":88,"cut":false,"hidden":true,"merged":[[3,31,3,34],[87,6,87,18],[64,33,64,34],[61,30,61,31],[62,30,62,31],[63,30,63,31],[64,30,64,31],[79,17,79,24],[84,2,84,34],[87,23,87,30],[70,11,70,34],[71,11,71,34],[72,11,72,34],[74,2,74,34],[77,3,77,33],[78,17,78,24],[75,33,75,34],[34,33,34,34],[35,33,35,34],[29,30,29,31],[30,30,30,31],[32,30,32,31],[33,30,33,31],[34,30,34,31],[35,30,35,31],[75,30,75,31],[61,33,61,34],[62,33,62,34],[63,33,63,34],[40,2,40,34],[38,2,39,34],[79,33,79,34],[79,30,79,31],[69,2,69,10],[69,11,69,34],[41,2,41,34],[44,2,44,34],[47,23,47,30],[50,32,50,34],[54,9,54,17],[47,6,47,18],[52,31,52,34],[57,2,57,34],[60,2,60,34],[66,2,66,34],[67,2,67,34],[68,11,68,34],[23,9,23,34],[24,2,24,8],[24,9,24,34],[25,9,25,34],[26,9,26,34],[27,9,27,34],[28,2,28,34],[31,28,31,34],[36,2,36,34],[37,2,37,34],[29,33,29,34],[30,33,30,34],[32,33,32,34],[33,33,33,34],[22,2,22,34],[1,32,1,34],[5,9,5,17],[8,2,8,34],[11,2,11,34],[12,28,12,34],[15,7,15,34],[16,10,16,34],[18,2,18,34],[19,2,19,34],[20,2,20,34],[21,2,21,34],[13,30,13,31],[13,33,13,34],[14,33,14,34],[14,30,14,31]]}
[null,null,null,null,null,null,null,null,null,null,null,null,null,null,null,null,null,null,null,null,null,null,null,null,null,null,null,null,null,null,null,null,null,null,"Field Compliance Site Visit Report"]
[null,null,null,null,null,null,null,null,null,null,null,null,null,null,null,null,null,null,null,null,null,null,null,null,null,null,null,null,{"$f":"IF('Insp Rpt'!AG10=\"\",\"\",\"Program No.:\")","v":"Program No.:"},null,null,null,{"$f":"IF('Insp Rpt'!$AG$10=\"\",\"\",'Insp Rpt'!$AG$10)","v":0}]
[]
[null,null,"PART II:   Initial Site Visit (Pre-Demolition)",null,null,null,null,null,null,null,null,null,null,null,null,null,null,null,null,null,null,null,null,null,null,null,null,"Project No.:",null,null,null,{"$f":"'Exhibit A'!C48","v":0}]
[null,null,"Property Address:",null,null,null,null,null,null,{"$f":"'Exhibit A'!F48","v":0}]
[null,null,"Parcel No.:",null,null,null,null,null,null,{"$f":"'Exhibit A'!D48","v":0}]
[null,null,"Expected End Use:",null,null,null,null,null,null,{"$f":"'Exhibit A'!G48","v":0}]
[]
[null,null,"The following section must be completed for each assigned property listed in Exhibit A (attached hereto) PRIOR TO DEMOLITION.  All sections must be completed in its entirety.  Contractors will be required to provide as much details as possible to support their assessment.  Upon completion of each site visit, a copy of this form and photos of the property must be submitted to MHC."]
[]
[]
[null,null,"SITE INFORMATION"]
[null,null,"Number of structures on site:"]
[null,null,"Is the site located in the BEP Target Area?",null,null,null,null,null,null,null,null,null,null,null,null,null,null,null,null,null,null,null,null,null,null,null,null,null,null,null,"Yes",null,null,"No"]
[null,null,"Does there appear to be anything of value or salvageable material on the site?",null,null,null,null,null,null,null,null,null,null,null,null,null,null,null,null,null,null,null,null,null,null,null,null,null,null,null,"Yes",null,null,"No"]
[null,null,"     If yes, describe:"]
[null,null,"     Will it be sold or donated?"]
[null,null,"Describe any other structures on the site (shed, workshop, fence, etc):"]
[]
[null,null,"Describe the suitability of the site entry points for access to and from the site for demolition equipment:  (Please make note of any obstructions or observable liabilities.)"]
[]
[null,null,"SITE CONDITIONS"]
[null,null,"(Describe the condition of the following:)"]
[null,null,"Driveways/Parking Area:"]
[null,null,"Curbing:"]
[null,null,"Sidewalks:"]
[null,null,"Landscaping:"]
[null,null,"Fencing/Walls:"]
[null,null,"PROPERTY INFORMATION"]
[null,null,"Is the property address clearly identified on the building/main entrance?",null,null,null,null,null,null,null,null,null,null,null,null,null,null,null,null,null,null,null,null,null,null,null,null,null,null,null,"Yes",null,null,"No"]
[null,null,"Is the structure to be demolished a Single-Family (1-4 units) Residential Structure?",null,null,null,null,null,null,null,null,null,null,null,null,null,null,null,null,null,null,null,null,null,null,null,null,null,null,null,"Yes",null,null,"No"]
[null,null,"What is the approximate square footage of the the residential structure?"]
[null,null,"Is the structure vacant/abandoned?",null,null,null,null,null,null,null,null,null,null,null,null,null,null,null,null,null,null,null,null,null,null,null,null,null,null,null,"Yes",null,null,"No"]
[null,null,"Does the property have severe structural damage (roof, exterior walls, foundation)?",null,null,null,null,null,null,null,null,null,null,null,null,null,null,null,null,null,null,null,null,null,null,null,null,null,null,null,"Yes",null,null,"No"]
[null,null,"Has all services (power, water, gas, etc) been disconnected?",null,null,null,null,null,null,null,null,null,null,null,null,null,null,null,null,null,null,null,null,null,null,null,null,null,null,null,"Yes",null,null,"No"]
[null,null,"Does the property qualify as a blight structure?",null,null,null,null,null,null,null,null,null,null,null,null,null,null,null,null,null,null,null,null,null,null,null,null,null,null,null,"Yes",null,null,"No"]
[null,null,"NEIGHBORHOOD ASSESSMENT"]
[null,null,"(Describe the neighborhood conditions:)"]
[]
[]
[null,null,"ADDITIONAL INFORMATION"]
[]
[]
[null,null,"Certification"]
[null,null,"I certify that I have carefully inspected this property on this date.  I have no personal interest, present or prospective, in the property, Grantee, Blight Partner, Demolition Contractor, or proceeds of the disbursements from the Grantee's BEP funds.  To the best of my knowledge I have reported all noncompliance, work requiring correction, and unacceptable work to MHC."]
[]
[]
[null,null,"Prepared By:",null,null,null,null,null,null,null,null,null,null,null,null,null,null,null,null,null,null,"Date:"]
[]
[null,null,null,null,null,null,null,null,null,null,null,null,null,null,null,null,null,null,null,null,null,null,null,null,null,null,null,null,null,null,null,null,null,null,"Field Compliance Site Visit Report"]
[null,null,null,null,null,null,null,null,null,null,null,null,null,null,null,null,null,null,null,null,null,null,null,null,null,null,null,null,{"$f":"IF('Insp Rpt'!$AG$10=\"\",\"\",\"Program No.:\")","v":"Program No.:"},null,null,null,{"$f":"IF('Insp Rpt'!$AG$10=\"\",\"\",'Insp Rpt'!$AG$10)","v":0}]
[]
[null,null,"PART III:  Follow-up Site Visit (Post-Demolition)",null,null,null,null,null,null,null,null,null,null,null,null,null,null,null,null,null,null,null,null,null,null,null,null,"Project No.:",null,null,null,{"$f":"'Exhibit A'!C48","v":0}]
[null,null,"Property Address:",null,null,null,null,null,null,{"$f":"J5","v":0}]
[null,null,"Parcel No.:",null,null,null,null,null,null,{"$f":"J6","v":0}]
[null,null,"Expected End Use:",null,null,null,null,null,null,{"$f":"J7","v":0}]
[]
[null,null,"The following section must be completed for each assigned property listed in Exhibit A (attached hereto) AFTER DEMOLITION is complete.  All sections must be completed in its entirety.  Contractors will be required to provide as much details as possible to support their assessment.  Upon completion of each site visit, a copy of this form and photos of the property must be submitted to MHC."]
[]
[]
[null,null,"SITE INFORMATION"]
[null,null,"All portions of the structure, including the foundation, has been removed?",null,null,null,null,null,null,null,null,null,null,null,null,null,null,null,null,null,null,null,null,null,null,null,null,null,null,null,"Yes",null,null,"No"]
[null,null,"All debris has been removed from the property and taken to a landfill?",null,null,null,null,null,null,null,null,null,null,null,null,null,null,null,null,null,null,null,null,null,null,null,null,null,null,null,"Yes",null,null,"No"]
[null,null,"The lot is properly filled, compacted, graded and seeded?",null,null,null,null,null,null,null,null,null,null,null,null,null,null,null,null,null,null,null,null,null,null,null,null,null,null,null,"Yes",null,null,"No"]
[null,null,"Septic tank (if applicable) has been pumped and filled or removed?",null,null,null,null,null,null,null,null,null,null,null,null,null,null,null,null,null,null,null,null,null,null,null,null,null,null,null,"Yes",null,null,"No"]
[]
[null,null,"SITE CONDITIONS"]
[null,null,"(Describe the condition of the following:)"]
[null,null,"Driveways/Parking Area:"]
[null,null,"Curbing:"]
[null,null,"Sidewalks:"]
[null,null,"Landscaping:"]
[null,null,"Fencing/Walls:"]
[]
[null,null,"CORRECTIVE ACTIONS"]
[null,null,"Are there any corrective actions that need to be taken?",null,null,null,null,null,null,null,null,null,null,null,null,null,null,null,null,null,null,null,null,null,null,null,null,null,null,null,"Yes",null,null,"No"]
[null,null,"    If yes, describe:"]
[]
[]
[null,null,"Reinspection Needed?",null,null,null,null,null,null,null,null,null,null,null,null,null,null,null,null,null,null,null,null,null,null,null,null,null,null,null,"Yes",null,null,"No"]
[]
[]
[]
[null,null,"Certification"]
[null,null,"I certify that I have carefully inspected this property on this date.  I have no personal interest, present or prospective, in the property, Grantee, Blight Partner, Demolition Contractor, or proceeds of the disbursements from the Grantee's BEP funds.  To the best of my knowledge I have reported all noncompliance, work requiring correction, and unacceptable work to MHC."]
[]
[]
[null,null,"Prepared By:",null,null,null,null,null,null,null,null,null,null,null,null,null,null,null,null,null,null,"Date:"]

{"sheet":"P38","index":38,"n_rows":88,"n_cols":35,"rows_kept":88,"cut":false,"hidden":true,"merged":[[3,31,3,34],[87,6,87,18],[64,33,64,34],[61,30,61,31],[62,30,62,31],[63,30,63,31],[64,30,64,31],[79,17,79,24],[84,2,84,34],[87,23,87,30],[70,11,70,34],[71,11,71,34],[72,11,72,34],[74,2,74,34],[77,3,77,33],[78,17,78,24],[38,2,39,34],[75,30,75,31],[32,30,32,31],[33,30,33,31],[34,30,34,31],[35,30,35,31],[75,33,75,34],[61,33,61,34],[62,33,62,34],[63,33,63,34],[40,2,40,34],[79,33,79,34],[79,30,79,31],[69,2,69,10],[69,11,69,34],[41,2,41,34],[44,2,44,34],[47,23,47,30],[50,32,50,34],[54,9,54,17],[47,6,47,18],[52,31,52,34],[57,2,57,34],[60,2,60,34],[66,2,66,34],[67,2,67,34],[68,11,68,34],[23,9,23,34],[24,2,24,8],[24,9,24,34],[25,9,25,34],[26,9,26,34],[27,9,27,34],[28,2,28,34],[31,28,31,34],[36,2,36,34],[37,2,37,34],[29,33,29,34],[30,33,30,34],[29,30,29,31],[30,30,30,31],[32,33,32,34],[33,33,33,34],[34,33,34,34],[35,33,35,34],[22,2,22,34],[1,32,1,34],[5,9,5,17],[8,2,8,34],[11,2,11,34],[12,28,12,34],[15,7,15,34],[16,10,16,34],[18,2,18,34],[19,2,19,34],[20,2,20,34],[21,2,21,34],[13,30,13,31],[13,33,13,34],[14,33,14,34],[14,30,14,31]]}
[null,null,null,null,null,null,null,null,null,null,null,null,null,null,null,null,null,null,null,null,null,null,null,null,null,null,null,null,null,null,null,null,null,null,"Field Compliance Site Visit Report"]
[null,null,null,null,null,null,null,null,null,null,null,null,null,null,null,null,null,null,null,null,null,null,null,null,null,null,null,null,{"$f":"IF('Insp Rpt'!AG10=\"\",\"\",\"Program No.:\")","v":"Program No.:"},null,null,null,{"$f":"IF('Insp Rpt'!$AG$10=\"\",\"\",'Insp Rpt'!$AG$10)","v":0}]
[]
[null,null,"PART II:   Initial Site Visit (Pre-Demolition)",null,null,null,null,null,null,null,null,null,null,null,null,null,null,null,null,null,null,null,null,null,null,null,null,"Project No.:",null,null,null,{"$f":"'Exhibit A'!C49","v":0}]
[null,null,"Property Address:",null,null,null,null,null,null,{"$f":"'Exhibit A'!F49","v":0}]
[null,null,"Parcel No.:",null,null,null,null,null,null,{"$f":"'Exhibit A'!D49","v":0}]
[null,null,"Expected End Use:",null,null,null,null,null,null,{"$f":"'Exhibit A'!G49","v":0}]
[]
[null,null,"The following section must be completed for each assigned property listed in Exhibit A (attached hereto) PRIOR TO DEMOLITION.  All sections must be completed in its entirety.  Contractors will be required to provide as much details as possible to support their assessment.  Upon completion of each site visit, a copy of this form and photos of the property must be submitted to MHC."]
[]
[]
[null,null,"SITE INFORMATION"]
[null,null,"Number of structures on site:"]
[null,null,"Is the site located in the BEP Target Area?",null,null,null,null,null,null,null,null,null,null,null,null,null,null,null,null,null,null,null,null,null,null,null,null,null,null,null,"Yes",null,null,"No"]
[null,null,"Does there appear to be anything of value or salvageable material on the site?",null,null,null,null,null,null,null,null,null,null,null,null,null,null,null,null,null,null,null,null,null,null,null,null,null,null,null,"Yes",null,null,"No"]
[null,null,"     If yes, describe:"]
[null,null,"     Will it be sold or donated?"]
[null,null,"Describe any other structures on the site (shed, workshop, fence, etc):"]
[]
[null,null,"Describe the suitability of the site entry points for access to and from the site for demolition equipment:  (Please make note of any obstructions or observable liabilities.)"]
[]
[null,null,"SITE CONDITIONS"]
[null,null,"(Describe the condition of the following:)"]
[null,null,"Driveways/Parking Area:"]
[null,null,"Curbing:"]
[null,null,"Sidewalks:"]
[null,null,"Landscaping:"]
[null,null,"Fencing/Walls:"]
[null,null,"PROPERTY INFORMATION"]
[null,null,"Is the property address clearly identified on the building/main entrance?",null,null,null,null,null,null,null,null,null,null,null,null,null,null,null,null,null,null,null,null,null,null,null,null,null,null,null,"Yes",null,null,"No"]
[null,null,"Is the structure to be demolished a Single-Family (1-4 units) Residential Structure?",null,null,null,null,null,null,null,null,null,null,null,null,null,null,null,null,null,null,null,null,null,null,null,null,null,null,null,"Yes",null,null,"No"]
[null,null,"What is the approximate square footage of the the residential structure?"]
[null,null,"Is the structure vacant/abandoned?",null,null,null,null,null,null,null,null,null,null,null,null,null,null,null,null,null,null,null,null,null,null,null,null,null,null,null,"Yes",null,null,"No"]
[null,null,"Does the property have severe structural damage (roof, exterior walls, foundation)?",null,null,null,null,null,null,null,null,null,null,null,null,null,null,null,null,null,null,null,null,null,null,null,null,null,null,null,"Yes",null,null,"No"]
[null,null,"Has all services (power, water, gas, etc) been disconnected?",null,null,null,null,null,null,null,null,null,null,null,null,null,null,null,null,null,null,null,null,null,null,null,null,null,null,null,"Yes",null,null,"No"]
[null,null,"Does the property qualify as a blight structure?",null,null,null,null,null,null,null,null,null,null,null,null,null,null,null,null,null,null,null,null,null,null,null,null,null,null,null,"Yes",null,null,"No"]
[null,null,"NEIGHBORHOOD ASSESSMENT"]
[null,null,"(Describe the neighborhood conditions:)"]
[]
[]
[null,null,"ADDITIONAL INFORMATION"]
[]
[]
[null,null,"Certification"]
[null,null,"I certify that I have carefully inspected this property on this date.  I have no personal interest, present or prospective, in the property, Grantee, Blight Partner, Demolition Contractor, or proceeds of the disbursements from the Grantee's BEP funds.  To the best of my knowledge I have reported all noncompliance, work requiring correction, and unacceptable work to MHC."]
[]
[]
[null,null,"Prepared By:",null,null,null,null,null,null,null,null,null,null,null,null,null,null,null,null,null,null,"Date:"]
[]
[null,null,null,null,null,null,null,null,null,null,null,null,null,null,null,null,null,null,null,null,null,null,null,null,null,null,null,null,null,null,null,null,null,null,"Field Compliance Site Visit Report"]
[null,null,null,null,null,null,null,null,null,null,null,null,null,null,null,null,null,null,null,null,null,null,null,null,null,null,null,null,{"$f":"IF('Insp Rpt'!$AG$10=\"\",\"\",\"Program No.:\")","v":"Program No.:"},null,null,null,{"$f":"IF('Insp Rpt'!$AG$10=\"\",\"\",'Insp Rpt'!$AG$10)","v":0}]
[]
[null,null,"PART III:  Follow-up Site Visit (Post-Demolition)",null,null,null,null,null,null,null,null,null,null,null,null,null,null,null,null,null,null,null,null,null,null,null,null,"Project No.:",null,null,null,{"$f":"'Exhibit A'!C49","v":0}]
[null,null,"Property Address:",null,null,null,null,null,null,{"$f":"J5","v":0}]
[null,null,"Parcel No.:",null,null,null,null,null,null,{"$f":"J6","v":0}]
[null,null,"Expected End Use:",null,null,null,null,null,null,{"$f":"J7","v":0}]
[]
[null,null,"The following section must be completed for each assigned property listed in Exhibit A (attached hereto) AFTER DEMOLITION is complete.  All sections must be completed in its entirety.  Contractors will be required to provide as much details as possible to support their assessment.  Upon completion of each site visit, a copy of this form and photos of the property must be submitted to MHC."]
[]
[]
[null,null,"SITE INFORMATION"]
[null,null,"All portions of the structure, including the foundation, has been removed?",null,null,null,null,null,null,null,null,null,null,null,null,null,null,null,null,null,null,null,null,null,null,null,null,null,null,null,"Yes",null,null,"No"]
[null,null,"All debris has been removed from the property and taken to a landfill?",null,null,null,null,null,null,null,null,null,null,null,null,null,null,null,null,null,null,null,null,null,null,null,null,null,null,null,"Yes",null,null,"No"]
[null,null,"The lot is properly filled, compacted, graded and seeded?",null,null,null,null,null,null,null,null,null,null,null,null,null,null,null,null,null,null,null,null,null,null,null,null,null,null,null,"Yes",null,null,"No"]
[null,null,"Septic tank (if applicable) has been pumped and filled or removed?",null,null,null,null,null,null,null,null,null,null,null,null,null,null,null,null,null,null,null,null,null,null,null,null,null,null,null,"Yes",null,null,"No"]
[]
[null,null,"SITE CONDITIONS"]
[null,null,"(Describe the condition of the following:)"]
[null,null,"Driveways/Parking Area:"]
[null,null,"Curbing:"]
[null,null,"Sidewalks:"]
[null,null,"Landscaping:"]
[null,null,"Fencing/Walls:"]
[]
[null,null,"CORRECTIVE ACTIONS"]
[null,null,"Are there any corrective actions that need to be taken?",null,null,null,null,null,null,null,null,null,null,null,null,null,null,null,null,null,null,null,null,null,null,null,null,null,null,null,"Yes",null,null,"No"]
[null,null,"    If yes, describe:"]
[]
[]
[null,null,"Reinspection Needed?",null,null,null,null,null,null,null,null,null,null,null,null,null,null,null,null,null,null,null,null,null,null,null,null,null,null,null,"Yes",null,null,"No"]
[]
[]
[]
[null,null,"Certification"]
[null,null,"I certify that I have carefully inspected this property on this date.  I have no personal interest, present or prospective, in the property, Grantee, Blight Partner, Demolition Contractor, or proceeds of the disbursements from the Grantee's BEP funds.  To the best of my knowledge I have reported all noncompliance, work requiring correction, and unacceptable work to MHC."]
[]
[]
[null,null,"Prepared By:",null,null,null,null,null,null,null,null,null,null,null,null,null,null,null,null,null,null,"Date:"]

{"sheet":"P39","index":39,"n_rows":88,"n_cols":35,"rows_kept":88,"cut":false,"hidden":true,"merged":[[22,2,22,34],[1,32,1,34],[5,9,5,17],[8,2,8,34],[11,2,11,34],[12,28,12,34],[15,7,15,34],[16,10,16,34],[18,2,18,34],[19,2,19,34],[20,2,20,34],[21,2,21,34],[3,31,3,34],[40,2,40,34],[23,9,23,34],[24,2,24,8],[24,9,24,34],[25,9,25,34],[26,9,26,34],[27,9,27,34],[28,2,28,34],[31,28,31,34],[36,2,36,34],[37,2,37,34],[38,2,39,34],[69,2,69,10],[69,11,69,34],[41,2,41,34],[44,2,44,34],[47,23,47,30],[50,32,50,34],[54,9,54,17],[57,2,57,34],[60,2,60,34],[66,2,66,34],[67,2,67,34],[68,11,68,34],[47,6,47,18],[52,31,52,34],[79,17,79,24],[84,2,84,34],[87,23,87,30],[70,11,70,34],[71,11,71,34],[72,11,72,34],[74,2,74,34],[77,3,77,33],[78,17,78,24],[87,6,87,18]]}
[null,null,null,null,null,null,null,null,null,null,null,null,null,null,null,null,null,null,null,null,null,null,null,null,null,null,null,null,null,null,null,null,null,null,"Field Compliance Site Visit Report"]
[null,null,null,null,null,null,null,null,null,null,null,null,null,null,null,null,null,null,null,null,null,null,null,null,null,null,null,null,{"$f":"IF('Insp Rpt'!AG10=\"\",\"\",\"Program No.:\")","v":"Program No.:"},null,null,null,{"$f":"IF('Insp Rpt'!$AG$10=\"\",\"\",'Insp Rpt'!$AG$10)","v":0}]
[]
[null,null,"PART II:   Initial Site Visit (Pre-Demolition)",null,null,null,null,null,null,null,null,null,null,null,null,null,null,null,null,null,null,null,null,null,null,null,null,"Project No.:",null,null,null,{"$f":"'Exhibit A'!C50","v":0}]
[null,null,"Property Address:",null,null,null,null,null,null,{"$f":"'Exhibit A'!F50","v":0}]
[null,null,"Parcel No.:",null,null,null,null,null,null,{"$f":"'Exhibit A'!D50","v":0}]
[null,null,"Expected End Use:",null,null,null,null,null,null,{"$f":"'Exhibit A'!G50","v":0}]
[]
[null,null,"The following section must be completed for each assigned property listed in Exhibit A (attached hereto) PRIOR TO DEMOLITION.  All sections must be completed in its entirety.  Contractors will be required to provide as much details as possible to support their assessment.  Upon completion of each site visit, a copy of this form and photos of the property must be submitted to MHC."]
[]
[]
[null,null,"SITE INFORMATION"]
[null,null,"Number of structures on site:",null,null,null,null,null,null,null,null,null,null,null,null,null,null,null,null,null,null,null,null,null,null,null,null,null,"bep-17MHC"]
[null,null,"Is the site located in the BEP Target Area?",null,null,null,null,null,null,null,null,null,null,null,null,null,null,null,null,null,null,null,null,null,null,null,null,null,null,null,"Yes",null,null,"No"]
[null,null,"Does there appear to be anything of value or salvageable material on the site?",null,null,null,null,null,null,null,null,null,null,null,null,null,null,null,null,null,null,null,null,null,null,null,null,null,null,null,"Yes",null,null,"No"]
[null,null,"     If yes, describe:"]
[null,null,"     Will it be sold or donated?"]
[null,null,"Describe any other structures on the site (shed, workshop, fence, etc):"]
[]
[null,null,"Describe the suitability of the site entry points for access to and from the site for demolition equipment:  (Please make note of any obstructions or observable liabilities.)"]
[]
[null,null,"SITE CONDITIONS"]
[null,null,"(Describe the condition of the following:)"]
[null,null,"Driveways/Parking Area:"]
[null,null,"Curbing:"]
[null,null,"Sidewalks:"]
[null,null,"Landscaping:"]
[null,null,"Fencing/Walls:"]
[null,null,"PROPERTY INFORMATION"]
[null,null,"Is the property address clearly identified on the building/main entrance?",null,null,null,null,null,null,null,null,null,null,null,null,null,null,null,null,null,null,null,null,null,null,null,null,null,null,null,"Yes",null,null,"No"]
[null,null,"Is the structure to be demolished a Single-Family (1-4 units) Residential Structure?",null,null,null,null,null,null,null,null,null,null,null,null,null,null,null,null,null,null,null,null,null,null,null,null,null,null,null,"Yes",null,null,"No"]
[null,null,"What is the approximate square footage of the the residential structure?"]
[null,null,"Is the structure vacant/abandoned?",null,null,null,null,null,null,null,null,null,null,null,null,null,null,null,null,null,null,null,null,null,null,null,null,null,null,null,"Yes",null,null,"No"]
[null,null,"Does the property have severe structural damage (roof, exterior walls, foundation)?",null,null,null,null,null,null,null,null,null,null,null,null,null,null,null,null,null,null,null,null,null,null,null,null,null,null,null,"Yes",null,null,"No"]
[null,null,"Has all services (power, water, gas, etc) been disconnected?",null,null,null,null,null,null,null,null,null,null,null,null,null,null,null,null,null,null,null,null,null,null,null,null,null,null,null,"Yes",null,null,"No"]
[null,null,"Does the property qualify as a blight structure?",null,null,null,null,null,null,null,null,null,null,null,null,null,null,null,null,null,null,null,null,null,null,null,null,null,null,null,"Yes",null,null,"No"]
[null,null,"NEIGHBORHOOD ASSESSMENT"]
[null,null,"(Describe the neighborhood conditions:)"]
[]
[]
[null,null,"ADDITIONAL INFORMATION"]
[]
[]
[null,null,"Certification"]
[null,null,"I certify that I have carefully inspected this property on this date.  I have no personal interest, present or prospective, in the property, Grantee, Blight Partner, Demolition Contractor, or proceeds of the disbursements from the Grantee's BEP funds.  To the best of my knowledge I have reported all noncompliance, work requiring correction, and unacceptable work to MHC."]
[]
[]
[null,null,"Prepared By:",null,null,null,null,null,null,null,null,null,null,null,null,null,null,null,null,null,null,"Date:"]
[]
[null,null,null,null,null,null,null,null,null,null,null,null,null,null,null,null,null,null,null,null,null,null,null,null,null,null,null,null,null,null,null,null,null,null,"Field Compliance Site Visit Report"]
[null,null,null,null,null,null,null,null,null,null,null,null,null,null,null,null,null,null,null,null,null,null,null,null,null,null,null,null,{"$f":"IF('Insp Rpt'!$AG$10=\"\",\"\",\"Program No.:\")","v":"Program No.:"},null,null,null,{"$f":"IF('Insp Rpt'!$AG$10=\"\",\"\",'Insp Rpt'!$AG$10)","v":0}]
[]
[null,null,"PART III:  Follow-up Site Visit (Post-Demolition)",null,null,null,null,null,null,null,null,null,null,null,null,null,null,null,null,null,null,null,null,null,null,null,null,"Project No.:",null,null,null,{"$f":"'Exhibit A'!C50","v":0}]
[null,null,"Property Address:",null,null,null,null,null,null,{"$f":"J5","v":0}]
[null,null,"Parcel No.:",null,null,null,null,null,null,{"$f":"J6","v":0}]
[null,null,"Expected End Use:",null,null,null,null,null,null,{"$f":"J7","v":0}]
[]
[null,null,"The following section must be completed for each assigned property listed in Exhibit A (attached hereto) AFTER DEMOLITION is complete.  All sections must be completed in its entirety.  Contractors will be required to provide as much details as possible to support their assessment.  Upon completion of each site visit, a copy of this form and photos of the property must be submitted to MHC."]
[]
[]
[null,null,"SITE INFORMATION"]
[null,null,"All portions of the structure, including the foundation, has been removed?",null,null,null,null,null,null,null,null,null,null,null,null,null,null,null,null,null,null,null,null,null,null,null,null,null,null,null,"Yes",null,null,"No"]
[null,null,"All debris has been removed from the property and taken to a landfill?",null,null,null,null,null,null,null,null,null,null,null,null,null,null,null,null,null,null,null,null,null,null,null,null,null,null,null,"Yes",null,null,"No"]
[null,null,"The lot is properly filled, compacted, graded and seeded?",null,null,null,null,null,null,null,null,null,null,null,null,null,null,null,null,null,null,null,null,null,null,null,null,null,null,null,"Yes",null,null,"No"]
[null,null,"Septic tank (if applicable) has been pumped and filled or removed?",null,null,null,null,null,null,null,null,null,null,null,null,null,null,null,null,null,null,null,null,null,null,null,null,null,null,null,"Yes",null,null,"No"]
[]
[null,null,"SITE CONDITIONS"]
[null,null,"(Describe the condition of the following:)"]
[null,null,"Driveways/Parking Area:"]
[null,null,"Curbing:"]
[null,null,"Sidewalks:"]
[null,null,"Landscaping:"]
[null,null,"Fencing/Walls:"]
[]
[null,null,"CORRECTIVE ACTIONS"]
[null,null,"Are there any corrective actions that need to be taken?",null,null,null,null,null,null,null,null,null,null,null,null,null,null,null,null,null,null,null,null,null,null,null,null,null,null,null,"Yes",null,null,"No"]
[null,null,"    If yes, describe:"]
[]
[]
[null,null,"Reinspection Needed?",null,null,null,null,null,null,null,null,null,null,null,null,null,null,null,null,null,null,null,null,null,null,null,null,null,null,null,"Yes",null,null,"No"]
[]
[]
[]
[null,null,"Certification"]
[null,null,"I certify that I have carefully inspected this property on this date.  I have no personal interest, present or prospective, in the property, Grantee, Blight Partner, Demolition Contractor, or proceeds of the disbursements from the Grantee's BEP funds.  To the best of my knowledge I have reported all noncompliance, work requiring correction, and unacceptable work to MHC."]
[]
[]
[null,null,"Prepared By:",null,null,null,null,null,null,null,null,null,null,null,null,null,null,null,null,null,null,"Date:"]

{"sheet":"P40","index":40,"n_rows":88,"n_cols":35,"rows_kept":88,"cut":false,"hidden":true,"merged":[[22,2,22,34],[1,32,1,34],[5,9,5,17],[8,2,8,34],[11,2,11,34],[12,28,12,34],[15,7,15,34],[16,10,16,34],[18,2,18,34],[19,2,19,34],[20,2,20,34],[21,2,21,34],[3,31,3,34],[40,2,40,34],[23,9,23,34],[24,2,24,8],[24,9,24,34],[25,9,25,34],[26,9,26,34],[27,9,27,34],[28,2,28,34],[31,28,31,34],[36,2,36,34],[37,2,37,34],[38,2,39,34],[69,2,69,10],[69,11,69,34],[41,2,41,34],[44,2,44,34],[47,23,47,30],[50,32,50,34],[54,9,54,17],[57,2,57,34],[60,2,60,34],[66,2,66,34],[67,2,67,34],[68,11,68,34],[47,6,47,18],[52,31,52,34],[79,17,79,24],[84,2,84,34],[87,23,87,30],[70,11,70,34],[71,11,71,34],[72,11,72,34],[74,2,74,34],[77,3,77,33],[78,17,78,24],[87,6,87,18]]}
[null,null,null,null,null,null,null,null,null,null,null,null,null,null,null,null,null,null,null,null,null,null,null,null,null,null,null,null,null,null,null,null,null,null,"Field Compliance Site Visit Report"]
[null,null,null,null,null,null,null,null,null,null,null,null,null,null,null,null,null,null,null,null,null,null,null,null,null,null,null,null,{"$f":"IF('Insp Rpt'!AG10=\"\",\"\",\"Program No.:\")","v":"Program No.:"},null,null,null,{"$f":"IF('Insp Rpt'!$AG$10=\"\",\"\",'Insp Rpt'!$AG$10)","v":0}]
[]
[null,null,"PART II:   Initial Site Visit (Pre-Demolition)",null,null,null,null,null,null,null,null,null,null,null,null,null,null,null,null,null,null,null,null,null,null,null,null,"Project No.:",null,null,null,{"$f":"'Exhibit A'!C51","v":0}]
[null,null,"Property Address:",null,null,null,null,null,null,{"$f":"'Exhibit A'!F51","v":0}]
[null,null,"Parcel No.:",null,null,null,null,null,null,{"$f":"'Exhibit A'!D51","v":0}]
[null,null,"Expected End Use:",null,null,null,null,null,null,{"$f":"'Exhibit A'!G51","v":0}]
[]
[null,null,"The following section must be completed for each assigned property listed in Exhibit A (attached hereto) PRIOR TO DEMOLITION.  All sections must be completed in its entirety.  Contractors will be required to provide as much details as possible to support their assessment.  Upon completion of each site visit, a copy of this form and photos of the property must be submitted to MHC."]
[]
[]
[null,null,"SITE INFORMATION"]
[null,null,"Number of structures on site:"]
[null,null,"Is the site located in the BEP Target Area?",null,null,null,null,null,null,null,null,null,null,null,null,null,null,null,null,null,null,null,null,null,null,null,null,null,null,null,"Yes",null,null,"No"]
[null,null,"Does there appear to be anything of value or salvageable material on the site?",null,null,null,null,null,null,null,null,null,null,null,null,null,null,null,null,null,null,null,null,null,null,null,null,null,null,null,"Yes",null,null,"No"]
[null,null,"     If yes, describe:"]
[null,null,"     Will it be sold or donated?"]
[null,null,"Describe any other structures on the site (shed, workshop, fence, etc):"]
[]
[null,null,"Describe the suitability of the site entry points for access to and from the site for demolition equipment:  (Please make note of any obstructions or observable liabilities.)"]
[]
[null,null,"SITE CONDITIONS"]
[null,null,"(Describe the condition of the following:)"]
[null,null,"Driveways/Parking Area:"]
[null,null,"Curbing:"]
[null,null,"Sidewalks:"]
[null,null,"Landscaping:"]
[null,null,"Fencing/Walls:"]
[null,null,"PROPERTY INFORMATION"]
[null,null,"Is the property address clearly identified on the building/main entrance?",null,null,null,null,null,null,null,null,null,null,null,null,null,null,null,null,null,null,null,null,null,null,null,null,null,null,null,"Yes",null,null,"No"]
[null,null,"Is the structure to be demolished a Single-Family (1-4 units) Residential Structure?",null,null,null,null,null,null,null,null,null,null,null,null,null,null,null,null,null,null,null,null,null,null,null,null,null,null,null,"Yes",null,null,"No"]
[null,null,"What is the approximate square footage of the the residential structure?"]
[null,null,"Is the structure vacant/abandoned?",null,null,null,null,null,null,null,null,null,null,null,null,null,null,null,null,null,null,null,null,null,null,null,null,null,null,null,"Yes",null,null,"No"]
[null,null,"Does the property have severe structural damage (roof, exterior walls, foundation)?",null,null,null,null,null,null,null,null,null,null,null,null,null,null,null,null,null,null,null,null,null,null,null,null,null,null,null,"Yes",null,null,"No"]
[null,null,"Has all services (power, water, gas, etc) been disconnected?",null,null,null,null,null,null,null,null,null,null,null,null,null,null,null,null,null,null,null,null,null,null,null,null,null,null,null,"Yes",null,null,"No"]
[null,null,"Does the property qualify as a blight structure?",null,null,null,null,null,null,null,null,null,null,null,null,null,null,null,null,null,null,null,null,null,null,null,null,null,null,null,"Yes",null,null,"No"]
[null,null,"NEIGHBORHOOD ASSESSMENT"]
[null,null,"(Describe the neighborhood conditions:)"]
[]
[]
[null,null,"ADDITIONAL INFORMATION"]
[]
[]
[null,null,"Certification"]
[null,null,"I certify that I have carefully inspected this property on this date.  I have no personal interest, present or prospective, in the property, Grantee, Blight Partner, Demolition Contractor, or proceeds of the disbursements from the Grantee's BEP funds.  To the best of my knowledge I have reported all noncompliance, work requiring correction, and unacceptable work to MHC."]
[]
[]
[null,null,"Prepared By:",null,null,null,null,null,null,null,null,null,null,null,null,null,null,null,null,null,null,"Date:"]
[]
[null,null,null,null,null,null,null,null,null,null,null,null,null,null,null,null,null,null,null,null,null,null,null,null,null,null,null,null,null,null,null,null,null,null,"Field Compliance Site Visit Report"]
[null,null,null,null,null,null,null,null,null,null,null,null,null,null,null,null,null,null,null,null,null,null,null,null,null,null,null,null,{"$f":"IF('Insp Rpt'!$AG$10=\"\",\"\",\"Program No.:\")","v":"Program No.:"},null,null,null,{"$f":"IF('Insp Rpt'!$AG$10=\"\",\"\",'Insp Rpt'!$AG$10)","v":0}]
[]
[null,null,"PART III:  Follow-up Site Visit (Post-Demolition)",null,null,null,null,null,null,null,null,null,null,null,null,null,null,null,null,null,null,null,null,null,null,null,null,"Project No.:",null,null,null,{"$f":"'Exhibit A'!C51","v":0}]
[null,null,"Property Address:",null,null,null,null,null,null,{"$f":"J5","v":0}]
[null,null,"Parcel No.:",null,null,null,null,null,null,{"$f":"J6","v":0}]
[null,null,"Expected End Use:",null,null,null,null,null,null,{"$f":"J7","v":0}]
[]
[null,null,"The following section must be completed for each assigned property listed in Exhibit A (attached hereto) AFTER DEMOLITION is complete.  All sections must be completed in its entirety.  Contractors will be required to provide as much details as possible to support their assessment.  Upon completion of each site visit, a copy of this form and photos of the property must be submitted to MHC."]
[]
[]
[null,null,"SITE INFORMATION"]
[null,null,"All portions of the structure, including the foundation, has been removed?",null,null,null,null,null,null,null,null,null,null,null,null,null,null,null,null,null,null,null,null,null,null,null,null,null,null,null,"Yes",null,null,"No"]
[null,null,"All debris has been removed from the property and taken to a landfill?",null,null,null,null,null,null,null,null,null,null,null,null,null,null,null,null,null,null,null,null,null,null,null,null,null,null,null,"Yes",null,null,"No"]
[null,null,"The lot is properly filled, compacted, graded and seeded?",null,null,null,null,null,null,null,null,null,null,null,null,null,null,null,null,null,null,null,null,null,null,null,null,null,null,null,"Yes",null,null,"No"]
[null,null,"Septic tank (if applicable) has been pumped and filled or removed?",null,null,null,null,null,null,null,null,null,null,null,null,null,null,null,null,null,null,null,null,null,null,null,null,null,null,null,"Yes",null,null,"No"]
[]
[null,null,"SITE CONDITIONS"]
[null,null,"(Describe the condition of the following:)"]
[null,null,"Driveways/Parking Area:"]
[null,null,"Curbing:"]
[null,null,"Sidewalks:"]
[null,null,"Landscaping:"]
[null,null,"Fencing/Walls:"]
[]
[null,null,"CORRECTIVE ACTIONS"]
[null,null,"Are there any corrective actions that need to be taken?",null,null,null,null,null,null,null,null,null,null,null,null,null,null,null,null,null,null,null,null,null,null,null,null,null,null,null,"Yes",null,null,"No"]
[null,null,"    If yes, describe:"]
[]
[]
[null,null,"Reinspection Needed?",null,null,null,null,null,null,null,null,null,null,null,null,null,null,null,null,null,null,null,null,null,null,null,null,null,null,null,"Yes",null,null,"No"]
[]
[]
[]
[null,null,"Certification"]
[null,null,"I certify that I have carefully inspected this property on this date.  I have no personal interest, present or prospective, in the property, Grantee, Blight Partner, Demolition Contractor, or proceeds of the disbursements from the Grantee's BEP funds.  To the best of my knowledge I have reported all noncompliance, work requiring correction, and unacceptable work to MHC."]
[]
[]
[null,null,"Prepared By:",null,null,null,null,null,null,null,null,null,null,null,null,null,null,null,null,null,null,"Date:"]